{"text_format":"1","workbook":"xlsx","n_sheets":84,"sheets":["General data","XBRL Errors","Index","Show","Hierarchies","C_00.01","R_13.00","M_05.00","B_01.01","L_00.02","R_14.00","M_06.00","B_01.02","L_00.03","R_15.00","B_01.03","L_01.00","R_16.00","B_05.01","L_02.00","R_17.00","L_03.00","R_18.00","L_04.00","R_19.00","L_05.00","R_20.00","R_21.00","R_22.01","R_22.02","R_22.03","R_23.00","C_91.01","M_07.00","B_02.01","L_06.00","C_92.01","B_02.02","L_07.01","C_92.02","L_07.02","C_92.03","L_07.03","C_92.04","L_08.01","C_92.05","L_08.02","C_92.06","C_92.07.1","C_92.07.2","C_93.00","C_94.01","C_94.02","C_94.03","C_95.00","M_01.00","B_02.03","C_96.01.1","M_02.00","B_03.01","C_96.01.2","M_03.00","B_03.02","C_96.02","M_04.00","B_03.03","C_96.03","B_04.01","C_96.04.1","C_96.04.2","C_96.05.1","C_96.05.2","C_97.00","C_98.01.1","C_98.01.2","C_98.02.1","C_98.02.2","C_24.01","B_05.02","C_90.00","B_06.01","B_07.01","C_99.00","B_99.01"],"not_rendered":{"charts":0,"images":3,"macros":1,"external_links":0,"defined_names":194,"comments":0,"pivot_tables":0},"unopened":[],"bounds":{"document_bytes":16777216,"sheet_cells":100000,"rows_first":2000,"rows_last":500,"rows_between":2000,"halvings":0,"cell_chars":16384,"cell_head_chars":4096},"cells_cut":0,"cells_raw":0,"read":"whole","date_system":"1900"}

{"sheet":"General data","index":0,"n_rows":247,"n_cols":23,"rows_kept":247,"cut":false,"hidden":false,"merged":[[0,6,2,6],[3,0,5,9]]}
[null,null,null,null,null,null,null,"Version:",null,"3.5.0.0.1",null,null,null,null,null,null,"Not applicable/All geographical areas","http://standards.iso.org/iso/17442","FRTB - COREP","COREP_FRTB: FRTB - COREP","01","EUR","EBA 3.5.0"]
[null,null,null,null,null,null,null,null,null,null,null,null,null,null,null,null,"AFGHANISTAN","http://standards.iso.org/iso/17442","Remuneration Diversity Benchmarking","REM_DBM: REMUNERATION DIVERSITY BENCHMARKING","14","AED"]
[null,null,null,null,null,null,null," ",null,null,null,null,null,null,null,null,"ALBANIA","http://standards.iso.org/iso/17442","MREL TLAC","MREL_TLAC: MREL TLAC","15","AFN"]
[null,null,null,null,null,null,null,null,null,null,null,null,null,null,null,null,"ALGERIA","http://standards.iso.org/iso/17442","DORA","DORA: DORA","16","ALL"]
[null,null,null,null,null,null,null,null,null,null,null,null,null,null,null,null,"AMERICAN SAMOA","http://standards.iso.org/iso/17442","FICO","FC: FICO","17","AMD"]
[null,null,null,null,null,null,null,null,null,null,null,null,null,null,null,null,"ANDORRA","http://standards.iso.org/iso/17442",null,null,"18","ANG"]
[null,null,null,null,null,null,null,null,null,null,null,null,null,null,null,null,"ANGOLA","http://standards.iso.org/iso/17442",null,null,"19","AOA"]
[null,"General Data",null,null,null,null,null,null,null,null,null,"/General data label{B}","/General data value{E}",null,null,null,"ANGUILLA","http://standards.iso.org/iso/17442",null,null,"20","ARS"]
[null,null,null,null,null,null,null,null,null,null,null,null,null,null,null,null,"ANTARCTICA","http://standards.iso.org/iso/17442",null,null,"All","AUD"]
["*","Identifier",":","LEGALIDENTIFIER20POS",{"$f":"\"\"&D10","v":"LEGALIDENTIFIER20POS"},{"$f":"IF(D10=\"\",1,0)","v":0},null,null,null,null,null,null,null,null,null,null,"ANTIGUA AND BARBUDA","http://standards.iso.org/iso/17442",null,null,"All","AWG"]
[null,null,null,null,null,null,null,null,null,null,null,null,null,null,null,null,"ARGENTINA","http://standards.iso.org/iso/17442",null,null,null,"AZN"]
["*","Period start date",":","2020-01-01",{"$f":"D12","v":"2020-01-01"},{"$f":"IF(D12=\"\",1,0)","v":0},null,null,null,null,null,null,null,null,null,null,"ARMENIA","http://standards.iso.org/iso/17442",null,null,null,"BAM"]
[null,null,null,null,null,null,null,null,null,null,null,null,null,null,null,null,"ARUBA","http://standards.iso.org/iso/17442",null,null,null,"BBD"]
["*","Period end date",":","2020-12-31",{"$f":"D14","v":"2020-12-31"},{"$f":"IF(D14=\"\",1,0)","v":0},null,null,null,null,null,null,null,null,null,null,"AUSTRALIA","http://standards.iso.org/iso/17442",null,null,null,"BDT"]
[null,null,null,null,null,null,null,null,null,null,null,null,null,null,null,null,"AUSTRIA","http://standards.iso.org/iso/17442",null,null,null,"BGN"]
[null,"Country",":","Not applicable/All geographical areas",null,null,null,null,null,null,null,null,null,null,null,null,"AZERBAIJAN","http://standards.iso.org/iso/17442",null,null,null,"BHD"]
[null,null,null,null,null,null,null,null,null,null,null,null,null,null,null,null,"BAHAMAS","http://standards.iso.org/iso/17442",null,null,null,"BIF"]
["*","Filing Currency",":","EUR",{"$f":"\"\"&D18","v":"EUR"},{"$f":"IF(D18=\"\",1,0)","v":0},null,null,null,null,null,null,null,null,null,null,"BAHRAIN","http://standards.iso.org/iso/17442",null,null,null,"BMD"]
[null,null,null,null,null,null,null,null,null,null,null,null,null,null,null,null,"BANGLADESH","http://standards.iso.org/iso/17442",null,null,null,"BND"]
["*","Taxonomy",":","EBA 3.5.0",null,{"$f":"IF(D20=\"\",1,0)","v":0},null,null,null,null,null,null,null,null,null,null,"BARBADOS","http://standards.iso.org/iso/17442",null,null,null,"BOB"]
[null,null,null,null,null,null,null,null,null,null,null,null,null,null,null,null,"BELARUS","http://standards.iso.org/iso/17442",null,null,null,"BRL"]
["*","Module",":","FRTB - COREP",{"$f":"IFERROR(VLOOKUP(D22,S:T,2,FALSE),\"\")","v":"COREP_FRTB: FRTB - COREP"},{"$f":"IF(D22=\"\",1,0)","v":0},null,null,null,null,null,null,null,null,null,null,"BELGIUM","http://www.swift.com",null,null,null,"BSD"]
[null,null,null,null,null,null,null,null,null,null,null,null,null,null,null,null,"BELIZE","http://standards.iso.org/iso/17442",null,null,null,"BTN"]
[null,null,null,null,null,null,null,null,null,null,null,null,null,null,null,null,"BENIN","http://standards.iso.org/iso/17442",null,null,null,"BWP"]
[null,"Advanced Requirements",null,null,null,null,null,null,null,null,null,null,null,null,null,null,"BERMUDA","http://standards.iso.org/iso/17442",null,null,null,"BYN"]
[null,null,null,null,null,null,null,null,null,null,null,null,null,null,null,null,"BHUTAN","http://standards.iso.org/iso/17442",null,null,null,"BZD"]
[null,"Identifier scheme",":",{"$f":"IFERROR(VLOOKUP(D16,Q:R,2,FALSE),R1)","v":"http://standards.iso.org/iso/17442"},{"$f":"D27","v":"http://standards.iso.org/iso/17442"},null,null,null,null,null,null,null,null,null,null,null,"BOLIVIA, PLURINATIONAL STATE OF","http://standards.iso.org/iso/17442",null,null,null,"CAD"]
[null,null,null,null,null,null,null,null,null,null,null,null,null,null,null,null,"BRAZIL","http://standards.iso.org/iso/17442",null,null,null,"COP"]
[null,"Monetary decimals",":",null,null,null,null,null,null,null,null,null,null,null,null,null,"BRITISH INDIAN OCEAN TERRITORY","http://standards.iso.org/iso/17442",null,null,null,"CRC"]
[null,null,null,null,null,null,null,null,null,null,null,null,null,null,null,null,"BRUNEI DARUSSALAM","http://standards.iso.org/iso/17442",null,null,null,"CUC"]
[null,"Monetary precision",":",-3,null,{"$f":" 0.5 * 10^(-1 * PP_MonetaryPrecision)","v":500},null,null,null,null,null,null,null,null,null,null,"BULGARIA","http://standards.iso.org/iso/17442",null,null,null,"CUP"]
[null,null,null,null,null,null,null,null,null,null,null,null,null,null,null,null,"BURKINA FASO","http://standards.iso.org/iso/17442",null,null,null,"CVE"]
[null,"Pure decimals",":",4,null,{"$f":" 0.5 * 10^(-1 * PP_DecimalPrecision)","v":5.0000000000000002E-5},null,null,null,null,null,null,null,null,null,null,"BURUNDI","http://standards.iso.org/iso/17442",null,null,null,"CZK"]
[null,null,null,null,null,null,null,null,null,null,null,null,null,null,null,null,"CAMBODIA","http://standards.iso.org/iso/17442",null,null,null,"DJF"]
[null,"Pure precision",":",4,null,null,null,"#XBRL made simple!",null,null,null,null,null,null,null,null,"CAMEROON","http://standards.iso.org/iso/17442",null,null,null,"DKK"]
[null,null,null,null,null,null,null,null,null,null,null,null,null,null,null,null,"CANADA","http://standards.iso.org/iso/17442",null,null,null,"DOP"]
[null,"Concatenate Errors",":",false,null,null,null,null,null,null,null,null,null,null,null,null,"CAPE VERDE","http://standards.iso.org/iso/17442",null,null,null,"DZD"]
[null,"Additional Requirements (Country specific)",null,null,null,null,null,null,null,null,null,null,null,null,null,null,"CAYMAN ISLANDS","http://standards.iso.org/iso/17442",null,null,null,"EGP"]
["BELGIUM",null,null,null,null,null,null,null,null,null,null,null,null,null,null,null,"CENTRAL AFRICAN REPUBLIC","http://standards.iso.org/iso/17442",null,null,null,"ERN"]
["BELGIUM","Post Parsing features",":",null,null,{"$f":"IF(AND(A40=PP_Country,D40=\"\"),1,0)","v":0},null,null,null,null,null,null,null,null,null,null,"CHAD","http://standards.iso.org/iso/17442",null,null,null,"ETB"]
["BELGIUM",null,null,null,null,null,null,null,null,null,null,null,null,null,null,null,"CHILE","http://standards.iso.org/iso/17442",null,null,null,"EUR"]
["BELGIUM","Reporter e-mail",":",null,null,null,null,null,null,null,null,null,null,null,null,null,"CHINA","http://standards.iso.org/iso/17442",null,null,null,"FJD"]
["BELGIUM",null,null,null,null,null,null,null,null,null,null,null,null,null,null,null,"CHRISTMAS ISLAND","http://standards.iso.org/iso/17442",null,null,null,"FKP"]
["BELGIUM","Declarer Type",":",null,{"$f":"\"\"&D44","v":""},{"$f":"IF(AND(A44=PP_Country,D44=\"\"),1,0)","v":0},null,null,null,null,null,null,null,null,null,null,"COCOS (KEELING) ISLANDS","http://standards.iso.org/iso/17442",null,null,null,"GBP"]
["BELGIUM",null,null,null,null,null,null,null,null,null,null,null,null,null,null,null,"COLOMBIA","http://standards.iso.org/iso/17442",null,null,null,"GEL"]
["BELGIUM","Domain",":",null,{"$f":"\"\"&D46","v":""},{"$f":"IF(AND(A46=PP_Country,D46=\"\"),1,0)","v":0},null,null,null,null,null,null,null,null,null,null,"COMOROS","http://standards.iso.org/iso/17442",null,null,null,"GGP"]
["BELGIUM",null,null,null,null,null,null,null,null,null,null,null,null,null,null,null,"CONGO","http://standards.iso.org/iso/17442",null,null,null,"GHS"]
[null,"ParsePort-specific parameters:",null,"SII_",null,null,null,null,null,null,null,null,null,null,null,null,"CONGO, THE DEMOCRATIC REPUBLIC OF THE","http://standards.iso.org/iso/17442",null,null,null,"GIP"]
[null,"Compress contexts",null,true,null,null,null,null,null,null,null,null,null,null,null,null,"COOK ISLANDS","http://standards.iso.org/iso/17442",null,null,null,"GMD"]
[null,"Language",null,"EN",null,null,null,null,null,null,null,null,null,null,null,null,"COSTA RICA","http://standards.iso.org/iso/17442",null,null,null,"GNF"]
[null,"Debug mode",null,false,null,null,null,null,null,null,null,null,null,null,null,null,"CÔTE D'IVOIRE","http://standards.iso.org/iso/17442",null,null,null,"GTQ"]
[null,"LookupValue fallback",null,false,null,null,null,null,null,null,null,null,null,null,null,null,"CROATIA","http://standards.iso.org/iso/17442",null,null,null,"GYD"]
[null,null,null,null,null,null,null,null,null,null,null,"//General data label{B}","//General data value{E}",null,null,null,"CUBA","http://standards.iso.org/iso/17442",null,null,null,"HKD"]
["BELGIUM",null,null,null,null,null,null,null,null,null,null,null,null,null,null,null,"CURAÇAO","http://standards.iso.org/iso/17442",null,null,null,"HNL"]
["BELGIUM",null,null,null,null,null,null,null,null,null,null,null,null,null,null,null,"CYPRUS","http://standards.iso.org/iso/17442",null,null,null,"HRK"]
[null,null,null,null,null,null,null,null,null,null,null,null,null,null,null,null,"CZECH REPUBLIC","http://standards.iso.org/iso/17442",null,null,null,"HTG"]
[null,null,null,null,null,null,null,null,null,null,null,null,null,null,null,null,"DENMARK","http://standards.iso.org/iso/17442",null,null,null,"HUF"]
[null,null,null,null,null,null,null,null,null,null,null,null,null,null,null,null,"DJIBOUTI","http://standards.iso.org/iso/17442",null,null,null,"IDR"]
[null,null,null,null,null,null,null,null,null,null,null,null,null,null,null,null,"DOMINICA","http://standards.iso.org/iso/17442",null,null,null,"ILS"]
[null,null,null,null,null,null,null,null,null,null,null,null,null,null,null,null,"DOMINICAN REPUBLIC","http://standards.iso.org/iso/17442",null,null,null,"IMP"]
[null,null,null,null,null,null,null,null,null,null,null,null,null,null,null,null,"ECUADOR","http://standards.iso.org/iso/17442",null,null,null,"INR"]
[null,null,null,null,null,null,null,null,null,null,null,null,null,null,null,null,"EGYPT","http://standards.iso.org/iso/17442",null,null,null,"IQD"]
[null,null,null,null,null,null,null,null,null,null,null,null,null,null,null,null,"EL SALVADOR","http://standards.iso.org/iso/17442",null,null,null,"IRR"]
[null,null,null,null,null,null,null,null,null,null,null,null,null,null,null,null,"EQUATORIAL GUINEA","http://standards.iso.org/iso/17442",null,null,null,"ISK"]
[null,null,null,null,null,null,null,null,null,null,null,null,null,null,null,null,"ERITREA","http://standards.iso.org/iso/17442",null,null,null,"JEP"]
[null,null,null,null,null,null,null,null,null,null,null,null,null,null,null,null,"ESTONIA","http://standards.iso.org/iso/17442",null,null,null,"JMD"]
[null,null,null,null,null,null,null,null,null,null,null,null,null,null,null,null,"ETHIOPIA","http://standards.iso.org/iso/17442",null,null,null,"JOD"]
[null,null,null,null,null,null,null,null,null,null,null,null,null,null,null,null,"FALKLAND ISLANDS (MALVINAS)","http://standards.iso.org/iso/17442",null,null,null,"JPY"]
[null,null,null,null,null,null,null,null,null,null,null,null,null,null,null,null,"FAROE ISLANDS","http://standards.iso.org/iso/17442",null,null,null,"KES"]
[null,null,null,null,null,null,null,null,null,null,null,null,null,null,null,null,"FIJI","http://standards.iso.org/iso/17442",null,null,null,"KGS"]
[null,null,null,null,null,null,null,null,null,null,null,null,null,null,null,null,"FINLAND","http://standards.iso.org/iso/17442",null,null,null,"KHR"]
[null,null,null,null,null,null,null,null,null,null,null,null,null,null,null,null,"FRANCE","http://standards.iso.org/iso/17442",null,null,null,"KMF"]
[null,null,null,null,null,null,null,null,null,null,null,null,null,null,null,null,"FRENCH GUIANA","http://standards.iso.org/iso/17442",null,null,null,"KPW"]
[null,null,null,null,null,null,null,null,null,null,null,null,null,null,null,null,"FRENCH POLYNESIA","http://standards.iso.org/iso/17442",null,null,null,"KRW"]
[null,null,null,null,null,null,null,null,null,null,null,null,null,null,null,null,"FRENCH SOUTHERN TERRITORIES","http://standards.iso.org/iso/17442",null,null,null,"KWD"]
[null,null,null,null,null,null,null,null,null,null,null,null,null,null,null,null,"GABON","http://standards.iso.org/iso/17442",null,null,null,"KYD"]
[null,null,null,null,null,null,null,null,null,null,null,null,null,null,null,null,"GAMBIA","http://standards.iso.org/iso/17442",null,null,null,"KZT"]
[null,null,null,null,null,null,null,null,null,null,null,null,null,null,null,null,"GEORGIA","http://standards.iso.org/iso/17442",null,null,null,"LAK"]
[null,null,null,null,null,null,null,null,null,null,null,null,null,null,null,null,"GERMANY","http://standards.iso.org/iso/17442",null,null,null,"LBP"]
[null,null,null,null,null,null,null,null,null,null,null,null,null,null,null,null,"GHANA","http://standards.iso.org/iso/17442",null,null,null,"LKR"]
[null,null,null,null,null,null,null,null,null,null,null,null,null,null,null,null,"GIBRALTAR","http://standards.iso.org/iso/17442",null,null,null,"LRD"]
[null,null,null,null,null,null,null,null,null,null,null,null,null,null,null,null,"GREECE","http://standards.iso.org/iso/17442",null,null,null,"LSL"]
[null,null,null,null,null,null,null,null,null,null,null,null,null,null,null,null,"GREENLAND","http://standards.iso.org/iso/17442",null,null,null,"LYD"]
[null,null,null,null,null,null,null,null,null,null,null,null,null,null,null,null,"GRENADA","http://standards.iso.org/iso/17442",null,null,null,"MAD"]
[null,null,null,null,null,null,null,null,null,null,null,null,null,null,null,null,"GUADELOUPE","http://standards.iso.org/iso/17442",null,null,null,"MDL"]
[null,null,null,null,null,null,null,null,null,null,null,null,null,null,null,null,"GUAM","http://standards.iso.org/iso/17442",null,null,null,"MGA"]
[null,null,null,null,null,null,null,null,null,null,null,null,null,null,null,null,"GUATEMALA","http://standards.iso.org/iso/17442",null,null,null,"MKD"]
[null,null,null,null,null,null,null,null,null,null,null,null,null,null,null,null,"GUERNSEY","http://standards.iso.org/iso/17442",null,null,null,"MMK"]
[null,null,null,null,null,null,null,null,null,null,null,null,null,null,null,null,"GUINEA","http://standards.iso.org/iso/17442",null,null,null,"MNT"]
[null,null,null,null,null,null,null,null,null,null,null,null,null,null,null,null,"GUINEA-BISSAU","http://standards.iso.org/iso/17442",null,null,null,"MOP"]
[null,null,null,null,null,null,null,null,null,null,null,null,null,null,null,null,"GUYANA","http://standards.iso.org/iso/17442",null,null,null,"MRO"]
[null,null,null,null,null,null,null,null,null,null,null,null,null,null,null,null,"HAITI","http://standards.iso.org/iso/17442",null,null,null,"MUR"]
[null,null,null,null,null,null,null,null,null,null,null,null,null,null,null,null,"HEARD ISLAND AND MCDONALD ISLANDS","http://standards.iso.org/iso/17442",null,null,null,"MVR"]
[null,null,null,null,null,null,null,null,null,null,null,null,null,null,null,null,"HOLY SEE (VATICAN CITY STATE)","http://standards.iso.org/iso/17442",null,null,null,"MWK"]
[null,null,null,null,null,null,null,null,null,null,null,null,null,null,null,null,"HONDURAS","http://standards.iso.org/iso/17442",null,null,null,"MXN"]
[null,null,null,null,null,null,null,null,null,null,null,null,null,null,null,null,"HONG KONG","http://standards.iso.org/iso/17442",null,null,null,"MYR"]
[null,null,null,null,null,null,null,null,null,null,null,null,null,null,null,null,"HUNGARY","http://standards.iso.org/iso/17442",null,null,null,"MZN"]
[null,null,null,null,null,null,null,null,null,null,null,null,null,null,null,null,"ICELAND","http://standards.iso.org/iso/17442",null,null,null,"NAD"]
[null,null,null,null,null,null,null,null,null,null,null,null,null,null,null,null,"INDIA","http://standards.iso.org/iso/17442",null,null,null,"NGN"]
[null,null,null,null,null,null,null,null,null,null,null,null,null,null,null,null,"INDONESIA","http://standards.iso.org/iso/17442",null,null,null,"NIO"]
[null,null,null,null,null,null,null,null,null,null,null,null,null,null,null,null,"IRAN, ISLAMIC REPUBLIC OF","http://standards.iso.org/iso/17442",null,null,null,"NOK"]
[null,null,null,null,null,null,null,null,null,null,null,null,null,null,null,null,"IRAQ","http://standards.iso.org/iso/17442",null,null,null,"NPR"]
[null,null,null,null,null,null,null,null,null,null,null,null,null,null,null,null,"IRELAND","http://standards.iso.org/iso/17442",null,null,null,"NZD"]
[null,null,null,null,null,null,null,null,null,null,null,null,null,null,null,null,"ISLE OF MAN","http://standards.iso.org/iso/17442",null,null,null,"OMR"]
[null,null,null,null,null,null,null,null,null,null,null,null,null,null,null,null,"ISRAEL","http://standards.iso.org/iso/17442",null,null,null,"PAB"]
[null,null,null,null,null,null,null,null,null,null,null,null,null,null,null,null,"ITALY","http://standards.iso.org/iso/17442",null,null,null,"PEN"]
[null,null,null,null,null,null,null,null,null,null,null,null,null,null,null,null,"JAMAICA","http://standards.iso.org/iso/17442",null,null,null,"PGK"]
[null,null,null,null,null,null,null,null,null,null,null,null,null,null,null,null,"JAPAN","http://standards.iso.org/iso/17442",null,null,null,"PHP"]
[null,null,null,null,null,null,null,null,null,null,null,null,null,null,null,null,"JERSEY","http://standards.iso.org/iso/17442",null,null,null,"PKR"]
[null,null,null,null,null,null,null,null,null,null,null,null,null,null,null,null,"JORDAN","http://standards.iso.org/iso/17442",null,null,null,"PLN"]
[null,null,null,null,null,null,null,null,null,null,null,null,null,null,null,null,"KAZAKHSTAN","http://standards.iso.org/iso/17442",null,null,null,"PYG"]
[null,null,null,null,null,null,null,null,null,null,null,null,null,null,null,null,"KENYA","http://standards.iso.org/iso/17442",null,null,null,"QAR"]
[null,null,null,null,null,null,null,null,null,null,null,null,null,null,null,null,"KIRIBATI","http://standards.iso.org/iso/17442",null,null,null,"RON"]
[null,null,null,null,null,null,null,null,null,null,null,null,null,null,null,null,"KOREA, DEMOCRATIC PEOPLE'S REPUBLIC OF","http://standards.iso.org/iso/17442",null,null,null,"RSD"]
[null,null,null,null,null,null,null,null,null,null,null,null,null,null,null,null,"KOREA, REPUBLIC OF","http://standards.iso.org/iso/17442",null,null,null,"RUB"]
[null,null,null,null,null,null,null,null,null,null,null,null,null,null,null,null,"KUWAIT","http://standards.iso.org/iso/17442",null,null,null,"RWF"]
[null,null,null,null,null,null,null,null,null,null,null,null,null,null,null,null,"KYRGYZSTAN","http://standards.iso.org/iso/17442",null,null,null,"SAR"]
[null,null,null,null,null,null,null,null,null,null,null,null,null,null,null,null,"LAO PEOPLE'S DEMOCRATIC REPUBLIC","http://standards.iso.org/iso/17442",null,null,null,"SBD"]
[null,null,null,null,null,null,null,null,null,null,null,null,null,null,null,null,"LATVIA","http://standards.iso.org/iso/17442",null,null,null,"SCR"]
[null,null,null,null,null,null,null,null,null,null,null,null,null,null,null,null,"LEBANON","http://standards.iso.org/iso/17442",null,null,null,"SDG"]
[null,null,null,null,null,null,null,null,null,null,null,null,null,null,null,null,"LESOTHO","http://standards.iso.org/iso/17442",null,null,null,"SEK"]
[null,null,null,null,null,null,null,null,null,null,null,null,null,null,null,null,"LIBERIA","http://standards.iso.org/iso/17442",null,null,null,"SGD"]
[null,null,null,null,null,null,null,null,null,null,null,null,null,null,null,null,"LIBYA","http://standards.iso.org/iso/17442",null,null,null,"SHP"]
[null,null,null,null,null,null,null,null,null,null,null,null,null,null,null,null,"LIECHTENSTEIN","http://standards.iso.org/iso/17442",null,null,null,"SLL"]
[null,null,null,null,null,null,null,null,null,null,null,null,null,null,null,null,"LITHUANIA","http://standards.iso.org/iso/17442",null,null,null,"SOS"]
[null,null,null,null,null,null,null,null,null,null,null,null,null,null,null,null,"LUXEMBOURG","http://www.cssf.lu",null,null,null,"SPL"]
[null,null,null,null,null,null,null,null,null,null,null,null,null,null,null,null,"MACAO","http://standards.iso.org/iso/17442",null,null,null,"SRD"]
[null,null,null,null,null,null,null,null,null,null,null,null,null,null,null,null,"MACEDONIA, THE FORMER YUGOSLAV REPUBLIC OF","http://standards.iso.org/iso/17442",null,null,null,"STD"]
[null,null,null,null,null,null,null,null,null,null,null,null,null,null,null,null,"MADAGASCAR","http://standards.iso.org/iso/17442",null,null,null,"SVC"]
[null,null,null,null,null,null,null,null,null,null,null,null,null,null,null,null,"MALAWI","http://standards.iso.org/iso/17442",null,null,null,"SYP"]
[null,null,null,null,null,null,null,null,null,null,null,null,null,null,null,null,"MALAYSIA","http://standards.iso.org/iso/17442",null,null,null,"SZL"]
[null,null,null,null,null,null,null,null,null,null,null,null,null,null,null,null,"MALDIVES","http://standards.iso.org/iso/17442",null,null,null,"THB"]
[null,null,null,null,null,null,null,null,null,null,null,null,null,null,null,null,"MALI","http://standards.iso.org/iso/17442",null,null,null,"TJS"]
[null,null,null,null,null,null,null,null,null,null,null,null,null,null,null,null,"MALTA","http://standards.iso.org/iso/17442",null,null,null,"TMT"]
[null,null,null,null,null,null,null,null,null,null,null,null,null,null,null,null,"MARSHALL ISLANDS","http://standards.iso.org/iso/17442",null,null,null,"TND"]
[null,null,null,null,null,null,null,null,null,null,null,null,null,null,null,null,"MARTINIQUE","http://standards.iso.org/iso/17442",null,null,null,"TOP"]
[null,null,null,null,null,null,null,null,null,null,null,null,null,null,null,null,"MAURITANIA","http://standards.iso.org/iso/17442",null,null,null,"TRY"]
[null,null,null,null,null,null,null,null,null,null,null,null,null,null,null,null,"MAURITIUS","http://standards.iso.org/iso/17442",null,null,null,"TTD"]
[null,null,null,null,null,null,null,null,null,null,null,null,null,null,null,null,"MAYOTTE","http://standards.iso.org/iso/17442",null,null,null,"TVD"]
[null,null,null,null,null,null,null,null,null,null,null,null,null,null,null,null,"MEXICO","http://standards.iso.org/iso/17442",null,null,null,"TWD"]
[null,null,null,null,null,null,null,null,null,null,null,null,null,null,null,null,"MICRONESIA, FEDERATED STATES OF","http://standards.iso.org/iso/17442",null,null,null,"TZS"]
[null,null,null,null,null,null,null,null,null,null,null,null,null,null,null,null,"MOLDOVA, REPUBLIC OF","http://standards.iso.org/iso/17442",null,null,null,"UAH"]
[null,null,null,null,null,null,null,null,null,null,null,null,null,null,null,null,"MONACO","http://standards.iso.org/iso/17442",null,null,null,"UGX"]
[null,null,null,null,null,null,null,null,null,null,null,null,null,null,null,null,"MONGOLIA","http://standards.iso.org/iso/17442",null,null,null,"USD"]
[null,null,null,null,null,null,null,null,null,null,null,null,null,null,null,null,"MONTENEGRO","http://standards.iso.org/iso/17442",null,null,null,"UYU"]
[null,null,null,null,null,null,null,null,null,null,null,null,null,null,null,null,"MONTSERRAT","http://standards.iso.org/iso/17442",null,null,null,"UZS"]
[null,null,null,null,null,null,null,null,null,null,null,null,null,null,null,null,"MOROCCO","http://standards.iso.org/iso/17442",null,null,null,"VEF"]
[null,null,null,null,null,null,null,null,null,null,null,null,null,null,null,null,"MOZAMBIQUE","http://standards.iso.org/iso/17442",null,null,null,"VND"]
[null,null,null,null,null,null,null,null,null,null,null,null,null,null,null,null,"MYANMAR","http://standards.iso.org/iso/17442",null,null,null,"VUV"]
[null,null,null,null,null,null,null,null,null,null,null,null,null,null,null,null,"NAMIBIA","http://standards.iso.org/iso/17442",null,null,null,"WST"]
[null,null,null,null,null,null,null,null,null,null,null,null,null,null,null,null,"NAURU","http://standards.iso.org/iso/17442",null,null,null,"XAF"]
[null,null,null,null,null,null,null,null,null,null,null,null,null,null,null,null,"NEPAL","http://standards.iso.org/iso/17442",null,null,null,"XCD"]
[null,null,null,null,null,null,null,null,null,null,null,null,null,null,null,null,"NETHERLANDS","http://standards.iso.org/iso/17442",null,null,null,"XDR"]
[null,null,null,null,null,null,null,null,null,null,null,null,null,null,null,null,"NEW CALEDONIA","http://standards.iso.org/iso/17442",null,null,null,"XOF"]
[null,null,null,null,null,null,null,null,null,null,null,null,null,null,null,null,"NEW ZEALAND","http://standards.iso.org/iso/17442",null,null,null,"XPF"]
[null,null,null,null,null,null,null,null,null,null,null,null,null,null,null,null,"NICARAGUA","http://standards.iso.org/iso/17442",null,null,null,"YER"]
[null,null,null,null,null,null,null,null,null,null,null,null,null,null,null,null,"NIGER","http://standards.iso.org/iso/17442",null,null,null,"ZAR"]
[null,null,null,null,null,null,null,null,null,null,null,null,null,null,null,null,"NIGERIA","http://standards.iso.org/iso/17442",null,null,null,"ZMW"]
[null,null,null,null,null,null,null,null,null,null,null,null,null,null,null,null,"NIUE","http://standards.iso.org/iso/17442",null,null,null,"ZWD"]
[null,null,null,null,null,null,null,null,null,null,null,null,null,null,null,null,"NORFOLK ISLAND","http://standards.iso.org/iso/17442"]
[null,null,null,null,null,null,null,null,null,null,null,null,null,null,null,null,"NORTHERN MARIANA ISLANDS","http://standards.iso.org/iso/17442"]
[null,null,null,null,null,null,null,null,null,null,null,null,null,null,null,null,"NORWAY","SC"]
[null,null,null,null,null,null,null,null,null,null,null,null,null,null,null,null,"OMAN","http://standards.iso.org/iso/17442"]
[null,null,null,null,null,null,null,null,null,null,null,null,null,null,null,null,"PAKISTAN","http://standards.iso.org/iso/17442"]
[null,null,null,null,null,null,null,null,null,null,null,null,null,null,null,null,"PALAU","http://standards.iso.org/iso/17442"]
[null,null,null,null,null,null,null,null,null,null,null,null,null,null,null,null,"PALESTINIAN TERRITORY, OCCUPIED","http://standards.iso.org/iso/17442"]
[null,null,null,null,null,null,null,null,null,null,null,null,null,null,null,null,"PANAMA","http://standards.iso.org/iso/17442"]
[null,null,null,null,null,null,null,null,null,null,null,null,null,null,null,null,"PAPUA NEW GUINEA","http://standards.iso.org/iso/17442"]
[null,null,null,null,null,null,null,null,null,null,null,null,null,null,null,null,"PARAGUAY","http://standards.iso.org/iso/17442"]
[null,null,null,null,null,null,null,null,null,null,null,null,null,null,null,null,"PERU","http://standards.iso.org/iso/17442"]
[null,null,null,null,null,null,null,null,null,null,null,null,null,null,null,null,"PHILIPPINES","http://standards.iso.org/iso/17442"]
[null,null,null,null,null,null,null,null,null,null,null,null,null,null,null,null,"PITCAIRN","http://standards.iso.org/iso/17442"]
[null,null,null,null,null,null,null,null,null,null,null,null,null,null,null,null,"POLAND","http://standards.iso.org/iso/17442"]
[null,null,null,null,null,null,null,null,null,null,null,null,null,null,null,null,"PORTUGAL","http://standards.iso.org/iso/17442"]
[null,null,null,null,null,null,null,null,null,null,null,null,null,null,null,null,"PUERTO RICO","http://standards.iso.org/iso/17442"]
[null,null,null,null,null,null,null,null,null,null,null,null,null,null,null,null,"QATAR","http://standards.iso.org/iso/17442"]
[null,null,null,null,null,null,null,null,null,null,null,null,null,null,null,null,"RÉUNION","http://standards.iso.org/iso/17442"]
[null,null,null,null,null,null,null,null,null,null,null,null,null,null,null,null,"ROMANIA","http://standards.iso.org/iso/17442"]
[null,null,null,null,null,null,null,null,null,null,null,null,null,null,null,null,"RUSSIAN FEDERATION","http://standards.iso.org/iso/17442"]
[null,null,null,null,null,null,null,null,null,null,null,null,null,null,null,null,"RWANDA","http://standards.iso.org/iso/17442"]
[null,null,null,null,null,null,null,null,null,null,null,null,null,null,null,null,"SAINT BARTHÉLEMY","http://standards.iso.org/iso/17442"]
[null,null,null,null,null,null,null,null,null,null,null,null,null,null,null,null,"SAINT HELENA, ASCENSION AND TRISTAN DA CUNHA","http://standards.iso.org/iso/17442"]
[null,null,null,null,null,null,null,null,null,null,null,null,null,null,null,null,"SAINT KITTS AND NEVIS","http://standards.iso.org/iso/17442"]
[null,null,null,null,null,null,null,null,null,null,null,null,null,null,null,null,"SAINT LUCIA","http://standards.iso.org/iso/17442"]
[null,null,null,null,null,null,null,null,null,null,null,null,null,null,null,null,"SAINT MARTIN (FRENCH PART)","http://standards.iso.org/iso/17442"]
[null,null,null,null,null,null,null,null,null,null,null,null,null,null,null,null,"SAINT PIERRE AND MIQUELON","http://standards.iso.org/iso/17442"]
[null,null,null,null,null,null,null,null,null,null,null,null,null,null,null,null,"SAINT VINCENT AND THE GRENADINES","http://standards.iso.org/iso/17442"]
[null,null,null,null,null,null,null,null,null,null,null,null,null,null,null,null,"SAMOA","http://standards.iso.org/iso/17442"]
[null,null,null,null,null,null,null,null,null,null,null,null,null,null,null,null,"SAN MARINO","http://standards.iso.org/iso/17442"]
[null,null,null,null,null,null,null,null,null,null,null,null,null,null,null,null,"SAO TOME AND PRINCIPE","http://standards.iso.org/iso/17442"]
[null,null,null,null,null,null,null,null,null,null,null,null,null,null,null,null,"SAUDI ARABIA","http://standards.iso.org/iso/17442"]
[null,null,null,null,null,null,null,null,null,null,null,null,null,null,null,null,"SENEGAL","http://standards.iso.org/iso/17442"]
[null,null,null,null,null,null,null,null,null,null,null,null,null,null,null,null,"SERBIA","http://standards.iso.org/iso/17442"]
[null,null,null,null,null,null,null,null,null,null,null,null,null,null,null,null,"SEYCHELLES","http://standards.iso.org/iso/17442"]
[null,null,null,null,null,null,null,null,null,null,null,null,null,null,null,null,"SIERRA LEONE","http://standards.iso.org/iso/17442"]
[null,null,null,null,null,null,null,null,null,null,null,null,null,null,null,null,"SINGAPORE","http://standards.iso.org/iso/17442"]
[null,null,null,null,null,null,null,null,null,null,null,null,null,null,null,null,"SINT MAARTEN (DUTCH PART)","http://standards.iso.org/iso/17442"]
[null,null,null,null,null,null,null,null,null,null,null,null,null,null,null,null,"SLOVAKIA","http://standards.iso.org/iso/17442"]
[null,null,null,null,null,null,null,null,null,null,null,null,null,null,null,null,"SLOVENIA","http://standards.iso.org/iso/17442"]
[null,null,null,null,null,null,null,null,null,null,null,null,null,null,null,null,"SOLOMON ISLANDS","http://standards.iso.org/iso/17442"]
[null,null,null,null,null,null,null,null,null,null,null,null,null,null,null,null,"SOMALIA","http://standards.iso.org/iso/17442"]
[null,null,null,null,null,null,null,null,null,null,null,null,null,null,null,null,"SOUTH AFRICA","http://standards.iso.org/iso/17442"]
[null,null,null,null,null,null,null,null,null,null,null,null,null,null,null,null,"SOUTH GEORGIA AND THE SOUTH SANDWICH ISLANDS","http://standards.iso.org/iso/17442"]
[null,null,null,null,null,null,null,null,null,null,null,null,null,null,null,null,"SOUTH SUDAN","http://standards.iso.org/iso/17442"]
[null,null,null,null,null,null,null,null,null,null,null,null,null,null,null,null,"SPAIN","http://standards.iso.org/iso/17442"]
[null,null,null,null,null,null,null,null,null,null,null,null,null,null,null,null,"SRI LANKA","http://standards.iso.org/iso/17442"]
[null,null,null,null,null,null,null,null,null,null,null,null,null,null,null,null,"SUDAN","http://standards.iso.org/iso/17442"]
[null,null,null,null,null,null,null,null,null,null,null,null,null,null,null,null,"SURINAME","http://standards.iso.org/iso/17442"]
[null,null,null,null,null,null,null,null,null,null,null,null,null,null,null,null,"SVALBARD AND JAN MAYEN","http://standards.iso.org/iso/17442"]
[null,null,null,null,null,null,null,null,null,null,null,null,null,null,null,null,"SWAZILAND","http://standards.iso.org/iso/17442"]
[null,null,null,null,null,null,null,null,null,null,null,null,null,null,null,null,"SWEDEN","http://www.fi.se/instnr"]
[null,null,null,null,null,null,null,null,null,null,null,null,null,null,null,null,"SWITZERLAND","http://standards.iso.org/iso/17442"]
[null,null,null,null,null,null,null,null,null,null,null,null,null,null,null,null,"SYRIAN ARAB REPUBLIC","http://standards.iso.org/iso/17442"]
[null,null,null,null,null,null,null,null,null,null,null,null,null,null,null,null,"TAIWAN, PROVINCE OF CHINA","http://standards.iso.org/iso/17442"]
[null,null,null,null,null,null,null,null,null,null,null,null,null,null,null,null,"TAJIKISTAN","http://standards.iso.org/iso/17442"]
[null,null,null,null,null,null,null,null,null,null,null,null,null,null,null,null,"TANZANIA, UNITED REPUBLIC OF","http://standards.iso.org/iso/17442"]
[null,null,null,null,null,null,null,null,null,null,null,null,null,null,null,null,"THAILAND","http://standards.iso.org/iso/17442"]
[null,null,null,null,null,null,null,null,null,null,null,null,null,null,null,null,"TIMOR-LESTE","http://standards.iso.org/iso/17442"]
[null,null,null,null,null,null,null,null,null,null,null,null,null,null,null,null,"TOGO","http://standards.iso.org/iso/17442"]
[null,null,null,null,null,null,null,null,null,null,null,null,null,null,null,null,"TOKELAU","http://standards.iso.org/iso/17442"]
[null,null,null,null,null,null,null,null,null,null,null,null,null,null,null,null,"TONGA","http://standards.iso.org/iso/17442"]
[null,null,null,null,null,null,null,null,null,null,null,null,null,null,null,null,"TRINIDAD AND TOBAGO","http://standards.iso.org/iso/17442"]
[null,null,null,null,null,null,null,null,null,null,null,null,null,null,null,null,"TUNISIA","http://standards.iso.org/iso/17442"]
[null,null,null,null,null,null,null,null,null,null,null,null,null,null,null,null,"TURKEY","http://standards.iso.org/iso/17442"]
[null,null,null,null,null,null,null,null,null,null,null,null,null,null,null,null,"TURKMENISTAN","http://standards.iso.org/iso/17442"]
[null,null,null,null,null,null,null,null,null,null,null,null,null,null,null,null,"TURKS AND CAICOS ISLANDS","http://standards.iso.org/iso/17442"]
[null,null,null,null,null,null,null,null,null,null,null,null,null,null,null,null,"TUVALU","http://standards.iso.org/iso/17442"]
[null,null,null,null,null,null,null,null,null,null,null,null,null,null,null,null,"UGANDA","http://standards.iso.org/iso/17442"]
[null,null,null,null,null,null,null,null,null,null,null,null,null,null,null,null,"UKRAINE","http://standards.iso.org/iso/17442"]
[null,null,null,null,null,null,null,null,null,null,null,null,null,null,null,null,"UNITED ARAB EMIRATES","http://standards.iso.org/iso/17442"]
[null,null,null,null,null,null,null,null,null,null,null,null,null,null,null,null,"UNITED KINGDOM","http://standards.iso.org/iso/17442"]
[null,null,null,null,null,null,null,null,null,null,null,null,null,null,null,null,"UNITED STATES","http://standards.iso.org/iso/17442"]
[null,null,null,null,null,null,null,null,null,null,null,null,null,null,null,null,"UNITED STATES MINOR OUTLYING ISLANDS","http://standards.iso.org/iso/17442"]
[null,null,null,null,null,null,null,null,null,null,null,null,null,null,null,null,"URUGUAY","http://standards.iso.org/iso/17442"]
[null,null,null,null,null,null,null,null,null,null,null,null,null,null,null,null,"UZBEKISTAN","http://standards.iso.org/iso/17442"]
[null,null,null,null,null,null,null,null,null,null,null,null,null,null,null,null,"VANUATU","http://standards.iso.org/iso/17442"]
[null,null,null,null,null,null,null,null,null,null,null,null,null,null,null,null,"VENEZUELA, BOLIVARIAN REPUBLIC OF","http://standards.iso.org/iso/17442"]
[null,null,null,null,null,null,null,null,null,null,null,null,null,null,null,null,"VIET NAM","http://standards.iso.org/iso/17442"]
[null,null,null,null,null,null,null,null,null,null,null,null,null,null,null,null,"VIRGIN ISLANDS, BRITISH","http://standards.iso.org/iso/17442"]
[null,null,null,null,null,null,null,null,null,null,null,null,null,null,null,null,"VIRGIN ISLANDS, U.S.","http://standards.iso.org/iso/17442"]
[null,null,null,null,null,null,null,null,null,null,null,null,null,null,null,null,"WALLIS AND FUTUNA","http://standards.iso.org/iso/17442"]
[null,null,null,null,null,null,null,null,null,null,null,null,null,null,null,null,"WESTERN SAHARA","http://standards.iso.org/iso/17442"]
[null,null,null,null,null,null,null,null,null,null,null,null,null,null,null,null,"YEMEN","http://standards.iso.org/iso/17442"]
[null,null,null,null,null,null,null,null,null,null,null,null,null,null,null,null,"ZAMBIA","http://standards.iso.org/iso/17442"]
[null,null,null,null,null,null,null,null,null,null,null,null,null,null,null,null,"ZIMBABWE","http://standards.iso.org/iso/17442"]
[null,null,null,null,null,null,null,null,null,null,null,null,null,null,null,null,"ÅLAND ISLANDS","http://standards.iso.org/iso/17442"]
[null,null,null,null,null,null,null,null,null,null,null,null,null,null,null,null,"Other Countries","http://standards.iso.org/iso/17442"]

{"sheet":"XBRL Errors","index":1,"n_rows":1,"n_cols":2,"rows_kept":1,"cut":false,"hidden":false,"merged":[]}
["Timestamp","Error"]

{"sheet":"Index","index":2,"n_rows":84,"n_cols":5,"rows_kept":84,"cut":false,"hidden":false,"merged":[[2,1,2,14]]}
[]
[]
[null,"Index"]
[]
[null,"Template Code","Template Name","Reporting Status"]
[null,"C_00.01","Nature of Report - COREP",null,{"$f":"IF($D$6=\"Reported\",\"@ForceFilingCode:true\",IF($D$6=\"Not Reported\",\"@ForceFilingCode:false\",\"\"))","v":""}]
[null,"R_13.00","Corporate information",null,{"$f":"IF($D$7=\"Reported\",\"@ForceFilingCode:true\",IF($D$7=\"Not Reported\",\"@ForceFilingCode:false\",\"\"))","v":""}]
[null,"M_05.00","Creditor ranking (entity that is not a resolution entity) (TLAC2)",null,{"$f":"IF($D$8=\"Reported\",\"@ForceFilingCode:true\",IF($D$8=\"Not Reported\",\"@ForceFilingCode:false\",\"\"))","v":""}]
[null,"B_01.01","RT.01.01: Entity maintaining the register of information",null,{"$f":"IF($D$9=\"Reported\",\"@ForceFilingCode:true\",IF($D$9=\"Not Reported\",\"@ForceFilingCode:false\",\"\"))","v":""}]
[null,"L_00.02","Summary template",null,{"$f":"IF($D$10=\"Reported\",\"@ForceFilingCode:true\",IF($D$10=\"Not Reported\",\"@ForceFilingCode:false\",\"\"))","v":""}]
[null,"R_14.00","Executive directors age and gender",null,{"$f":"IF($D$11=\"Reported\",\"@ForceFilingCode:true\",IF($D$11=\"Not Reported\",\"@ForceFilingCode:false\",\"\"))","v":""}]
[null,"M_06.00","Creditor ranking (resolution entities) (TLAC3)",null,{"$f":"IF($D$12=\"Reported\",\"@ForceFilingCode:true\",IF($D$12=\"Not Reported\",\"@ForceFilingCode:false\",\"\"))","v":""}]
[null,"B_01.02","RT.01.02: List of entities within the scope of the register of information",null,{"$f":"IF($D$13=\"Reported\",\"@ForceFilingCode:true\",IF($D$13=\"Not Reported\",\"@ForceFilingCode:false\",\"\"))","v":""}]
[null,"L_00.03","Summary template",null,{"$f":"IF($D$14=\"Reported\",\"@ForceFilingCode:true\",IF($D$14=\"Not Reported\",\"@ForceFilingCode:false\",\"\"))","v":""}]
[null,"R_15.00","Composition of specific  committees of the management body in its supervisory function",null,{"$f":"IF($D$15=\"Reported\",\"@ForceFilingCode:true\",IF($D$15=\"Not Reported\",\"@ForceFilingCode:false\",\"\"))","v":""}]
[null,"B_01.03","RT.01.03: List of branches",null,{"$f":"IF($D$16=\"Reported\",\"@ForceFilingCode:true\",IF($D$16=\"Not Reported\",\"@ForceFilingCode:false\",\"\"))","v":""}]
[null,"L_01.00","Equity-type transactions, debt and asset transfers",null,{"$f":"IF($D$17=\"Reported\",\"@ForceFilingCode:true\",IF($D$17=\"Not Reported\",\"@ForceFilingCode:false\",\"\"))","v":""}]
[null,"R_16.00","Non executive directors age and gender",null,{"$f":"IF($D$18=\"Reported\",\"@ForceFilingCode:true\",IF($D$18=\"Not Reported\",\"@ForceFilingCode:false\",\"\"))","v":""}]
[null,"B_05.01","RT.05.01: ICT third-party service providers",null,{"$f":"IF($D$19=\"Reported\",\"@ForceFilingCode:true\",IF($D$19=\"Not Reported\",\"@ForceFilingCode:false\",\"\"))","v":""}]
[null,"L_02.00","Derivatives",null,{"$f":"IF($D$20=\"Reported\",\"@ForceFilingCode:true\",IF($D$20=\"Not Reported\",\"@ForceFilingCode:false\",\"\"))","v":""}]
[null,"R_17.00","Newly appointed executive directors (including CEO)",null,{"$f":"IF($D$21=\"Reported\",\"@ForceFilingCode:true\",IF($D$21=\"Not Reported\",\"@ForceFilingCode:false\",\"\"))","v":""}]
[null,"L_03.00","Off-balance sheet and contingent liabilities",null,{"$f":"IF($D$22=\"Reported\",\"@ForceFilingCode:true\",IF($D$22=\"Not Reported\",\"@ForceFilingCode:false\",\"\"))","v":""}]
[null,"R_18.00","Newly appointed non-executive directors (including Chairperson)",null,{"$f":"IF($D$23=\"Reported\",\"@ForceFilingCode:true\",IF($D$23=\"Not Reported\",\"@ForceFilingCode:false\",\"\"))","v":""}]
[null,"L_04.00","Insurance-reinsurance",null,{"$f":"IF($D$24=\"Reported\",\"@ForceFilingCode:true\",IF($D$24=\"Not Reported\",\"@ForceFilingCode:false\",\"\"))","v":""}]
[null,"R_19.00","Business regions/Geographical provenance",null,{"$f":"IF($D$25=\"Reported\",\"@ForceFilingCode:true\",IF($D$25=\"Not Reported\",\"@ForceFilingCode:false\",\"\"))","v":""}]
[null,"L_05.00","P&L",null,{"$f":"IF($D$26=\"Reported\",\"@ForceFilingCode:true\",IF($D$26=\"Not Reported\",\"@ForceFilingCode:false\",\"\"))","v":""}]
[null,"R_20.00","Educational background of members of the management body",null,{"$f":"IF($D$27=\"Reported\",\"@ForceFilingCode:true\",IF($D$27=\"Not Reported\",\"@ForceFilingCode:false\",\"\"))","v":""}]
[null,"R_21.00","Professional background of members of the management body",null,{"$f":"IF($D$28=\"Reported\",\"@ForceFilingCode:true\",IF($D$28=\"Not Reported\",\"@ForceFilingCode:false\",\"\"))","v":""}]
[null,"R_22.01","Diversity policy. Nomination and gender diversity",null,{"$f":"IF($D$29=\"Reported\",\"@ForceFilingCode:true\",IF($D$29=\"Not Reported\",\"@ForceFilingCode:false\",\"\"))","v":""}]
[null,"R_22.02","Diversity policy. Quantitative targets set within the diversity policy",null,{"$f":"IF($D$30=\"Reported\",\"@ForceFilingCode:true\",IF($D$30=\"Not Reported\",\"@ForceFilingCode:false\",\"\"))","v":""}]
[null,"R_22.03","Diversity policy. Other aspects than gender included in the diversity policy",null,{"$f":"IF($D$31=\"Reported\",\"@ForceFilingCode:true\",IF($D$31=\"Not Reported\",\"@ForceFilingCode:false\",\"\"))","v":""}]
[null,"R_23.00","Gender Pay Gap Benchmarking",null,{"$f":"IF($D$32=\"Reported\",\"@ForceFilingCode:true\",IF($D$32=\"Not Reported\",\"@ForceFilingCode:false\",\"\"))","v":""}]
[null,"C_91.01","Alternative Standardised Approach: Summary (MKR ASA SUM)",null,{"$f":"IF($D$33=\"Reported\",\"@ForceFilingCode:true\",IF($D$33=\"Not Reported\",\"@ForceFilingCode:false\",\"\"))","v":""}]
[null,"M_07.00","Instruments governed by third-country law (MTCI)",null,{"$f":"IF($D$34=\"Reported\",\"@ForceFilingCode:true\",IF($D$34=\"Not Reported\",\"@ForceFilingCode:false\",\"\"))","v":""}]
[null,"B_02.01","RT.02.01: Contractual arrangements – General Information",null,{"$f":"IF($D$35=\"Reported\",\"@ForceFilingCode:true\",IF($D$35=\"Not Reported\",\"@ForceFilingCode:false\",\"\"))","v":""}]
[null,"L_06.00","Risk Concentration - Exposure by counterparties",null,{"$f":"IF($D$36=\"Reported\",\"@ForceFilingCode:true\",IF($D$36=\"Not Reported\",\"@ForceFilingCode:false\",\"\"))","v":""}]
[null,"C_92.01","Alternative standardised approach: SBM - GENERAL INTEREST RATE RISK (GIRR) (MKR SBM GIRR)",null,{"$f":"IF($D$37=\"Reported\",\"@ForceFilingCode:true\",IF($D$37=\"Not Reported\",\"@ForceFilingCode:false\",\"\"))","v":""}]
[null,"B_02.02","RT.02.02: Contractual arrangements – Specific information",null,{"$f":"IF($D$38=\"Reported\",\"@ForceFilingCode:true\",IF($D$38=\"Not Reported\",\"@ForceFilingCode:false\",\"\"))","v":""}]
[null,"L_07.01","Risk Concentration – Exposure by currency",null,{"$f":"IF($D$39=\"Reported\",\"@ForceFilingCode:true\",IF($D$39=\"Not Reported\",\"@ForceFilingCode:false\",\"\"))","v":""}]
[null,"C_92.02","Alternative standardised approach: SBM - CREDIT SPREAD RISK FOR NON-SECURITISATIONS (MKR SBM CSR)",null,{"$f":"IF($D$40=\"Reported\",\"@ForceFilingCode:true\",IF($D$40=\"Not Reported\",\"@ForceFilingCode:false\",\"\"))","v":""}]
[null,"L_07.02","Risk Concentration – Exposure by sector",null,{"$f":"IF($D$41=\"Reported\",\"@ForceFilingCode:true\",IF($D$41=\"Not Reported\",\"@ForceFilingCode:false\",\"\"))","v":""}]
[null,"C_92.03","ALTERNATIVE STANDARDISED APPROACH: SBM - CREDIT SPREAD RISK FOR SECURITISATION NOT INCLUDED IN THE ALTERNATIVE CORRELATION TRADING PORTFOLIO (NON-ACTP CSR) (MKR SBM non-ACTP CSR)",null,{"$f":"IF($D$42=\"Reported\",\"@ForceFilingCode:true\",IF($D$42=\"Not Reported\",\"@ForceFilingCode:false\",\"\"))","v":""}]
[null,"L_07.03","Risk Concentration – Exposure by country",null,{"$f":"IF($D$43=\"Reported\",\"@ForceFilingCode:true\",IF($D$43=\"Not Reported\",\"@ForceFilingCode:false\",\"\"))","v":""}]
[null,"C_92.04","ALTERNATIVE STANDARDISED APPROACH: SBM CREDIT SPREAD RISK FOR SECURITISATION INCLUDED IN THE ALTERNATIVE CORRELATION TRADING",null,{"$f":"IF($D$44=\"Reported\",\"@ForceFilingCode:true\",IF($D$44=\"Not Reported\",\"@ForceFilingCode:false\",\"\"))","v":""}]
[null,"L_08.01","Risk Concentration – Exposure by asset class and rating",null,{"$f":"IF($D$45=\"Reported\",\"@ForceFilingCode:true\",IF($D$45=\"Not Reported\",\"@ForceFilingCode:false\",\"\"))","v":""}]
[null,"C_92.05","ALTERNATIVE STANDARDISED APPROACH: SBM - EQUITY RISK (EQU) (MKR SBM EQU)",null,{"$f":"IF($D$46=\"Reported\",\"@ForceFilingCode:true\",IF($D$46=\"Not Reported\",\"@ForceFilingCode:false\",\"\"))","v":""}]
[null,"L_08.02","Risk Concentration – Exposure by asset class and rating",null,{"$f":"IF($D$47=\"Reported\",\"@ForceFilingCode:true\",IF($D$47=\"Not Reported\",\"@ForceFilingCode:false\",\"\"))","v":""}]
[null,"C_92.06","C 92.06 ALTERNATIVE STANDARDISED APPROACH: SBM - COMMODITY RISK (COM) (MKR SBM COM)",null,{"$f":"IF($D$48=\"Reported\",\"@ForceFilingCode:true\",IF($D$48=\"Not Reported\",\"@ForceFilingCode:false\",\"\"))","v":""}]
[null,"C_92.07.1","ALTERNATIVE STANDARDISED APPROACH: SBM - FOREIGN EXCHANGE RISK (FX) - DELTA AND CURVATURE RISK (MKR SBM FX1)",null,{"$f":"IF($D$49=\"Reported\",\"@ForceFilingCode:true\",IF($D$49=\"Not Reported\",\"@ForceFilingCode:false\",\"\"))","v":""}]
[null,"C_92.07.2","ALTERNATIVE STANDARDISED APPROACH: SBM - FOREIGN EXCHANGE RISK (FX) - VEGA RISK (MKR SBM FX2)",null,{"$f":"IF($D$50=\"Reported\",\"@ForceFilingCode:true\",IF($D$50=\"Not Reported\",\"@ForceFilingCode:false\",\"\"))","v":""}]
[null,"C_93.00","Alternative Standardised Approach: Residual Risk Add-On (MKR ASA RRAO)",null,{"$f":"IF($D$51=\"Reported\",\"@ForceFilingCode:true\",IF($D$51=\"Not Reported\",\"@ForceFilingCode:false\",\"\"))","v":""}]
[null,"C_94.01","Alternative Standardised Approach: Default risk charge - Instruments other than securitisations, not included in the alternative correlation trading portfolio (MKR ASA DRC1)",null,{"$f":"IF($D$52=\"Reported\",\"@ForceFilingCode:true\",IF($D$52=\"Not Reported\",\"@ForceFilingCode:false\",\"\"))","v":""}]
[null,"C_94.02","Alternative Standardised Approach: Default risk charge - Securitisations, not included in the alternative correlation trading portfolio (non-ACTP) (MKR ASA DRC2)",null,{"$f":"IF($D$53=\"Reported\",\"@ForceFilingCode:true\",IF($D$53=\"Not Reported\",\"@ForceFilingCode:false\",\"\"))","v":""}]
[null,"C_94.03","Alternative Standardised Approach: Default risk charge - Instruments included in the alternative correlation trading portfolio (MKR ASA DRC3)",null,{"$f":"IF($D$54=\"Reported\",\"@ForceFilingCode:true\",IF($D$54=\"Not Reported\",\"@ForceFilingCode:false\",\"\"))","v":""}]
[null,"C_95.00","Alternative internal model approach: Summary of own funds requirements (MKR AIMA SUM)",null,{"$f":"IF($D$55=\"Reported\",\"@ForceFilingCode:true\",IF($D$55=\"Not Reported\",\"@ForceFilingCode:false\",\"\"))","v":""}]
[null,"M_01.00","MREL and TLAC key metrics (resolution groups / entities) (KM2)",null,{"$f":"IF($D$56=\"Reported\",\"@ForceFilingCode:true\",IF($D$56=\"Not Reported\",\"@ForceFilingCode:false\",\"\"))","v":""}]
[null,"B_02.03","RT.02.03: List of intra-group contractual arrangements",null,{"$f":"IF($D$57=\"Reported\",\"@ForceFilingCode:true\",IF($D$57=\"Not Reported\",\"@ForceFilingCode:false\",\"\"))","v":""}]
[null,"C_96.01.1","Alternative internal model approach: Risk factor eligibility test (MKR AIMA RFET)",null,{"$f":"IF($D$58=\"Reported\",\"@ForceFilingCode:true\",IF($D$58=\"Not Reported\",\"@ForceFilingCode:false\",\"\"))","v":""}]
[null,"M_02.00","MREL and TLAC capacity and composition (resolution groups / entities) (TLAC1)",null,{"$f":"IF($D$59=\"Reported\",\"@ForceFilingCode:true\",IF($D$59=\"Not Reported\",\"@ForceFilingCode:false\",\"\"))","v":""}]
[null,"B_03.01","RT.03.01: Entities signing the Contractual arrangements for receiving ICT service(s) or on behalf of the entities making use of the ICT service(s)",null,{"$f":"IF($D$60=\"Reported\",\"@ForceFilingCode:true\",IF($D$60=\"Not Reported\",\"@ForceFilingCode:false\",\"\"))","v":""}]
[null,"C_96.01.2","Alternative internal model approach: Stress periods for the calculation of the risk measures (MKR AIMA SP)",null,{"$f":"IF($D$61=\"Reported\",\"@ForceFilingCode:true\",IF($D$61=\"Not Reported\",\"@ForceFilingCode:false\",\"\"))","v":""}]
[null,"M_03.00","Internal MREL and internal TLAC (ILAC)",null,{"$f":"IF($D$62=\"Reported\",\"@ForceFilingCode:true\",IF($D$62=\"Not Reported\",\"@ForceFilingCode:false\",\"\"))","v":""}]
[null,"B_03.02","RT.03.02: ICT third-party service providers signing the Contractual arrangements for providing ICT service(s)",null,{"$f":"IF($D$63=\"Reported\",\"@ForceFilingCode:true\",IF($D$63=\"Not Reported\",\"@ForceFilingCode:false\",\"\"))","v":""}]
[null,"C_96.02","Alternative internal model approach: Daily risk measures (MKR AIMA DRM)",null,{"$f":"IF($D$64=\"Reported\",\"@ForceFilingCode:true\",IF($D$64=\"Not Reported\",\"@ForceFilingCode:false\",\"\"))","v":""}]
[null,"M_04.00","Funding structure of eligible liabilities (LIAB MREL)",null,{"$f":"IF($D$65=\"Reported\",\"@ForceFilingCode:true\",IF($D$65=\"Not Reported\",\"@ForceFilingCode:false\",\"\"))","v":""}]
[null,"B_03.03","RT.03.03: Entities signing the Contractual arrangements for providing ICT service(s) to other entity within the scope of consolidation",null,{"$f":"IF($D$66=\"Reported\",\"@ForceFilingCode:true\",IF($D$66=\"Not Reported\",\"@ForceFilingCode:false\",\"\"))","v":""}]
[null,"C_96.03","Alternative internal model approach: Partial expected shortfalls (MKR AIMA PES)",null,{"$f":"IF($D$67=\"Reported\",\"@ForceFilingCode:true\",IF($D$67=\"Not Reported\",\"@ForceFilingCode:false\",\"\"))","v":""}]
[null,"B_04.01","RT.04.01: Entities making use of the ICT services",null,{"$f":"IF($D$68=\"Reported\",\"@ForceFilingCode:true\",IF($D$68=\"Not Reported\",\"@ForceFilingCode:false\",\"\"))","v":""}]
[null,"C_96.04.1","Alternative internal model approach: Back-testing at institution level (MKR AIMA BTI)",null,{"$f":"IF($D$69=\"Reported\",\"@ForceFilingCode:true\",IF($D$69=\"Not Reported\",\"@ForceFilingCode:false\",\"\"))","v":""}]
[null,"C_96.04.2","Alternative internal model approach: Back-testing at trading desk level and profit and loss attribution test (PLAT) (MKR AIMA BTTD)",null,{"$f":"IF($D$70=\"Reported\",\"@ForceFilingCode:true\",IF($D$70=\"Not Reported\",\"@ForceFilingCode:false\",\"\"))","v":""}]
[null,"C_96.05.1","Alternative internal model approach: Stress scenario risk measure (SSRM) - Own funds requirements (MKR AIMA SSRM1)",null,{"$f":"IF($D$71=\"Reported\",\"@ForceFilingCode:true\",IF($D$71=\"Not Reported\",\"@ForceFilingCode:false\",\"\"))","v":""}]
[null,"C_96.05.2","Alternative internal model approach: Stress scenario risk measure (SSRM) -  Number of risk measures by SSRM method (MKR AIMA SSRM2)",null,{"$f":"IF($D$72=\"Reported\",\"@ForceFilingCode:true\",IF($D$72=\"Not Reported\",\"@ForceFilingCode:false\",\"\"))","v":""}]
[null,"C_97.00","Alternative internal model approach: Trading desk structure (MKR AIMA TDS)",null,{"$f":"IF($D$73=\"Reported\",\"@ForceFilingCode:true\",IF($D$73=\"Not Reported\",\"@ForceFilingCode:false\",\"\"))","v":""}]
[null,"C_98.01.1","Alternative internal model approach: Default risk charge - Breakdown by probability of default (MKR AIMA DRC1)",null,{"$f":"IF($D$74=\"Reported\",\"@ForceFilingCode:true\",IF($D$74=\"Not Reported\",\"@ForceFilingCode:false\",\"\"))","v":""}]
[null,"C_98.01.2","Alternative internal model approach: Default risk charge - Breakdown by LGD (MKR AIMA DRC2)",null,{"$f":"IF($D$75=\"Reported\",\"@ForceFilingCode:true\",IF($D$75=\"Not Reported\",\"@ForceFilingCode:false\",\"\"))","v":""}]
[null,"C_98.02.1","Alternative internal model approach: Default risk charge - 25 most significant issuers (MKR AIMA CORR1)",null,{"$f":"IF($D$76=\"Reported\",\"@ForceFilingCode:true\",IF($D$76=\"Not Reported\",\"@ForceFilingCode:false\",\"\"))","v":""}]
[null,"C_98.02.2","Alternative internal model approach: Default risk charge - 25 most significant issuers - Correlations (MKR AIMA CORR1)",null,{"$f":"IF($D$77=\"Reported\",\"@ForceFilingCode:true\",IF($D$77=\"Not Reported\",\"@ForceFilingCode:false\",\"\"))","v":""}]
[null,"C_24.01","Trading book-Banking book boundary: Reclassifications between books (MKR MOV)",null,{"$f":"IF($D$78=\"Reported\",\"@ForceFilingCode:true\",IF($D$78=\"Not Reported\",\"@ForceFilingCode:false\",\"\"))","v":""}]
[null,"B_05.02","RT.05.02: ICT service supply chains",null,{"$f":"IF($D$79=\"Reported\",\"@ForceFilingCode:true\",IF($D$79=\"Not Reported\",\"@ForceFilingCode:false\",\"\"))","v":""}]
[null,"C_90.00","Trading book and market risk thresholds (TBT)",null,{"$f":"IF($D$80=\"Reported\",\"@ForceFilingCode:true\",IF($D$80=\"Not Reported\",\"@ForceFilingCode:false\",\"\"))","v":""}]
[null,"B_06.01","RT.06.01: Functions identification",null,{"$f":"IF($D$81=\"Reported\",\"@ForceFilingCode:true\",IF($D$81=\"Not Reported\",\"@ForceFilingCode:false\",\"\"))","v":""}]
[null,"B_07.01","RT.07.01: Assessment of the ICT services",null,{"$f":"IF($D$82=\"Reported\",\"@ForceFilingCode:true\",IF($D$82=\"Not Reported\",\"@ForceFilingCode:false\",\"\"))","v":""}]
[null,"C_99.00","Market risk: P&L information (MKR PL)",null,{"$f":"IF($D$83=\"Reported\",\"@ForceFilingCode:true\",IF($D$83=\"Not Reported\",\"@ForceFilingCode:false\",\"\"))","v":""}]
[null,"B_99.01","RT.99.01 Definitions from Entities making use of the ICT Services",null,{"$f":"IF($D$84=\"Reported\",\"@ForceFilingCode:true\",IF($D$84=\"Not Reported\",\"@ForceFilingCode:false\",\"\"))","v":""}]

{"sheet":"Show","index":3,"n_rows":165,"n_cols":7,"rows_kept":165,"cut":false,"hidden":true,"merged":[]}
["Sheet","Prefix","COREP_FRTB: FRTB - COREP","REM_DBM: REMUNERATION DIVERSITY BENCHMARKING","MREL_TLAC: MREL TLAC","DORA: DORA","FC: FICO"]
["C_00.01",{"$f":"IF(HLOOKUP('General data'!$E$22,$C$1:$G$2,2,FALSE)=\"X\",\"/\",\"!\")","v":"/"},"X"]
["R_13.00",{"$f":"IF(HLOOKUP('General data'!$E$22,$C$1:$G$3,3,FALSE)=\"X\",\"/\",\"!\")","v":"!"},null,"X"]
["M_05.00",{"$f":"IF(HLOOKUP('General data'!$E$22,$C$1:$G$4,4,FALSE)=\"X\",\"/\",\"!\")","v":"!"},null,null,"X"]
["B_01.01",{"$f":"IF(HLOOKUP('General data'!$E$22,$C$1:$G$5,5,FALSE)=\"X\",\"/\",\"!\")","v":"!"},null,null,null,"X"]
["L_00.02",{"$f":"IF(HLOOKUP('General data'!$E$22,$C$1:$G$6,6,FALSE)=\"X\",\"/\",\"!\")","v":"!"},null,null,null,null,"X"]
["R_14.00",{"$f":"IF(AND(HLOOKUP('General data'!$E$22,$C$1:$H$7,7,FALSE)=\"X\",Index!D11=\"Reported\"),\"/\",\"!\")","v":"!"},null,"X"]
["M_06.00",{"$f":"IF(AND(HLOOKUP('General data'!$E$22,$C$1:$H$8,8,FALSE)=\"X\",Index!D12=\"Reported\"),\"/\",\"!\")","v":"!"},null,null,"X"]
["B_01.02",{"$f":"IF(AND(HLOOKUP('General data'!$E$22,$C$1:$H$9,9,FALSE)=\"X\",Index!D13=\"Reported\"),\"/\",\"!\")","v":"!"},null,null,null,"X"]
["L_00.03",{"$f":"IF(AND(HLOOKUP('General data'!$E$22,$C$1:$H$10,10,FALSE)=\"X\",Index!D14=\"Reported\"),\"/\",\"!\")","v":"!"},null,null,null,null,"X"]
["R_15.00",{"$f":"IF(AND(HLOOKUP('General data'!$E$22,$C$1:$H$11,11,FALSE)=\"X\",Index!D15=\"Reported\"),\"/\",\"!\")","v":"!"},null,"X"]
["B_01.03",{"$f":"IF(AND(HLOOKUP('General data'!$E$22,$C$1:$H$12,12,FALSE)=\"X\",Index!D16=\"Reported\"),\"/\",\"!\")","v":"!"},null,null,null,"X"]
["L_01.00",{"$f":"IF(AND(HLOOKUP('General data'!$E$22,$C$1:$H$13,13,FALSE)=\"X\",Index!D17=\"Reported\"),\"/\",\"!\")","v":"!"},null,null,null,null,"X"]
["R_16.00",{"$f":"IF(AND(HLOOKUP('General data'!$E$22,$C$1:$H$14,14,FALSE)=\"X\",Index!D18=\"Reported\"),\"/\",\"!\")","v":"!"},null,"X"]
["B_05.01",{"$f":"IF(AND(HLOOKUP('General data'!$E$22,$C$1:$H$15,15,FALSE)=\"X\",Index!D19=\"Reported\"),\"/\",\"!\")","v":"!"},null,null,null,"X"]
["L_02.00",{"$f":"IF(AND(HLOOKUP('General data'!$E$22,$C$1:$H$16,16,FALSE)=\"X\",Index!D20=\"Reported\"),\"/\",\"!\")","v":"!"},null,null,null,null,"X"]
["R_17.00",{"$f":"IF(AND(HLOOKUP('General data'!$E$22,$C$1:$H$17,17,FALSE)=\"X\",Index!D21=\"Reported\"),\"/\",\"!\")","v":"!"},null,"X"]
["L_03.00",{"$f":"IF(AND(HLOOKUP('General data'!$E$22,$C$1:$H$18,18,FALSE)=\"X\",Index!D22=\"Reported\"),\"/\",\"!\")","v":"!"},null,null,null,null,"X"]
["R_18.00",{"$f":"IF(AND(HLOOKUP('General data'!$E$22,$C$1:$H$19,19,FALSE)=\"X\",Index!D23=\"Reported\"),\"/\",\"!\")","v":"!"},null,"X"]
["L_04.00",{"$f":"IF(AND(HLOOKUP('General data'!$E$22,$C$1:$H$20,20,FALSE)=\"X\",Index!D24=\"Reported\"),\"/\",\"!\")","v":"!"},null,null,null,null,"X"]
["R_19.00",{"$f":"IF(AND(HLOOKUP('General data'!$E$22,$C$1:$H$21,21,FALSE)=\"X\",Index!D25=\"Reported\"),\"/\",\"!\")","v":"!"},null,"X"]
["L_05.00",{"$f":"IF(AND(HLOOKUP('General data'!$E$22,$C$1:$H$22,22,FALSE)=\"X\",Index!D26=\"Reported\"),\"/\",\"!\")","v":"!"},null,null,null,null,"X"]
["R_20.00",{"$f":"IF(AND(HLOOKUP('General data'!$E$22,$C$1:$H$23,23,FALSE)=\"X\",Index!D27=\"Reported\"),\"/\",\"!\")","v":"!"},null,"X"]
["R_21.00",{"$f":"IF(AND(HLOOKUP('General data'!$E$22,$C$1:$H$24,24,FALSE)=\"X\",Index!D28=\"Reported\"),\"/\",\"!\")","v":"!"},null,"X"]
["R_22.01",{"$f":"IF(AND(HLOOKUP('General data'!$E$22,$C$1:$H$25,25,FALSE)=\"X\",Index!D29=\"Reported\"),\"/\",\"!\")","v":"!"},null,"X"]
["R_22.02",{"$f":"IF(AND(HLOOKUP('General data'!$E$22,$C$1:$H$26,26,FALSE)=\"X\",Index!D30=\"Reported\"),\"/\",\"!\")","v":"!"},null,"X"]
["R_22.03",{"$f":"IF(AND(HLOOKUP('General data'!$E$22,$C$1:$H$27,27,FALSE)=\"X\",Index!D31=\"Reported\"),\"/\",\"!\")","v":"!"},null,"X"]
["R_23.00",{"$f":"IF(AND(HLOOKUP('General data'!$E$22,$C$1:$H$28,28,FALSE)=\"X\",Index!D32=\"Reported\"),\"/\",\"!\")","v":"!"},null,"X"]
["C_91.01",{"$f":"IF(AND(HLOOKUP('General data'!$E$22,$C$1:$H$29,29,FALSE)=\"X\",Index!D33=\"Reported\"),\"/\",\"!\")","v":"!"},"X"]
["M_07.00",{"$f":"IF(AND(HLOOKUP('General data'!$E$22,$C$1:$H$30,30,FALSE)=\"X\",Index!D34=\"Reported\"),\"/\",\"!\")","v":"!"},null,null,"X"]
["B_02.01",{"$f":"IF(AND(HLOOKUP('General data'!$E$22,$C$1:$H$31,31,FALSE)=\"X\",Index!D35=\"Reported\"),\"/\",\"!\")","v":"!"},null,null,null,"X"]
["L_06.00",{"$f":"IF(AND(HLOOKUP('General data'!$E$22,$C$1:$H$32,32,FALSE)=\"X\",Index!D36=\"Reported\"),\"/\",\"!\")","v":"!"},null,null,null,null,"X"]
["C_92.01",{"$f":"IF(AND(HLOOKUP('General data'!$E$22,$C$1:$H$33,33,FALSE)=\"X\",Index!D37=\"Reported\"),\"/\",\"!\")","v":"!"},"X"]
["B_02.02",{"$f":"IF(AND(HLOOKUP('General data'!$E$22,$C$1:$H$34,34,FALSE)=\"X\",Index!D38=\"Reported\"),\"/\",\"!\")","v":"!"},null,null,null,"X"]
["L_07.01",{"$f":"IF(AND(HLOOKUP('General data'!$E$22,$C$1:$H$35,35,FALSE)=\"X\",Index!D39=\"Reported\"),\"/\",\"!\")","v":"!"},null,null,null,null,"X"]
["C_92.02",{"$f":"IF(AND(HLOOKUP('General data'!$E$22,$C$1:$H$36,36,FALSE)=\"X\",Index!D40=\"Reported\"),\"/\",\"!\")","v":"!"},"X"]
["L_07.02",{"$f":"IF(AND(HLOOKUP('General data'!$E$22,$C$1:$H$37,37,FALSE)=\"X\",Index!D41=\"Reported\"),\"/\",\"!\")","v":"!"},null,null,null,null,"X"]
["C_92.03",{"$f":"IF(AND(HLOOKUP('General data'!$E$22,$C$1:$H$38,38,FALSE)=\"X\",Index!D42=\"Reported\"),\"/\",\"!\")","v":"!"},"X"]
["L_07.03",{"$f":"IF(AND(HLOOKUP('General data'!$E$22,$C$1:$H$39,39,FALSE)=\"X\",Index!D43=\"Reported\"),\"/\",\"!\")","v":"!"},null,null,null,null,"X"]
["C_92.04",{"$f":"IF(AND(HLOOKUP('General data'!$E$22,$C$1:$H$40,40,FALSE)=\"X\",Index!D44=\"Reported\"),\"/\",\"!\")","v":"!"},"X"]
["L_08.01",{"$f":"IF(AND(HLOOKUP('General data'!$E$22,$C$1:$H$41,41,FALSE)=\"X\",Index!D45=\"Reported\"),\"/\",\"!\")","v":"!"},null,null,null,null,"X"]
["C_92.05",{"$f":"IF(AND(HLOOKUP('General data'!$E$22,$C$1:$H$42,42,FALSE)=\"X\",Index!D46=\"Reported\"),\"/\",\"!\")","v":"!"},"X"]
["L_08.02",{"$f":"IF(AND(HLOOKUP('General data'!$E$22,$C$1:$H$43,43,FALSE)=\"X\",Index!D47=\"Reported\"),\"/\",\"!\")","v":"!"},null,null,null,null,"X"]
["C_92.06",{"$f":"IF(AND(HLOOKUP('General data'!$E$22,$C$1:$H$44,44,FALSE)=\"X\",Index!D48=\"Reported\"),\"/\",\"!\")","v":"!"},"X"]
["C_92.07.1",{"$f":"IF(AND(HLOOKUP('General data'!$E$22,$C$1:$H$45,45,FALSE)=\"X\",Index!D49=\"Reported\"),\"/\",\"!\")","v":"!"},"X"]
["C_92.07.2",{"$f":"IF(AND(HLOOKUP('General data'!$E$22,$C$1:$H$46,46,FALSE)=\"X\",Index!D50=\"Reported\"),\"/\",\"!\")","v":"!"},"X"]
["C_93.00",{"$f":"IF(AND(HLOOKUP('General data'!$E$22,$C$1:$H$47,47,FALSE)=\"X\",Index!D51=\"Reported\"),\"/\",\"!\")","v":"!"},"X"]
["C_94.01",{"$f":"IF(AND(HLOOKUP('General data'!$E$22,$C$1:$H$48,48,FALSE)=\"X\",Index!D52=\"Reported\"),\"/\",\"!\")","v":"!"},"X"]
["C_94.02",{"$f":"IF(AND(HLOOKUP('General data'!$E$22,$C$1:$H$49,49,FALSE)=\"X\",Index!D53=\"Reported\"),\"/\",\"!\")","v":"!"},"X"]
["C_94.03",{"$f":"IF(AND(HLOOKUP('General data'!$E$22,$C$1:$H$50,50,FALSE)=\"X\",Index!D54=\"Reported\"),\"/\",\"!\")","v":"!"},"X"]
["C_95.00",{"$f":"IF(AND(HLOOKUP('General data'!$E$22,$C$1:$H$51,51,FALSE)=\"X\",Index!D55=\"Reported\"),\"/\",\"!\")","v":"!"},"X"]
["M_01.00",{"$f":"IF(AND(HLOOKUP('General data'!$E$22,$C$1:$H$52,52,FALSE)=\"X\",Index!D56=\"Reported\"),\"/\",\"!\")","v":"!"},null,null,"X"]
["B_02.03",{"$f":"IF(AND(HLOOKUP('General data'!$E$22,$C$1:$H$53,53,FALSE)=\"X\",Index!D57=\"Reported\"),\"/\",\"!\")","v":"!"},null,null,null,"X"]
["C_96.01.1",{"$f":"IF(AND(HLOOKUP('General data'!$E$22,$C$1:$H$54,54,FALSE)=\"X\",Index!D58=\"Reported\"),\"/\",\"!\")","v":"!"},"X"]
["M_02.00",{"$f":"IF(AND(HLOOKUP('General data'!$E$22,$C$1:$H$55,55,FALSE)=\"X\",Index!D59=\"Reported\"),\"/\",\"!\")","v":"!"},null,null,"X"]
["B_03.01",{"$f":"IF(AND(HLOOKUP('General data'!$E$22,$C$1:$H$56,56,FALSE)=\"X\",Index!D60=\"Reported\"),\"/\",\"!\")","v":"!"},null,null,null,"X"]
["C_96.01.2",{"$f":"IF(AND(HLOOKUP('General data'!$E$22,$C$1:$H$57,57,FALSE)=\"X\",Index!D61=\"Reported\"),\"/\",\"!\")","v":"!"},"X"]
["M_03.00",{"$f":"IF(AND(HLOOKUP('General data'!$E$22,$C$1:$H$58,58,FALSE)=\"X\",Index!D62=\"Reported\"),\"/\",\"!\")","v":"!"},null,null,"X"]
["B_03.02",{"$f":"IF(AND(HLOOKUP('General data'!$E$22,$C$1:$H$59,59,FALSE)=\"X\",Index!D63=\"Reported\"),\"/\",\"!\")","v":"!"},null,null,null,"X"]
["C_96.02",{"$f":"IF(AND(HLOOKUP('General data'!$E$22,$C$1:$H$60,60,FALSE)=\"X\",Index!D64=\"Reported\"),\"/\",\"!\")","v":"!"},"X"]
["M_04.00",{"$f":"IF(AND(HLOOKUP('General data'!$E$22,$C$1:$H$61,61,FALSE)=\"X\",Index!D65=\"Reported\"),\"/\",\"!\")","v":"!"},null,null,"X"]
["B_03.03",{"$f":"IF(AND(HLOOKUP('General data'!$E$22,$C$1:$H$62,62,FALSE)=\"X\",Index!D66=\"Reported\"),\"/\",\"!\")","v":"!"},null,null,null,"X"]
["C_96.03",{"$f":"IF(AND(HLOOKUP('General data'!$E$22,$C$1:$H$63,63,FALSE)=\"X\",Index!D67=\"Reported\"),\"/\",\"!\")","v":"!"},"X"]
["B_04.01",{"$f":"IF(AND(HLOOKUP('General data'!$E$22,$C$1:$H$64,64,FALSE)=\"X\",Index!D68=\"Reported\"),\"/\",\"!\")","v":"!"},null,null,null,"X"]
["C_96.04.1",{"$f":"IF(AND(HLOOKUP('General data'!$E$22,$C$1:$H$65,65,FALSE)=\"X\",Index!D69=\"Reported\"),\"/\",\"!\")","v":"!"},"X"]
["C_96.04.2",{"$f":"IF(AND(HLOOKUP('General data'!$E$22,$C$1:$H$66,66,FALSE)=\"X\",Index!D70=\"Reported\"),\"/\",\"!\")","v":"!"},"X"]
["C_96.05.1",{"$f":"IF(AND(HLOOKUP('General data'!$E$22,$C$1:$H$67,67,FALSE)=\"X\",Index!D71=\"Reported\"),\"/\",\"!\")","v":"!"},"X"]
["C_96.05.2",{"$f":"IF(AND(HLOOKUP('General data'!$E$22,$C$1:$H$68,68,FALSE)=\"X\",Index!D72=\"Reported\"),\"/\",\"!\")","v":"!"},"X"]
["C_97.00",{"$f":"IF(AND(HLOOKUP('General data'!$E$22,$C$1:$H$69,69,FALSE)=\"X\",Index!D73=\"Reported\"),\"/\",\"!\")","v":"!"},"X"]
["C_98.01.1",{"$f":"IF(AND(HLOOKUP('General data'!$E$22,$C$1:$H$70,70,FALSE)=\"X\",Index!D74=\"Reported\"),\"/\",\"!\")","v":"!"},"X"]
["C_98.01.2",{"$f":"IF(AND(HLOOKUP('General data'!$E$22,$C$1:$H$71,71,FALSE)=\"X\",Index!D75=\"Reported\"),\"/\",\"!\")","v":"!"},"X"]
["C_98.02.1",{"$f":"IF(AND(HLOOKUP('General data'!$E$22,$C$1:$H$72,72,FALSE)=\"X\",Index!D76=\"Reported\"),\"/\",\"!\")","v":"!"},"X"]
["C_98.02.2",{"$f":"IF(AND(HLOOKUP('General data'!$E$22,$C$1:$H$73,73,FALSE)=\"X\",Index!D77=\"Reported\"),\"/\",\"!\")","v":"!"},"X"]
["C_24.01",{"$f":"IF(AND(HLOOKUP('General data'!$E$22,$C$1:$H$74,74,FALSE)=\"X\",Index!D78=\"Reported\"),\"/\",\"!\")","v":"!"},"X"]
["B_05.02",{"$f":"IF(AND(HLOOKUP('General data'!$E$22,$C$1:$H$75,75,FALSE)=\"X\",Index!D79=\"Reported\"),\"/\",\"!\")","v":"!"},null,null,null,"X"]
["C_90.00",{"$f":"IF(AND(HLOOKUP('General data'!$E$22,$C$1:$H$76,76,FALSE)=\"X\",Index!D80=\"Reported\"),\"/\",\"!\")","v":"!"},"X"]
["B_06.01",{"$f":"IF(AND(HLOOKUP('General data'!$E$22,$C$1:$H$77,77,FALSE)=\"X\",Index!D81=\"Reported\"),\"/\",\"!\")","v":"!"},null,null,null,"X"]
["B_07.01",{"$f":"IF(AND(HLOOKUP('General data'!$E$22,$C$1:$H$78,78,FALSE)=\"X\",Index!D82=\"Reported\"),\"/\",\"!\")","v":"!"},null,null,null,"X"]
["C_99.00",{"$f":"IF(AND(HLOOKUP('General data'!$E$22,$C$1:$H$79,79,FALSE)=\"X\",Index!D83=\"Reported\"),\"/\",\"!\")","v":"!"},"X"]
["B_99.01",{"$f":"IF(AND(HLOOKUP('General data'!$E$22,$C$1:$H$80,80,FALSE)=\"X\",Index!D84=\"Reported\"),\"/\",\"!\")","v":"!"},null,null,null,"X"]
[]
[{"$f":"IF(Index!D6=\"Not Reported\",\"/C 00.01 Rows{Z}@ForceFilingCode:false\",\"\")","v":""},{"$f":"IF(Index!D6=\"Not Reported\",\"//C 00.01 Rows{Z}@ForceFilingCode:false\",\"\")","v":""}]
[{"$f":"IF(Index!D7=\"Not Reported\",\"/R 13.00.a Rows{Z}@ForceFilingCode:false\",\"\")","v":""},{"$f":"IF(Index!D7=\"Not Reported\",\"//R 13.00.a Rows{Z}@ForceFilingCode:false\",\"\")","v":""}]
[{"$f":"IF(Index!D7=\"Not Reported\",\"/R 13.00.b Rows{Z}@ForceFilingCode:false\",\"\")","v":""},{"$f":"IF(Index!D7=\"Not Reported\",\"//R 13.00.b Rows{Z}@ForceFilingCode:false\",\"\")","v":""}]
[{"$f":"IF(Index!D8=\"Not Reported\",\"/M 05.00 Rows{Z}@ForceFilingCode:false\",\"\")","v":""},{"$f":"IF(Index!D8=\"Not Reported\",\"//M 05.00 Rows{Z}@ForceFilingCode:false\",\"\")","v":""}]
[{"$f":"IF(Index!D9=\"Not Reported\",\"/B 01.01 Rows{Z}@ForceFilingCode:false\",\"\")","v":""},{"$f":"IF(Index!D9=\"Not Reported\",\"//B 01.01 Rows{Z}@ForceFilingCode:false\",\"\")","v":""}]
[{"$f":"IF(Index!D10=\"Not Reported\",\"/L 00.02 Rows{Z}@ForceFilingCode:false\",\"\")","v":""},{"$f":"IF(Index!D10=\"Not Reported\",\"//L 00.02 Rows{Z}@ForceFilingCode:false\",\"\")","v":""}]
[{"$f":"IF(Index!D11=\"Not Reported\",\"/R 14.00 Rows{Z}@ForceFilingCode:false\",\"\")","v":""},{"$f":"IF(Index!D11=\"Not Reported\",\"//R 14.00 Rows{Z}@ForceFilingCode:false\",\"\")","v":""}]
[{"$f":"IF(Index!D12=\"Not Reported\",\"/M 06.00 Rows{Z}@ForceFilingCode:false\",\"\")","v":""},{"$f":"IF(Index!D12=\"Not Reported\",\"//M 06.00 Rows{Z}@ForceFilingCode:false\",\"\")","v":""}]
[{"$f":"IF(Index!D13=\"Not Reported\",\"/B 01.02 Rows{Z}@ForceFilingCode:false\",\"\")","v":""},{"$f":"IF(Index!D13=\"Not Reported\",\"//B 01.02 Rows{Z}@ForceFilingCode:false\",\"\")","v":""}]
[{"$f":"IF(Index!D14=\"Not Reported\",\"/L 00.03 Rows{Z}@ForceFilingCode:false\",\"\")","v":""},{"$f":"IF(Index!D14=\"Not Reported\",\"//L 00.03 Rows{Z}@ForceFilingCode:false\",\"\")","v":""}]
[{"$f":"IF(Index!D15=\"Not Reported\",\"/R 15.00 Rows{Z}@ForceFilingCode:false\",\"\")","v":""},{"$f":"IF(Index!D15=\"Not Reported\",\"//R 15.00 Rows{Z}@ForceFilingCode:false\",\"\")","v":""}]
[{"$f":"IF(Index!D16=\"Not Reported\",\"/B 01.03 Rows{Z}@ForceFilingCode:false\",\"\")","v":""},{"$f":"IF(Index!D16=\"Not Reported\",\"//B 01.03 Rows{Z}@ForceFilingCode:false\",\"\")","v":""}]
[{"$f":"IF(Index!D17=\"Not Reported\",\"/L 01.00 Rows{Z}@ForceFilingCode:false\",\"\")","v":""},{"$f":"IF(Index!D17=\"Not Reported\",\"//L 01.00 Rows{Z}@ForceFilingCode:false\",\"\")","v":""}]
[{"$f":"IF(Index!D18=\"Not Reported\",\"/R 16.00 Rows{Z}@ForceFilingCode:false\",\"\")","v":""},{"$f":"IF(Index!D18=\"Not Reported\",\"//R 16.00 Rows{Z}@ForceFilingCode:false\",\"\")","v":""}]
[{"$f":"IF(Index!D19=\"Not Reported\",\"/B 05.01 Rows{Z}@ForceFilingCode:false\",\"\")","v":""},{"$f":"IF(Index!D19=\"Not Reported\",\"//B 05.01 Rows{Z}@ForceFilingCode:false\",\"\")","v":""}]
[{"$f":"IF(Index!D20=\"Not Reported\",\"/L 02.00 Rows{Z}@ForceFilingCode:false\",\"\")","v":""},{"$f":"IF(Index!D20=\"Not Reported\",\"//L 02.00 Rows{Z}@ForceFilingCode:false\",\"\")","v":""}]
[{"$f":"IF(Index!D21=\"Not Reported\",\"/R 17.00 Rows{Z}@ForceFilingCode:false\",\"\")","v":""},{"$f":"IF(Index!D21=\"Not Reported\",\"//R 17.00 Rows{Z}@ForceFilingCode:false\",\"\")","v":""}]
[{"$f":"IF(Index!D22=\"Not Reported\",\"/L 03.00 Rows{Z}@ForceFilingCode:false\",\"\")","v":""},{"$f":"IF(Index!D22=\"Not Reported\",\"//L 03.00 Rows{Z}@ForceFilingCode:false\",\"\")","v":""}]
[{"$f":"IF(Index!D23=\"Not Reported\",\"/R 18.00 Rows{Z}@ForceFilingCode:false\",\"\")","v":""},{"$f":"IF(Index!D23=\"Not Reported\",\"//R 18.00 Rows{Z}@ForceFilingCode:false\",\"\")","v":""}]
[{"$f":"IF(Index!D24=\"Not Reported\",\"/L 04.00 Rows{Z}@ForceFilingCode:false\",\"\")","v":""},{"$f":"IF(Index!D24=\"Not Reported\",\"//L 04.00 Rows{Z}@ForceFilingCode:false\",\"\")","v":""}]
[{"$f":"IF(Index!D25=\"Not Reported\",\"/R 19.00 Rows{Z}@ForceFilingCode:false\",\"\")","v":""},{"$f":"IF(Index!D25=\"Not Reported\",\"//R 19.00 Rows{Z}@ForceFilingCode:false\",\"\")","v":""}]
[{"$f":"IF(Index!D26=\"Not Reported\",\"/L 05.00 Rows{Z}@ForceFilingCode:false\",\"\")","v":""},{"$f":"IF(Index!D26=\"Not Reported\",\"//L 05.00 Rows{Z}@ForceFilingCode:false\",\"\")","v":""}]
[{"$f":"IF(Index!D27=\"Not Reported\",\"/R 20.00 Rows{Z}@ForceFilingCode:false\",\"\")","v":""},{"$f":"IF(Index!D27=\"Not Reported\",\"//R 20.00 Rows{Z}@ForceFilingCode:false\",\"\")","v":""}]
[{"$f":"IF(Index!D28=\"Not Reported\",\"/R 21.00 Rows{Z}@ForceFilingCode:false\",\"\")","v":""},{"$f":"IF(Index!D28=\"Not Reported\",\"//R 21.00 Rows{Z}@ForceFilingCode:false\",\"\")","v":""}]
[{"$f":"IF(Index!D29=\"Not Reported\",\"/R 22.01 Rows{Z}@ForceFilingCode:false\",\"\")","v":""},{"$f":"IF(Index!D29=\"Not Reported\",\"//R 22.01 Rows{Z}@ForceFilingCode:false\",\"\")","v":""}]
[{"$f":"IF(Index!D30=\"Not Reported\",\"/R 22.02 Rows{Z}@ForceFilingCode:false\",\"\")","v":""},{"$f":"IF(Index!D30=\"Not Reported\",\"//R 22.02 Rows{Z}@ForceFilingCode:false\",\"\")","v":""}]
[{"$f":"IF(Index!D31=\"Not Reported\",\"/R 22.03 Rows{Z}@ForceFilingCode:false\",\"\")","v":""},{"$f":"IF(Index!D31=\"Not Reported\",\"//R 22.03 Rows{Z}@ForceFilingCode:false\",\"\")","v":""}]
[{"$f":"IF(Index!D32=\"Not Reported\",\"/R 23.00 Rows{Z}@ForceFilingCode:false\",\"\")","v":""},{"$f":"IF(Index!D32=\"Not Reported\",\"//R 23.00 Rows{Z}@ForceFilingCode:false\",\"\")","v":""}]
[{"$f":"IF(Index!D33=\"Not Reported\",\"/C 91.01 Rows{Z}@ForceFilingCode:false\",\"\")","v":""},{"$f":"IF(Index!D33=\"Not Reported\",\"//C 91.01 Rows{Z}@ForceFilingCode:false\",\"\")","v":""}]
[{"$f":"IF(Index!D34=\"Not Reported\",\"/M 07.00 Rows{Z}@ForceFilingCode:false\",\"\")","v":""},{"$f":"IF(Index!D34=\"Not Reported\",\"//M 07.00 Rows{Z}@ForceFilingCode:false\",\"\")","v":""}]
[{"$f":"IF(Index!D35=\"Not Reported\",\"/B 02.01 Rows{Z}@ForceFilingCode:false\",\"\")","v":""},{"$f":"IF(Index!D35=\"Not Reported\",\"//B 02.01 Rows{Z}@ForceFilingCode:false\",\"\")","v":""}]
[{"$f":"IF(Index!D36=\"Not Reported\",\"/L 06.00 Rows{Z}@ForceFilingCode:false\",\"\")","v":""},{"$f":"IF(Index!D36=\"Not Reported\",\"//L 06.00 Rows{Z}@ForceFilingCode:false\",\"\")","v":""}]
[{"$f":"IF(Index!D37=\"Not Reported\",\"/C 92.01 Rows{Z}@ForceFilingCode:false\",\"\")","v":""},{"$f":"IF(Index!D37=\"Not Reported\",\"//C 92.01 Rows{Z}@ForceFilingCode:false\",\"\")","v":""}]
[{"$f":"IF(Index!D38=\"Not Reported\",\"/B 02.02 Rows{Z}@ForceFilingCode:false\",\"\")","v":""},{"$f":"IF(Index!D38=\"Not Reported\",\"//B 02.02 Rows{Z}@ForceFilingCode:false\",\"\")","v":""}]
[{"$f":"IF(Index!D39=\"Not Reported\",\"/L 07.01 Rows{Z}@ForceFilingCode:false\",\"\")","v":""},{"$f":"IF(Index!D39=\"Not Reported\",\"//L 07.01 Rows{Z}@ForceFilingCode:false\",\"\")","v":""}]
[{"$f":"IF(Index!D40=\"Not Reported\",\"/C 92.02 Rows{Z}@ForceFilingCode:false\",\"\")","v":""},{"$f":"IF(Index!D40=\"Not Reported\",\"//C 92.02 Rows{Z}@ForceFilingCode:false\",\"\")","v":""}]
[{"$f":"IF(Index!D41=\"Not Reported\",\"/L 07.02 Rows{Z}@ForceFilingCode:false\",\"\")","v":""},{"$f":"IF(Index!D41=\"Not Reported\",\"//L 07.02 Rows{Z}@ForceFilingCode:false\",\"\")","v":""}]
[{"$f":"IF(Index!D42=\"Not Reported\",\"/C 92.03 Rows{Z}@ForceFilingCode:false\",\"\")","v":""},{"$f":"IF(Index!D42=\"Not Reported\",\"//C 92.03 Rows{Z}@ForceFilingCode:false\",\"\")","v":""}]
[{"$f":"IF(Index!D43=\"Not Reported\",\"/L 07.03 Rows{Z}@ForceFilingCode:false\",\"\")","v":""},{"$f":"IF(Index!D43=\"Not Reported\",\"//L 07.03 Rows{Z}@ForceFilingCode:false\",\"\")","v":""}]
[{"$f":"IF(Index!D44=\"Not Reported\",\"/C 92.04 Rows{Z}@ForceFilingCode:false\",\"\")","v":""},{"$f":"IF(Index!D44=\"Not Reported\",\"//C 92.04 Rows{Z}@ForceFilingCode:false\",\"\")","v":""}]
[{"$f":"IF(Index!D45=\"Not Reported\",\"/L 08.01 Rows{Z}@ForceFilingCode:false\",\"\")","v":""},{"$f":"IF(Index!D45=\"Not Reported\",\"//L 08.01 Rows{Z}@ForceFilingCode:false\",\"\")","v":""}]
[{"$f":"IF(Index!D46=\"Not Reported\",\"/C 92.05 Rows{Z}@ForceFilingCode:false\",\"\")","v":""},{"$f":"IF(Index!D46=\"Not Reported\",\"//C 92.05 Rows{Z}@ForceFilingCode:false\",\"\")","v":""}]
[{"$f":"IF(Index!D47=\"Not Reported\",\"/L 08.02 Rows{Z}@ForceFilingCode:false\",\"\")","v":""},{"$f":"IF(Index!D47=\"Not Reported\",\"//L 08.02 Rows{Z}@ForceFilingCode:false\",\"\")","v":""}]
[{"$f":"IF(Index!D48=\"Not Reported\",\"/C 92.06 Rows{Z}@ForceFilingCode:false\",\"\")","v":""},{"$f":"IF(Index!D48=\"Not Reported\",\"//C 92.06 Rows{Z}@ForceFilingCode:false\",\"\")","v":""}]
[{"$f":"IF(Index!D49=\"Not Reported\",\"/C 92.07.1 Rows{Z}@ForceFilingCode:false\",\"\")","v":""},{"$f":"IF(Index!D49=\"Not Reported\",\"//C 92.07.1 Rows{Z}@ForceFilingCode:false\",\"\")","v":""}]
[{"$f":"IF(Index!D50=\"Not Reported\",\"/C 92.07.2 Rows{Z}@ForceFilingCode:false\",\"\")","v":""},{"$f":"IF(Index!D50=\"Not Reported\",\"//C 92.07.2 Rows{Z}@ForceFilingCode:false\",\"\")","v":""}]
[{"$f":"IF(Index!D51=\"Not Reported\",\"/C 93.00.a Rows{Z}@ForceFilingCode:false\",\"\")","v":""},{"$f":"IF(Index!D51=\"Not Reported\",\"//C 93.00.a Rows{Z}@ForceFilingCode:false\",\"\")","v":""}]
[{"$f":"IF(Index!D51=\"Not Reported\",\"/C 93.00.b Rows{Z}@ForceFilingCode:false\",\"\")","v":""},{"$f":"IF(Index!D51=\"Not Reported\",\"//C 93.00.b Rows{Z}@ForceFilingCode:false\",\"\")","v":""}]
[{"$f":"IF(Index!D52=\"Not Reported\",\"/C 94.01 Rows{Z}@ForceFilingCode:false\",\"\")","v":""},{"$f":"IF(Index!D52=\"Not Reported\",\"//C 94.01 Rows{Z}@ForceFilingCode:false\",\"\")","v":""}]
[{"$f":"IF(Index!D53=\"Not Reported\",\"/C 94.02 Rows{Z}@ForceFilingCode:false\",\"\")","v":""},{"$f":"IF(Index!D53=\"Not Reported\",\"//C 94.02 Rows{Z}@ForceFilingCode:false\",\"\")","v":""}]
[{"$f":"IF(Index!D54=\"Not Reported\",\"/C 94.03 Rows{Z}@ForceFilingCode:false\",\"\")","v":""},{"$f":"IF(Index!D54=\"Not Reported\",\"//C 94.03 Rows{Z}@ForceFilingCode:false\",\"\")","v":""}]
[{"$f":"IF(Index!D55=\"Not Reported\",\"/C 95.00.a Rows{Z}@ForceFilingCode:false\",\"\")","v":""},{"$f":"IF(Index!D55=\"Not Reported\",\"//C 95.00.a Rows{Z}@ForceFilingCode:false\",\"\")","v":""}]
[{"$f":"IF(Index!D55=\"Not Reported\",\"/C 95.00.b Rows{Z}@ForceFilingCode:false\",\"\")","v":""},{"$f":"IF(Index!D55=\"Not Reported\",\"//C 95.00.b Rows{Z}@ForceFilingCode:false\",\"\")","v":""}]
[{"$f":"IF(Index!D56=\"Not Reported\",\"/M 01.00 Rows{Z}@ForceFilingCode:false\",\"\")","v":""},{"$f":"IF(Index!D56=\"Not Reported\",\"//M 01.00 Rows{Z}@ForceFilingCode:false\",\"\")","v":""}]
[{"$f":"IF(Index!D57=\"Not Reported\",\"/B 02.03 Rows{Z}@ForceFilingCode:false\",\"\")","v":""},{"$f":"IF(Index!D57=\"Not Reported\",\"//B 02.03 Rows{Z}@ForceFilingCode:false\",\"\")","v":""}]
[{"$f":"IF(Index!D58=\"Not Reported\",\"/C 96.01.1 Rows{Z}@ForceFilingCode:false\",\"\")","v":""},{"$f":"IF(Index!D58=\"Not Reported\",\"//C 96.01.1 Rows{Z}@ForceFilingCode:false\",\"\")","v":""}]
[{"$f":"IF(Index!D59=\"Not Reported\",\"/M 02.00.a Rows{Z}@ForceFilingCode:false\",\"\")","v":""},{"$f":"IF(Index!D59=\"Not Reported\",\"//M 02.00.a Rows{Z}@ForceFilingCode:false\",\"\")","v":""}]
[{"$f":"IF(Index!D59=\"Not Reported\",\"/M 02.00.b Rows{Z}@ForceFilingCode:false\",\"\")","v":""},{"$f":"IF(Index!D59=\"Not Reported\",\"//M 02.00.b Rows{Z}@ForceFilingCode:false\",\"\")","v":""}]
[{"$f":"IF(Index!D59=\"Not Reported\",\"/M 02.00.c Rows{Z}@ForceFilingCode:false\",\"\")","v":""},{"$f":"IF(Index!D59=\"Not Reported\",\"//M 02.00.c Rows{Z}@ForceFilingCode:false\",\"\")","v":""}]
[{"$f":"IF(Index!D60=\"Not Reported\",\"/B 03.01 Rows{Z}@ForceFilingCode:false\",\"\")","v":""},{"$f":"IF(Index!D60=\"Not Reported\",\"//B 03.01 Rows{Z}@ForceFilingCode:false\",\"\")","v":""}]
[{"$f":"IF(Index!D61=\"Not Reported\",\"/C 96.01.2 Rows{Z}@ForceFilingCode:false\",\"\")","v":""},{"$f":"IF(Index!D61=\"Not Reported\",\"//C 96.01.2 Rows{Z}@ForceFilingCode:false\",\"\")","v":""}]
[{"$f":"IF(Index!D62=\"Not Reported\",\"/M 03.00 Rows{Z}@ForceFilingCode:false\",\"\")","v":""},{"$f":"IF(Index!D62=\"Not Reported\",\"//M 03.00 Rows{Z}@ForceFilingCode:false\",\"\")","v":""}]
[{"$f":"IF(Index!D63=\"Not Reported\",\"/B 03.02 Rows{Z}@ForceFilingCode:false\",\"\")","v":""},{"$f":"IF(Index!D63=\"Not Reported\",\"//B 03.02 Rows{Z}@ForceFilingCode:false\",\"\")","v":""}]
[{"$f":"IF(Index!D64=\"Not Reported\",\"/C 96.02 Rows{Z}@ForceFilingCode:false\",\"\")","v":""},{"$f":"IF(Index!D64=\"Not Reported\",\"//C 96.02 Rows{Z}@ForceFilingCode:false\",\"\")","v":""}]
[{"$f":"IF(Index!D65=\"Not Reported\",\"/M 04.00 Rows{Z}@ForceFilingCode:false\",\"\")","v":""},{"$f":"IF(Index!D65=\"Not Reported\",\"//M 04.00 Rows{Z}@ForceFilingCode:false\",\"\")","v":""}]
[{"$f":"IF(Index!D66=\"Not Reported\",\"/B 03.03 Rows{Z}@ForceFilingCode:false\",\"\")","v":""},{"$f":"IF(Index!D66=\"Not Reported\",\"//B 03.03 Rows{Z}@ForceFilingCode:false\",\"\")","v":""}]
[{"$f":"IF(Index!D67=\"Not Reported\",\"/C 96.03 Rows{Z}@ForceFilingCode:false\",\"\")","v":""},{"$f":"IF(Index!D67=\"Not Reported\",\"//C 96.03 Rows{Z}@ForceFilingCode:false\",\"\")","v":""}]
[{"$f":"IF(Index!D68=\"Not Reported\",\"/B 04.01 Rows{Z}@ForceFilingCode:false\",\"\")","v":""},{"$f":"IF(Index!D68=\"Not Reported\",\"//B 04.01 Rows{Z}@ForceFilingCode:false\",\"\")","v":""}]
[{"$f":"IF(Index!D69=\"Not Reported\",\"/C 96.04.1 Rows{Z}@ForceFilingCode:false\",\"\")","v":""},{"$f":"IF(Index!D69=\"Not Reported\",\"//C 96.04.1 Rows{Z}@ForceFilingCode:false\",\"\")","v":""}]
[{"$f":"IF(Index!D70=\"Not Reported\",\"/C 96.04.2 Rows{Z}@ForceFilingCode:false\",\"\")","v":""},{"$f":"IF(Index!D70=\"Not Reported\",\"//C 96.04.2 Rows{Z}@ForceFilingCode:false\",\"\")","v":""}]
[{"$f":"IF(Index!D71=\"Not Reported\",\"/C 96.05.1 Rows{Z}@ForceFilingCode:false\",\"\")","v":""},{"$f":"IF(Index!D71=\"Not Reported\",\"//C 96.05.1 Rows{Z}@ForceFilingCode:false\",\"\")","v":""}]
[{"$f":"IF(Index!D72=\"Not Reported\",\"/C 96.05.2 Rows{Z}@ForceFilingCode:false\",\"\")","v":""},{"$f":"IF(Index!D72=\"Not Reported\",\"//C 96.05.2 Rows{Z}@ForceFilingCode:false\",\"\")","v":""}]
[{"$f":"IF(Index!D73=\"Not Reported\",\"/C 97.00 Rows{Z}@ForceFilingCode:false\",\"\")","v":""},{"$f":"IF(Index!D73=\"Not Reported\",\"//C 97.00 Rows{Z}@ForceFilingCode:false\",\"\")","v":""}]
[{"$f":"IF(Index!D74=\"Not Reported\",\"/C 98.01.1 Rows{Z}@ForceFilingCode:false\",\"\")","v":""},{"$f":"IF(Index!D74=\"Not Reported\",\"//C 98.01.1 Rows{Z}@ForceFilingCode:false\",\"\")","v":""}]
[{"$f":"IF(Index!D75=\"Not Reported\",\"/C 98.01.2 Rows{Z}@ForceFilingCode:false\",\"\")","v":""},{"$f":"IF(Index!D75=\"Not Reported\",\"//C 98.01.2 Rows{Z}@ForceFilingCode:false\",\"\")","v":""}]
[{"$f":"IF(Index!D76=\"Not Reported\",\"/C 98.02.1 Rows{Z}@ForceFilingCode:false\",\"\")","v":""},{"$f":"IF(Index!D76=\"Not Reported\",\"//C 98.02.1 Rows{Z}@ForceFilingCode:false\",\"\")","v":""}]
[{"$f":"IF(Index!D77=\"Not Reported\",\"/C 98.02.2 Rows{Z}@ForceFilingCode:false\",\"\")","v":""},{"$f":"IF(Index!D77=\"Not Reported\",\"//C 98.02.2 Rows{Z}@ForceFilingCode:false\",\"\")","v":""}]
[{"$f":"IF(Index!D78=\"Not Reported\",\"/C 24.01 Rows{Z}@ForceFilingCode:false\",\"\")","v":""},{"$f":"IF(Index!D78=\"Not Reported\",\"//C 24.01 Rows{Z}@ForceFilingCode:false\",\"\")","v":""}]
[{"$f":"IF(Index!D79=\"Not Reported\",\"/B 05.02 Rows{Z}@ForceFilingCode:false\",\"\")","v":""},{"$f":"IF(Index!D79=\"Not Reported\",\"//B 05.02 Rows{Z}@ForceFilingCode:false\",\"\")","v":""}]
[{"$f":"IF(Index!D80=\"Not Reported\",\"/C 90.00 Rows{Z}@ForceFilingCode:false\",\"\")","v":""},{"$f":"IF(Index!D80=\"Not Reported\",\"//C 90.00 Rows{Z}@ForceFilingCode:false\",\"\")","v":""}]
[{"$f":"IF(Index!D81=\"Not Reported\",\"/B 06.01 Rows{Z}@ForceFilingCode:false\",\"\")","v":""},{"$f":"IF(Index!D81=\"Not Reported\",\"//B 06.01 Rows{Z}@ForceFilingCode:false\",\"\")","v":""}]
[{"$f":"IF(Index!D82=\"Not Reported\",\"/B 07.01 Rows{Z}@ForceFilingCode:false\",\"\")","v":""},{"$f":"IF(Index!D82=\"Not Reported\",\"//B 07.01 Rows{Z}@ForceFilingCode:false\",\"\")","v":""}]
[{"$f":"IF(Index!D83=\"Not Reported\",\"/C 99.00 Rows{Z}@ForceFilingCode:false\",\"\")","v":""},{"$f":"IF(Index!D83=\"Not Reported\",\"//C 99.00 Rows{Z}@ForceFilingCode:false\",\"\")","v":""}]
[{"$f":"IF(Index!D84=\"Not Reported\",\"/B 99.01 Rows{Z}@ForceFilingCode:false\",\"\")","v":""},{"$f":"IF(Index!D84=\"Not Reported\",\"//B 99.01 Rows{Z}@ForceFilingCode:false\",\"\")","v":""}]

{"sheet":"Hierarchies","index":4,"n_rows":359,"n_cols":106,"rows_kept":359,"cut":false,"hidden":true,"merged":[]}
["hier_AS_AS1","hier_SC_SC1_1","hier_PL_PL52","hier_PL_PL52","hier_RP_RP7_REL_2","hier_RP_RP7_REL_2","hier_CU_CU3_4_WITHOUT_X0","hier_CU_CU3_4_WITHOUT_X0","hier_ZZ_ZZ117","hier_MC_MC150","hier_MC_MC150","hier_MC_MC151","hier_MC_MC152","hier_AP_AP30_REL_2","hier_ZZ_ZZ840","hier_ZZ_ZZ841","hier_ZZ_ZZ842","hier_ZZ_ZZ843","hier_ZZ_ZZ844","hier_ZZ_ZZ845","hier_ZZ_ZZ846","hier_ZZ_ZZ847","hier_ZZ_ZZ848","hier_ZZ_ZZ849","hier_ZZ_ZZ850","hier_ZZ_ZZ851","hier_ZZ_ZZ852","hier_ZZ_ZZ853","hier_ZZ_ZZ854","hier_ZZ_ZZ855","hier_ZZ_ZZ856","hier_ZZ_ZZ857","hier_ZZ_ZZ858","hier_ZZ_ZZ859","hier_BT_BT3","hier_PL_PL2","hier_ZZ_ZZ79","hier_MC_MC40","hier_GA_GA9_REL_2","hier_ZZ_ZZ75","hier_CT_CT57","hier_BT_BT4","hier_ZZ_ZZ76","hier_ZZ_ZZ77","hier_ZZ_ZZ81","hier_ZZ_ZZ82","hier_ZZ_ZZ28","hier_ZZ_ZZ28","hier_CT_CT53","hier_CT_CT53","hier_OL_OL3","hier_OL_OL3","hier_GA_GA4","hier_GA_GA9","hier_GA_GA5_4","hier_CT_CT6","hier_CT_CT61","hier_RP_RP8","hier_CT_CT7","hier_CO_CO1","hier_TA_TA4","hier_TA_TA4","hier_CO_CO2","hier_ZZ_ZZ91","hier_ZZ_ZZ92","hier_ZZ_ZZ93","hier_TA_TA5","hier_BT_BT14","hier_ZZ_ZZ114","hier_ZZ_ZZ110","hier_ZZ_ZZ111","hier_ZZ_ZZ112","hier_ZZ_ZZ113","hier_BT_BT13","hier_BT_BT6","hier_ZZ_ZZ94","hier_BT_BT7","hier_ZZ_ZZ95","hier_ZZ_ZZ96","hier_ZZ_ZZ97","hier_ZZ_ZZ98","hier_ZZ_ZZ99","hier_ZZ_ZZ100","hier_ZZ_ZZ101","hier_ZZ_ZZ102","hier_ZZ_ZZ103","hier_BT_BT8","hier_ZZ_ZZ104","hier_ZZ_ZZ105","hier_BT_BT9","hier_ZZ_ZZ106","hier_BT_BT10","hier_ZZ_ZZ107","hier_ZZ_ZZ108","hier_ZZ_ZZ109","hier_BT_BT11","hier_NC_NC2","hier_GA_GA5_3_WITHOUT_X0-X1","hier_GA_GA5_3_WITHOUT_X0-X1","hier_BT_BT12","hier_CU_CU5","hier_NC_NC3","hier_GA_GA5_5","hier_0","hier_0","hier_0"]
["National GAAP","Individual","ASA own funds requirements for ASA positions","ASA own funds requirements for ASA positions","Single offsetting group","Single offsetting group","UAE Dirham","UAE Dirham","Extraordinary circumstances recognised","Risk factors of all broad categories of market risk","Risk factors of all broad categories of market risk","Constitutes overshooting","Does not constitute overshooting","Alternative Internal Model Approach (AIMA)","Green","Passes back-testing requirements","Trade in instruments subject to default risk","Trade in instruments subject to general interest rate risk","Trade in instruments subject to equity risk","Trade in instruments subject to commodities risk","Trade in instruments subject to foreign exchange (FX) risk","Trade in instruments subject to credit spread risk","No trade in instruments subject to other types of risk","Trade in cash instruments","Trade in forwards","Trade in futures","Trade in plain vanilla options","Trade in complex options","Trade in asset-backed instruments","Trade in mortgage-backed securities","Trade in interest rate swaps","Trade in FX swaps","No trade in credit default swaps","Trade in other types of instruments","LEI code type","Banking and trading book","No prior permission required","Economic P&L for all positions subject to market risk","AUSTRIA","1-Tier structure","Investment firms","Yes","Yes","Non-discrimination is ensured within the policy","Target set for the management body, as a whole","Yes","Rank 1 - Ranking in insolvency (master scale)","Rank 1 - Ranking in insolvency (master scale)","Resolution entity","Resolution entity","CET1 capital","CET1 capital","ALBANIA","AUSTRIA","ALBANIA","Credit institutions","Credit institutions","Ultimate parent","Legal person, excluding individual acting in a business capacity","Standalone arrangement","ICT project management","ICT project management","Termination not for cause: Expired and not renewd","Not significant","Low","branch of a financial entity","Non-Life Insurance: Classes 1 and 2: ‘Accident and Health Insurance’","Yes","Low","Not substitutable","Lack of real alternatives","Easy","Low","Yes","LEI","banking sector","LEI","banking sector","1 - ISO 6166 for ISIN code","1 - bonds/debt","1 - bonds/debt - collateralised","1 - derivatives - futures","1 - credit default","1 - micro hedge","1 - ISO 6166 for ISIN code","1 - guarantees","1 - insurance","1 - quota share","1 - medical expense insurance","LEI","banking sector","LEI","banking sector","1 – fees","1 - bonds/debt","LEI","A - Agriculture, forestry and fishing","ALBANIA","ALBANIA","LEI","All currencies","NACE codes J, M - U","All countries"]
["IFRS","Consolidated","ASA own funds requirements for AIMA desks","ASA own funds requirements for AIMA desks","All offsetting groups","All offsetting groups","Afghani","Afghani","No recognition of extraordinary circumstances","Risk factors of the interest rate risk category","Risk factors of the interest rate risk category","Does not constitute overshooting","Overshooting not excluded","Alternative Standardised Approach","Yellow","Does not pass back-testing requirements","No trade in instruments subject to default risk","No trade in instruments subject to general interest rate risk","No trade in instruments subject to equity risk","No trade in instruments subject to commodities risk","No trade in instruments subject to foreign exchange (FX) risk","No trade in instruments subject to credit spread risk","Trade in instruments subject to other types of risk","No trade in cash instruments","No trade in forwards","No trade in futures","No trade in plain vanilla options","No trade in complex options","No trade in asset-backed instruments","No trade in mortgage-backed securities","No trade in interest rate swaps","No trade in FX swaps","Trade in credit default swaps","No trade in other types of instruments","National code type","Banking book","Prior permission obtained","Economic P&L for positions subject to market risk in the trading book","BELGIUM","2-Tier structure","CIs < EUR 1 bn","No","No","Policy aims at the representation of non-binary directors","Different targets set for the management and supervisory function of the management body","No","Rank 2 - Ranking in insolvency (master scale)","Rank 2 - Ranking in insolvency (master scale)","Entities other than the resolution entity","Entities other than the resolution entity","Eligible AT1 capital","Eligible AT1 capital","AUSTRIA","BELGIUM","AUSTRIA","Investment firms","Investment firms","Parent other than ultimate parent","Individual acting in a business capacity","Overarching arrangement","ICT Development","ICT Development","Termination for cause: Provider in breach of applicable law, regulations or contractual provisions","Low reliance","Medium","not a branch","Non-Life Insurance: Classes 1 (fourth indent), 3, 7 and 10: ‘Motor Insurance’","No","Medium","Easily substitutable","Difficulties in migrating or reintegrating","Difficult","Medium","No","Specific code","insurance sector","Specific code","insurance sector","2 - CUSIP (the Committee on Uniform Securities Identification Procedures number allocated by the CUSIP Service Bureau for United States and Canadian companies)","2 - equity type","2 - bonds/debt - uncollateralised","2 - derivatives - forwards","2 - interest rate","2 - macro hedge","2 - CUSIP (the Committee on Uniform Securities Identification Procedures number allocated by the CUSIP Service Bureau for United States and Canadian companies)","2 - commitment","2 - reinsurance","2 - variable quota share","2 - income protection insurance","Specific code","insurance sector","Specific code","insurance sector","2 – commission","2 - equity type","Specific code","B - Mining and quarrying","AUSTRIA","AUSTRIA","Specific code","UAE Dirham","A - Agriculture, forestry and fishing","ALBANIA"]
[null,"Sub-consolidated","ASA own funds requirements for all positions","ASA own funds requirements for all positions","Offsetting group 1","Offsetting group 1","Lek","Lek",null,"Risk factors of the credit spread risk category","Risk factors of the credit spread risk category",null,"Overshooting excluded",null,"Orange",null,null,null,null,null,null,null,null,null,null,null,null,null,null,null,null,null,null,null,null,"Trading book",null,null,"BULGARIA",null,"CIs EUR 1 bn to < EUR 10 bn",null,"Not applicable","No, the aspect has not yet been considered in the policy","Targets set only for the management body in the supervisory function (non-executive directors)",null,"Rank 3 - Ranking in insolvency (master scale)","Rank 3 - Ranking in insolvency (master scale)",null,null,"Eligible T2 Capital","Eligible T2 Capital","BELGIUM","BULGARIA","BELGIUM","Central counterparties (CCPs)","Central counterparties (CCPs)","Subsidiary",null,"Subsequent or associated arrangement","ICT help desk and first level support","ICT help desk and first level support","Termination for cause: Identified impediments of the provider capable of altering the supported function","Material reliance","High",null,"Non-Life Insurance: Classes 1 (fourth indent), 4, 6, 7 and 12: ‘Marine and Transport Insurance’","Assessment not performed","High","Medium complexity in terms of substitutability","Lack of real alternatives and difficulties in migrating or reintegrating","Highly complex","High","Assessment not performed",null,"investments services sector",null,"investments services sector","3 - SEDOL (Stock Exchange Daily Official List for the London Stock Exchange)","3 - other asset transfer","3 - equity type - shares/participations","3 - derivatives - options","3 - currency","3 - matching assets and liabilities cash flows","3 - SEDOL (Stock Exchange Daily Official List for the London Stock Exchange)","3 - letter of credit",null,"3 - surplus","3 - workers’ compensation insurance",null,"investments services sector",null,"investments services sector","3 – interest","3 - other asset transfer",null,"C - Manufacturing","BELGIUM","BELGIUM",null,"Afghani","B - Mining and quarrying","AUSTRIA"]
[null,"Resolution Group",null,null,"Offsetting group 2","Offsetting group 2","Armenian Dram","Armenian Dram",null,"Risk factors of the equity risk category","Risk factors of the equity risk category",null,null,null,"Red",null,null,null,null,null,null,null,null,null,null,null,null,null,null,null,null,null,null,null,null,null,null,null,"CROATIA",null,"CIs EUR 10 bn to < EUR 30 bn",null,null,"Not applicable,- does legally not exist in the Member State","Targets set only for the management body in its management function (executive directors)",null,"Rank 4 - Ranking in insolvency (master scale)","Rank 4 - Ranking in insolvency (master scale)",null,null,"Eligible liabilities","Eligible liabilities","BULGARIA","CROATIA","BULGARIA","Asset management companies","Asset management companies","Entities other than entities of the group",null,null,"ICT security management services","ICT security management services","Termination for cause: provider's weaknesses regarding the management and security of sensitive data or information","Full reliance",null,null,"Non-Life Insurance: Classes 1 (fourth indent), 5, 7 and 11: ‘Aviation Insurance’",null,"Assessment not performed","Highly complex substitutability",null,null,"Assessment not performed",null,null,"other undertaking of the group",null,"other undertaking of the group","4 - WKN (Wertpapier-Kennnummer, the alphanumeric German identification number)",null,"4 - equity type - others","4 - derivatives - others","4 - others","4 - efficient portfolio management, other than ‘Matching assets and liabilities cash flows’","4 - WKN (Wertpapier-Kennnummer, the alphanumeric German identification number)","4 - undrawn credit facilities",null,"4 - excess of loss (per event and per risk)","4 - motor vehicle liability insurance",null,"other undertaking of the group",null,"other undertaking of the group","4 – dividends","4 - derivative",null,"D - Electricity, gas, steam and air conditioning supply","BULGARIA","BULGARIA",null,"Lek","C - Manufacturing","BELGIUM"]
[null,null,null,null,"Offsetting group 3","Offsetting group 3","Netherlands Antillean Guilder","Netherlands Antillean Guilder",null,"Risk factors of the foreign exchange risk category","Risk factors of the foreign exchange risk category",null,null,null,null,null,null,null,null,null,null,null,null,null,null,null,null,null,null,null,null,null,null,null,null,null,null,null,"CYPRUS",null,"CIs ≥ EUR 30 bn",null,null,"Other","No targets for gender diversity set",null,"Rank 5 - Ranking in insolvency (master scale)","Rank 5 - Ranking in insolvency (master scale)",null,null,null,null,"CYPRUS","CYPRUS","CYPRUS","account information service providers","account information service providers","Outsourcing",null,null,"Provision of data","Provision of data","Termination: as requested by the competent authority",null,null,null,"Non-Life Insurance: Classes 8 and 9: ‘Insurance against Fire and other Damage to Property’",null,null,null,null,null,null,null,null,null,null,null,"5 - Bloomberg Ticker (Bloomberg letters code that identifies a company’s securities)",null,"5 - other asset transfer - properties","5 - guarantees - credit protection",null,"5 - others","5 - Bloomberg Ticker (Bloomberg letters code that identifies a company’s securities)","5 - assets purchased under outright forward purchase agreements (currency or other)",null,"5 - excess of loss (per risk)","5 - other motor insurance",null,null,null,null,"5 – costs or revenues","5 - off-balance-sheet item",null,"E - Water supply","CYPRUS","CYPRUS",null,"Armenian Dram","D - Electricity, gas, steam and air conditioning supply","BULGARIA"]
[null,null,null,null,"Offsetting group 4","Offsetting group 4","Kwanza","Kwanza",null,"Risk factors of the commodity risk category","Risk factors of the commodity risk category",null,null,null,null,null,null,null,null,null,null,null,null,null,null,null,null,null,null,null,null,null,null,null,null,null,null,null,"CZECH REPUBLIC",null,null,null,null,null,null,null,"Rank 6 - Ranking in insolvency (master scale)","Rank 6 - Ranking in insolvency (master scale)",null,null,null,null,"CZECH REPUBLIC","CZECH REPUBLIC","CZECH REPUBLIC","electronic money institutions","electronic money institutions",null,null,null,"Data analysis","Data analysis","Other reasons for termination",null,null,null,"Non-Life Insurance: Classes 10, 11, 12 and 13: ‘Liability Insurance’",null,null,null,null,null,null,null,null,null,null,null,"6 - BBGID (the Bloomberg Global ID)",null,"6 - other asset transfer - others","6 - guarantees - others",null,null,"6 - BBGID (the Bloomberg Global ID)","6 - asset sale and repurchase agreements as referred to in Article 12(3) and (5) of Directive 86/635/EEC",null,"6 - excess of loss (per event)","6 - marine, aviation and transport insurance",null,null,null,null,"6 – premiums for insurance","6 - intra-group outsourcing, internal cost sharing or rental agreement",null,"F - Construction","CZECH REPUBLIC","CZECH REPUBLIC",null,"Netherlands Antillean Guilder","E - Water supply","CYPRUS"]
[null,null,null,null,"Offsetting group 5","Offsetting group 5","Argentine Peso","Argentine Peso",null,null,null,null,null,null,null,null,null,null,null,null,null,null,null,null,null,null,null,null,null,null,null,null,null,null,null,null,null,null,"DENMARK",null,null,null,null,null,null,null,"Rank 7 - Ranking in insolvency (master scale)","Rank 7 - Ranking in insolvency (master scale)",null,null,null,null,"DENMARK","DENMARK","DENMARK","crypto-asset service providers","crypto-asset service providers",null,null,null,"ICT, facilities and hosting services (excluding Cloud services)","ICT, facilities and hosting services (excluding Cloud services)",null,null,null,null,"Non-Life Insurance: Classes 14 and 15: ‘Credit and Suretyship Insurance’",null,null,null,null,null,null,null,null,null,null,null,"7 - Reuters RIC (Reuters instrument code)",null,null,"7 - swaps",null,null,"7 - Reuters RIC (Reuters instrument code)","7 - contingent liabilities",null,"7 - excess of loss ‘back-up’ (protection against follow-on events which certain catastrophes can cause such as flooding or fire)","7 - fire and other damage to property insurance",null,null,null,null,"7 – claims for insurance","7 - insurance/reinsurance",null,"G - Wholesale and retail trade","DENMARK","DENMARK",null,"Kwanza","F - Construction","CZECH REPUBLIC"]
[null,null,null,null,"Offsetting group 6","Offsetting group 6","Australian Dollar","Australian Dollar",null,null,null,null,null,null,null,null,null,null,null,null,null,null,null,null,null,null,null,null,null,null,null,null,null,null,null,null,null,null,"ESTONIA",null,null,null,null,null,null,null,"Rank 8 - Ranking in insolvency (master scale)","Rank 8 - Ranking in insolvency (master scale)",null,null,null,null,"ESTONIA","ESTONIA","ESTONIA","central security depository","central security depository",null,null,null,"Computation","Computation",null,null,null,null,"Non-Life Insurance: All classes, at the choice of the Member States, which shall notify the other Member States and the Commission of their choice",null,null,null,null,null,null,null,null,null,null,null,"8 - FIGI (Financial Instrument Global Identifier)",null,null,"8 - others",null,null,"8 - FIGI (Financial Instrument Global Identifier)","8 - other",null,"8 - excess of loss with basis risk","8 - general liability insurance",null,null,null,null,"8 – technical result for reinsurance","8 - other",null,"H - Transport and storage","ESTONIA","ESTONIA",null,"Argentine Peso","G - Wholesale and retail trade","DENMARK"]
[null,null,null,null,"Offsetting group 7","Offsetting group 7","Aruban Florin","Aruban Florin",null,null,null,null,null,null,null,null,null,null,null,null,null,null,null,null,null,null,null,null,null,null,null,null,null,null,null,null,null,null,"FINLAND",null,null,null,null,null,null,null,"Rank 9 - Ranking in insolvency (master scale)","Rank 9 - Ranking in insolvency (master scale)",null,null,null,null,"FINLAND","FINLAND","FINLAND","trading venues","trading venues",null,null,null,"Non-Cloud Data storage","Non-Cloud Data storage",null,null,null,null,"Life Insurance: The life insurance referred to in points (a)(i), (ii) and (iii) of Article 2(3) excluding those referred to in II and III",null,null,null,null,null,null,null,null,null,null,null,"9 - other code provided by members of the Association of National Numbering Agencies",null,null,null,null,null,"9 - other code provided by members of the Association of National Numbering Agencies",null,null,"9 - reinstatement cover","9 - credit and suretyship insurance",null,null,null,null,"9 - others",null,null,"I - Accommodation and food service activities","FINLAND","FINLAND",null,"Australian Dollar","H - Transport and storage","ESTONIA"]
[null,null,null,null,"Offsetting group 8","Offsetting group 8","Azerbaijanian Manat","Azerbaijanian Manat",null,null,null,null,null,null,null,null,null,null,null,null,null,null,null,null,null,null,null,null,null,null,null,null,null,null,null,null,null,null,"FRANCE",null,null,null,null,null,null,null,"Rank 10 - Ranking in insolvency (master scale)","Rank 10 - Ranking in insolvency (master scale)",null,null,null,null,"FRANCE","FRANCE","FRANCE","trade repositories","trade repositories",null,null,null,"Telecom carrier","Telecom carrier",null,null,null,null,"Life Insurance: Marriage assurance, birth assurance",null,null,null,null,null,null,null,null,null,null,null,"99 – A code allocated by the undertaking",null,null,null,null,null,"99 – A code allocated by the undertaking",null,null,"10 - aggregate excess of loss","10 - legal expenses insurance",null,null,null,null,null,null,null,"J - Information and communication","FRANCE","FRANCE",null,"Aruban Florin","I - Accommodation and food service activities","FINLAND"]
[null,null,null,null,"Offsetting group 9","Offsetting group 9","Convertible Mark","Convertible Mark",null,null,null,null,null,null,null,null,null,null,null,null,null,null,null,null,null,null,null,null,null,null,null,null,null,null,null,null,null,null,"GERMANY",null,null,null,null,null,null,null,"Rank 11 - Ranking in insolvency (master scale)","Rank 11 - Ranking in insolvency (master scale)",null,null,null,null,"GERMANY","GERMANY","GERMANY","payment institution","payment institution",null,null,null,"Network infrastructure","Network infrastructure",null,null,null,null,"Life Insurance: The insurance referred to in points (a)(i) and (ii) of Article 2(3), which are linked to investment funds",null,null,null,null,null,null,null,null,null,null,null,null,null,null,null,null,null,null,null,null,"11 - unlimited excess of loss","11 - assistance",null,null,null,null,null,null,null,"L - Real estate activities","GERMANY","GERMANY",null,"Azerbaijanian Manat","J - Information and communication","FRANCE"]
[null,null,null,null,"Offsetting group 10","Offsetting group 10","Barbados Dollar","Barbados Dollar",null,null,null,null,null,null,null,null,null,null,null,null,null,null,null,null,null,null,null,null,null,null,null,null,null,null,null,null,null,null,"GREECE",null,null,null,null,null,null,null,"Rank 12 - Ranking in insolvency (master scale)","Rank 12 - Ranking in insolvency (master scale)",null,null,null,null,"GREECE","GREECE","GREECE","other financial entity","other financial entity",null,null,null,"Hardware and physical devices","Hardware and physical devices",null,null,null,null,"Life Insurance: Permanent health insurance, referred to in point (a)(iv) of Article 2(3)",null,null,null,null,null,null,null,null,null,null,null,null,null,null,null,null,null,null,null,null,"12 - stop loss","12 - miscellaneous financial loss",null,null,null,null,null,null,null,"M - Professional, scientific and technical activities","GREECE","GREECE",null,"Convertible Mark","K - Financial and insurance activities","GERMANY"]
[null,null,null,null,"Offsetting group 11","Offsetting group 11","Taka","Taka",null,null,null,null,null,null,null,null,null,null,null,null,null,null,null,null,null,null,null,null,null,null,null,null,null,null,null,null,null,null,"HUNGARY",null,null,null,null,null,null,null,"Rank 13 - Ranking in insolvency (master scale)","Rank 13 - Ranking in insolvency (master scale)",null,null,null,null,"HUNGARY","HUNGARY","HUNGARY","securitisation repository","securitisation repository",null,null,null,"Software licencing (excluding SaaS)","Software licencing (excluding SaaS)",null,null,null,null,"Life Insurance: Tontines, referred to in point (b)(i) of Article 2(3)",null,null,null,null,null,null,null,null,null,null,null,null,null,null,null,null,null,null,null,null,"13 - other proportional treaties","13 - proportional medical expense reinsurance",null,null,null,null,null,null,null,"N - Administrative and support service activities","HUNGARY","HUNGARY",null,"Barbados Dollar","L - Real estate activities","GREECE"]
[null,null,null,null,"Offsetting group 12","Offsetting group 12","Bulgarian Lev","Bulgarian Lev",null,null,null,null,null,null,null,null,null,null,null,null,null,null,null,null,null,null,null,null,null,null,null,null,null,null,null,null,null,null,"ICELAND",null,null,null,null,null,null,null,"Rank 14 - Ranking in insolvency (master scale)","Rank 14 - Ranking in insolvency (master scale)",null,null,null,null,"IRELAND","ICELAND","IRELAND","crowdfunding service providers","crowdfunding service providers",null,null,null,"ICT operation management (including maintenance)","ICT operation management (including maintenance)",null,null,null,null,"Life Insurance: Capital redemption operations, referred to in point (b)(ii) of Article 2(3)",null,null,null,null,null,null,null,null,null,null,null,null,null,null,null,null,null,null,null,null,"14 - other non-proportional treaties","14 - proportional income protection reinsurance",null,null,null,null,null,null,null,"O - Public administration and defence, compulsory social security","IRELAND","IRELAND",null,"Taka","M - Professional, scientific and technical activities","HUNGARY"]
[null,null,null,null,"Offsetting group 13","Offsetting group 13","Bahraini Dinar","Bahraini Dinar",null,null,null,null,null,null,null,null,null,null,null,null,null,null,null,null,null,null,null,null,null,null,null,null,null,null,null,null,null,null,"IRELAND",null,null,null,null,null,null,null,"Rank 15 - Ranking in insolvency (master scale)","Rank 15 - Ranking in insolvency (master scale)",null,null,null,null,"ITALY","IRELAND","ITALY","administrator of critical benchmarks","administrator of critical benchmarks",null,null,null,"ICT Consulting","ICT Consulting",null,null,null,null,"Life Insurance: Management of group pension funds, referred to in point (b)(iii) and (iv) of Article 2(3)",null,null,null,null,null,null,null,null,null,null,null,null,null,null,null,null,null,null,null,null,"15 - financial reinsurance","15 - proportional workers’ compensation reinsurance",null,null,null,null,null,null,null,"P - Education","ITALY","ITALY",null,"Bulgarian Lev","N - Administrative and support service activities","IRELAND"]
[null,null,null,null,"Offsetting group 14","Offsetting group 14","Burundi Franc","Burundi Franc",null,null,null,null,null,null,null,null,null,null,null,null,null,null,null,null,null,null,null,null,null,null,null,null,null,null,null,null,null,null,"ITALY",null,null,null,null,null,null,null,"Rank 16 - Ranking in insolvency (master scale)","Rank 16 - Ranking in insolvency (master scale)",null,null,null,null,"JAPAN","ITALY","JAPAN","credit rating agency","credit rating agency",null,null,null,"ICT Risk management","ICT Risk management",null,null,null,null,"Life Insurance: The operations referred to in point (b)(v) of Article 2(3)",null,null,null,null,null,null,null,null,null,null,null,null,null,null,null,null,null,null,null,null,"16 - facultative proportional","16 - proportional motor vehicle liability reinsurance",null,null,null,null,null,null,null,"Q - Human health services and social work activities","JAPAN","JAPAN",null,"Bahraini Dinar","O - Public administration and defence, compulsory social security","ITALY"]
[null,null,null,null,"Offsetting group 15","Offsetting group 15","Bermudian Dollar","Bermudian Dollar",null,null,null,null,null,null,null,null,null,null,null,null,null,null,null,null,null,null,null,null,null,null,null,null,null,null,null,null,null,null,"LATVIA",null,null,null,null,null,null,null,"Rank 17 - Ranking in insolvency (master scale)","Rank 17 - Ranking in insolvency (master scale)",null,null,null,null,"LATVIA","LATVIA","KOSOVO","institutions for occupational retirement provision","institutions for occupational retirement provision",null,null,null,"Cloud services: IaaS","Cloud services: IaaS",null,null,null,null,"Life Insurance: The operations referred to in Article 2(3)(c)",null,null,null,null,null,null,null,null,null,null,null,null,null,null,null,null,null,null,null,null,"17 - facultative non-proportional","17 - proportional other motor reinsurance",null,null,null,null,null,null,null,"R - Arts, entertainment and recreation","KOSOVO","KOSOVO",null,"Burundi Franc","P - Education","JAPAN"]
[null,null,null,null,"Offsetting group 16","Offsetting group 16","Brunei Dollar","Brunei Dollar",null,null,null,null,null,null,null,null,null,null,null,null,null,null,null,null,null,null,null,null,null,null,null,null,null,null,null,null,null,null,"LIECHTENSTEIN",null,null,null,null,null,null,null,"Rank 18 - Ranking in insolvency (master scale)","Rank 18 - Ranking in insolvency (master scale)",null,null,null,null,"LITHUANIA","LIECHTENSTEIN","LATVIA","insurance intermediaries, reinsurance intermediaries and ancillary insurance intermediaries","insurance intermediaries, reinsurance intermediaries and ancillary insurance intermediaries",null,null,null,"Cloud services: PaaS","Cloud services: PaaS",null,null,null,null,"Lending activities",null,null,null,null,null,null,null,null,null,null,null,null,null,null,null,null,null,null,null,null,null,"18 - proportional marine, aviation and transport reinsurance",null,null,null,null,null,null,null,"S - Other services","LATVIA","LATVIA",null,"Bermudian Dollar","Q - Human health services and social work activities","KOSOVO"]
[null,null,null,null,"Offsetting group 17","Offsetting group 17","Boliviano","Boliviano",null,null,null,null,null,null,null,null,null,null,null,null,null,null,null,null,null,null,null,null,null,null,null,null,null,null,null,null,null,null,"LITHUANIA",null,null,null,null,null,null,null,"Rank 19 - Ranking in insolvency (master scale)","Rank 19 - Ranking in insolvency (master scale)",null,null,null,null,"LUXEMBOURG","LITHUANIA","LITHUANIA","insurance and reinsurance undertakings","insurance and reinsurance undertakings",null,null,null,"Cloud services: SaaS","Cloud services: SaaS",null,null,null,null,"Financial leasing",null,null,null,null,null,null,null,null,null,null,null,null,null,null,null,null,null,null,null,null,null,"19 - proportional fire and other damage to property reinsurance",null,null,null,null,null,null,null,"K - Financial and insurance activities","LITHUANIA","LITHUANIA",null,"Brunei Dollar","R - Arts, entertainment and recreation","LATVIA"]
[null,null,null,null,"Offsetting group 18","Offsetting group 18","Mvdol","Mvdol",null,null,null,null,null,null,null,null,null,null,null,null,null,null,null,null,null,null,null,null,null,null,null,null,null,null,null,null,null,null,"LUXEMBOURG",null,null,null,null,null,null,null,"Rank 20 - Ranking in insolvency (master scale)","Rank 20 - Ranking in insolvency (master scale)",null,null,null,null,"NORTH MACEDONIA","LUXEMBOURG","LUXEMBOURG","data reporting service providers","data reporting service providers",null,null,null,null,null,null,null,null,null,"Issuing and administering other means of payment",null,null,null,null,null,null,null,null,null,null,null,null,null,null,null,null,null,null,null,null,null,"20 - proportional general liability reinsurance",null,null,null,null,null,null,null,"T - Activities of households as employers; undifferentiated goods and services-producing activities of households for own use","LUXEMBOURG","LUXEMBOURG",null,"Boliviano","S - Other services","LITHUANIA"]
[null,null,null,null,"Offsetting group 19","Offsetting group 19","Brazilian Real","Brazilian Real",null,null,null,null,null,null,null,null,null,null,null,null,null,null,null,null,null,null,null,null,null,null,null,null,null,null,null,null,null,null,"MALTA",null,null,null,null,null,null,null,null,null,null,null,null,null,"MALTA","MALTA","NORTH MACEDONIA","managers of alternative investment funds","managers of alternative investment funds",null,null,null,null,null,null,null,null,null,"Guarantees and commitments",null,null,null,null,null,null,null,null,null,null,null,null,null,null,null,null,null,null,null,null,null,"21 - proportional credit and suretyship reinsurance",null,null,null,null,null,null,null,"U - Activities of extraterritorial organisations and bodies","NORTH MACEDONIA","NORTH MACEDONIA",null,"Mvdol","T - Activities of households as employers; undifferentiated goods and services-producing activities of households for own use","LUXEMBOURG"]
[null,null,null,null,"Offsetting group 20","Offsetting group 20","Bahamian Dollar","Bahamian Dollar",null,null,null,null,null,null,null,null,null,null,null,null,null,null,null,null,null,null,null,null,null,null,null,null,null,null,null,null,null,null,"NETHERLANDS",null,null,null,null,null,null,null,null,null,null,null,null,null,"NETHERLANDS","NETHERLANDS","MALTA","issuers of asset-referenced tokens","Non-financial entity: Other than ICT intra-group service provider",null,null,null,null,null,null,null,null,null,"Guarantees and commitments related to securities lending and borrowing, within the meaning of point 6 of Annex I to Directive 2013/36/EU",null,null,null,null,null,null,null,null,null,null,null,null,null,null,null,null,null,null,null,null,null,"22 - proportional legal expenses reinsurance",null,null,null,null,null,null,null,null,"MALTA","MALTA",null,"Brazilian Real","U - Activities of extraterritorial organisations and bodies","NORTH MACEDONIA"]
[null,null,null,null,"Offsetting group 21","Offsetting group 21","Ngultrum","Ngultrum",null,null,null,null,null,null,null,null,null,null,null,null,null,null,null,null,null,null,null,null,null,null,null,null,null,null,null,null,null,null,"NORWAY",null,null,null,null,null,null,null,null,null,null,null,null,null,"NORWAY","NORWAY","NETHERLANDS",null,"Non-financial entity: ICT intra-group service provider",null,null,null,null,null,null,null,null,null,"Trading for own account or for account of customers",null,null,null,null,null,null,null,null,null,null,null,null,null,null,null,null,null,null,null,null,null,"23 - proportional assistance reinsurance",null,null,null,null,null,null,null,null,"NETHERLANDS","NETHERLANDS",null,"Bahamian Dollar","Public sector","MALTA"]
[null,null,null,null,"Offsetting group 22","Offsetting group 22","Pula","Pula",null,null,null,null,null,null,null,null,null,null,null,null,null,null,null,null,null,null,null,null,null,null,null,null,null,null,null,null,null,null,"POLAND",null,null,null,null,null,null,null,null,null,null,null,null,null,"POLAND","POLAND","NORWAY",null,"issuers of asset-referenced tokens",null,null,null,null,null,null,null,null,null,"Participation in securities issues and the provision of services relating to such issues",null,null,null,null,null,null,null,null,null,null,null,null,null,null,null,null,null,null,null,null,null,"24 - proportional miscellaneous financial loss reinsurance",null,null,null,null,null,null,null,null,"NORWAY","NORWAY",null,"Ngultrum","Financial sector","NETHERLANDS"]
[null,null,null,null,"Offsetting group 23","Offsetting group 23","Belarussian Ruble (2000 Series)","Belarussian Ruble (2000 Series)",null,null,null,null,null,null,null,null,null,null,null,null,null,null,null,null,null,null,null,null,null,null,null,null,null,null,null,null,null,null,"PORTUGAL",null,null,null,null,null,null,null,null,null,null,null,null,null,"PORTUGAL","PORTUGAL","POLAND",null,null,null,null,null,null,null,null,null,null,null,"Payment services",null,null,null,null,null,null,null,null,null,null,null,null,null,null,null,null,null,null,null,null,null,"25 - non-proportional health reinsurance",null,null,null,null,null,null,null,null,"POLAND","POLAND",null,"Pula",null,"NORWAY"]
[null,null,null,null,"Offsetting group 24","Offsetting group 24","Belarusian Ruble","Belarusian Ruble",null,null,null,null,null,null,null,null,null,null,null,null,null,null,null,null,null,null,null,null,null,null,null,null,null,null,null,null,null,null,"ROMANIA",null,null,null,null,null,null,null,null,null,null,null,null,null,"ROMANIA","ROMANIA","PORTUGAL",null,null,null,null,null,null,null,null,null,null,null,"Advisory services",null,null,null,null,null,null,null,null,null,null,null,null,null,null,null,null,null,null,null,null,null,"26 - non-proportional casualty reinsurance",null,null,null,null,null,null,null,null,"PORTUGAL","PORTUGAL",null,"Belarussian Ruble (2000 Series)",null,"POLAND"]
[null,null,null,null,"Offsetting group 25","Offsetting group 25","Belize Dollar","Belize Dollar",null,null,null,null,null,null,null,null,null,null,null,null,null,null,null,null,null,null,null,null,null,null,null,null,null,null,null,null,null,null,"SLOVAKIA",null,null,null,null,null,null,null,null,null,null,null,null,null,"RUSSIAN FEDERATION","SLOVAKIA","ROMANIA",null,null,null,null,null,null,null,null,null,null,null,"Money broking",null,null,null,null,null,null,null,null,null,null,null,null,null,null,null,null,null,null,null,null,null,"27 - non-proportional marine, aviation and transport reinsurance",null,null,null,null,null,null,null,null,"ROMANIA","ROMANIA",null,"Belarusian Ruble",null,"PORTUGAL"]
[null,null,null,null,"Offsetting group 26","Offsetting group 26","Canadian Dollar","Canadian Dollar",null,null,null,null,null,null,null,null,null,null,null,null,null,null,null,null,null,null,null,null,null,null,null,null,null,null,null,null,null,null,"SLOVENIA",null,null,null,null,null,null,null,null,null,null,null,null,null,"SERBIA","SLOVENIA","RUSSIAN FEDERATION",null,null,null,null,null,null,null,null,null,null,null,"Portfolio management and advice",null,null,null,null,null,null,null,null,null,null,null,null,null,null,null,null,null,null,null,null,null,"28 - non-proportional property reinsurance",null,null,null,null,null,null,null,null,"RUSSIAN FEDERATION","RUSSIAN FEDERATION",null,"Belize Dollar",null,"ROMANIA"]
[null,null,null,null,"Offsetting group 27","Offsetting group 27","Congolese Franc","Congolese Franc",null,null,null,null,null,null,null,null,null,null,null,null,null,null,null,null,null,null,null,null,null,null,null,null,null,null,null,null,null,null,"SPAIN",null,null,null,null,null,null,null,null,null,null,null,null,null,"SLOVAKIA","SPAIN","SERBIA",null,null,null,null,null,null,null,null,null,null,null,"Dealing on own account",null,null,null,null,null,null,null,null,null,null,null,null,null,null,null,null,null,null,null,null,null,"29 - insurance with profit participation",null,null,null,null,null,null,null,null,"SERBIA","SERBIA",null,"Canadian Dollar",null,"RUSSIAN FEDERATION"]
[null,null,null,null,"Offsetting group 28","Offsetting group 28","WIR Euro","WIR Euro",null,null,null,null,null,null,null,null,null,null,null,null,null,null,null,null,null,null,null,null,null,null,null,null,null,null,null,null,null,null,"SWEDEN",null,null,null,null,null,null,null,null,null,null,null,null,null,"SLOVENIA","SWEDEN","SLOVAKIA",null,null,null,null,null,null,null,null,null,null,null,"Safekeeping and administration of securities",null,null,null,null,null,null,null,null,null,null,null,null,null,null,null,null,null,null,null,null,null,"30 - index-linked and unit-linked insurance",null,null,null,null,null,null,null,null,"SLOVAKIA","SLOVAKIA",null,"Congolese Franc",null,"SERBIA"]
[null,null,null,null,"Offsetting group 29","Offsetting group 29","Swiss Franc","Swiss Franc",null,null,null,null,null,null,null,null,null,null,null,null,null,null,null,null,null,null,null,null,null,null,null,null,null,null,null,null,null,null,null,null,null,null,null,null,null,null,null,null,null,null,null,null,"SPAIN","UNITED KINGDOM","SLOVENIA",null,null,null,null,null,null,null,null,null,null,null,"Safekeeping and administration of financial instruments for the account of clients",null,null,null,null,null,null,null,null,null,null,null,null,null,null,null,null,null,null,null,null,null,"31 - other life insurance",null,null,null,null,null,null,null,null,"SLOVENIA","SLOVENIA",null,"WIR Euro",null,"SLOVAKIA"]
[null,null,null,null,"Offsetting group 30","Offsetting group 30","WIR Franc","WIR Franc",null,null,null,null,null,null,null,null,null,null,null,null,null,null,null,null,null,null,null,null,null,null,null,null,null,null,null,null,null,null,null,null,null,null,null,null,null,null,null,null,null,null,null,null,"SWEDEN",null,"SPAIN",null,null,null,null,null,null,null,null,null,null,null,"safe-keeping and administration in relation to shares or units of collective investment undertakings",null,null,null,null,null,null,null,null,null,null,null,null,null,null,null,null,null,null,null,null,null,"32 - annuities stemming from non-life insurance contracts and relating to health insurance obligations",null,null,null,null,null,null,null,null,"SPAIN","SPAIN",null,"Swiss Franc",null,"SLOVENIA"]
[null,null,null,null,"Offsetting group 31","Offsetting group 31","Unidades de fomento","Unidades de fomento",null,null,null,null,null,null,null,null,null,null,null,null,null,null,null,null,null,null,null,null,null,null,null,null,null,null,null,null,null,null,null,null,null,null,null,null,null,null,null,null,null,null,null,null,"SWITZERLAND",null,"SWEDEN",null,null,null,null,null,null,null,null,null,null,null,"non-core services (safekeeping and administration in relation to units of collective investment undertakings)",null,null,null,null,null,null,null,null,null,null,null,null,null,null,null,null,null,null,null,null,null,"33 - annuities stemming from non-life insurance contracts and relating to insurance obligations other than health insurance obligations",null,null,null,null,null,null,null,null,"SWEDEN","SWEDEN",null,"WIR Franc",null,"SPAIN"]
[null,null,null,null,"Offsetting group 32","Offsetting group 32","Chilean Peso","Chilean Peso",null,null,null,null,null,null,null,null,null,null,null,null,null,null,null,null,null,null,null,null,null,null,null,null,null,null,null,null,null,null,null,null,null,null,null,null,null,null,null,null,null,null,null,null,"TURKEY",null,"SWITZERLAND",null,null,null,null,null,null,null,null,null,null,null,"Safe custody services",null,null,null,null,null,null,null,null,null,null,null,null,null,null,null,null,null,null,null,null,null,"34 - life reinsurance",null,null,null,null,null,null,null,null,"SWITZERLAND","SWITZERLAND",null,"Unidades de fomento",null,"SWEDEN"]
[null,null,null,null,"Offsetting group 33","Offsetting group 33","Yuan Renminbi","Yuan Renminbi",null,null,null,null,null,null,null,null,null,null,null,null,null,null,null,null,null,null,null,null,null,null,null,null,null,null,null,null,null,null,null,null,null,null,null,null,null,null,null,null,null,null,null,null,"UKRAINE",null,"TURKEY",null,null,null,null,null,null,null,null,null,null,null,"Credit reference services",null,null,null,null,null,null,null,null,null,null,null,null,null,null,null,null,null,null,null,null,null,"35 - health insurance",null,null,null,null,null,null,null,null,"TURKEY","TURKEY",null,"Chilean Peso",null,"SWITZERLAND"]
[null,null,null,null,"Offsetting group 34","Offsetting group 34","Colombian Peso","Colombian Peso",null,null,null,null,null,null,null,null,null,null,null,null,null,null,null,null,null,null,null,null,null,null,null,null,null,null,null,null,null,null,null,null,null,null,null,null,null,null,null,null,null,null,null,null,"UNITED KINGDOM",null,"UKRAINE",null,null,null,null,null,null,null,null,null,null,null,"Issuing electronic money",null,null,null,null,null,null,null,null,null,null,null,null,null,null,null,null,null,null,null,null,null,"36 - health reinsurance",null,null,null,null,null,null,null,null,"UKRAINE","UKRAINE",null,"Yuan Renminbi",null,"TURKEY"]
[null,null,null,null,"Offsetting group 35","Offsetting group 35","Unidad de Valor Real","Unidad de Valor Real",null,null,null,null,null,null,null,null,null,null,null,null,null,null,null,null,null,null,null,null,null,null,null,null,null,null,null,null,null,null,null,null,null,null,null,null,null,null,null,null,null,null,null,null,"UNITED STATES",null,"UNITED KINGDOM",null,null,null,null,null,null,null,null,null,null,null,"reception and transmission of orders for crypto-assets on behalf of clients",null,null,null,null,null,null,null,null,null,null,null,null,null,null,null,null,null,null,null,null,null,null,null,null,null,null,null,null,null,null,"UNITED KINGDOM","UNITED KINGDOM",null,"Colombian Peso",null,"UKRAINE"]
[null,null,null,null,"Offsetting group 36","Offsetting group 36","Costa Rican Colon","Costa Rican Colon",null,null,null,null,null,null,null,null,null,null,null,null,null,null,null,null,null,null,null,null,null,null,null,null,null,null,null,null,null,null,null,null,null,null,null,null,null,null,null,null,null,null,null,null,"AFGHANISTAN",null,"UNITED STATES",null,null,null,null,null,null,null,null,null,null,null,"Portfolio management on crypto-assets",null,null,null,null,null,null,null,null,null,null,null,null,null,null,null,null,null,null,null,null,null,null,null,null,null,null,null,null,null,null,"UNITED STATES","UNITED STATES",null,"Unidad de Valor Real",null,"UNITED KINGDOM"]
[null,null,null,null,"Offsetting group 37","Offsetting group 37","Peso Convertible","Peso Convertible",null,null,null,null,null,null,null,null,null,null,null,null,null,null,null,null,null,null,null,null,null,null,null,null,null,null,null,null,null,null,null,null,null,null,null,null,null,null,null,null,null,null,null,null,"ÅLAND ISLANDS",null,"AFGHANISTAN",null,null,null,null,null,null,null,null,null,null,null,"management of portfolios of investments (AIFMD)",null,null,null,null,null,null,null,null,null,null,null,null,null,null,null,null,null,null,null,null,null,null,null,null,null,null,null,null,null,null,"AFGHANISTAN","AFGHANISTAN",null,"Costa Rican Colon",null,"UNITED STATES"]
[null,null,null,null,"Offsetting group 38","Offsetting group 38","Cuban Peso","Cuban Peso",null,null,null,null,null,null,null,null,null,null,null,null,null,null,null,null,null,null,null,null,null,null,null,null,null,null,null,null,null,null,null,null,null,null,null,null,null,null,null,null,null,null,null,null,"ALGERIA",null,"ÅLAND ISLANDS",null,null,null,null,null,null,null,null,null,null,null,"management of portfolios of investments (UCITSD)",null,null,null,null,null,null,null,null,null,null,null,null,null,null,null,null,null,null,null,null,null,null,null,null,null,null,null,null,null,null,"ÅLAND ISLANDS","ÅLAND ISLANDS",null,"Peso Convertible",null,"AFGHANISTAN"]
[null,null,null,null,"Offsetting group 39","Offsetting group 39","Cape Verde Escudo","Cape Verde Escudo",null,null,null,null,null,null,null,null,null,null,null,null,null,null,null,null,null,null,null,null,null,null,null,null,null,null,null,null,null,null,null,null,null,null,null,null,null,null,null,null,null,null,null,null,"AMERICAN SAMOA",null,"ALGERIA",null,null,null,null,null,null,null,null,null,null,null,"insurance distribution",null,null,null,null,null,null,null,null,null,null,null,null,null,null,null,null,null,null,null,null,null,null,null,null,null,null,null,null,null,null,"ALGERIA","ALGERIA",null,"Cuban Peso",null,"ÅLAND ISLANDS"]
[null,null,null,null,"Offsetting group 40","Offsetting group 40","Czech Koruna","Czech Koruna",null,null,null,null,null,null,null,null,null,null,null,null,null,null,null,null,null,null,null,null,null,null,null,null,null,null,null,null,null,null,null,null,null,null,null,null,null,null,null,null,null,null,null,null,"ANDORRA",null,"AMERICAN SAMOA",null,null,null,null,null,null,null,null,null,null,null,"reinsurance distribution",null,null,null,null,null,null,null,null,null,null,null,null,null,null,null,null,null,null,null,null,null,null,null,null,null,null,null,null,null,null,"AMERICAN SAMOA","AMERICAN SAMOA",null,"Cape Verde Escudo",null,"ALGERIA"]
[null,null,null,null,"Offsetting group 41","Offsetting group 41","Djibouti Franc","Djibouti Franc",null,null,null,null,null,null,null,null,null,null,null,null,null,null,null,null,null,null,null,null,null,null,null,null,null,null,null,null,null,null,null,null,null,null,null,null,null,null,null,null,null,null,null,null,"ANGOLA",null,"ANDORRA",null,null,null,null,null,null,null,null,null,null,null,"Investment services related to the underlying of the derivatives",null,null,null,null,null,null,null,null,null,null,null,null,null,null,null,null,null,null,null,null,null,null,null,null,null,null,null,null,null,null,"ANDORRA","ANDORRA",null,"Czech Koruna",null,"AMERICAN SAMOA"]
[null,null,null,null,"Offsetting group 42","Offsetting group 42","Danish Krone","Danish Krone",null,null,null,null,null,null,null,null,null,null,null,null,null,null,null,null,null,null,null,null,null,null,null,null,null,null,null,null,null,null,null,null,null,null,null,null,null,null,null,null,null,null,null,null,"ANGUILLA",null,"ANGOLA",null,null,null,null,null,null,null,null,null,null,null,"Retirement-benefit related operations and activities arising therefrom",null,null,null,null,null,null,null,null,null,null,null,null,null,null,null,null,null,null,null,null,null,null,null,null,null,null,null,null,null,null,"ANGOLA","ANGOLA",null,"Djibouti Franc",null,"ANDORRA"]
[null,null,null,null,"Offsetting group 43","Offsetting group 43","Dominican Peso","Dominican Peso",null,null,null,null,null,null,null,null,null,null,null,null,null,null,null,null,null,null,null,null,null,null,null,null,null,null,null,null,null,null,null,null,null,null,null,null,null,null,null,null,null,null,null,null,"ANTARCTICA",null,"ANGUILLA",null,null,null,null,null,null,null,null,null,null,null,"issuance of credit ratings",null,null,null,null,null,null,null,null,null,null,null,null,null,null,null,null,null,null,null,null,null,null,null,null,null,null,null,null,null,null,"ANGUILLA","ANGUILLA",null,"Danish Krone",null,"ANGOLA"]
[null,null,null,null,"Offsetting group 44","Offsetting group 44","Algerian Dinar","Algerian Dinar",null,null,null,null,null,null,null,null,null,null,null,null,null,null,null,null,null,null,null,null,null,null,null,null,null,null,null,null,null,null,null,null,null,null,null,null,null,null,null,null,null,null,null,null,"ANTIGUA AND BARBUDA",null,"ANTARCTICA",null,null,null,null,null,null,null,null,null,null,null,"administering the arrangements for determining a benchmark",null,null,null,null,null,null,null,null,null,null,null,null,null,null,null,null,null,null,null,null,null,null,null,null,null,null,null,null,null,null,"ANTARCTICA","ANTARCTICA",null,"Dominican Peso",null,"ANGUILLA"]
[null,null,null,null,"Offsetting group 45","Offsetting group 45","Egyptian Pound","Egyptian Pound",null,null,null,null,null,null,null,null,null,null,null,null,null,null,null,null,null,null,null,null,null,null,null,null,null,null,null,null,null,null,null,null,null,null,null,null,null,null,null,null,null,null,null,null,"ARGENTINA",null,"ANTIGUA AND BARBUDA",null,null,null,null,null,null,null,null,null,null,null,"collecting, analysing or processing input data for the purpose of determining a benchmark",null,null,null,null,null,null,null,null,null,null,null,null,null,null,null,null,null,null,null,null,null,null,null,null,null,null,null,null,null,null,"ANTIGUA AND BARBUDA","ANTIGUA AND BARBUDA",null,"Algerian Dinar",null,"ANTARCTICA"]
[null,null,null,null,"Offsetting group 46","Offsetting group 46","Nakfa","Nakfa",null,null,null,null,null,null,null,null,null,null,null,null,null,null,null,null,null,null,null,null,null,null,null,null,null,null,null,null,null,null,null,null,null,null,null,null,null,null,null,null,null,null,null,null,"ARMENIA",null,"ARGENTINA",null,null,null,null,null,null,null,null,null,null,null,"determining a benchmark through the application of a formula or other method of calculation or by an assessment of input data provided for that purpose",null,null,null,null,null,null,null,null,null,null,null,null,null,null,null,null,null,null,null,null,null,null,null,null,null,null,null,null,null,null,"ARGENTINA","ARGENTINA",null,"Egyptian Pound",null,"ANTIGUA AND BARBUDA"]
[null,null,null,null,"Offsetting group 47","Offsetting group 47","Ethiopian Birr","Ethiopian Birr",null,null,null,null,null,null,null,null,null,null,null,null,null,null,null,null,null,null,null,null,null,null,null,null,null,null,null,null,null,null,null,null,null,null,null,null,null,null,null,null,null,null,null,null,"ARUBA",null,"ARMENIA",null,null,null,null,null,null,null,null,null,null,null,"publication of benchmark",null,null,null,null,null,null,null,null,null,null,null,null,null,null,null,null,null,null,null,null,null,null,null,null,null,null,null,null,null,null,"ARMENIA","ARMENIA",null,"Nakfa",null,"ARGENTINA"]
[null,null,null,null,"Offsetting group 48","Offsetting group 48","Euro","Euro",null,null,null,null,null,null,null,null,null,null,null,null,null,null,null,null,null,null,null,null,null,null,null,null,null,null,null,null,null,null,null,null,null,null,null,null,null,null,null,null,null,null,null,null,"AUSTRALIA",null,"ARUBA",null,null,null,null,null,null,null,null,null,null,null,"Provision of crowdfunding services",null,null,null,null,null,null,null,null,null,null,null,null,null,null,null,null,null,null,null,null,null,null,null,null,null,null,null,null,null,null,"ARUBA","ARUBA",null,"Ethiopian Birr",null,"ARMENIA"]
[null,null,null,null,"Offsetting group 49","Offsetting group 49","Fiji Dollar","Fiji Dollar",null,null,null,null,null,null,null,null,null,null,null,null,null,null,null,null,null,null,null,null,null,null,null,null,null,null,null,null,null,null,null,null,null,null,null,null,null,null,null,null,null,null,null,null,"AZERBAIJAN",null,"AUSTRALIA",null,null,null,null,null,null,null,null,null,null,null,"ancillary non-securitisation services",null,null,null,null,null,null,null,null,null,null,null,null,null,null,null,null,null,null,null,null,null,null,null,null,null,null,null,null,null,null,"AUSTRALIA","AUSTRALIA",null,"Euro",null,"ARUBA"]
[null,null,null,null,"Offsetting group 50","Offsetting group 50","Falkland Islands Pound","Falkland Islands Pound",null,null,null,null,null,null,null,null,null,null,null,null,null,null,null,null,null,null,null,null,null,null,null,null,null,null,null,null,null,null,null,null,null,null,null,null,null,null,null,null,null,null,null,null,"BAHAMAS",null,"AZERBAIJAN",null,null,null,null,null,null,null,null,null,null,null,"ancillary securitisation services",null,null,null,null,null,null,null,null,null,null,null,null,null,null,null,null,null,null,null,null,null,null,null,null,null,null,null,null,null,null,"AZERBAIJAN","AZERBAIJAN",null,"Fiji Dollar",null,"AUSTRALIA"]
[null,null,null,null,"Offsetting group 51","Offsetting group 51","Pound Sterling","Pound Sterling",null,null,null,null,null,null,null,null,null,null,null,null,null,null,null,null,null,null,null,null,null,null,null,null,null,null,null,null,null,null,null,null,null,null,null,null,null,null,null,null,null,null,null,null,"BAHRAIN",null,"BAHAMAS",null,null,null,null,null,null,null,null,null,null,null,"collection and maintenance of the records of derivatives (non-SFTs)",null,null,null,null,null,null,null,null,null,null,null,null,null,null,null,null,null,null,null,null,null,null,null,null,null,null,null,null,null,null,"BAHAMAS","BAHAMAS",null,"Falkland Islands Pound",null,"AZERBAIJAN"]
[null,null,null,null,"Offsetting group 52","Offsetting group 52","Lari","Lari",null,null,null,null,null,null,null,null,null,null,null,null,null,null,null,null,null,null,null,null,null,null,null,null,null,null,null,null,null,null,null,null,null,null,null,null,null,null,null,null,null,null,null,null,"BANGLADESH",null,"BAHRAIN",null,null,null,null,null,null,null,null,null,null,null,"collection and maintenance of the records of SFTs",null,null,null,null,null,null,null,null,null,null,null,null,null,null,null,null,null,null,null,null,null,null,null,null,null,null,null,null,null,null,"BAHRAIN","BAHRAIN",null,"Pound Sterling",null,"BAHAMAS"]
[null,null,null,null,"Offsetting group 53","Offsetting group 53","Ghana Cedi","Ghana Cedi",null,null,null,null,null,null,null,null,null,null,null,null,null,null,null,null,null,null,null,null,null,null,null,null,null,null,null,null,null,null,null,null,null,null,null,null,null,null,null,null,null,null,null,null,"BARBADOS",null,"BANGLADESH",null,null,null,null,null,null,null,null,null,null,null,"collection and maintenance of the records of securitisations",null,null,null,null,null,null,null,null,null,null,null,null,null,null,null,null,null,null,null,null,null,null,null,null,null,null,null,null,null,null,"BANGLADESH","BANGLADESH",null,"Lari",null,"BAHRAIN"]
[null,null,null,null,"Offsetting group 54","Offsetting group 54","Gibraltar Pound","Gibraltar Pound",null,null,null,null,null,null,null,null,null,null,null,null,null,null,null,null,null,null,null,null,null,null,null,null,null,null,null,null,null,null,null,null,null,null,null,null,null,null,null,null,null,null,null,null,"BELARUS",null,"BARBADOS",null,null,null,null,null,null,null,null,null,null,null,"activity as approved publication arrangement",null,null,null,null,null,null,null,null,null,null,null,null,null,null,null,null,null,null,null,null,null,null,null,null,null,null,null,null,null,null,"BARBADOS","BARBADOS",null,"Ghana Cedi",null,"BANGLADESH"]
[null,null,null,null,"Offsetting group 55","Offsetting group 55","Dalasi","Dalasi",null,null,null,null,null,null,null,null,null,null,null,null,null,null,null,null,null,null,null,null,null,null,null,null,null,null,null,null,null,null,null,null,null,null,null,null,null,null,null,null,null,null,null,null,"BELIZE",null,"BELARUS",null,null,null,null,null,null,null,null,null,null,null,"activity as consolidated tape provider",null,null,null,null,null,null,null,null,null,null,null,null,null,null,null,null,null,null,null,null,null,null,null,null,null,null,null,null,null,null,"BELARUS","BELARUS",null,"Gibraltar Pound",null,"BARBADOS"]
[null,null,null,null,"Offsetting group 56","Offsetting group 56","Guinea Franc","Guinea Franc",null,null,null,null,null,null,null,null,null,null,null,null,null,null,null,null,null,null,null,null,null,null,null,null,null,null,null,null,null,null,null,null,null,null,null,null,null,null,null,null,null,null,null,null,"BENIN",null,"BELIZE",null,null,null,null,null,null,null,null,null,null,null,"activity as approved reporting mechanism",null,null,null,null,null,null,null,null,null,null,null,null,null,null,null,null,null,null,null,null,null,null,null,null,null,null,null,null,null,null,"BELIZE","BELIZE",null,"Dalasi",null,"BELARUS"]
[null,null,null,null,"Offsetting group 57","Offsetting group 57","Quetzal","Quetzal",null,null,null,null,null,null,null,null,null,null,null,null,null,null,null,null,null,null,null,null,null,null,null,null,null,null,null,null,null,null,null,null,null,null,null,null,null,null,null,null,null,null,null,null,"BERMUDA",null,"BENIN",null,null,null,null,null,null,null,null,null,null,null,"Services enabling cash to be placed on a payment account as well as all the operations required for operating a payment account",null,null,null,null,null,null,null,null,null,null,null,null,null,null,null,null,null,null,null,null,null,null,null,null,null,null,null,null,null,null,"BENIN","BENIN",null,"Guinea Franc",null,"BELIZE"]
[null,null,null,null,"Offsetting group 58","Offsetting group 58","Guyana Dollar","Guyana Dollar",null,null,null,null,null,null,null,null,null,null,null,null,null,null,null,null,null,null,null,null,null,null,null,null,null,null,null,null,null,null,null,null,null,null,null,null,null,null,null,null,null,null,null,null,"BHUTAN",null,"BERMUDA",null,null,null,null,null,null,null,null,null,null,null,"Services enabling cash withdrawals from a payment account as well as all the operations required for operating a payment account",null,null,null,null,null,null,null,null,null,null,null,null,null,null,null,null,null,null,null,null,null,null,null,null,null,null,null,null,null,null,"BERMUDA","BERMUDA",null,"Quetzal",null,"BENIN"]
[null,null,null,null,"Offsetting group 59","Offsetting group 59","Hong Kong Dollar","Hong Kong Dollar",null,null,null,null,null,null,null,null,null,null,null,null,null,null,null,null,null,null,null,null,null,null,null,null,null,null,null,null,null,null,null,null,null,null,null,null,null,null,null,null,null,null,null,null,"BOLIVIA, PLURINATIONAL STATE OF",null,"BHUTAN",null,null,null,null,null,null,null,null,null,null,null,"Execution of payment transactions, including transfers of funds on a payment account with the user’s payment service provider or with another payment service provider",null,null,null,null,null,null,null,null,null,null,null,null,null,null,null,null,null,null,null,null,null,null,null,null,null,null,null,null,null,null,"BHUTAN","BHUTAN",null,"Guyana Dollar",null,"BERMUDA"]
[null,null,null,null,"Offsetting group 60","Offsetting group 60","Lempira","Lempira",null,null,null,null,null,null,null,null,null,null,null,null,null,null,null,null,null,null,null,null,null,null,null,null,null,null,null,null,null,null,null,null,null,null,null,null,null,null,null,null,null,null,null,null,"BONAIRE, SINT EUSTATIUS AND SABA",null,"BOLIVIA, PLURINATIONAL STATE OF",null,null,null,null,null,null,null,null,null,null,null,"Execution of payment transactions where the funds are covered by a credit line for a payment service user",null,null,null,null,null,null,null,null,null,null,null,null,null,null,null,null,null,null,null,null,null,null,null,null,null,null,null,null,null,null,"BOLIVIA, PLURINATIONAL STATE OF","BOLIVIA, PLURINATIONAL STATE OF",null,"Hong Kong Dollar",null,"BHUTAN"]
[null,null,null,null,"Offsetting group 61","Offsetting group 61","Gourde","Gourde",null,null,null,null,null,null,null,null,null,null,null,null,null,null,null,null,null,null,null,null,null,null,null,null,null,null,null,null,null,null,null,null,null,null,null,null,null,null,null,null,null,null,null,null,"BOSNIA AND HERZEGOVINA",null,"BONAIRE, SINT EUSTATIUS AND SABA",null,null,null,null,null,null,null,null,null,null,null,"Issuing of payment instruments and/or acquiring of payment transactions",null,null,null,null,null,null,null,null,null,null,null,null,null,null,null,null,null,null,null,null,null,null,null,null,null,null,null,null,null,null,"BONAIRE, SINT EUSTATIUS AND SABA","BONAIRE, SINT EUSTATIUS AND SABA",null,"Lempira",null,"BOLIVIA, PLURINATIONAL STATE OF"]
[null,null,null,null,"Offsetting group 62","Offsetting group 62","Forint","Forint",null,null,null,null,null,null,null,null,null,null,null,null,null,null,null,null,null,null,null,null,null,null,null,null,null,null,null,null,null,null,null,null,null,null,null,null,null,null,null,null,null,null,null,null,"BOTSWANA",null,"BOSNIA AND HERZEGOVINA",null,null,null,null,null,null,null,null,null,null,null,"Money remittance",null,null,null,null,null,null,null,null,null,null,null,null,null,null,null,null,null,null,null,null,null,null,null,null,null,null,null,null,null,null,"BOSNIA AND HERZEGOVINA","BOSNIA AND HERZEGOVINA",null,"Croatian Kuna",null,"BONAIRE, SINT EUSTATIUS AND SABA"]
[null,null,null,null,"Offsetting group 63","Offsetting group 63","Rupiah","Rupiah",null,null,null,null,null,null,null,null,null,null,null,null,null,null,null,null,null,null,null,null,null,null,null,null,null,null,null,null,null,null,null,null,null,null,null,null,null,null,null,null,null,null,null,null,"BOUVET ISLAND",null,"BOTSWANA",null,null,null,null,null,null,null,null,null,null,null,"Payment initiation services",null,null,null,null,null,null,null,null,null,null,null,null,null,null,null,null,null,null,null,null,null,null,null,null,null,null,null,null,null,null,"BOTSWANA","BOTSWANA",null,"Gourde",null,"BOSNIA AND HERZEGOVINA"]
[null,null,null,null,"Offsetting group 64","Offsetting group 64","New Israeli Sheqel","New Israeli Sheqel",null,null,null,null,null,null,null,null,null,null,null,null,null,null,null,null,null,null,null,null,null,null,null,null,null,null,null,null,null,null,null,null,null,null,null,null,null,null,null,null,null,null,null,null,"BRAZIL",null,"BOUVET ISLAND",null,null,null,null,null,null,null,null,null,null,null,"Account information services",null,null,null,null,null,null,null,null,null,null,null,null,null,null,null,null,null,null,null,null,null,null,null,null,null,null,null,null,null,null,"BOUVET ISLAND","BOUVET ISLAND",null,"Forint",null,"BOTSWANA"]
[null,null,null,null,"Offsetting group 65","Offsetting group 65","Indian Rupee","Indian Rupee",null,null,null,null,null,null,null,null,null,null,null,null,null,null,null,null,null,null,null,null,null,null,null,null,null,null,null,null,null,null,null,null,null,null,null,null,null,null,null,null,null,null,null,null,"BRITISH INDIAN OCEAN TERRITORY",null,"BRAZIL",null,null,null,null,null,null,null,null,null,null,null,"Providing custody and administration of crypto-assets on behalf of clients",null,null,null,null,null,null,null,null,null,null,null,null,null,null,null,null,null,null,null,null,null,null,null,null,null,null,null,null,null,null,"BRAZIL","BRAZIL",null,"Rupiah",null,"BOUVET ISLAND"]
[null,null,null,null,"Offsetting group 66","Offsetting group 66","Iraqi Dinar","Iraqi Dinar",null,null,null,null,null,null,null,null,null,null,null,null,null,null,null,null,null,null,null,null,null,null,null,null,null,null,null,null,null,null,null,null,null,null,null,null,null,null,null,null,null,null,null,null,"BRUNEI DARUSSALAM",null,"BRITISH INDIAN OCEAN TERRITORY",null,null,null,null,null,null,null,null,null,null,null,"operation of a trading platform for crypto-assets",null,null,null,null,null,null,null,null,null,null,null,null,null,null,null,null,null,null,null,null,null,null,null,null,null,null,null,null,null,null,"BRITISH INDIAN OCEAN TERRITORY","BRITISH INDIAN OCEAN TERRITORY",null,"New Israeli Sheqel",null,"BRAZIL"]
[null,null,null,null,"Offsetting group 67","Offsetting group 67","Iranian Rial","Iranian Rial",null,null,null,null,null,null,null,null,null,null,null,null,null,null,null,null,null,null,null,null,null,null,null,null,null,null,null,null,null,null,null,null,null,null,null,null,null,null,null,null,null,null,null,null,"BURKINA FASO",null,"BRUNEI DARUSSALAM",null,null,null,null,null,null,null,null,null,null,null,"Operation of a Regulated Market",null,null,null,null,null,null,null,null,null,null,null,null,null,null,null,null,null,null,null,null,null,null,null,null,null,null,null,null,null,null,"BRUNEI DARUSSALAM","BRUNEI DARUSSALAM",null,"Indian Rupee",null,"BRITISH INDIAN OCEAN TERRITORY"]
[null,null,null,null,"Offsetting group 68","Offsetting group 68","Iceland Krona","Iceland Krona",null,null,null,null,null,null,null,null,null,null,null,null,null,null,null,null,null,null,null,null,null,null,null,null,null,null,null,null,null,null,null,null,null,null,null,null,null,null,null,null,null,null,null,null,"BURUNDI",null,"BURKINA FASO",null,null,null,null,null,null,null,null,null,null,null,"exchange of crypto-assets for funds",null,null,null,null,null,null,null,null,null,null,null,null,null,null,null,null,null,null,null,null,null,null,null,null,null,null,null,null,null,null,"BURKINA FASO","BURKINA FASO",null,"Iraqi Dinar",null,"BRUNEI DARUSSALAM"]
[null,null,null,null,"Offsetting group 69","Offsetting group 69","Jamaican Dollar","Jamaican Dollar",null,null,null,null,null,null,null,null,null,null,null,null,null,null,null,null,null,null,null,null,null,null,null,null,null,null,null,null,null,null,null,null,null,null,null,null,null,null,null,null,null,null,null,null,"CAMBODIA",null,"BURUNDI",null,null,null,null,null,null,null,null,null,null,null,"exchange of crypto-assets for other crypto-assets",null,null,null,null,null,null,null,null,null,null,null,null,null,null,null,null,null,null,null,null,null,null,null,null,null,null,null,null,null,null,"BURUNDI","BURUNDI",null,"Iranian Rial",null,"BURKINA FASO"]
[null,null,null,null,"Offsetting group 70","Offsetting group 70","Jordanian Dinar","Jordanian Dinar",null,null,null,null,null,null,null,null,null,null,null,null,null,null,null,null,null,null,null,null,null,null,null,null,null,null,null,null,null,null,null,null,null,null,null,null,null,null,null,null,null,null,null,null,"CAMEROON",null,"CAMBODIA",null,null,null,null,null,null,null,null,null,null,null,"execution of orders for crypto-assets on behalf of clients",null,null,null,null,null,null,null,null,null,null,null,null,null,null,null,null,null,null,null,null,null,null,null,null,null,null,null,null,null,null,"CAMBODIA","CAMBODIA",null,"Iceland Krona",null,"BURUNDI"]
[null,null,null,null,"Offsetting group 71","Offsetting group 71","Yen","Yen",null,null,null,null,null,null,null,null,null,null,null,null,null,null,null,null,null,null,null,null,null,null,null,null,null,null,null,null,null,null,null,null,null,null,null,null,null,null,null,null,null,null,null,null,"CANADA",null,"CAMEROON",null,null,null,null,null,null,null,null,null,null,null,"placing of crypto-assets",null,null,null,null,null,null,null,null,null,null,null,null,null,null,null,null,null,null,null,null,null,null,null,null,null,null,null,null,null,null,"CAMEROON","CAMEROON",null,"Jamaican Dollar",null,"CAMBODIA"]
[null,null,null,null,"Offsetting group 72","Offsetting group 72","Kenyan Shilling","Kenyan Shilling",null,null,null,null,null,null,null,null,null,null,null,null,null,null,null,null,null,null,null,null,null,null,null,null,null,null,null,null,null,null,null,null,null,null,null,null,null,null,null,null,null,null,null,null,"CAPE VERDE",null,"CANADA",null,null,null,null,null,null,null,null,null,null,null,"providing advice on crypto-assets",null,null,null,null,null,null,null,null,null,null,null,null,null,null,null,null,null,null,null,null,null,null,null,null,null,null,null,null,null,null,"CANADA","CANADA",null,"Jordanian Dinar",null,"CAMEROON"]
[null,null,null,null,"Offsetting group 73","Offsetting group 73","Som","Som",null,null,null,null,null,null,null,null,null,null,null,null,null,null,null,null,null,null,null,null,null,null,null,null,null,null,null,null,null,null,null,null,null,null,null,null,null,null,null,null,null,null,null,null,"CAYMAN ISLANDS",null,"CAPE VERDE",null,null,null,null,null,null,null,null,null,null,null,"providing transfer services for crypto-assets on behalf of clients",null,null,null,null,null,null,null,null,null,null,null,null,null,null,null,null,null,null,null,null,null,null,null,null,null,null,null,null,null,null,"CAPE VERDE","CAPE VERDE",null,"Yen",null,"CANADA"]
[null,null,null,null,"Offsetting group 74","Offsetting group 74","Riel","Riel",null,null,null,null,null,null,null,null,null,null,null,null,null,null,null,null,null,null,null,null,null,null,null,null,null,null,null,null,null,null,null,null,null,null,null,null,null,null,null,null,null,null,null,null,"CENTRAL AFRICAN REPUBLIC",null,"CAYMAN ISLANDS",null,null,null,null,null,null,null,null,null,null,null,"issuance of asset-referenced tokens",null,null,null,null,null,null,null,null,null,null,null,null,null,null,null,null,null,null,null,null,null,null,null,null,null,null,null,null,null,null,"CAYMAN ISLANDS","CAYMAN ISLANDS",null,"Kenyan Shilling",null,"CAPE VERDE"]
[null,null,null,null,"Offsetting group 75","Offsetting group 75","Comoro Franc","Comoro Franc",null,null,null,null,null,null,null,null,null,null,null,null,null,null,null,null,null,null,null,null,null,null,null,null,null,null,null,null,null,null,null,null,null,null,null,null,null,null,null,null,null,null,null,null,"CHAD",null,"CENTRAL AFRICAN REPUBLIC",null,null,null,null,null,null,null,null,null,null,null,"notary service",null,null,null,null,null,null,null,null,null,null,null,null,null,null,null,null,null,null,null,null,null,null,null,null,null,null,null,null,null,null,"CENTRAL AFRICAN REPUBLIC","CENTRAL AFRICAN REPUBLIC",null,"Som",null,"CAYMAN ISLANDS"]
[null,null,null,null,"Offsetting group 76","Offsetting group 76","North Korean Won","North Korean Won",null,null,null,null,null,null,null,null,null,null,null,null,null,null,null,null,null,null,null,null,null,null,null,null,null,null,null,null,null,null,null,null,null,null,null,null,null,null,null,null,null,null,null,null,"CHILE",null,"CHAD",null,null,null,null,null,null,null,null,null,null,null,"central maintenance service",null,null,null,null,null,null,null,null,null,null,null,null,null,null,null,null,null,null,null,null,null,null,null,null,null,null,null,null,null,null,"CHAD","CHAD",null,"Riel",null,"CENTRAL AFRICAN REPUBLIC"]
[null,null,null,null,"Offsetting group 77","Offsetting group 77","Won","Won",null,null,null,null,null,null,null,null,null,null,null,null,null,null,null,null,null,null,null,null,null,null,null,null,null,null,null,null,null,null,null,null,null,null,null,null,null,null,null,null,null,null,null,null,"CHINA",null,"CHILE",null,null,null,null,null,null,null,null,null,null,null,"settlement service",null,null,null,null,null,null,null,null,null,null,null,null,null,null,null,null,null,null,null,null,null,null,null,null,null,null,null,null,null,null,"CHILE","CHILE",null,"Comoro Franc",null,"CHAD"]
[null,null,null,null,"Offsetting group 78","Offsetting group 78","Kuwaiti Dinar","Kuwaiti Dinar",null,null,null,null,null,null,null,null,null,null,null,null,null,null,null,null,null,null,null,null,null,null,null,null,null,null,null,null,null,null,null,null,null,null,null,null,null,null,null,null,null,null,null,null,"CHRISTMAS ISLAND",null,"CHINA",null,null,null,null,null,null,null,null,null,null,null,"Organising a securities lending mechanism, as agent among participants of a securities settlement system",null,null,null,null,null,null,null,null,null,null,null,null,null,null,null,null,null,null,null,null,null,null,null,null,null,null,null,null,null,null,"CHINA","CHINA",null,"North Korean Won",null,"CHILE"]
[null,null,null,null,"Offsetting group 79","Offsetting group 79","Cayman Islands Dollar","Cayman Islands Dollar",null,null,null,null,null,null,null,null,null,null,null,null,null,null,null,null,null,null,null,null,null,null,null,null,null,null,null,null,null,null,null,null,null,null,null,null,null,null,null,null,null,null,null,null,"COCOS (KEELING) ISLANDS",null,"CHRISTMAS ISLAND",null,null,null,null,null,null,null,null,null,null,null,"collateral management services",null,null,null,null,null,null,null,null,null,null,null,null,null,null,null,null,null,null,null,null,null,null,null,null,null,null,null,null,null,null,"CHRISTMAS ISLAND","CHRISTMAS ISLAND",null,"Won",null,"CHINA"]
[null,null,null,null,"Offsetting group 80","Offsetting group 80","Tenge","Tenge",null,null,null,null,null,null,null,null,null,null,null,null,null,null,null,null,null,null,null,null,null,null,null,null,null,null,null,null,null,null,null,null,null,null,null,null,null,null,null,null,null,null,null,null,"COLOMBIA",null,"COCOS (KEELING) ISLANDS",null,null,null,null,null,null,null,null,null,null,null,"general collateral management services",null,null,null,null,null,null,null,null,null,null,null,null,null,null,null,null,null,null,null,null,null,null,null,null,null,null,null,null,null,null,"COCOS (KEELING) ISLANDS","COCOS (KEELING) ISLANDS",null,"Kuwaiti Dinar",null,"CHRISTMAS ISLAND"]
[null,null,null,null,"Offsetting group 81","Offsetting group 81","Kip","Kip",null,null,null,null,null,null,null,null,null,null,null,null,null,null,null,null,null,null,null,null,null,null,null,null,null,null,null,null,null,null,null,null,null,null,null,null,null,null,null,null,null,null,null,null,"COMOROS",null,"COLOMBIA",null,null,null,null,null,null,null,null,null,null,null,"Establishing CSD links, providing, maintaining or operating securities accounts in relation to the settlement service, collateral management, other ancillary services",null,null,null,null,null,null,null,null,null,null,null,null,null,null,null,null,null,null,null,null,null,null,null,null,null,null,null,null,null,null,"COLOMBIA","COLOMBIA",null,"Cayman Islands Dollar",null,"COCOS (KEELING) ISLANDS"]
[null,null,null,null,"Offsetting group 82","Offsetting group 82","Lebanese Pound","Lebanese Pound",null,null,null,null,null,null,null,null,null,null,null,null,null,null,null,null,null,null,null,null,null,null,null,null,null,null,null,null,null,null,null,null,null,null,null,null,null,null,null,null,null,null,null,null,"CONGO",null,"COMOROS",null,null,null,null,null,null,null,null,null,null,null,"Settlement matching, instruction routing, trade confirmation, trade verification",null,null,null,null,null,null,null,null,null,null,null,null,null,null,null,null,null,null,null,null,null,null,null,null,null,null,null,null,null,null,"COMOROS","COMOROS",null,"Tenge",null,"COLOMBIA"]
[null,null,null,null,"Offsetting group 83","Offsetting group 83","Sri Lanka Rupee","Sri Lanka Rupee",null,null,null,null,null,null,null,null,null,null,null,null,null,null,null,null,null,null,null,null,null,null,null,null,null,null,null,null,null,null,null,null,null,null,null,null,null,null,null,null,null,null,null,null,"CONGO, THE DEMOCRATIC REPUBLIC OF THE",null,"CONGO",null,null,null,null,null,null,null,null,null,null,null,"Services related to shareholders’ registers",null,null,null,null,null,null,null,null,null,null,null,null,null,null,null,null,null,null,null,null,null,null,null,null,null,null,null,null,null,null,"CONGO","CONGO",null,"Kip",null,"COMOROS"]
[null,null,null,null,"Offsetting group 84","Offsetting group 84","Liberian Dollar","Liberian Dollar",null,null,null,null,null,null,null,null,null,null,null,null,null,null,null,null,null,null,null,null,null,null,null,null,null,null,null,null,null,null,null,null,null,null,null,null,null,null,null,null,null,null,null,null,"COOK ISLANDS",null,"CONGO, THE DEMOCRATIC REPUBLIC OF THE",null,null,null,null,null,null,null,null,null,null,null,"Supporting the processing of corporate actions, including tax, general meetings and information services",null,null,null,null,null,null,null,null,null,null,null,null,null,null,null,null,null,null,null,null,null,null,null,null,null,null,null,null,null,null,"CONGO, THE DEMOCRATIC REPUBLIC OF THE","CONGO, THE DEMOCRATIC REPUBLIC OF THE",null,"Lebanese Pound",null,"CONGO"]
[null,null,null,null,"Offsetting group 85","Offsetting group 85","Loti","Loti",null,null,null,null,null,null,null,null,null,null,null,null,null,null,null,null,null,null,null,null,null,null,null,null,null,null,null,null,null,null,null,null,null,null,null,null,null,null,null,null,null,null,null,null,"COSTA RICA",null,"COOK ISLANDS",null,null,null,null,null,null,null,null,null,null,null,"New issue services, including allocation and management of ISIN codes and similar codes",null,null,null,null,null,null,null,null,null,null,null,null,null,null,null,null,null,null,null,null,null,null,null,null,null,null,null,null,null,null,"COOK ISLANDS","COOK ISLANDS",null,"Sri Lanka Rupee",null,"CONGO, THE DEMOCRATIC REPUBLIC OF THE"]
[null,null,null,null,"Offsetting group 86","Offsetting group 86","Lithuanian Litas","Lithuanian Litas",null,null,null,null,null,null,null,null,null,null,null,null,null,null,null,null,null,null,null,null,null,null,null,null,null,null,null,null,null,null,null,null,null,null,null,null,null,null,null,null,null,null,null,null,"CÔTE D'IVOIRE",null,"COSTA RICA",null,null,null,null,null,null,null,null,null,null,null,"Instruction routing and processing, fee collection and processing and related reporting",null,null,null,null,null,null,null,null,null,null,null,null,null,null,null,null,null,null,null,null,null,null,null,null,null,null,null,null,null,null,"COSTA RICA","COSTA RICA",null,"Liberian Dollar",null,"COOK ISLANDS"]
[null,null,null,null,"Offsetting group 87","Offsetting group 87","Latvian Lats","Latvian Lats",null,null,null,null,null,null,null,null,null,null,null,null,null,null,null,null,null,null,null,null,null,null,null,null,null,null,null,null,null,null,null,null,null,null,null,null,null,null,null,null,null,null,null,null,"CROATIA",null,"CÔTE D'IVOIRE",null,null,null,null,null,null,null,null,null,null,null,"Providing regulatory reporting",null,null,null,null,null,null,null,null,null,null,null,null,null,null,null,null,null,null,null,null,null,null,null,null,null,null,null,null,null,null,"CÔTE D'IVOIRE","CÔTE D'IVOIRE",null,"Loti",null,"COSTA RICA"]
[null,null,null,null,"Offsetting group 88","Offsetting group 88","Libyan Dinar","Libyan Dinar",null,null,null,null,null,null,null,null,null,null,null,null,null,null,null,null,null,null,null,null,null,null,null,null,null,null,null,null,null,null,null,null,null,null,null,null,null,null,null,null,null,null,null,null,"CUBA",null,"CROATIA",null,null,null,null,null,null,null,null,null,null,null,"\"Providing information, data and statistics to market/census bureaus or other governmental or inter-governmental entities\"",null,null,null,null,null,null,null,null,null,null,null,null,null,null,null,null,null,null,null,null,null,null,null,null,null,null,null,null,null,null,"CROATIA","CROATIA",null,"Lithuanian Litas",null,"CÔTE D'IVOIRE"]
[null,null,null,null,"Offsetting group 89","Offsetting group 89","Moroccan Dirham","Moroccan Dirham",null,null,null,null,null,null,null,null,null,null,null,null,null,null,null,null,null,null,null,null,null,null,null,null,null,null,null,null,null,null,null,null,null,null,null,null,null,null,null,null,null,null,null,null,"CURAÇAO",null,"CUBA",null,null,null,null,null,null,null,null,null,null,null,"Providing IT services",null,null,null,null,null,null,null,null,null,null,null,null,null,null,null,null,null,null,null,null,null,null,null,null,null,null,null,null,null,null,"CUBA","CUBA",null,"Latvian Lats",null,"CROATIA"]
[null,null,null,null,"Offsetting group 90","Offsetting group 90","Moldovan Leu","Moldovan Leu",null,null,null,null,null,null,null,null,null,null,null,null,null,null,null,null,null,null,null,null,null,null,null,null,null,null,null,null,null,null,null,null,null,null,null,null,null,null,null,null,null,null,null,null,"DJIBOUTI",null,"CURAÇAO",null,null,null,null,null,null,null,null,null,null,null,"\"Providing cash accounts to, and accepting deposits from, participants in a securities settlement system and holders of securities accounts, within the meaning of point 1 of Annex I to Directive 2013/36/EU\"",null,null,null,null,null,null,null,null,null,null,null,null,null,null,null,null,null,null,null,null,null,null,null,null,null,null,null,null,null,null,"CURAÇAO","CURAÇAO",null,"Libyan Dinar",null,"CUBA"]
[null,null,null,null,"Offsetting group 91","Offsetting group 91","Malagasy Ariary","Malagasy Ariary",null,null,null,null,null,null,null,null,null,null,null,null,null,null,null,null,null,null,null,null,null,null,null,null,null,null,null,null,null,null,null,null,null,null,null,null,null,null,null,null,null,null,null,null,"DOMINICA",null,"DJIBOUTI",null,null,null,null,null,null,null,null,null,null,null,"\"Providing cash credit for reimbursement no later than the following business day, cash lending to pre-finance corporate actions and lending securities to holders of securities accounts, within the meaning of point 2 of Annex I to Directive 2013/36/EU\"",null,null,null,null,null,null,null,null,null,null,null,null,null,null,null,null,null,null,null,null,null,null,null,null,null,null,null,null,null,null,"DJIBOUTI","DJIBOUTI",null,"Moroccan Dirham",null,"CURAÇAO"]
[null,null,null,null,"Offsetting group 92","Offsetting group 92","Denar","Denar",null,null,null,null,null,null,null,null,null,null,null,null,null,null,null,null,null,null,null,null,null,null,null,null,null,null,null,null,null,null,null,null,null,null,null,null,null,null,null,null,null,null,null,null,"DOMINICAN REPUBLIC",null,"DOMINICA",null,null,null,null,null,null,null,null,null,null,null,"\" Payment services involving processing of cash and foreign exchange transactions, within the meaning of point 4 of Annex I to Directive 2013/36/EU\"",null,null,null,null,null,null,null,null,null,null,null,null,null,null,null,null,null,null,null,null,null,null,null,null,null,null,null,null,null,null,"DOMINICA","DOMINICA",null,"Moldovan Leu",null,"DJIBOUTI"]
[null,null,null,null,"Offsetting group 93","Offsetting group 93","Kyat","Kyat",null,null,null,null,null,null,null,null,null,null,null,null,null,null,null,null,null,null,null,null,null,null,null,null,null,null,null,null,null,null,null,null,null,null,null,null,null,null,null,null,null,null,null,null,"ECUADOR",null,"DOMINICAN REPUBLIC",null,null,null,null,null,null,null,null,null,null,null,"Treasury activities involving foreign exchange and transferable securities related to managing participants’ long balances",null,null,null,null,null,null,null,null,null,null,null,null,null,null,null,null,null,null,null,null,null,null,null,null,null,null,null,null,null,null,"DOMINICAN REPUBLIC","DOMINICAN REPUBLIC",null,"Malagasy Ariary",null,"DOMINICA"]
[null,null,null,null,"Offsetting group 94","Offsetting group 94","Tugrik","Tugrik",null,null,null,null,null,null,null,null,null,null,null,null,null,null,null,null,null,null,null,null,null,null,null,null,null,null,null,null,null,null,null,null,null,null,null,null,null,null,null,null,null,null,null,null,"EGYPT",null,"ECUADOR",null,null,null,null,null,null,null,null,null,null,null,"Any other NCA-permitted non-banking-type ancillary services not specified in Annex of Regulation (EU) No 909/2014 (CSDR) - Section B",null,null,null,null,null,null,null,null,null,null,null,null,null,null,null,null,null,null,null,null,null,null,null,null,null,null,null,null,null,null,"ECUADOR","ECUADOR",null,"Denar",null,"DOMINICAN REPUBLIC"]
[null,null,null,null,"Offsetting group 95","Offsetting group 95","Pataca","Pataca",null,null,null,null,null,null,null,null,null,null,null,null,null,null,null,null,null,null,null,null,null,null,null,null,null,null,null,null,null,null,null,null,null,null,null,null,null,null,null,null,null,null,null,null,"EL SALVADOR",null,"EGYPT",null,null,null,null,null,null,null,null,null,null,null,"Any other NCA-permitted Banking-type ancillary services not specified in Annex of Regulation (EU) No 909/2014 (CSDR) - Section C",null,null,null,null,null,null,null,null,null,null,null,null,null,null,null,null,null,null,null,null,null,null,null,null,null,null,null,null,null,null,"EGYPT","EGYPT",null,"Kyat",null,"ECUADOR"]
[null,null,null,null,"Offsetting group 96","Offsetting group 96","Ouguiya","Ouguiya",null,null,null,null,null,null,null,null,null,null,null,null,null,null,null,null,null,null,null,null,null,null,null,null,null,null,null,null,null,null,null,null,null,null,null,null,null,null,null,null,null,null,null,null,"EQUATORIAL GUINEA",null,"EL SALVADOR",null,null,null,null,null,null,null,null,null,null,null,"interposition between counterparties",null,null,null,null,null,null,null,null,null,null,null,null,null,null,null,null,null,null,null,null,null,null,null,null,null,null,null,null,null,null,"EL SALVADOR","EL SALVADOR",null,"Tugrik",null,"EGYPT"]
[null,null,null,null,"Offsetting group 97","Offsetting group 97","Mauritius Rupee","Mauritius Rupee",null,null,null,null,null,null,null,null,null,null,null,null,null,null,null,null,null,null,null,null,null,null,null,null,null,null,null,null,null,null,null,null,null,null,null,null,null,null,null,null,null,null,null,null,"ERITREA",null,"EQUATORIAL GUINEA",null,null,null,null,null,null,null,null,null,null,null,"risk management",null,null,null,null,null,null,null,null,null,null,null,null,null,null,null,null,null,null,null,null,null,null,null,null,null,null,null,null,null,null,"EQUATORIAL GUINEA","EQUATORIAL GUINEA",null,"Pataca",null,"EL SALVADOR"]
[null,null,null,null,"Offsetting group 98","Offsetting group 98","Rufiyaa","Rufiyaa",null,null,null,null,null,null,null,null,null,null,null,null,null,null,null,null,null,null,null,null,null,null,null,null,null,null,null,null,null,null,null,null,null,null,null,null,null,null,null,null,null,null,null,null,"ETHIOPIA",null,"ERITREA",null,null,null,null,null,null,null,null,null,null,null,"legal and fund management accounting services",null,null,null,null,null,null,null,null,null,null,null,null,null,null,null,null,null,null,null,null,null,null,null,null,null,null,null,null,null,null,"ERITREA","ERITREA",null,"Ouguiya",null,"EQUATORIAL GUINEA"]
[null,null,null,null,"Offsetting group 99","Offsetting group 99","Kwacha","Kwacha",null,null,null,null,null,null,null,null,null,null,null,null,null,null,null,null,null,null,null,null,null,null,null,null,null,null,null,null,null,null,null,null,null,null,null,null,null,null,null,null,null,null,null,null,"FALKLAND ISLANDS (MALVINAS)",null,"ETHIOPIA",null,null,null,null,null,null,null,null,null,null,null,"customer inquiries",null,null,null,null,null,null,null,null,null,null,null,null,null,null,null,null,null,null,null,null,null,null,null,null,null,null,null,null,null,null,"ETHIOPIA","ETHIOPIA",null,"Mauritius Rupee",null,"ERITREA"]
[null,null,null,null,"Offsetting group 100","Offsetting group 100","Mexican Peso","Mexican Peso",null,null,null,null,null,null,null,null,null,null,null,null,null,null,null,null,null,null,null,null,null,null,null,null,null,null,null,null,null,null,null,null,null,null,null,null,null,null,null,null,null,null,null,null,"FAROE ISLANDS",null,"FALKLAND ISLANDS (MALVINAS)",null,null,null,null,null,null,null,null,null,null,null,"valuation and pricing, including tax returns",null,null,null,null,null,null,null,null,null,null,null,null,null,null,null,null,null,null,null,null,null,null,null,null,null,null,null,null,null,null,"FALKLAND ISLANDS (MALVINAS)","FALKLAND ISLANDS (MALVINAS)",null,"Rufiyaa",null,"ETHIOPIA"]
[null,null,null,null,null,null,"Malaysian Ringgit","Malaysian Ringgit",null,null,null,null,null,null,null,null,null,null,null,null,null,null,null,null,null,null,null,null,null,null,null,null,null,null,null,null,null,null,null,null,null,null,null,null,null,null,null,null,null,null,null,null,"FIJI",null,"FAROE ISLANDS",null,null,null,null,null,null,null,null,null,null,null,"regulatory compliance monitoring",null,null,null,null,null,null,null,null,null,null,null,null,null,null,null,null,null,null,null,null,null,null,null,null,null,null,null,null,null,null,"FAROE ISLANDS","FAROE ISLANDS",null,"Kwacha",null,"FALKLAND ISLANDS (MALVINAS)"]
[null,null,null,null,null,null,"Mozambique Metical","Mozambique Metical",null,null,null,null,null,null,null,null,null,null,null,null,null,null,null,null,null,null,null,null,null,null,null,null,null,null,null,null,null,null,null,null,null,null,null,null,null,null,null,null,null,null,null,null,"FRENCH GUIANA",null,"FIJI",null,null,null,null,null,null,null,null,null,null,null,"maintenance of unit-/shareholder register",null,null,null,null,null,null,null,null,null,null,null,null,null,null,null,null,null,null,null,null,null,null,null,null,null,null,null,null,null,null,"FIJI","FIJI",null,"Mexican Peso",null,"FAROE ISLANDS"]
[null,null,null,null,null,null,"Namibia Dollar","Namibia Dollar",null,null,null,null,null,null,null,null,null,null,null,null,null,null,null,null,null,null,null,null,null,null,null,null,null,null,null,null,null,null,null,null,null,null,null,null,null,null,null,null,null,null,null,null,"FRENCH POLYNESIA",null,"FRENCH GUIANA",null,null,null,null,null,null,null,null,null,null,null,"unit/shares issues and redemptions",null,null,null,null,null,null,null,null,null,null,null,null,null,null,null,null,null,null,null,null,null,null,null,null,null,null,null,null,null,null,"FRENCH GUIANA","FRENCH GUIANA",null,"Malaysian Ringgit",null,"FIJI"]
[null,null,null,null,null,null,"Naira","Naira",null,null,null,null,null,null,null,null,null,null,null,null,null,null,null,null,null,null,null,null,null,null,null,null,null,null,null,null,null,null,null,null,null,null,null,null,null,null,null,null,null,null,null,null,"FRENCH SOUTHERN TERRITORIES",null,"FRENCH POLYNESIA",null,null,null,null,null,null,null,null,null,null,null,"maintenance of unit-holder register",null,null,null,null,null,null,null,null,null,null,null,null,null,null,null,null,null,null,null,null,null,null,null,null,null,null,null,null,null,null,"FRENCH POLYNESIA","FRENCH POLYNESIA",null,"Mozambique Metical",null,"FRENCH GUIANA"]
[null,null,null,null,null,null,"Cordoba Oro","Cordoba Oro",null,null,null,null,null,null,null,null,null,null,null,null,null,null,null,null,null,null,null,null,null,null,null,null,null,null,null,null,null,null,null,null,null,null,null,null,null,null,null,null,null,null,null,null,"GABON",null,"FRENCH SOUTHERN TERRITORIES",null,null,null,null,null,null,null,null,null,null,null,"unit issues and redemptions",null,null,null,null,null,null,null,null,null,null,null,null,null,null,null,null,null,null,null,null,null,null,null,null,null,null,null,null,null,null,"FRENCH SOUTHERN TERRITORIES","FRENCH SOUTHERN TERRITORIES",null,"Namibia Dollar",null,"FRENCH POLYNESIA"]
[null,null,null,null,null,null,"Norwegian Krone","Norwegian Krone",null,null,null,null,null,null,null,null,null,null,null,null,null,null,null,null,null,null,null,null,null,null,null,null,null,null,null,null,null,null,null,null,null,null,null,null,null,null,null,null,null,null,null,null,"GAMBIA",null,"GABON",null,null,null,null,null,null,null,null,null,null,null,"contract settlements (including certificate dispatch)",null,null,null,null,null,null,null,null,null,null,null,null,null,null,null,null,null,null,null,null,null,null,null,null,null,null,null,null,null,null,"GABON","GABON",null,"Naira",null,"FRENCH SOUTHERN TERRITORIES"]
[null,null,null,null,null,null,"Nepalese Rupee","Nepalese Rupee",null,null,null,null,null,null,null,null,null,null,null,null,null,null,null,null,null,null,null,null,null,null,null,null,null,null,null,null,null,null,null,null,null,null,null,null,null,null,null,null,null,null,null,null,"GEORGIA",null,"GAMBIA",null,null,null,null,null,null,null,null,null,null,null,"distribution of income",null,null,null,null,null,null,null,null,null,null,null,null,null,null,null,null,null,null,null,null,null,null,null,null,null,null,null,null,null,null,"GAMBIA","GAMBIA",null,"Cordoba Oro",null,"GABON"]
[null,null,null,null,null,null,"New Zealand Dollar","New Zealand Dollar",null,null,null,null,null,null,null,null,null,null,null,null,null,null,null,null,null,null,null,null,null,null,null,null,null,null,null,null,null,null,null,null,null,null,null,null,null,null,null,null,null,null,null,null,"GHANA",null,"GEORGIA",null,null,null,null,null,null,null,null,null,null,null,"record keeping",null,null,null,null,null,null,null,null,null,null,null,null,null,null,null,null,null,null,null,null,null,null,null,null,null,null,null,null,null,null,"GEORGIA","GEORGIA",null,"Norwegian Krone",null,"GAMBIA"]
[null,null,null,null,null,null,"Rial Omani","Rial Omani",null,null,null,null,null,null,null,null,null,null,null,null,null,null,null,null,null,null,null,null,null,null,null,null,null,null,null,null,null,null,null,null,null,null,null,null,null,null,null,null,null,null,null,null,"GIBRALTAR",null,"GHANA",null,null,null,null,null,null,null,null,null,null,null,"Marketing",null,null,null,null,null,null,null,null,null,null,null,null,null,null,null,null,null,null,null,null,null,null,null,null,null,null,null,null,null,null,"GHANA","GHANA",null,"Nepalese Rupee",null,"GEORGIA"]
[null,null,null,null,null,null,"Balboa","Balboa",null,null,null,null,null,null,null,null,null,null,null,null,null,null,null,null,null,null,null,null,null,null,null,null,null,null,null,null,null,null,null,null,null,null,null,null,null,null,null,null,null,null,null,null,"GREENLAND",null,"GIBRALTAR",null,null,null,null,null,null,null,null,null,null,null,"services necessary to meet the fiduciary duties of the AIFM",null,null,null,null,null,null,null,null,null,null,null,null,null,null,null,null,null,null,null,null,null,null,null,null,null,null,null,null,null,null,"GIBRALTAR","GIBRALTAR",null,"New Zealand Dollar",null,"GHANA"]
[null,null,null,null,null,null,"Nuevo Sol","Nuevo Sol",null,null,null,null,null,null,null,null,null,null,null,null,null,null,null,null,null,null,null,null,null,null,null,null,null,null,null,null,null,null,null,null,null,null,null,null,null,null,null,null,null,null,null,null,"GRENADA",null,"GREENLAND",null,null,null,null,null,null,null,null,null,null,null,"investment advice concerning one or more of the instruments listed in Annex I, Section C to Directive 2004/39/EC",null,null,null,null,null,null,null,null,null,null,null,null,null,null,null,null,null,null,null,null,null,null,null,null,null,null,null,null,null,null,"GREENLAND","GREENLAND",null,"Rial Omani",null,"GIBRALTAR"]
[null,null,null,null,null,null,"Kina","Kina",null,null,null,null,null,null,null,null,null,null,null,null,null,null,null,null,null,null,null,null,null,null,null,null,null,null,null,null,null,null,null,null,null,null,null,null,null,null,null,null,null,null,null,null,"GUADELOUPE",null,"GRENADA",null,null,null,null,null,null,null,null,null,null,null,"Ancillary services",null,null,null,null,null,null,null,null,null,null,null,null,null,null,null,null,null,null,null,null,null,null,null,null,null,null,null,null,null,null,"GRENADA","GRENADA",null,"Balboa",null,"GREENLAND"]
[null,null,null,null,null,null,"Philippine Peso","Philippine Peso",null,null,null,null,null,null,null,null,null,null,null,null,null,null,null,null,null,null,null,null,null,null,null,null,null,null,null,null,null,null,null,null,null,null,null,null,null,null,null,null,null,null,null,null,"GUAM",null,"GUADELOUPE",null,null,null,null,null,null,null,null,null,null,null,"Foreign exchange services",null,null,null,null,null,null,null,null,null,null,null,null,null,null,null,null,null,null,null,null,null,null,null,null,null,null,null,null,null,null,"GUADELOUPE","GUADELOUPE",null,"Nuevo Sol",null,"GRENADA"]
[null,null,null,null,null,null,"Pakistan Rupee","Pakistan Rupee",null,null,null,null,null,null,null,null,null,null,null,null,null,null,null,null,null,null,null,null,null,null,null,null,null,null,null,null,null,null,null,null,null,null,null,null,null,null,null,null,null,null,null,null,"GUATEMALA",null,"GUAM",null,null,null,null,null,null,null,null,null,null,null,"Reception and transmission of orders",null,null,null,null,null,null,null,null,null,null,null,null,null,null,null,null,null,null,null,null,null,null,null,null,null,null,null,null,null,null,"GUAM","GUAM",null,"Kina",null,"GUADELOUPE"]
[null,null,null,null,null,null,"Zloty","Zloty",null,null,null,null,null,null,null,null,null,null,null,null,null,null,null,null,null,null,null,null,null,null,null,null,null,null,null,null,null,null,null,null,null,null,null,null,null,null,null,null,null,null,null,null,"GUERNSEY",null,"GUATEMALA",null,null,null,null,null,null,null,null,null,null,null,"Execution of orders on behalf of clients",null,null,null,null,null,null,null,null,null,null,null,null,null,null,null,null,null,null,null,null,null,null,null,null,null,null,null,null,null,null,"GUATEMALA","GUATEMALA",null,"Philippine Peso",null,"GUAM"]
[null,null,null,null,null,null,"Guarani","Guarani",null,null,null,null,null,null,null,null,null,null,null,null,null,null,null,null,null,null,null,null,null,null,null,null,null,null,null,null,null,null,null,null,null,null,null,null,null,null,null,null,null,null,null,null,"GUINEA",null,"GUERNSEY",null,null,null,null,null,null,null,null,null,null,null,"Portfolio management",null,null,null,null,null,null,null,null,null,null,null,null,null,null,null,null,null,null,null,null,null,null,null,null,null,null,null,null,null,null,"GUERNSEY","GUERNSEY",null,"Pakistan Rupee",null,"GUATEMALA"]
[null,null,null,null,null,null,"Qatari Rial","Qatari Rial",null,null,null,null,null,null,null,null,null,null,null,null,null,null,null,null,null,null,null,null,null,null,null,null,null,null,null,null,null,null,null,null,null,null,null,null,null,null,null,null,null,null,null,null,"GUINEA-BISSAU",null,"GUINEA",null,null,null,null,null,null,null,null,null,null,null,"Investment advice",null,null,null,null,null,null,null,null,null,null,null,null,null,null,null,null,null,null,null,null,null,null,null,null,null,null,null,null,null,null,"GUINEA","GUINEA",null,"Zloty",null,"GUERNSEY"]
[null,null,null,null,null,null,"New Romanian Leu","New Romanian Leu",null,null,null,null,null,null,null,null,null,null,null,null,null,null,null,null,null,null,null,null,null,null,null,null,null,null,null,null,null,null,null,null,null,null,null,null,null,null,null,null,null,null,null,null,"GUYANA",null,"GUINEA-BISSAU",null,null,null,null,null,null,null,null,null,null,null,"Underwriting of financial instruments and/or placing of financial instruments on a firm commitment basis",null,null,null,null,null,null,null,null,null,null,null,null,null,null,null,null,null,null,null,null,null,null,null,null,null,null,null,null,null,null,"GUINEA-BISSAU","GUINEA-BISSAU",null,"Guarani",null,"GUINEA"]
[null,null,null,null,null,null,"Serbian Dinar","Serbian Dinar",null,null,null,null,null,null,null,null,null,null,null,null,null,null,null,null,null,null,null,null,null,null,null,null,null,null,null,null,null,null,null,null,null,null,null,null,null,null,null,null,null,null,null,null,"HAITI",null,"GUYANA",null,null,null,null,null,null,null,null,null,null,null,"Placing of financial instruments without a firm commitment basis",null,null,null,null,null,null,null,null,null,null,null,null,null,null,null,null,null,null,null,null,null,null,null,null,null,null,null,null,null,null,"GUYANA","GUYANA",null,"Qatari Rial",null,"GUINEA-BISSAU"]
[null,null,null,null,null,null,"Russian Ruble","Russian Ruble",null,null,null,null,null,null,null,null,null,null,null,null,null,null,null,null,null,null,null,null,null,null,null,null,null,null,null,null,null,null,null,null,null,null,null,null,null,null,null,null,null,null,null,null,"HEARD ISLAND AND MCDONALD ISLANDS",null,"HAITI",null,null,null,null,null,null,null,null,null,null,null,"Operation of an MTF",null,null,null,null,null,null,null,null,null,null,null,null,null,null,null,null,null,null,null,null,null,null,null,null,null,null,null,null,null,null,"HAITI","HAITI",null,"New Romanian Leu",null,"GUYANA"]
[null,null,null,null,null,null,"Rwanda Franc","Rwanda Franc",null,null,null,null,null,null,null,null,null,null,null,null,null,null,null,null,null,null,null,null,null,null,null,null,null,null,null,null,null,null,null,null,null,null,null,null,null,null,null,null,null,null,null,null,"HOLY SEE (VATICAN CITY STATE)",null,"HEARD ISLAND AND MCDONALD ISLANDS",null,null,null,null,null,null,null,null,null,null,null,"Operation of an OTF",null,null,null,null,null,null,null,null,null,null,null,null,null,null,null,null,null,null,null,null,null,null,null,null,null,null,null,null,null,null,"HEARD ISLAND AND MCDONALD ISLANDS","HEARD ISLAND AND MCDONALD ISLANDS",null,"Serbian Dinar",null,"HAITI"]
[null,null,null,null,null,null,"Saudi Riyal","Saudi Riyal",null,null,null,null,null,null,null,null,null,null,null,null,null,null,null,null,null,null,null,null,null,null,null,null,null,null,null,null,null,null,null,null,null,null,null,null,null,null,null,null,null,null,null,null,"HONDURAS",null,"HOLY SEE (VATICAN CITY STATE)",null,null,null,null,null,null,null,null,null,null,null,"Granting credits or loans to investors",null,null,null,null,null,null,null,null,null,null,null,null,null,null,null,null,null,null,null,null,null,null,null,null,null,null,null,null,null,null,"HOLY SEE (VATICAN CITY STATE)","HOLY SEE (VATICAN CITY STATE)",null,"Russian Ruble",null,"HEARD ISLAND AND MCDONALD ISLANDS"]
[null,null,null,null,null,null,"Solomon Islands Dollar","Solomon Islands Dollar",null,null,null,null,null,null,null,null,null,null,null,null,null,null,null,null,null,null,null,null,null,null,null,null,null,null,null,null,null,null,null,null,null,null,null,null,null,null,null,null,null,null,null,null,"HONG KONG",null,"HONDURAS",null,null,null,null,null,null,null,null,null,null,null,"Advice to undertakings on capital structure, industrial strategy and related matters and advice and services relating to mergers and the purchase of undertakings",null,null,null,null,null,null,null,null,null,null,null,null,null,null,null,null,null,null,null,null,null,null,null,null,null,null,null,null,null,null,"HONDURAS","HONDURAS",null,"Rwanda Franc",null,"HOLY SEE (VATICAN CITY STATE)"]
[null,null,null,null,null,null,"Seychelles Rupee","Seychelles Rupee",null,null,null,null,null,null,null,null,null,null,null,null,null,null,null,null,null,null,null,null,null,null,null,null,null,null,null,null,null,null,null,null,null,null,null,null,null,null,null,null,null,null,null,null,"ICELAND",null,"HONG KONG",null,null,null,null,null,null,null,null,null,null,null,"Investment research and financial analysis",null,null,null,null,null,null,null,null,null,null,null,null,null,null,null,null,null,null,null,null,null,null,null,null,null,null,null,null,null,null,"HONG KONG","HONG KONG",null,"Saudi Riyal",null,"HONDURAS"]
[null,null,null,null,null,null,"Sudanese Pound","Sudanese Pound",null,null,null,null,null,null,null,null,null,null,null,null,null,null,null,null,null,null,null,null,null,null,null,null,null,null,null,null,null,null,null,null,null,null,null,null,null,null,null,null,null,null,null,null,"INDIA",null,"ICELAND",null,null,null,null,null,null,null,null,null,null,null,"Services related to underwriting",null,null,null,null,null,null,null,null,null,null,null,null,null,null,null,null,null,null,null,null,null,null,null,null,null,null,null,null,null,null,"ICELAND","ICELAND",null,"Solomon Islands Dollar",null,"HONG KONG"]
[null,null,null,null,null,null,"Swedish Krona","Swedish Krona",null,null,null,null,null,null,null,null,null,null,null,null,null,null,null,null,null,null,null,null,null,null,null,null,null,null,null,null,null,null,null,null,null,null,null,null,null,null,null,null,null,null,null,null,"INDONESIA",null,"INDIA",null,null,null,null,null,null,null,null,null,null,null,"Taking deposits and other repayable funds",null,null,null,null,null,null,null,null,null,null,null,null,null,null,null,null,null,null,null,null,null,null,null,null,null,null,null,null,null,null,"INDIA","INDIA",null,"Seychelles Rupee",null,"ICELAND"]
[null,null,null,null,null,null,"Singapore Dollar","Singapore Dollar",null,null,null,null,null,null,null,null,null,null,null,null,null,null,null,null,null,null,null,null,null,null,null,null,null,null,null,null,null,null,null,null,null,null,null,null,null,null,null,null,null,null,null,null,"IRAN, ISLAMIC REPUBLIC OF",null,"INDONESIA",null,null,null,null,null,null,null,null,null,null,null,"supporting function",null,null,null,null,null,null,null,null,null,null,null,null,null,null,null,null,null,null,null,null,null,null,null,null,null,null,null,null,null,null,"INDONESIA","INDONESIA",null,"Sudanese Pound",null,"INDIA"]
[null,null,null,null,null,null,"Saint Helena Pound","Saint Helena Pound",null,null,null,null,null,null,null,null,null,null,null,null,null,null,null,null,null,null,null,null,null,null,null,null,null,null,null,null,null,null,null,null,null,null,null,null,null,null,null,null,null,null,null,null,"IRAQ",null,"IRAN, ISLAMIC REPUBLIC OF",null,null,null,null,null,null,null,null,null,null,null,null,null,null,null,null,null,null,null,null,null,null,null,null,null,null,null,null,null,null,null,null,null,null,null,null,null,null,null,null,null,null,"IRAN, ISLAMIC REPUBLIC OF","IRAN, ISLAMIC REPUBLIC OF",null,"Swedish Krona",null,"INDONESIA"]
[null,null,null,null,null,null,"Leone","Leone",null,null,null,null,null,null,null,null,null,null,null,null,null,null,null,null,null,null,null,null,null,null,null,null,null,null,null,null,null,null,null,null,null,null,null,null,null,null,null,null,null,null,null,null,"ISLE OF MAN",null,"IRAQ",null,null,null,null,null,null,null,null,null,null,null,null,null,null,null,null,null,null,null,null,null,null,null,null,null,null,null,null,null,null,null,null,null,null,null,null,null,null,null,null,null,null,"IRAQ","IRAQ",null,"Singapore Dollar",null,"IRAN, ISLAMIC REPUBLIC OF"]
[null,null,null,null,null,null,"Somali Shilling","Somali Shilling",null,null,null,null,null,null,null,null,null,null,null,null,null,null,null,null,null,null,null,null,null,null,null,null,null,null,null,null,null,null,null,null,null,null,null,null,null,null,null,null,null,null,null,null,"ISRAEL",null,"ISLE OF MAN",null,null,null,null,null,null,null,null,null,null,null,null,null,null,null,null,null,null,null,null,null,null,null,null,null,null,null,null,null,null,null,null,null,null,null,null,null,null,null,null,null,null,"ISLE OF MAN","ISLE OF MAN",null,"Saint Helena Pound",null,"IRAQ"]
[null,null,null,null,null,null,"Surinam Dollar","Surinam Dollar",null,null,null,null,null,null,null,null,null,null,null,null,null,null,null,null,null,null,null,null,null,null,null,null,null,null,null,null,null,null,null,null,null,null,null,null,null,null,null,null,null,null,null,null,"JAMAICA",null,"ISRAEL",null,null,null,null,null,null,null,null,null,null,null,null,null,null,null,null,null,null,null,null,null,null,null,null,null,null,null,null,null,null,null,null,null,null,null,null,null,null,null,null,null,null,"ISRAEL","ISRAEL",null,"Leone",null,"ISLE OF MAN"]
[null,null,null,null,null,null,"South Sudanese Pound","South Sudanese Pound",null,null,null,null,null,null,null,null,null,null,null,null,null,null,null,null,null,null,null,null,null,null,null,null,null,null,null,null,null,null,null,null,null,null,null,null,null,null,null,null,null,null,null,null,"JERSEY",null,"JAMAICA",null,null,null,null,null,null,null,null,null,null,null,null,null,null,null,null,null,null,null,null,null,null,null,null,null,null,null,null,null,null,null,null,null,null,null,null,null,null,null,null,null,null,"JAMAICA","JAMAICA",null,"Somali Shilling",null,"ISRAEL"]
[null,null,null,null,null,null,"Dobra","Dobra",null,null,null,null,null,null,null,null,null,null,null,null,null,null,null,null,null,null,null,null,null,null,null,null,null,null,null,null,null,null,null,null,null,null,null,null,null,null,null,null,null,null,null,null,"JORDAN",null,"JERSEY",null,null,null,null,null,null,null,null,null,null,null,null,null,null,null,null,null,null,null,null,null,null,null,null,null,null,null,null,null,null,null,null,null,null,null,null,null,null,null,null,null,null,"JERSEY","JERSEY",null,"Surinam Dollar",null,"JAMAICA"]
[null,null,null,null,null,null,"El Salvador Colon","El Salvador Colon",null,null,null,null,null,null,null,null,null,null,null,null,null,null,null,null,null,null,null,null,null,null,null,null,null,null,null,null,null,null,null,null,null,null,null,null,null,null,null,null,null,null,null,null,"KAZAKHSTAN",null,"JORDAN",null,null,null,null,null,null,null,null,null,null,null,null,null,null,null,null,null,null,null,null,null,null,null,null,null,null,null,null,null,null,null,null,null,null,null,null,null,null,null,null,null,null,"JORDAN","JORDAN",null,"South Sudanese Pound",null,"JERSEY"]
[null,null,null,null,null,null,"Syrian Pound","Syrian Pound",null,null,null,null,null,null,null,null,null,null,null,null,null,null,null,null,null,null,null,null,null,null,null,null,null,null,null,null,null,null,null,null,null,null,null,null,null,null,null,null,null,null,null,null,"KENYA",null,"KAZAKHSTAN",null,null,null,null,null,null,null,null,null,null,null,null,null,null,null,null,null,null,null,null,null,null,null,null,null,null,null,null,null,null,null,null,null,null,null,null,null,null,null,null,null,null,"KAZAKHSTAN","KAZAKHSTAN",null,"Dobra",null,"JORDAN"]
[null,null,null,null,null,null,"Lilangeni","Lilangeni",null,null,null,null,null,null,null,null,null,null,null,null,null,null,null,null,null,null,null,null,null,null,null,null,null,null,null,null,null,null,null,null,null,null,null,null,null,null,null,null,null,null,null,null,"KIRIBATI",null,"KENYA",null,null,null,null,null,null,null,null,null,null,null,null,null,null,null,null,null,null,null,null,null,null,null,null,null,null,null,null,null,null,null,null,null,null,null,null,null,null,null,null,null,null,"KENYA","KENYA",null,"El Salvador Colon",null,"KAZAKHSTAN"]
[null,null,null,null,null,null,"Baht","Baht",null,null,null,null,null,null,null,null,null,null,null,null,null,null,null,null,null,null,null,null,null,null,null,null,null,null,null,null,null,null,null,null,null,null,null,null,null,null,null,null,null,null,null,null,"KOREA, DEMOCRATIC PEOPLE'S REPUBLIC OF",null,"KIRIBATI",null,null,null,null,null,null,null,null,null,null,null,null,null,null,null,null,null,null,null,null,null,null,null,null,null,null,null,null,null,null,null,null,null,null,null,null,null,null,null,null,null,null,"KIRIBATI","KIRIBATI",null,"Syrian Pound",null,"KENYA"]
[null,null,null,null,null,null,"Somoni","Somoni",null,null,null,null,null,null,null,null,null,null,null,null,null,null,null,null,null,null,null,null,null,null,null,null,null,null,null,null,null,null,null,null,null,null,null,null,null,null,null,null,null,null,null,null,"KOREA, REPUBLIC OF",null,"KOREA, DEMOCRATIC PEOPLE'S REPUBLIC OF",null,null,null,null,null,null,null,null,null,null,null,null,null,null,null,null,null,null,null,null,null,null,null,null,null,null,null,null,null,null,null,null,null,null,null,null,null,null,null,null,null,null,"KOREA, DEMOCRATIC PEOPLE'S REPUBLIC OF","KOREA, DEMOCRATIC PEOPLE'S REPUBLIC OF",null,"Lilangeni",null,"KIRIBATI"]
[null,null,null,null,null,null,"Turkmenistan New Manat","Turkmenistan New Manat",null,null,null,null,null,null,null,null,null,null,null,null,null,null,null,null,null,null,null,null,null,null,null,null,null,null,null,null,null,null,null,null,null,null,null,null,null,null,null,null,null,null,null,null,"KUWAIT",null,"KOREA, REPUBLIC OF",null,null,null,null,null,null,null,null,null,null,null,null,null,null,null,null,null,null,null,null,null,null,null,null,null,null,null,null,null,null,null,null,null,null,null,null,null,null,null,null,null,null,"KOREA, REPUBLIC OF","KOREA, REPUBLIC OF",null,"Baht",null,"KOREA, DEMOCRATIC PEOPLE'S REPUBLIC OF"]
[null,null,null,null,null,null,"Tunisian Dinar","Tunisian Dinar",null,null,null,null,null,null,null,null,null,null,null,null,null,null,null,null,null,null,null,null,null,null,null,null,null,null,null,null,null,null,null,null,null,null,null,null,null,null,null,null,null,null,null,null,"KYRGYZSTAN",null,"KUWAIT",null,null,null,null,null,null,null,null,null,null,null,null,null,null,null,null,null,null,null,null,null,null,null,null,null,null,null,null,null,null,null,null,null,null,null,null,null,null,null,null,null,null,"KUWAIT","KUWAIT",null,"Somoni",null,"KOREA, REPUBLIC OF"]
[null,null,null,null,null,null,"Pa’anga","Pa’anga",null,null,null,null,null,null,null,null,null,null,null,null,null,null,null,null,null,null,null,null,null,null,null,null,null,null,null,null,null,null,null,null,null,null,null,null,null,null,null,null,null,null,null,null,"LAO PEOPLE'S DEMOCRATIC REPUBLIC",null,"KYRGYZSTAN",null,null,null,null,null,null,null,null,null,null,null,null,null,null,null,null,null,null,null,null,null,null,null,null,null,null,null,null,null,null,null,null,null,null,null,null,null,null,null,null,null,null,"KYRGYZSTAN","KYRGYZSTAN",null,"Turkmenistan New Manat",null,"KUWAIT"]
[null,null,null,null,null,null,"Turkish Lira","Turkish Lira",null,null,null,null,null,null,null,null,null,null,null,null,null,null,null,null,null,null,null,null,null,null,null,null,null,null,null,null,null,null,null,null,null,null,null,null,null,null,null,null,null,null,null,null,"LEBANON",null,"LAO PEOPLE'S DEMOCRATIC REPUBLIC",null,null,null,null,null,null,null,null,null,null,null,null,null,null,null,null,null,null,null,null,null,null,null,null,null,null,null,null,null,null,null,null,null,null,null,null,null,null,null,null,null,null,"LAO PEOPLE'S DEMOCRATIC REPUBLIC","LAO PEOPLE'S DEMOCRATIC REPUBLIC",null,"Tunisian Dinar",null,"KYRGYZSTAN"]
[null,null,null,null,null,null,"Trinidad and Tobago Dollar","Trinidad and Tobago Dollar",null,null,null,null,null,null,null,null,null,null,null,null,null,null,null,null,null,null,null,null,null,null,null,null,null,null,null,null,null,null,null,null,null,null,null,null,null,null,null,null,null,null,null,null,"LESOTHO",null,"LEBANON",null,null,null,null,null,null,null,null,null,null,null,null,null,null,null,null,null,null,null,null,null,null,null,null,null,null,null,null,null,null,null,null,null,null,null,null,null,null,null,null,null,null,"LEBANON","LEBANON",null,"Pa’anga",null,"LAO PEOPLE'S DEMOCRATIC REPUBLIC"]
[null,null,null,null,null,null,"New Taiwan Dollar","New Taiwan Dollar",null,null,null,null,null,null,null,null,null,null,null,null,null,null,null,null,null,null,null,null,null,null,null,null,null,null,null,null,null,null,null,null,null,null,null,null,null,null,null,null,null,null,null,null,"LIBERIA",null,"LESOTHO",null,null,null,null,null,null,null,null,null,null,null,null,null,null,null,null,null,null,null,null,null,null,null,null,null,null,null,null,null,null,null,null,null,null,null,null,null,null,null,null,null,null,"LESOTHO","LESOTHO",null,"Turkish Lira",null,"LEBANON"]
[null,null,null,null,null,null,"Tanzanian Shilling","Tanzanian Shilling",null,null,null,null,null,null,null,null,null,null,null,null,null,null,null,null,null,null,null,null,null,null,null,null,null,null,null,null,null,null,null,null,null,null,null,null,null,null,null,null,null,null,null,null,"LIBYA",null,"LIBERIA",null,null,null,null,null,null,null,null,null,null,null,null,null,null,null,null,null,null,null,null,null,null,null,null,null,null,null,null,null,null,null,null,null,null,null,null,null,null,null,null,null,null,"LIBERIA","LIBERIA",null,"Trinidad and Tobago Dollar",null,"LESOTHO"]
[null,null,null,null,null,null,"Hryvnia","Hryvnia",null,null,null,null,null,null,null,null,null,null,null,null,null,null,null,null,null,null,null,null,null,null,null,null,null,null,null,null,null,null,null,null,null,null,null,null,null,null,null,null,null,null,null,null,"LIECHTENSTEIN",null,"LIBYA",null,null,null,null,null,null,null,null,null,null,null,null,null,null,null,null,null,null,null,null,null,null,null,null,null,null,null,null,null,null,null,null,null,null,null,null,null,null,null,null,null,null,"LIBYA","LIBYA",null,"New Taiwan Dollar",null,"LIBERIA"]
[null,null,null,null,null,null,"Uganda Shilling","Uganda Shilling",null,null,null,null,null,null,null,null,null,null,null,null,null,null,null,null,null,null,null,null,null,null,null,null,null,null,null,null,null,null,null,null,null,null,null,null,null,null,null,null,null,null,null,null,"MACAO",null,"LIECHTENSTEIN",null,null,null,null,null,null,null,null,null,null,null,null,null,null,null,null,null,null,null,null,null,null,null,null,null,null,null,null,null,null,null,null,null,null,null,null,null,null,null,null,null,null,"LIECHTENSTEIN","LIECHTENSTEIN",null,"Tanzanian Shilling",null,"LIBYA"]
[null,null,null,null,null,null,"US Dollar","US Dollar",null,null,null,null,null,null,null,null,null,null,null,null,null,null,null,null,null,null,null,null,null,null,null,null,null,null,null,null,null,null,null,null,null,null,null,null,null,null,null,null,null,null,null,null,"MADAGASCAR",null,"MACAO",null,null,null,null,null,null,null,null,null,null,null,null,null,null,null,null,null,null,null,null,null,null,null,null,null,null,null,null,null,null,null,null,null,null,null,null,null,null,null,null,null,null,"MACAO","MACAO",null,"Hryvnia",null,"LIECHTENSTEIN"]
[null,null,null,null,null,null,"Uruguay Peso en Unidades Indexadas (URUIURUI)","Uruguay Peso en Unidades Indexadas (URUIURUI)",null,null,null,null,null,null,null,null,null,null,null,null,null,null,null,null,null,null,null,null,null,null,null,null,null,null,null,null,null,null,null,null,null,null,null,null,null,null,null,null,null,null,null,null,"MALAWI",null,"MADAGASCAR",null,null,null,null,null,null,null,null,null,null,null,null,null,null,null,null,null,null,null,null,null,null,null,null,null,null,null,null,null,null,null,null,null,null,null,null,null,null,null,null,null,null,"MADAGASCAR","MADAGASCAR",null,"Uganda Shilling",null,"MACAO"]
[null,null,null,null,null,null,"Peso Uruguayo","Peso Uruguayo",null,null,null,null,null,null,null,null,null,null,null,null,null,null,null,null,null,null,null,null,null,null,null,null,null,null,null,null,null,null,null,null,null,null,null,null,null,null,null,null,null,null,null,null,"MALAYSIA",null,"MALAWI",null,null,null,null,null,null,null,null,null,null,null,null,null,null,null,null,null,null,null,null,null,null,null,null,null,null,null,null,null,null,null,null,null,null,null,null,null,null,null,null,null,null,"MALAWI","MALAWI",null,"US Dollar",null,"MADAGASCAR"]
[null,null,null,null,null,null,"Uzbekistan Sum","Uzbekistan Sum",null,null,null,null,null,null,null,null,null,null,null,null,null,null,null,null,null,null,null,null,null,null,null,null,null,null,null,null,null,null,null,null,null,null,null,null,null,null,null,null,null,null,null,null,"MALDIVES",null,"MALAYSIA",null,null,null,null,null,null,null,null,null,null,null,null,null,null,null,null,null,null,null,null,null,null,null,null,null,null,null,null,null,null,null,null,null,null,null,null,null,null,null,null,null,null,"MALAYSIA","MALAYSIA",null,"Uruguay Peso en Unidades Indexadas (URUIURUI)",null,"MALAWI"]
[null,null,null,null,null,null,"Bolivar","Bolivar",null,null,null,null,null,null,null,null,null,null,null,null,null,null,null,null,null,null,null,null,null,null,null,null,null,null,null,null,null,null,null,null,null,null,null,null,null,null,null,null,null,null,null,null,"MALI",null,"MALDIVES",null,null,null,null,null,null,null,null,null,null,null,null,null,null,null,null,null,null,null,null,null,null,null,null,null,null,null,null,null,null,null,null,null,null,null,null,null,null,null,null,null,null,"MALDIVES","MALDIVES",null,"Peso Uruguayo",null,"MALAYSIA"]
[null,null,null,null,null,null,"Dong","Dong",null,null,null,null,null,null,null,null,null,null,null,null,null,null,null,null,null,null,null,null,null,null,null,null,null,null,null,null,null,null,null,null,null,null,null,null,null,null,null,null,null,null,null,null,"MARSHALL ISLANDS",null,"MALI",null,null,null,null,null,null,null,null,null,null,null,null,null,null,null,null,null,null,null,null,null,null,null,null,null,null,null,null,null,null,null,null,null,null,null,null,null,null,null,null,null,null,"MALI","MALI",null,"Uzbekistan Sum",null,"MALDIVES"]
[null,null,null,null,null,null,"Vatu","Vatu",null,null,null,null,null,null,null,null,null,null,null,null,null,null,null,null,null,null,null,null,null,null,null,null,null,null,null,null,null,null,null,null,null,null,null,null,null,null,null,null,null,null,null,null,"MARTINIQUE",null,"MARSHALL ISLANDS",null,null,null,null,null,null,null,null,null,null,null,null,null,null,null,null,null,null,null,null,null,null,null,null,null,null,null,null,null,null,null,null,null,null,null,null,null,null,null,null,null,null,"MARSHALL ISLANDS","MARSHALL ISLANDS",null,"Bolivar",null,"MALI"]
[null,null,null,null,null,null,"Tala","Tala",null,null,null,null,null,null,null,null,null,null,null,null,null,null,null,null,null,null,null,null,null,null,null,null,null,null,null,null,null,null,null,null,null,null,null,null,null,null,null,null,null,null,null,null,"MAURITANIA",null,"MARTINIQUE",null,null,null,null,null,null,null,null,null,null,null,null,null,null,null,null,null,null,null,null,null,null,null,null,null,null,null,null,null,null,null,null,null,null,null,null,null,null,null,null,null,null,"MARTINIQUE","MARTINIQUE",null,"Dong",null,"MARSHALL ISLANDS"]
[null,null,null,null,null,null,"East Caribbean Dollar","East Caribbean Dollar",null,null,null,null,null,null,null,null,null,null,null,null,null,null,null,null,null,null,null,null,null,null,null,null,null,null,null,null,null,null,null,null,null,null,null,null,null,null,null,null,null,null,null,null,"MAURITIUS",null,"MAURITANIA",null,null,null,null,null,null,null,null,null,null,null,null,null,null,null,null,null,null,null,null,null,null,null,null,null,null,null,null,null,null,null,null,null,null,null,null,null,null,null,null,null,null,"MAURITANIA","MAURITANIA",null,"Vatu",null,"MARTINIQUE"]
[null,null,null,null,null,null,"Yemeni Rial","Yemeni Rial",null,null,null,null,null,null,null,null,null,null,null,null,null,null,null,null,null,null,null,null,null,null,null,null,null,null,null,null,null,null,null,null,null,null,null,null,null,null,null,null,null,null,null,null,"MAYOTTE",null,"MAURITIUS",null,null,null,null,null,null,null,null,null,null,null,null,null,null,null,null,null,null,null,null,null,null,null,null,null,null,null,null,null,null,null,null,null,null,null,null,null,null,null,null,null,null,"MAURITIUS","MAURITIUS",null,"Tala",null,"MAURITANIA"]
[null,null,null,null,null,null,"Rand","Rand",null,null,null,null,null,null,null,null,null,null,null,null,null,null,null,null,null,null,null,null,null,null,null,null,null,null,null,null,null,null,null,null,null,null,null,null,null,null,null,null,null,null,null,null,"MEXICO",null,"MAYOTTE",null,null,null,null,null,null,null,null,null,null,null,null,null,null,null,null,null,null,null,null,null,null,null,null,null,null,null,null,null,null,null,null,null,null,null,null,null,null,null,null,null,null,"MAYOTTE","MAYOTTE",null,"East Caribbean Dollar",null,"MAURITIUS"]
[null,null,null,null,null,null,"Zambian Kwacha (replaced January 1, 2013)","Zambian Kwacha (replaced January 1, 2013)",null,null,null,null,null,null,null,null,null,null,null,null,null,null,null,null,null,null,null,null,null,null,null,null,null,null,null,null,null,null,null,null,null,null,null,null,null,null,null,null,null,null,null,null,"MICRONESIA, FEDERATED STATES OF",null,"MEXICO",null,null,null,null,null,null,null,null,null,null,null,null,null,null,null,null,null,null,null,null,null,null,null,null,null,null,null,null,null,null,null,null,null,null,null,null,null,null,null,null,null,null,"MEXICO","MEXICO",null,"Yemeni Rial",null,"MAYOTTE"]
[null,null,null,null,null,null,"Zambian Kwacha","Zambian Kwacha",null,null,null,null,null,null,null,null,null,null,null,null,null,null,null,null,null,null,null,null,null,null,null,null,null,null,null,null,null,null,null,null,null,null,null,null,null,null,null,null,null,null,null,null,"MOLDOVA, REPUBLIC OF",null,"MICRONESIA, FEDERATED STATES OF",null,null,null,null,null,null,null,null,null,null,null,null,null,null,null,null,null,null,null,null,null,null,null,null,null,null,null,null,null,null,null,null,null,null,null,null,null,null,null,null,null,null,"MICRONESIA, FEDERATED STATES OF","MICRONESIA, FEDERATED STATES OF",null,"Rand",null,"MEXICO"]
[null,null,null,null,null,null,"Zimbabwe Dollar","Zimbabwe Dollar",null,null,null,null,null,null,null,null,null,null,null,null,null,null,null,null,null,null,null,null,null,null,null,null,null,null,null,null,null,null,null,null,null,null,null,null,null,null,null,null,null,null,null,null,"MONACO",null,"MOLDOVA, REPUBLIC OF",null,null,null,null,null,null,null,null,null,null,null,null,null,null,null,null,null,null,null,null,null,null,null,null,null,null,null,null,null,null,null,null,null,null,null,null,null,null,null,null,null,null,"MOLDOVA, REPUBLIC OF","MOLDOVA, REPUBLIC OF",null,"Zambian Kwacha (replaced January 1, 2013)",null,"MICRONESIA, FEDERATED STATES OF"]
[null,null,null,null,null,null,"Other Currency (open axis tables)","Other Currency (open axis tables)",null,null,null,null,null,null,null,null,null,null,null,null,null,null,null,null,null,null,null,null,null,null,null,null,null,null,null,null,null,null,null,null,null,null,null,null,null,null,null,null,null,null,null,null,"MONGOLIA",null,"MONACO",null,null,null,null,null,null,null,null,null,null,null,null,null,null,null,null,null,null,null,null,null,null,null,null,null,null,null,null,null,null,null,null,null,null,null,null,null,null,null,null,null,null,"MONACO","MONACO",null,"Zambian Kwacha",null,"MOLDOVA, REPUBLIC OF"]
[null,null,null,null,null,null,"CFP Franc","CFP Franc",null,null,null,null,null,null,null,null,null,null,null,null,null,null,null,null,null,null,null,null,null,null,null,null,null,null,null,null,null,null,null,null,null,null,null,null,null,null,null,null,null,null,null,null,"MONTENEGRO",null,"MONGOLIA",null,null,null,null,null,null,null,null,null,null,null,null,null,null,null,null,null,null,null,null,null,null,null,null,null,null,null,null,null,null,null,null,null,null,null,null,null,null,null,null,null,null,"MONGOLIA","MONGOLIA",null,"Zimbabwe Dollar",null,"MONACO"]
[null,null,null,null,null,null,"Off-shore Yuan Renminbi","Off-shore Yuan Renminbi",null,null,null,null,null,null,null,null,null,null,null,null,null,null,null,null,null,null,null,null,null,null,null,null,null,null,null,null,null,null,null,null,null,null,null,null,null,null,null,null,null,null,null,null,"MONTSERRAT",null,"MONTENEGRO",null,null,null,null,null,null,null,null,null,null,null,null,null,null,null,null,null,null,null,null,null,null,null,null,null,null,null,null,null,null,null,null,null,null,null,null,null,null,null,null,null,null,"MONTENEGRO","MONTENEGRO",null,"Other Currency (open axis tables)",null,"MONGOLIA"]
[null,null,null,null,null,null,null,null,null,null,null,null,null,null,null,null,null,null,null,null,null,null,null,null,null,null,null,null,null,null,null,null,null,null,null,null,null,null,null,null,null,null,null,null,null,null,null,null,null,null,null,null,"MOROCCO",null,"MONTSERRAT",null,null,null,null,null,null,null,null,null,null,null,null,null,null,null,null,null,null,null,null,null,null,null,null,null,null,null,null,null,null,null,null,null,null,null,null,null,null,null,null,null,null,"MONTSERRAT","MONTSERRAT",null,"CFP Franc",null,"MONTENEGRO"]
[null,null,null,null,null,null,null,null,null,null,null,null,null,null,null,null,null,null,null,null,null,null,null,null,null,null,null,null,null,null,null,null,null,null,null,null,null,null,null,null,null,null,null,null,null,null,null,null,null,null,null,null,"MOZAMBIQUE",null,"MOROCCO",null,null,null,null,null,null,null,null,null,null,null,null,null,null,null,null,null,null,null,null,null,null,null,null,null,null,null,null,null,null,null,null,null,null,null,null,null,null,null,null,null,null,"MOROCCO","MOROCCO",null,"Off-shore Yuan Renminbi",null,"MONTSERRAT"]
[null,null,null,null,null,null,null,null,null,null,null,null,null,null,null,null,null,null,null,null,null,null,null,null,null,null,null,null,null,null,null,null,null,null,null,null,null,null,null,null,null,null,null,null,null,null,null,null,null,null,null,null,"MYANMAR",null,"MOZAMBIQUE",null,null,null,null,null,null,null,null,null,null,null,null,null,null,null,null,null,null,null,null,null,null,null,null,null,null,null,null,null,null,null,null,null,null,null,null,null,null,null,null,null,null,"MOZAMBIQUE","MOZAMBIQUE",null,null,null,"MOROCCO"]
[null,null,null,null,null,null,null,null,null,null,null,null,null,null,null,null,null,null,null,null,null,null,null,null,null,null,null,null,null,null,null,null,null,null,null,null,null,null,null,null,null,null,null,null,null,null,null,null,null,null,null,null,"NAMIBIA",null,"MYANMAR",null,null,null,null,null,null,null,null,null,null,null,null,null,null,null,null,null,null,null,null,null,null,null,null,null,null,null,null,null,null,null,null,null,null,null,null,null,null,null,null,null,null,"MYANMAR","MYANMAR",null,null,null,"MOZAMBIQUE"]
[null,null,null,null,null,null,null,null,null,null,null,null,null,null,null,null,null,null,null,null,null,null,null,null,null,null,null,null,null,null,null,null,null,null,null,null,null,null,null,null,null,null,null,null,null,null,null,null,null,null,null,null,"NAURU",null,"NAMIBIA",null,null,null,null,null,null,null,null,null,null,null,null,null,null,null,null,null,null,null,null,null,null,null,null,null,null,null,null,null,null,null,null,null,null,null,null,null,null,null,null,null,null,"NAMIBIA","NAMIBIA",null,null,null,"MYANMAR"]
[null,null,null,null,null,null,null,null,null,null,null,null,null,null,null,null,null,null,null,null,null,null,null,null,null,null,null,null,null,null,null,null,null,null,null,null,null,null,null,null,null,null,null,null,null,null,null,null,null,null,null,null,"NEPAL",null,"NAURU",null,null,null,null,null,null,null,null,null,null,null,null,null,null,null,null,null,null,null,null,null,null,null,null,null,null,null,null,null,null,null,null,null,null,null,null,null,null,null,null,null,null,"NAURU","NAURU",null,null,null,"NAMIBIA"]
[null,null,null,null,null,null,null,null,null,null,null,null,null,null,null,null,null,null,null,null,null,null,null,null,null,null,null,null,null,null,null,null,null,null,null,null,null,null,null,null,null,null,null,null,null,null,null,null,null,null,null,null,"NEW CALEDONIA",null,"NEPAL",null,null,null,null,null,null,null,null,null,null,null,null,null,null,null,null,null,null,null,null,null,null,null,null,null,null,null,null,null,null,null,null,null,null,null,null,null,null,null,null,null,null,"NEPAL","NEPAL",null,null,null,"NAURU"]
[null,null,null,null,null,null,null,null,null,null,null,null,null,null,null,null,null,null,null,null,null,null,null,null,null,null,null,null,null,null,null,null,null,null,null,null,null,null,null,null,null,null,null,null,null,null,null,null,null,null,null,null,"NEW ZEALAND",null,"NEW CALEDONIA",null,null,null,null,null,null,null,null,null,null,null,null,null,null,null,null,null,null,null,null,null,null,null,null,null,null,null,null,null,null,null,null,null,null,null,null,null,null,null,null,null,null,"NEW CALEDONIA","NEW CALEDONIA",null,null,null,"NEPAL"]
[null,null,null,null,null,null,null,null,null,null,null,null,null,null,null,null,null,null,null,null,null,null,null,null,null,null,null,null,null,null,null,null,null,null,null,null,null,null,null,null,null,null,null,null,null,null,null,null,null,null,null,null,"NICARAGUA",null,"NEW ZEALAND",null,null,null,null,null,null,null,null,null,null,null,null,null,null,null,null,null,null,null,null,null,null,null,null,null,null,null,null,null,null,null,null,null,null,null,null,null,null,null,null,null,null,"NEW ZEALAND","NEW ZEALAND",null,null,null,"NEW CALEDONIA"]
[null,null,null,null,null,null,null,null,null,null,null,null,null,null,null,null,null,null,null,null,null,null,null,null,null,null,null,null,null,null,null,null,null,null,null,null,null,null,null,null,null,null,null,null,null,null,null,null,null,null,null,null,"NIGER",null,"NICARAGUA",null,null,null,null,null,null,null,null,null,null,null,null,null,null,null,null,null,null,null,null,null,null,null,null,null,null,null,null,null,null,null,null,null,null,null,null,null,null,null,null,null,null,"NICARAGUA","NICARAGUA",null,null,null,"NEW ZEALAND"]
[null,null,null,null,null,null,null,null,null,null,null,null,null,null,null,null,null,null,null,null,null,null,null,null,null,null,null,null,null,null,null,null,null,null,null,null,null,null,null,null,null,null,null,null,null,null,null,null,null,null,null,null,"NIGERIA",null,"NIGER",null,null,null,null,null,null,null,null,null,null,null,null,null,null,null,null,null,null,null,null,null,null,null,null,null,null,null,null,null,null,null,null,null,null,null,null,null,null,null,null,null,null,"NIGER","NIGER",null,null,null,"NICARAGUA"]
[null,null,null,null,null,null,null,null,null,null,null,null,null,null,null,null,null,null,null,null,null,null,null,null,null,null,null,null,null,null,null,null,null,null,null,null,null,null,null,null,null,null,null,null,null,null,null,null,null,null,null,null,"NIUE",null,"NIGERIA",null,null,null,null,null,null,null,null,null,null,null,null,null,null,null,null,null,null,null,null,null,null,null,null,null,null,null,null,null,null,null,null,null,null,null,null,null,null,null,null,null,null,"NIGERIA","NIGERIA",null,null,null,"NIGER"]
[null,null,null,null,null,null,null,null,null,null,null,null,null,null,null,null,null,null,null,null,null,null,null,null,null,null,null,null,null,null,null,null,null,null,null,null,null,null,null,null,null,null,null,null,null,null,null,null,null,null,null,null,"NORFOLK ISLAND",null,"NIUE",null,null,null,null,null,null,null,null,null,null,null,null,null,null,null,null,null,null,null,null,null,null,null,null,null,null,null,null,null,null,null,null,null,null,null,null,null,null,null,null,null,null,"NIUE","NIUE",null,null,null,"NIGERIA"]
[null,null,null,null,null,null,null,null,null,null,null,null,null,null,null,null,null,null,null,null,null,null,null,null,null,null,null,null,null,null,null,null,null,null,null,null,null,null,null,null,null,null,null,null,null,null,null,null,null,null,null,null,"NORTHERN MARIANA ISLANDS",null,"NORFOLK ISLAND",null,null,null,null,null,null,null,null,null,null,null,null,null,null,null,null,null,null,null,null,null,null,null,null,null,null,null,null,null,null,null,null,null,null,null,null,null,null,null,null,null,null,"NORFOLK ISLAND","NORFOLK ISLAND",null,null,null,"NIUE"]
[null,null,null,null,null,null,null,null,null,null,null,null,null,null,null,null,null,null,null,null,null,null,null,null,null,null,null,null,null,null,null,null,null,null,null,null,null,null,null,null,null,null,null,null,null,null,null,null,null,null,null,null,"OMAN",null,"NORTHERN MARIANA ISLANDS",null,null,null,null,null,null,null,null,null,null,null,null,null,null,null,null,null,null,null,null,null,null,null,null,null,null,null,null,null,null,null,null,null,null,null,null,null,null,null,null,null,null,"NORTHERN MARIANA ISLANDS","NORTHERN MARIANA ISLANDS",null,null,null,"NORFOLK ISLAND"]
[null,null,null,null,null,null,null,null,null,null,null,null,null,null,null,null,null,null,null,null,null,null,null,null,null,null,null,null,null,null,null,null,null,null,null,null,null,null,null,null,null,null,null,null,null,null,null,null,null,null,null,null,"PAKISTAN",null,"OMAN",null,null,null,null,null,null,null,null,null,null,null,null,null,null,null,null,null,null,null,null,null,null,null,null,null,null,null,null,null,null,null,null,null,null,null,null,null,null,null,null,null,null,"OMAN","OMAN",null,null,null,"NORTHERN MARIANA ISLANDS"]
[null,null,null,null,null,null,null,null,null,null,null,null,null,null,null,null,null,null,null,null,null,null,null,null,null,null,null,null,null,null,null,null,null,null,null,null,null,null,null,null,null,null,null,null,null,null,null,null,null,null,null,null,"PALAU",null,"PAKISTAN",null,null,null,null,null,null,null,null,null,null,null,null,null,null,null,null,null,null,null,null,null,null,null,null,null,null,null,null,null,null,null,null,null,null,null,null,null,null,null,null,null,null,"PAKISTAN","PAKISTAN",null,null,null,"OMAN"]
[null,null,null,null,null,null,null,null,null,null,null,null,null,null,null,null,null,null,null,null,null,null,null,null,null,null,null,null,null,null,null,null,null,null,null,null,null,null,null,null,null,null,null,null,null,null,null,null,null,null,null,null,"PALESTINIAN TERRITORY, OCCUPIED",null,"PALAU",null,null,null,null,null,null,null,null,null,null,null,null,null,null,null,null,null,null,null,null,null,null,null,null,null,null,null,null,null,null,null,null,null,null,null,null,null,null,null,null,null,null,"PALAU","PALAU",null,null,null,"PAKISTAN"]
[null,null,null,null,null,null,null,null,null,null,null,null,null,null,null,null,null,null,null,null,null,null,null,null,null,null,null,null,null,null,null,null,null,null,null,null,null,null,null,null,null,null,null,null,null,null,null,null,null,null,null,null,"PANAMA",null,"PALESTINIAN TERRITORY, OCCUPIED",null,null,null,null,null,null,null,null,null,null,null,null,null,null,null,null,null,null,null,null,null,null,null,null,null,null,null,null,null,null,null,null,null,null,null,null,null,null,null,null,null,null,"PALESTINIAN TERRITORY, OCCUPIED","PALESTINIAN TERRITORY, OCCUPIED",null,null,null,"PALAU"]
[null,null,null,null,null,null,null,null,null,null,null,null,null,null,null,null,null,null,null,null,null,null,null,null,null,null,null,null,null,null,null,null,null,null,null,null,null,null,null,null,null,null,null,null,null,null,null,null,null,null,null,null,"PAPUA NEW GUINEA",null,"PANAMA",null,null,null,null,null,null,null,null,null,null,null,null,null,null,null,null,null,null,null,null,null,null,null,null,null,null,null,null,null,null,null,null,null,null,null,null,null,null,null,null,null,null,"PANAMA","PANAMA",null,null,null,"PALESTINIAN TERRITORY, OCCUPIED"]
[null,null,null,null,null,null,null,null,null,null,null,null,null,null,null,null,null,null,null,null,null,null,null,null,null,null,null,null,null,null,null,null,null,null,null,null,null,null,null,null,null,null,null,null,null,null,null,null,null,null,null,null,"PARAGUAY",null,"PAPUA NEW GUINEA",null,null,null,null,null,null,null,null,null,null,null,null,null,null,null,null,null,null,null,null,null,null,null,null,null,null,null,null,null,null,null,null,null,null,null,null,null,null,null,null,null,null,"PAPUA NEW GUINEA","PAPUA NEW GUINEA",null,null,null,"PANAMA"]
[null,null,null,null,null,null,null,null,null,null,null,null,null,null,null,null,null,null,null,null,null,null,null,null,null,null,null,null,null,null,null,null,null,null,null,null,null,null,null,null,null,null,null,null,null,null,null,null,null,null,null,null,"PERU",null,"PARAGUAY",null,null,null,null,null,null,null,null,null,null,null,null,null,null,null,null,null,null,null,null,null,null,null,null,null,null,null,null,null,null,null,null,null,null,null,null,null,null,null,null,null,null,"PARAGUAY","PARAGUAY",null,null,null,"PAPUA NEW GUINEA"]
[null,null,null,null,null,null,null,null,null,null,null,null,null,null,null,null,null,null,null,null,null,null,null,null,null,null,null,null,null,null,null,null,null,null,null,null,null,null,null,null,null,null,null,null,null,null,null,null,null,null,null,null,"PHILIPPINES",null,"PERU",null,null,null,null,null,null,null,null,null,null,null,null,null,null,null,null,null,null,null,null,null,null,null,null,null,null,null,null,null,null,null,null,null,null,null,null,null,null,null,null,null,null,"PERU","PERU",null,null,null,"PARAGUAY"]
[null,null,null,null,null,null,null,null,null,null,null,null,null,null,null,null,null,null,null,null,null,null,null,null,null,null,null,null,null,null,null,null,null,null,null,null,null,null,null,null,null,null,null,null,null,null,null,null,null,null,null,null,"PITCAIRN",null,"PHILIPPINES",null,null,null,null,null,null,null,null,null,null,null,null,null,null,null,null,null,null,null,null,null,null,null,null,null,null,null,null,null,null,null,null,null,null,null,null,null,null,null,null,null,null,"PHILIPPINES","PHILIPPINES",null,null,null,"PERU"]
[null,null,null,null,null,null,null,null,null,null,null,null,null,null,null,null,null,null,null,null,null,null,null,null,null,null,null,null,null,null,null,null,null,null,null,null,null,null,null,null,null,null,null,null,null,null,null,null,null,null,null,null,"PUERTO RICO",null,"PITCAIRN",null,null,null,null,null,null,null,null,null,null,null,null,null,null,null,null,null,null,null,null,null,null,null,null,null,null,null,null,null,null,null,null,null,null,null,null,null,null,null,null,null,null,"PITCAIRN","PITCAIRN",null,null,null,"PHILIPPINES"]
[null,null,null,null,null,null,null,null,null,null,null,null,null,null,null,null,null,null,null,null,null,null,null,null,null,null,null,null,null,null,null,null,null,null,null,null,null,null,null,null,null,null,null,null,null,null,null,null,null,null,null,null,"QATAR",null,"PUERTO RICO",null,null,null,null,null,null,null,null,null,null,null,null,null,null,null,null,null,null,null,null,null,null,null,null,null,null,null,null,null,null,null,null,null,null,null,null,null,null,null,null,null,null,"PUERTO RICO","PUERTO RICO",null,null,null,"PITCAIRN"]
[null,null,null,null,null,null,null,null,null,null,null,null,null,null,null,null,null,null,null,null,null,null,null,null,null,null,null,null,null,null,null,null,null,null,null,null,null,null,null,null,null,null,null,null,null,null,null,null,null,null,null,null,"RÉUNION",null,"QATAR",null,null,null,null,null,null,null,null,null,null,null,null,null,null,null,null,null,null,null,null,null,null,null,null,null,null,null,null,null,null,null,null,null,null,null,null,null,null,null,null,null,null,"QATAR","QATAR",null,null,null,"PUERTO RICO"]
[null,null,null,null,null,null,null,null,null,null,null,null,null,null,null,null,null,null,null,null,null,null,null,null,null,null,null,null,null,null,null,null,null,null,null,null,null,null,null,null,null,null,null,null,null,null,null,null,null,null,null,null,"RWANDA",null,"RÉUNION",null,null,null,null,null,null,null,null,null,null,null,null,null,null,null,null,null,null,null,null,null,null,null,null,null,null,null,null,null,null,null,null,null,null,null,null,null,null,null,null,null,null,"RÉUNION","RÉUNION",null,null,null,"QATAR"]
[null,null,null,null,null,null,null,null,null,null,null,null,null,null,null,null,null,null,null,null,null,null,null,null,null,null,null,null,null,null,null,null,null,null,null,null,null,null,null,null,null,null,null,null,null,null,null,null,null,null,null,null,"SAINT BARTHÉLEMY",null,"RWANDA",null,null,null,null,null,null,null,null,null,null,null,null,null,null,null,null,null,null,null,null,null,null,null,null,null,null,null,null,null,null,null,null,null,null,null,null,null,null,null,null,null,null,"RWANDA","RWANDA",null,null,null,"RÉUNION"]
[null,null,null,null,null,null,null,null,null,null,null,null,null,null,null,null,null,null,null,null,null,null,null,null,null,null,null,null,null,null,null,null,null,null,null,null,null,null,null,null,null,null,null,null,null,null,null,null,null,null,null,null,"SAINT HELENA, ASCENSION AND TRISTAN DA CUNHA",null,"SAINT BARTHÉLEMY",null,null,null,null,null,null,null,null,null,null,null,null,null,null,null,null,null,null,null,null,null,null,null,null,null,null,null,null,null,null,null,null,null,null,null,null,null,null,null,null,null,null,"SAINT BARTHÉLEMY","SAINT BARTHÉLEMY",null,null,null,"RWANDA"]
[null,null,null,null,null,null,null,null,null,null,null,null,null,null,null,null,null,null,null,null,null,null,null,null,null,null,null,null,null,null,null,null,null,null,null,null,null,null,null,null,null,null,null,null,null,null,null,null,null,null,null,null,"SAINT KITTS AND NEVIS",null,"SAINT HELENA, ASCENSION AND TRISTAN DA CUNHA",null,null,null,null,null,null,null,null,null,null,null,null,null,null,null,null,null,null,null,null,null,null,null,null,null,null,null,null,null,null,null,null,null,null,null,null,null,null,null,null,null,null,"SAINT HELENA, ASCENSION AND TRISTAN DA CUNHA","SAINT HELENA, ASCENSION AND TRISTAN DA CUNHA",null,null,null,"SAINT BARTHÉLEMY"]
[null,null,null,null,null,null,null,null,null,null,null,null,null,null,null,null,null,null,null,null,null,null,null,null,null,null,null,null,null,null,null,null,null,null,null,null,null,null,null,null,null,null,null,null,null,null,null,null,null,null,null,null,"SAINT LUCIA",null,"SAINT KITTS AND NEVIS",null,null,null,null,null,null,null,null,null,null,null,null,null,null,null,null,null,null,null,null,null,null,null,null,null,null,null,null,null,null,null,null,null,null,null,null,null,null,null,null,null,null,"SAINT KITTS AND NEVIS","SAINT KITTS AND NEVIS",null,null,null,"SAINT HELENA, ASCENSION AND TRISTAN DA CUNHA"]
[null,null,null,null,null,null,null,null,null,null,null,null,null,null,null,null,null,null,null,null,null,null,null,null,null,null,null,null,null,null,null,null,null,null,null,null,null,null,null,null,null,null,null,null,null,null,null,null,null,null,null,null,"SAINT MARTIN (FRENCH PART)",null,"SAINT LUCIA",null,null,null,null,null,null,null,null,null,null,null,null,null,null,null,null,null,null,null,null,null,null,null,null,null,null,null,null,null,null,null,null,null,null,null,null,null,null,null,null,null,null,"SAINT LUCIA","SAINT LUCIA",null,null,null,"SAINT KITTS AND NEVIS"]
[null,null,null,null,null,null,null,null,null,null,null,null,null,null,null,null,null,null,null,null,null,null,null,null,null,null,null,null,null,null,null,null,null,null,null,null,null,null,null,null,null,null,null,null,null,null,null,null,null,null,null,null,"SAINT PIERRE AND MIQUELON",null,"SAINT MARTIN (FRENCH PART)",null,null,null,null,null,null,null,null,null,null,null,null,null,null,null,null,null,null,null,null,null,null,null,null,null,null,null,null,null,null,null,null,null,null,null,null,null,null,null,null,null,null,"SAINT MARTIN (FRENCH PART)","SAINT MARTIN (FRENCH PART)",null,null,null,"SAINT LUCIA"]
[null,null,null,null,null,null,null,null,null,null,null,null,null,null,null,null,null,null,null,null,null,null,null,null,null,null,null,null,null,null,null,null,null,null,null,null,null,null,null,null,null,null,null,null,null,null,null,null,null,null,null,null,"SAINT VINCENT AND THE GRENADINES",null,"SAINT PIERRE AND MIQUELON",null,null,null,null,null,null,null,null,null,null,null,null,null,null,null,null,null,null,null,null,null,null,null,null,null,null,null,null,null,null,null,null,null,null,null,null,null,null,null,null,null,null,"SAINT PIERRE AND MIQUELON","SAINT PIERRE AND MIQUELON",null,null,null,"SAINT MARTIN (FRENCH PART)"]
[null,null,null,null,null,null,null,null,null,null,null,null,null,null,null,null,null,null,null,null,null,null,null,null,null,null,null,null,null,null,null,null,null,null,null,null,null,null,null,null,null,null,null,null,null,null,null,null,null,null,null,null,"SAMOA",null,"SAINT VINCENT AND THE GRENADINES",null,null,null,null,null,null,null,null,null,null,null,null,null,null,null,null,null,null,null,null,null,null,null,null,null,null,null,null,null,null,null,null,null,null,null,null,null,null,null,null,null,null,"SAINT VINCENT AND THE GRENADINES","SAINT VINCENT AND THE GRENADINES",null,null,null,"SAINT PIERRE AND MIQUELON"]
[null,null,null,null,null,null,null,null,null,null,null,null,null,null,null,null,null,null,null,null,null,null,null,null,null,null,null,null,null,null,null,null,null,null,null,null,null,null,null,null,null,null,null,null,null,null,null,null,null,null,null,null,"SAN MARINO",null,"SAMOA",null,null,null,null,null,null,null,null,null,null,null,null,null,null,null,null,null,null,null,null,null,null,null,null,null,null,null,null,null,null,null,null,null,null,null,null,null,null,null,null,null,null,"SAMOA","SAMOA",null,null,null,"SAINT VINCENT AND THE GRENADINES"]
[null,null,null,null,null,null,null,null,null,null,null,null,null,null,null,null,null,null,null,null,null,null,null,null,null,null,null,null,null,null,null,null,null,null,null,null,null,null,null,null,null,null,null,null,null,null,null,null,null,null,null,null,"SAO TOME AND PRINCIPE",null,"SAN MARINO",null,null,null,null,null,null,null,null,null,null,null,null,null,null,null,null,null,null,null,null,null,null,null,null,null,null,null,null,null,null,null,null,null,null,null,null,null,null,null,null,null,null,"SAN MARINO","SAN MARINO",null,null,null,"SAMOA"]
[null,null,null,null,null,null,null,null,null,null,null,null,null,null,null,null,null,null,null,null,null,null,null,null,null,null,null,null,null,null,null,null,null,null,null,null,null,null,null,null,null,null,null,null,null,null,null,null,null,null,null,null,"SAUDI ARABIA",null,"SAO TOME AND PRINCIPE",null,null,null,null,null,null,null,null,null,null,null,null,null,null,null,null,null,null,null,null,null,null,null,null,null,null,null,null,null,null,null,null,null,null,null,null,null,null,null,null,null,null,"SAO TOME AND PRINCIPE","SAO TOME AND PRINCIPE",null,null,null,"SAN MARINO"]
[null,null,null,null,null,null,null,null,null,null,null,null,null,null,null,null,null,null,null,null,null,null,null,null,null,null,null,null,null,null,null,null,null,null,null,null,null,null,null,null,null,null,null,null,null,null,null,null,null,null,null,null,"SENEGAL",null,"SAUDI ARABIA",null,null,null,null,null,null,null,null,null,null,null,null,null,null,null,null,null,null,null,null,null,null,null,null,null,null,null,null,null,null,null,null,null,null,null,null,null,null,null,null,null,null,"SAUDI ARABIA","SAUDI ARABIA",null,null,null,"SAO TOME AND PRINCIPE"]
[null,null,null,null,null,null,null,null,null,null,null,null,null,null,null,null,null,null,null,null,null,null,null,null,null,null,null,null,null,null,null,null,null,null,null,null,null,null,null,null,null,null,null,null,null,null,null,null,null,null,null,null,"SEYCHELLES",null,"SENEGAL",null,null,null,null,null,null,null,null,null,null,null,null,null,null,null,null,null,null,null,null,null,null,null,null,null,null,null,null,null,null,null,null,null,null,null,null,null,null,null,null,null,null,"SENEGAL","SENEGAL",null,null,null,"SAUDI ARABIA"]
[null,null,null,null,null,null,null,null,null,null,null,null,null,null,null,null,null,null,null,null,null,null,null,null,null,null,null,null,null,null,null,null,null,null,null,null,null,null,null,null,null,null,null,null,null,null,null,null,null,null,null,null,"SIERRA LEONE",null,"SEYCHELLES",null,null,null,null,null,null,null,null,null,null,null,null,null,null,null,null,null,null,null,null,null,null,null,null,null,null,null,null,null,null,null,null,null,null,null,null,null,null,null,null,null,null,"SEYCHELLES","SEYCHELLES",null,null,null,"SENEGAL"]
[null,null,null,null,null,null,null,null,null,null,null,null,null,null,null,null,null,null,null,null,null,null,null,null,null,null,null,null,null,null,null,null,null,null,null,null,null,null,null,null,null,null,null,null,null,null,null,null,null,null,null,null,"SINGAPORE",null,"SIERRA LEONE",null,null,null,null,null,null,null,null,null,null,null,null,null,null,null,null,null,null,null,null,null,null,null,null,null,null,null,null,null,null,null,null,null,null,null,null,null,null,null,null,null,null,"SIERRA LEONE","SIERRA LEONE",null,null,null,"SEYCHELLES"]
[null,null,null,null,null,null,null,null,null,null,null,null,null,null,null,null,null,null,null,null,null,null,null,null,null,null,null,null,null,null,null,null,null,null,null,null,null,null,null,null,null,null,null,null,null,null,null,null,null,null,null,null,"SINT MAARTEN (DUTCH PART)",null,"SINGAPORE",null,null,null,null,null,null,null,null,null,null,null,null,null,null,null,null,null,null,null,null,null,null,null,null,null,null,null,null,null,null,null,null,null,null,null,null,null,null,null,null,null,null,"SINGAPORE","SINGAPORE",null,null,null,"SIERRA LEONE"]
[null,null,null,null,null,null,null,null,null,null,null,null,null,null,null,null,null,null,null,null,null,null,null,null,null,null,null,null,null,null,null,null,null,null,null,null,null,null,null,null,null,null,null,null,null,null,null,null,null,null,null,null,"SOLOMON ISLANDS",null,"SINT MAARTEN (DUTCH PART)",null,null,null,null,null,null,null,null,null,null,null,null,null,null,null,null,null,null,null,null,null,null,null,null,null,null,null,null,null,null,null,null,null,null,null,null,null,null,null,null,null,null,"SINT MAARTEN (DUTCH PART)","SINT MAARTEN (DUTCH PART)",null,null,null,"SINGAPORE"]
[null,null,null,null,null,null,null,null,null,null,null,null,null,null,null,null,null,null,null,null,null,null,null,null,null,null,null,null,null,null,null,null,null,null,null,null,null,null,null,null,null,null,null,null,null,null,null,null,null,null,null,null,"SOMALIA",null,"SOLOMON ISLANDS",null,null,null,null,null,null,null,null,null,null,null,null,null,null,null,null,null,null,null,null,null,null,null,null,null,null,null,null,null,null,null,null,null,null,null,null,null,null,null,null,null,null,"SOLOMON ISLANDS","SOLOMON ISLANDS",null,null,null,"SINT MAARTEN (DUTCH PART)"]
[null,null,null,null,null,null,null,null,null,null,null,null,null,null,null,null,null,null,null,null,null,null,null,null,null,null,null,null,null,null,null,null,null,null,null,null,null,null,null,null,null,null,null,null,null,null,null,null,null,null,null,null,"SOUTH AFRICA",null,"SOMALIA",null,null,null,null,null,null,null,null,null,null,null,null,null,null,null,null,null,null,null,null,null,null,null,null,null,null,null,null,null,null,null,null,null,null,null,null,null,null,null,null,null,null,"SOMALIA","SOMALIA",null,null,null,"SOLOMON ISLANDS"]
[null,null,null,null,null,null,null,null,null,null,null,null,null,null,null,null,null,null,null,null,null,null,null,null,null,null,null,null,null,null,null,null,null,null,null,null,null,null,null,null,null,null,null,null,null,null,null,null,null,null,null,null,"SOUTH GEORGIA AND THE SOUTH SANDWICH ISLANDS",null,"SOUTH AFRICA",null,null,null,null,null,null,null,null,null,null,null,null,null,null,null,null,null,null,null,null,null,null,null,null,null,null,null,null,null,null,null,null,null,null,null,null,null,null,null,null,null,null,"SOUTH AFRICA","SOUTH AFRICA",null,null,null,"SOMALIA"]
[null,null,null,null,null,null,null,null,null,null,null,null,null,null,null,null,null,null,null,null,null,null,null,null,null,null,null,null,null,null,null,null,null,null,null,null,null,null,null,null,null,null,null,null,null,null,null,null,null,null,null,null,"SOUTH SUDAN",null,"SOUTH GEORGIA AND THE SOUTH SANDWICH ISLANDS",null,null,null,null,null,null,null,null,null,null,null,null,null,null,null,null,null,null,null,null,null,null,null,null,null,null,null,null,null,null,null,null,null,null,null,null,null,null,null,null,null,null,"SOUTH GEORGIA AND THE SOUTH SANDWICH ISLANDS","SOUTH GEORGIA AND THE SOUTH SANDWICH ISLANDS",null,null,null,"SOUTH AFRICA"]
[null,null,null,null,null,null,null,null,null,null,null,null,null,null,null,null,null,null,null,null,null,null,null,null,null,null,null,null,null,null,null,null,null,null,null,null,null,null,null,null,null,null,null,null,null,null,null,null,null,null,null,null,"SRI LANKA",null,"SOUTH SUDAN",null,null,null,null,null,null,null,null,null,null,null,null,null,null,null,null,null,null,null,null,null,null,null,null,null,null,null,null,null,null,null,null,null,null,null,null,null,null,null,null,null,null,"SOUTH SUDAN","SOUTH SUDAN",null,null,null,"SOUTH GEORGIA AND THE SOUTH SANDWICH ISLANDS"]
[null,null,null,null,null,null,null,null,null,null,null,null,null,null,null,null,null,null,null,null,null,null,null,null,null,null,null,null,null,null,null,null,null,null,null,null,null,null,null,null,null,null,null,null,null,null,null,null,null,null,null,null,"SUDAN",null,"SRI LANKA",null,null,null,null,null,null,null,null,null,null,null,null,null,null,null,null,null,null,null,null,null,null,null,null,null,null,null,null,null,null,null,null,null,null,null,null,null,null,null,null,null,null,"SRI LANKA","SRI LANKA",null,null,null,"SOUTH SUDAN"]
[null,null,null,null,null,null,null,null,null,null,null,null,null,null,null,null,null,null,null,null,null,null,null,null,null,null,null,null,null,null,null,null,null,null,null,null,null,null,null,null,null,null,null,null,null,null,null,null,null,null,null,null,"SURINAME",null,"SUDAN",null,null,null,null,null,null,null,null,null,null,null,null,null,null,null,null,null,null,null,null,null,null,null,null,null,null,null,null,null,null,null,null,null,null,null,null,null,null,null,null,null,null,"SUDAN","SUDAN",null,null,null,"SRI LANKA"]
[null,null,null,null,null,null,null,null,null,null,null,null,null,null,null,null,null,null,null,null,null,null,null,null,null,null,null,null,null,null,null,null,null,null,null,null,null,null,null,null,null,null,null,null,null,null,null,null,null,null,null,null,"SVALBARD AND JAN MAYEN",null,"SURINAME",null,null,null,null,null,null,null,null,null,null,null,null,null,null,null,null,null,null,null,null,null,null,null,null,null,null,null,null,null,null,null,null,null,null,null,null,null,null,null,null,null,null,"SURINAME","SURINAME",null,null,null,"SUDAN"]
[null,null,null,null,null,null,null,null,null,null,null,null,null,null,null,null,null,null,null,null,null,null,null,null,null,null,null,null,null,null,null,null,null,null,null,null,null,null,null,null,null,null,null,null,null,null,null,null,null,null,null,null,"SWAZILAND",null,"SVALBARD AND JAN MAYEN",null,null,null,null,null,null,null,null,null,null,null,null,null,null,null,null,null,null,null,null,null,null,null,null,null,null,null,null,null,null,null,null,null,null,null,null,null,null,null,null,null,null,"SVALBARD AND JAN MAYEN","SVALBARD AND JAN MAYEN",null,null,null,"SURINAME"]
[null,null,null,null,null,null,null,null,null,null,null,null,null,null,null,null,null,null,null,null,null,null,null,null,null,null,null,null,null,null,null,null,null,null,null,null,null,null,null,null,null,null,null,null,null,null,null,null,null,null,null,null,"SYRIAN ARAB REPUBLIC",null,"SWAZILAND",null,null,null,null,null,null,null,null,null,null,null,null,null,null,null,null,null,null,null,null,null,null,null,null,null,null,null,null,null,null,null,null,null,null,null,null,null,null,null,null,null,null,"SWAZILAND","SWAZILAND",null,null,null,"SVALBARD AND JAN MAYEN"]
[null,null,null,null,null,null,null,null,null,null,null,null,null,null,null,null,null,null,null,null,null,null,null,null,null,null,null,null,null,null,null,null,null,null,null,null,null,null,null,null,null,null,null,null,null,null,null,null,null,null,null,null,"TAIWAN, PROVINCE OF CHINA",null,"SYRIAN ARAB REPUBLIC",null,null,null,null,null,null,null,null,null,null,null,null,null,null,null,null,null,null,null,null,null,null,null,null,null,null,null,null,null,null,null,null,null,null,null,null,null,null,null,null,null,null,"SYRIAN ARAB REPUBLIC","SYRIAN ARAB REPUBLIC",null,null,null,"SWAZILAND"]
[null,null,null,null,null,null,null,null,null,null,null,null,null,null,null,null,null,null,null,null,null,null,null,null,null,null,null,null,null,null,null,null,null,null,null,null,null,null,null,null,null,null,null,null,null,null,null,null,null,null,null,null,"TAJIKISTAN",null,"TAIWAN, PROVINCE OF CHINA",null,null,null,null,null,null,null,null,null,null,null,null,null,null,null,null,null,null,null,null,null,null,null,null,null,null,null,null,null,null,null,null,null,null,null,null,null,null,null,null,null,null,"TAIWAN, PROVINCE OF CHINA","TAIWAN, PROVINCE OF CHINA",null,null,null,"SYRIAN ARAB REPUBLIC"]
[null,null,null,null,null,null,null,null,null,null,null,null,null,null,null,null,null,null,null,null,null,null,null,null,null,null,null,null,null,null,null,null,null,null,null,null,null,null,null,null,null,null,null,null,null,null,null,null,null,null,null,null,"TANZANIA, UNITED REPUBLIC OF",null,"TAJIKISTAN",null,null,null,null,null,null,null,null,null,null,null,null,null,null,null,null,null,null,null,null,null,null,null,null,null,null,null,null,null,null,null,null,null,null,null,null,null,null,null,null,null,null,"TAJIKISTAN","TAJIKISTAN",null,null,null,"TAIWAN, PROVINCE OF CHINA"]
[null,null,null,null,null,null,null,null,null,null,null,null,null,null,null,null,null,null,null,null,null,null,null,null,null,null,null,null,null,null,null,null,null,null,null,null,null,null,null,null,null,null,null,null,null,null,null,null,null,null,null,null,"THAILAND",null,"TANZANIA, UNITED REPUBLIC OF",null,null,null,null,null,null,null,null,null,null,null,null,null,null,null,null,null,null,null,null,null,null,null,null,null,null,null,null,null,null,null,null,null,null,null,null,null,null,null,null,null,null,"TANZANIA, UNITED REPUBLIC OF","TANZANIA, UNITED REPUBLIC OF",null,null,null,"TAJIKISTAN"]
[null,null,null,null,null,null,null,null,null,null,null,null,null,null,null,null,null,null,null,null,null,null,null,null,null,null,null,null,null,null,null,null,null,null,null,null,null,null,null,null,null,null,null,null,null,null,null,null,null,null,null,null,"TIMOR-LESTE",null,"THAILAND",null,null,null,null,null,null,null,null,null,null,null,null,null,null,null,null,null,null,null,null,null,null,null,null,null,null,null,null,null,null,null,null,null,null,null,null,null,null,null,null,null,null,"THAILAND","THAILAND",null,null,null,"TANZANIA, UNITED REPUBLIC OF"]
[null,null,null,null,null,null,null,null,null,null,null,null,null,null,null,null,null,null,null,null,null,null,null,null,null,null,null,null,null,null,null,null,null,null,null,null,null,null,null,null,null,null,null,null,null,null,null,null,null,null,null,null,"TOGO",null,"TIMOR-LESTE",null,null,null,null,null,null,null,null,null,null,null,null,null,null,null,null,null,null,null,null,null,null,null,null,null,null,null,null,null,null,null,null,null,null,null,null,null,null,null,null,null,null,"TIMOR-LESTE","TIMOR-LESTE",null,null,null,"THAILAND"]
[null,null,null,null,null,null,null,null,null,null,null,null,null,null,null,null,null,null,null,null,null,null,null,null,null,null,null,null,null,null,null,null,null,null,null,null,null,null,null,null,null,null,null,null,null,null,null,null,null,null,null,null,"TOKELAU",null,"TOGO",null,null,null,null,null,null,null,null,null,null,null,null,null,null,null,null,null,null,null,null,null,null,null,null,null,null,null,null,null,null,null,null,null,null,null,null,null,null,null,null,null,null,"TOGO","TOGO",null,null,null,"TIMOR-LESTE"]
[null,null,null,null,null,null,null,null,null,null,null,null,null,null,null,null,null,null,null,null,null,null,null,null,null,null,null,null,null,null,null,null,null,null,null,null,null,null,null,null,null,null,null,null,null,null,null,null,null,null,null,null,"TONGA",null,"TOKELAU",null,null,null,null,null,null,null,null,null,null,null,null,null,null,null,null,null,null,null,null,null,null,null,null,null,null,null,null,null,null,null,null,null,null,null,null,null,null,null,null,null,null,"TOKELAU","TOKELAU",null,null,null,"TOGO"]
[null,null,null,null,null,null,null,null,null,null,null,null,null,null,null,null,null,null,null,null,null,null,null,null,null,null,null,null,null,null,null,null,null,null,null,null,null,null,null,null,null,null,null,null,null,null,null,null,null,null,null,null,"TRINIDAD AND TOBAGO",null,"TONGA",null,null,null,null,null,null,null,null,null,null,null,null,null,null,null,null,null,null,null,null,null,null,null,null,null,null,null,null,null,null,null,null,null,null,null,null,null,null,null,null,null,null,"TONGA","TONGA",null,null,null,"TOKELAU"]
[null,null,null,null,null,null,null,null,null,null,null,null,null,null,null,null,null,null,null,null,null,null,null,null,null,null,null,null,null,null,null,null,null,null,null,null,null,null,null,null,null,null,null,null,null,null,null,null,null,null,null,null,"TUNISIA",null,"TRINIDAD AND TOBAGO",null,null,null,null,null,null,null,null,null,null,null,null,null,null,null,null,null,null,null,null,null,null,null,null,null,null,null,null,null,null,null,null,null,null,null,null,null,null,null,null,null,null,"TRINIDAD AND TOBAGO","TRINIDAD AND TOBAGO",null,null,null,"TONGA"]
[null,null,null,null,null,null,null,null,null,null,null,null,null,null,null,null,null,null,null,null,null,null,null,null,null,null,null,null,null,null,null,null,null,null,null,null,null,null,null,null,null,null,null,null,null,null,null,null,null,null,null,null,"TURKMENISTAN",null,"TUNISIA",null,null,null,null,null,null,null,null,null,null,null,null,null,null,null,null,null,null,null,null,null,null,null,null,null,null,null,null,null,null,null,null,null,null,null,null,null,null,null,null,null,null,"TUNISIA","TUNISIA",null,null,null,"TRINIDAD AND TOBAGO"]
[null,null,null,null,null,null,null,null,null,null,null,null,null,null,null,null,null,null,null,null,null,null,null,null,null,null,null,null,null,null,null,null,null,null,null,null,null,null,null,null,null,null,null,null,null,null,null,null,null,null,null,null,"TURKS AND CAICOS ISLANDS",null,"TURKMENISTAN",null,null,null,null,null,null,null,null,null,null,null,null,null,null,null,null,null,null,null,null,null,null,null,null,null,null,null,null,null,null,null,null,null,null,null,null,null,null,null,null,null,null,"TURKMENISTAN","TURKMENISTAN",null,null,null,"TUNISIA"]
[null,null,null,null,null,null,null,null,null,null,null,null,null,null,null,null,null,null,null,null,null,null,null,null,null,null,null,null,null,null,null,null,null,null,null,null,null,null,null,null,null,null,null,null,null,null,null,null,null,null,null,null,"TUVALU",null,"TURKS AND CAICOS ISLANDS",null,null,null,null,null,null,null,null,null,null,null,null,null,null,null,null,null,null,null,null,null,null,null,null,null,null,null,null,null,null,null,null,null,null,null,null,null,null,null,null,null,null,"TURKS AND CAICOS ISLANDS","TURKS AND CAICOS ISLANDS",null,null,null,"TURKMENISTAN"]
[null,null,null,null,null,null,null,null,null,null,null,null,null,null,null,null,null,null,null,null,null,null,null,null,null,null,null,null,null,null,null,null,null,null,null,null,null,null,null,null,null,null,null,null,null,null,null,null,null,null,null,null,"UGANDA",null,"TUVALU",null,null,null,null,null,null,null,null,null,null,null,null,null,null,null,null,null,null,null,null,null,null,null,null,null,null,null,null,null,null,null,null,null,null,null,null,null,null,null,null,null,null,"TUVALU","TUVALU",null,null,null,"TURKS AND CAICOS ISLANDS"]
[null,null,null,null,null,null,null,null,null,null,null,null,null,null,null,null,null,null,null,null,null,null,null,null,null,null,null,null,null,null,null,null,null,null,null,null,null,null,null,null,null,null,null,null,null,null,null,null,null,null,null,null,"UNITED ARAB EMIRATES",null,"UGANDA",null,null,null,null,null,null,null,null,null,null,null,null,null,null,null,null,null,null,null,null,null,null,null,null,null,null,null,null,null,null,null,null,null,null,null,null,null,null,null,null,null,null,"UGANDA","UGANDA",null,null,null,"TUVALU"]
[null,null,null,null,null,null,null,null,null,null,null,null,null,null,null,null,null,null,null,null,null,null,null,null,null,null,null,null,null,null,null,null,null,null,null,null,null,null,null,null,null,null,null,null,null,null,null,null,null,null,null,null,"UNITED STATES MINOR OUTLYING ISLANDS",null,"UNITED ARAB EMIRATES",null,null,null,null,null,null,null,null,null,null,null,null,null,null,null,null,null,null,null,null,null,null,null,null,null,null,null,null,null,null,null,null,null,null,null,null,null,null,null,null,null,null,"UNITED ARAB EMIRATES","UNITED ARAB EMIRATES",null,null,null,"UGANDA"]
[null,null,null,null,null,null,null,null,null,null,null,null,null,null,null,null,null,null,null,null,null,null,null,null,null,null,null,null,null,null,null,null,null,null,null,null,null,null,null,null,null,null,null,null,null,null,null,null,null,null,null,null,"URUGUAY",null,"UNITED STATES MINOR OUTLYING ISLANDS",null,null,null,null,null,null,null,null,null,null,null,null,null,null,null,null,null,null,null,null,null,null,null,null,null,null,null,null,null,null,null,null,null,null,null,null,null,null,null,null,null,null,"UNITED STATES MINOR OUTLYING ISLANDS","UNITED STATES MINOR OUTLYING ISLANDS",null,null,null,"UNITED ARAB EMIRATES"]
[null,null,null,null,null,null,null,null,null,null,null,null,null,null,null,null,null,null,null,null,null,null,null,null,null,null,null,null,null,null,null,null,null,null,null,null,null,null,null,null,null,null,null,null,null,null,null,null,null,null,null,null,"UZBEKISTAN",null,"URUGUAY",null,null,null,null,null,null,null,null,null,null,null,null,null,null,null,null,null,null,null,null,null,null,null,null,null,null,null,null,null,null,null,null,null,null,null,null,null,null,null,null,null,null,"URUGUAY","URUGUAY",null,null,null,"UNITED STATES MINOR OUTLYING ISLANDS"]
[null,null,null,null,null,null,null,null,null,null,null,null,null,null,null,null,null,null,null,null,null,null,null,null,null,null,null,null,null,null,null,null,null,null,null,null,null,null,null,null,null,null,null,null,null,null,null,null,null,null,null,null,"VANUATU",null,"UZBEKISTAN",null,null,null,null,null,null,null,null,null,null,null,null,null,null,null,null,null,null,null,null,null,null,null,null,null,null,null,null,null,null,null,null,null,null,null,null,null,null,null,null,null,null,"UZBEKISTAN","UZBEKISTAN",null,null,null,"URUGUAY"]
[null,null,null,null,null,null,null,null,null,null,null,null,null,null,null,null,null,null,null,null,null,null,null,null,null,null,null,null,null,null,null,null,null,null,null,null,null,null,null,null,null,null,null,null,null,null,null,null,null,null,null,null,"VENEZUELA, BOLIVARIAN REPUBLIC OF",null,"VANUATU",null,null,null,null,null,null,null,null,null,null,null,null,null,null,null,null,null,null,null,null,null,null,null,null,null,null,null,null,null,null,null,null,null,null,null,null,null,null,null,null,null,null,"VANUATU","VANUATU",null,null,null,"UZBEKISTAN"]
[null,null,null,null,null,null,null,null,null,null,null,null,null,null,null,null,null,null,null,null,null,null,null,null,null,null,null,null,null,null,null,null,null,null,null,null,null,null,null,null,null,null,null,null,null,null,null,null,null,null,null,null,"VIET NAM",null,"VENEZUELA, BOLIVARIAN REPUBLIC OF",null,null,null,null,null,null,null,null,null,null,null,null,null,null,null,null,null,null,null,null,null,null,null,null,null,null,null,null,null,null,null,null,null,null,null,null,null,null,null,null,null,null,"VENEZUELA, BOLIVARIAN REPUBLIC OF","VENEZUELA, BOLIVARIAN REPUBLIC OF",null,null,null,"VANUATU"]
[null,null,null,null,null,null,null,null,null,null,null,null,null,null,null,null,null,null,null,null,null,null,null,null,null,null,null,null,null,null,null,null,null,null,null,null,null,null,null,null,null,null,null,null,null,null,null,null,null,null,null,null,"VIRGIN ISLANDS, BRITISH",null,"VIET NAM",null,null,null,null,null,null,null,null,null,null,null,null,null,null,null,null,null,null,null,null,null,null,null,null,null,null,null,null,null,null,null,null,null,null,null,null,null,null,null,null,null,null,"VIET NAM","VIET NAM",null,null,null,"VENEZUELA, BOLIVARIAN REPUBLIC OF"]
[null,null,null,null,null,null,null,null,null,null,null,null,null,null,null,null,null,null,null,null,null,null,null,null,null,null,null,null,null,null,null,null,null,null,null,null,null,null,null,null,null,null,null,null,null,null,null,null,null,null,null,null,"VIRGIN ISLANDS, U.S.",null,"VIRGIN ISLANDS, BRITISH",null,null,null,null,null,null,null,null,null,null,null,null,null,null,null,null,null,null,null,null,null,null,null,null,null,null,null,null,null,null,null,null,null,null,null,null,null,null,null,null,null,null,"VIRGIN ISLANDS, BRITISH","VIRGIN ISLANDS, BRITISH",null,null,null,"VIET NAM"]
[null,null,null,null,null,null,null,null,null,null,null,null,null,null,null,null,null,null,null,null,null,null,null,null,null,null,null,null,null,null,null,null,null,null,null,null,null,null,null,null,null,null,null,null,null,null,null,null,null,null,null,null,"WALLIS AND FUTUNA",null,"VIRGIN ISLANDS, U.S.",null,null,null,null,null,null,null,null,null,null,null,null,null,null,null,null,null,null,null,null,null,null,null,null,null,null,null,null,null,null,null,null,null,null,null,null,null,null,null,null,null,null,"VIRGIN ISLANDS, U.S.","VIRGIN ISLANDS, U.S.",null,null,null,"VIRGIN ISLANDS, BRITISH"]
[null,null,null,null,null,null,null,null,null,null,null,null,null,null,null,null,null,null,null,null,null,null,null,null,null,null,null,null,null,null,null,null,null,null,null,null,null,null,null,null,null,null,null,null,null,null,null,null,null,null,null,null,"WESTERN SAHARA",null,"WALLIS AND FUTUNA",null,null,null,null,null,null,null,null,null,null,null,null,null,null,null,null,null,null,null,null,null,null,null,null,null,null,null,null,null,null,null,null,null,null,null,null,null,null,null,null,null,null,"WALLIS AND FUTUNA","WALLIS AND FUTUNA",null,null,null,"VIRGIN ISLANDS, U.S."]
[null,null,null,null,null,null,null,null,null,null,null,null,null,null,null,null,null,null,null,null,null,null,null,null,null,null,null,null,null,null,null,null,null,null,null,null,null,null,null,null,null,null,null,null,null,null,null,null,null,null,null,null,"YEMEN",null,"WESTERN SAHARA",null,null,null,null,null,null,null,null,null,null,null,null,null,null,null,null,null,null,null,null,null,null,null,null,null,null,null,null,null,null,null,null,null,null,null,null,null,null,null,null,null,null,"WESTERN SAHARA","WESTERN SAHARA",null,null,null,"WALLIS AND FUTUNA"]
[null,null,null,null,null,null,null,null,null,null,null,null,null,null,null,null,null,null,null,null,null,null,null,null,null,null,null,null,null,null,null,null,null,null,null,null,null,null,null,null,null,null,null,null,null,null,null,null,null,null,null,null,"ZAMBIA",null,"YEMEN",null,null,null,null,null,null,null,null,null,null,null,null,null,null,null,null,null,null,null,null,null,null,null,null,null,null,null,null,null,null,null,null,null,null,null,null,null,null,null,null,null,null,"YEMEN","YEMEN",null,null,null,"WESTERN SAHARA"]
[null,null,null,null,null,null,null,null,null,null,null,null,null,null,null,null,null,null,null,null,null,null,null,null,null,null,null,null,null,null,null,null,null,null,null,null,null,null,null,null,null,null,null,null,null,null,null,null,null,null,null,null,"ZIMBABWE",null,"ZAMBIA",null,null,null,null,null,null,null,null,null,null,null,null,null,null,null,null,null,null,null,null,null,null,null,null,null,null,null,null,null,null,null,null,null,null,null,null,null,null,null,null,null,null,"ZAMBIA","ZAMBIA",null,null,null,"YEMEN"]
[null,null,null,null,null,null,null,null,null,null,null,null,null,null,null,null,null,null,null,null,null,null,null,null,null,null,null,null,null,null,null,null,null,null,null,null,null,null,null,null,null,null,null,null,null,null,null,null,null,null,null,null,"Other Countries",null,"ZIMBABWE",null,null,null,null,null,null,null,null,null,null,null,null,null,null,null,null,null,null,null,null,null,null,null,null,null,null,null,null,null,null,null,null,null,null,null,null,null,null,null,null,null,null,"ZIMBABWE","ZIMBABWE",null,null,null,"ZAMBIA"]
[null,null,null,null,null,null,null,null,null,null,null,null,null,null,null,null,null,null,null,null,null,null,null,null,null,null,null,null,null,null,null,null,null,null,null,null,null,null,null,null,null,null,null,null,null,null,null,null,null,null,null,null,"International organisations (as pseudo geographic area)",null,"Other Countries",null,null,null,null,null,null,null,null,null,null,null,null,null,null,null,null,null,null,null,null,null,null,null,null,null,null,null,null,null,null,null,null,null,null,null,null,null,null,null,null,null,null,"Other Countries","Other Countries",null,null,null,"ZIMBABWE"]
[null,null,null,null,null,null,null,null,null,null,null,null,null,null,null,null,null,null,null,null,null,null,null,null,null,null,null,null,null,null,null,null,null,null,null,null,null,null,null,null,null,null,null,null,null,null,null,null,null,null,null,null,"United Nations organisations",null,null,null,null,null,null,null,null,null,null,null,null,null,null,null,null,null,null,null,null,null,null,null,null,null,null,null,null,null,null,null,null,null,null,null,null,null,null,null,null,null,null,null,null,null,null,null,null,null,"Other Countries"]
[null,null,null,null,null,null,null,null,null,null,null,null,null,null,null,null,null,null,null,null,null,null,null,null,null,null,null,null,null,null,null,null,null,null,null,null,null,null,null,null,null,null,null,null,null,null,null,null,null,null,null,null,"IMF (International Monetary Fund)"]
[null,null,null,null,null,null,null,null,null,null,null,null,null,null,null,null,null,null,null,null,null,null,null,null,null,null,null,null,null,null,null,null,null,null,null,null,null,null,null,null,null,null,null,null,null,null,null,null,null,null,null,null,"WTO (World Trade Organisation)"]
[null,null,null,null,null,null,null,null,null,null,null,null,null,null,null,null,null,null,null,null,null,null,null,null,null,null,null,null,null,null,null,null,null,null,null,null,null,null,null,null,null,null,null,null,null,null,null,null,null,null,null,null,"IBRD (International Bank for Reconstruction and Development)"]
[null,null,null,null,null,null,null,null,null,null,null,null,null,null,null,null,null,null,null,null,null,null,null,null,null,null,null,null,null,null,null,null,null,null,null,null,null,null,null,null,null,null,null,null,null,null,null,null,null,null,null,null,"IDA (International Development Association)"]
[null,null,null,null,null,null,null,null,null,null,null,null,null,null,null,null,null,null,null,null,null,null,null,null,null,null,null,null,null,null,null,null,null,null,null,null,null,null,null,null,null,null,null,null,null,null,null,null,null,null,null,null,"Other UN Organisations (includes 1H, 1J-1T)"]
[null,null,null,null,null,null,null,null,null,null,null,null,null,null,null,null,null,null,null,null,null,null,null,null,null,null,null,null,null,null,null,null,null,null,null,null,null,null,null,null,null,null,null,null,null,null,null,null,null,null,null,null,"UNESCO (United Nations Educational, Scientific and Cultural Organisation)"]
[null,null,null,null,null,null,null,null,null,null,null,null,null,null,null,null,null,null,null,null,null,null,null,null,null,null,null,null,null,null,null,null,null,null,null,null,null,null,null,null,null,null,null,null,null,null,null,null,null,null,null,null,"FAO (Food and Agriculture Organisation)"]
[null,null,null,null,null,null,null,null,null,null,null,null,null,null,null,null,null,null,null,null,null,null,null,null,null,null,null,null,null,null,null,null,null,null,null,null,null,null,null,null,null,null,null,null,null,null,null,null,null,null,null,null,"WHO (World Health Organisation)"]
[null,null,null,null,null,null,null,null,null,null,null,null,null,null,null,null,null,null,null,null,null,null,null,null,null,null,null,null,null,null,null,null,null,null,null,null,null,null,null,null,null,null,null,null,null,null,null,null,null,null,null,null,"IFAD (International Fund for Agricultural Development)"]
[null,null,null,null,null,null,null,null,null,null,null,null,null,null,null,null,null,null,null,null,null,null,null,null,null,null,null,null,null,null,null,null,null,null,null,null,null,null,null,null,null,null,null,null,null,null,null,null,null,null,null,null,"IFC (International Finance Corporation)"]
[null,null,null,null,null,null,null,null,null,null,null,null,null,null,null,null,null,null,null,null,null,null,null,null,null,null,null,null,null,null,null,null,null,null,null,null,null,null,null,null,null,null,null,null,null,null,null,null,null,null,null,null,"MIGA (Multilateral Investment Guarantee Agency)"]
[null,null,null,null,null,null,null,null,null,null,null,null,null,null,null,null,null,null,null,null,null,null,null,null,null,null,null,null,null,null,null,null,null,null,null,null,null,null,null,null,null,null,null,null,null,null,null,null,null,null,null,null,"UNICEF (United Nations Children’s Fund)"]
[null,null,null,null,null,null,null,null,null,null,null,null,null,null,null,null,null,null,null,null,null,null,null,null,null,null,null,null,null,null,null,null,null,null,null,null,null,null,null,null,null,null,null,null,null,null,null,null,null,null,null,null,"UNHCR (United Nations High Commissioner for Refugees)"]
[null,null,null,null,null,null,null,null,null,null,null,null,null,null,null,null,null,null,null,null,null,null,null,null,null,null,null,null,null,null,null,null,null,null,null,null,null,null,null,null,null,null,null,null,null,null,null,null,null,null,null,null,"UNRWA (United Nations Relief and Works Agency for Palestine)"]
[null,null,null,null,null,null,null,null,null,null,null,null,null,null,null,null,null,null,null,null,null,null,null,null,null,null,null,null,null,null,null,null,null,null,null,null,null,null,null,null,null,null,null,null,null,null,null,null,null,null,null,null,"IAEA (International Atomic Energy Agency)"]
[null,null,null,null,null,null,null,null,null,null,null,null,null,null,null,null,null,null,null,null,null,null,null,null,null,null,null,null,null,null,null,null,null,null,null,null,null,null,null,null,null,null,null,null,null,null,null,null,null,null,null,null,"ILO (International Labour Organisation)"]
[null,null,null,null,null,null,null,null,null,null,null,null,null,null,null,null,null,null,null,null,null,null,null,null,null,null,null,null,null,null,null,null,null,null,null,null,null,null,null,null,null,null,null,null,null,null,null,null,null,null,null,null,"ITU (International Telecommunication Union)"]
[null,null,null,null,null,null,null,null,null,null,null,null,null,null,null,null,null,null,null,null,null,null,null,null,null,null,null,null,null,null,null,null,null,null,null,null,null,null,null,null,null,null,null,null,null,null,null,null,null,null,null,null,"Rest of UN Organisations n.i.e."]
[null,null,null,null,null,null,null,null,null,null,null,null,null,null,null,null,null,null,null,null,null,null,null,null,null,null,null,null,null,null,null,null,null,null,null,null,null,null,null,null,null,null,null,null,null,null,null,null,null,null,null,null,"All the European Union Institutions excluding the institutions of the euro area"]
[null,null,null,null,null,null,null,null,null,null,null,null,null,null,null,null,null,null,null,null,null,null,null,null,null,null,null,null,null,null,null,null,null,null,null,null,null,null,null,null,null,null,null,null,null,null,null,null,null,null,null,null,"EMS (European Monetary System)"]
[null,null,null,null,null,null,null,null,null,null,null,null,null,null,null,null,null,null,null,null,null,null,null,null,null,null,null,null,null,null,null,null,null,null,null,null,null,null,null,null,null,null,null,null,null,null,null,null,null,null,null,null,"EIB (European Investment Bank)"]
[null,null,null,null,null,null,null,null,null,null,null,null,null,null,null,null,null,null,null,null,null,null,null,null,null,null,null,null,null,null,null,null,null,null,null,null,null,null,null,null,null,null,null,null,null,null,null,null,null,null,null,null,"EC (European Commission)"]
[null,null,null,null,null,null,null,null,null,null,null,null,null,null,null,null,null,null,null,null,null,null,null,null,null,null,null,null,null,null,null,null,null,null,null,null,null,null,null,null,null,null,null,null,null,null,null,null,null,null,null,null,"EDF (European Development Fund)"]
[null,null,null,null,null,null,null,null,null,null,null,null,null,null,null,null,null,null,null,null,null,null,null,null,null,null,null,null,null,null,null,null,null,null,null,null,null,null,null,null,null,null,null,null,null,null,null,null,null,null,null,null,"ECB (European Central Bank)"]
[null,null,null,null,null,null,null,null,null,null,null,null,null,null,null,null,null,null,null,null,null,null,null,null,null,null,null,null,null,null,null,null,null,null,null,null,null,null,null,null,null,null,null,null,null,null,null,null,null,null,null,null,"EIF (European Investment Fund)"]
[null,null,null,null,null,null,null,null,null,null,null,null,null,null,null,null,null,null,null,null,null,null,null,null,null,null,null,null,null,null,null,null,null,null,null,null,null,null,null,null,null,null,null,null,null,null,null,null,null,null,null,null,"ECSC (European Coal and Steel Community)"]
[null,null,null,null,null,null,null,null,null,null,null,null,null,null,null,null,null,null,null,null,null,null,null,null,null,null,null,null,null,null,null,null,null,null,null,null,null,null,null,null,null,null,null,null,null,null,null,null,null,null,null,null,"Neighbourhood Investment Facility"]
[null,null,null,null,null,null,null,null,null,null,null,null,null,null,null,null,null,null,null,null,null,null,null,null,null,null,null,null,null,null,null,null,null,null,null,null,null,null,null,null,null,null,null,null,null,null,null,null,null,null,null,null,"FEMIP (Facility for Euro-Mediterranean Investment and Partnership)"]
[null,null,null,null,null,null,null,null,null,null,null,null,null,null,null,null,null,null,null,null,null,null,null,null,null,null,null,null,null,null,null,null,null,null,null,null,null,null,null,null,null,null,null,null,null,null,null,null,null,null,null,null,"Other European Union Institutions, Organs and Organisms covered by General budget"]
[null,null,null,null,null,null,null,null,null,null,null,null,null,null,null,null,null,null,null,null,null,null,null,null,null,null,null,null,null,null,null,null,null,null,null,null,null,null,null,null,null,null,null,null,null,null,null,null,null,null,null,null,"European Parliament"]
[null,null,null,null,null,null,null,null,null,null,null,null,null,null,null,null,null,null,null,null,null,null,null,null,null,null,null,null,null,null,null,null,null,null,null,null,null,null,null,null,null,null,null,null,null,null,null,null,null,null,null,null,"Council of the European Union"]
[null,null,null,null,null,null,null,null,null,null,null,null,null,null,null,null,null,null,null,null,null,null,null,null,null,null,null,null,null,null,null,null,null,null,null,null,null,null,null,null,null,null,null,null,null,null,null,null,null,null,null,null,"Court of Justice"]
[null,null,null,null,null,null,null,null,null,null,null,null,null,null,null,null,null,null,null,null,null,null,null,null,null,null,null,null,null,null,null,null,null,null,null,null,null,null,null,null,null,null,null,null,null,null,null,null,null,null,null,null,"Court of Auditors"]
[null,null,null,null,null,null,null,null,null,null,null,null,null,null,null,null,null,null,null,null,null,null,null,null,null,null,null,null,null,null,null,null,null,null,null,null,null,null,null,null,null,null,null,null,null,null,null,null,null,null,null,null,"European Council"]
[null,null,null,null,null,null,null,null,null,null,null,null,null,null,null,null,null,null,null,null,null,null,null,null,null,null,null,null,null,null,null,null,null,null,null,null,null,null,null,null,null,null,null,null,null,null,null,null,null,null,null,null,"Economic and Social Committee"]
[null,null,null,null,null,null,null,null,null,null,null,null,null,null,null,null,null,null,null,null,null,null,null,null,null,null,null,null,null,null,null,null,null,null,null,null,null,null,null,null,null,null,null,null,null,null,null,null,null,null,null,null,"Committee of the Regions"]
[null,null,null,null,null,null,null,null,null,null,null,null,null,null,null,null,null,null,null,null,null,null,null,null,null,null,null,null,null,null,null,null,null,null,null,null,null,null,null,null,null,null,null,null,null,null,null,null,null,null,null,null,"EU-Africa Infrastructure Trust Fund"]
[null,null,null,null,null,null,null,null,null,null,null,null,null,null,null,null,null,null,null,null,null,null,null,null,null,null,null,null,null,null,null,null,null,null,null,null,null,null,null,null,null,null,null,null,null,null,null,null,null,null,null,null,"ESM (European Stability Mechanism)"]
[null,null,null,null,null,null,null,null,null,null,null,null,null,null,null,null,null,null,null,null,null,null,null,null,null,null,null,null,null,null,null,null,null,null,null,null,null,null,null,null,null,null,null,null,null,null,null,null,null,null,null,null,"Joint Committee of the European Supervisory Authorities (ESAs)"]
[null,null,null,null,null,null,null,null,null,null,null,null,null,null,null,null,null,null,null,null,null,null,null,null,null,null,null,null,null,null,null,null,null,null,null,null,null,null,null,null,null,null,null,null,null,null,null,null,null,null,null,null,"All the European Union Institutions financed via the EU Budget"]
[null,null,null,null,null,null,null,null,null,null,null,null,null,null,null,null,null,null,null,null,null,null,null,null,null,null,null,null,null,null,null,null,null,null,null,null,null,null,null,null,null,null,null,null,null,null,null,null,null,null,null,null,"All the European Union Institutions not financed via the EU Budget"]
[null,null,null,null,null,null,null,null,null,null,null,null,null,null,null,null,null,null,null,null,null,null,null,null,null,null,null,null,null,null,null,null,null,null,null,null,null,null,null,null,null,null,null,null,null,null,null,null,null,null,null,null,"All European Community Institutions, Organs and Organisms, including ECB and ESM"]
[null,null,null,null,null,null,null,null,null,null,null,null,null,null,null,null,null,null,null,null,null,null,null,null,null,null,null,null,null,null,null,null,null,null,null,null,null,null,null,null,null,null,null,null,null,null,null,null,null,null,null,null,"Other small European Union Institutions (Ombudsman, Data Protection Supervisor etc.)"]
[null,null,null,null,null,null,null,null,null,null,null,null,null,null,null,null,null,null,null,null,null,null,null,null,null,null,null,null,null,null,null,null,null,null,null,null,null,null,null,null,null,null,null,null,null,null,null,null,null,null,null,null,"OECD (Organisation for Economic Co-operation and Development)"]
[null,null,null,null,null,null,null,null,null,null,null,null,null,null,null,null,null,null,null,null,null,null,null,null,null,null,null,null,null,null,null,null,null,null,null,null,null,null,null,null,null,null,null,null,null,null,null,null,null,null,null,null,"BIS (Bank for International Settlements)"]
[null,null,null,null,null,null,null,null,null,null,null,null,null,null,null,null,null,null,null,null,null,null,null,null,null,null,null,null,null,null,null,null,null,null,null,null,null,null,null,null,null,null,null,null,null,null,null,null,null,null,null,null,"IADB (Inter-American Development Bank)"]
[null,null,null,null,null,null,null,null,null,null,null,null,null,null,null,null,null,null,null,null,null,null,null,null,null,null,null,null,null,null,null,null,null,null,null,null,null,null,null,null,null,null,null,null,null,null,null,null,null,null,null,null,"AfDB (African Development Bank)"]
[null,null,null,null,null,null,null,null,null,null,null,null,null,null,null,null,null,null,null,null,null,null,null,null,null,null,null,null,null,null,null,null,null,null,null,null,null,null,null,null,null,null,null,null,null,null,null,null,null,null,null,null,"AsDB (Asian Development Bank)"]
[null,null,null,null,null,null,null,null,null,null,null,null,null,null,null,null,null,null,null,null,null,null,null,null,null,null,null,null,null,null,null,null,null,null,null,null,null,null,null,null,null,null,null,null,null,null,null,null,null,null,null,null,"EBRD (European Bank for Reconstruction and Development)"]
[null,null,null,null,null,null,null,null,null,null,null,null,null,null,null,null,null,null,null,null,null,null,null,null,null,null,null,null,null,null,null,null,null,null,null,null,null,null,null,null,null,null,null,null,null,null,null,null,null,null,null,null,"IIC (Inter-American Investment Corporation)"]
[null,null,null,null,null,null,null,null,null,null,null,null,null,null,null,null,null,null,null,null,null,null,null,null,null,null,null,null,null,null,null,null,null,null,null,null,null,null,null,null,null,null,null,null,null,null,null,null,null,null,null,null,"NIB (Nordic Investment Bank)"]
[null,null,null,null,null,null,null,null,null,null,null,null,null,null,null,null,null,null,null,null,null,null,null,null,null,null,null,null,null,null,null,null,null,null,null,null,null,null,null,null,null,null,null,null,null,null,null,null,null,null,null,null,"ECCB (Eastern Caribbean Central Bank)"]
[null,null,null,null,null,null,null,null,null,null,null,null,null,null,null,null,null,null,null,null,null,null,null,null,null,null,null,null,null,null,null,null,null,null,null,null,null,null,null,null,null,null,null,null,null,null,null,null,null,null,null,null,"IBEC (International Bank for Economic Co-operation)"]
[null,null,null,null,null,null,null,null,null,null,null,null,null,null,null,null,null,null,null,null,null,null,null,null,null,null,null,null,null,null,null,null,null,null,null,null,null,null,null,null,null,null,null,null,null,null,null,null,null,null,null,null,"IIB (International Investment Bank)"]
[null,null,null,null,null,null,null,null,null,null,null,null,null,null,null,null,null,null,null,null,null,null,null,null,null,null,null,null,null,null,null,null,null,null,null,null,null,null,null,null,null,null,null,null,null,null,null,null,null,null,null,null,"CDB (Caribbean Development Bank)"]
[null,null,null,null,null,null,null,null,null,null,null,null,null,null,null,null,null,null,null,null,null,null,null,null,null,null,null,null,null,null,null,null,null,null,null,null,null,null,null,null,null,null,null,null,null,null,null,null,null,null,null,null,"AMF (Arab Monetary Fund)"]
[null,null,null,null,null,null,null,null,null,null,null,null,null,null,null,null,null,null,null,null,null,null,null,null,null,null,null,null,null,null,null,null,null,null,null,null,null,null,null,null,null,null,null,null,null,null,null,null,null,null,null,null,"BADEA (Banque arabe pour le développement économique en Afrique)"]
[null,null,null,null,null,null,null,null,null,null,null,null,null,null,null,null,null,null,null,null,null,null,null,null,null,null,null,null,null,null,null,null,null,null,null,null,null,null,null,null,null,null,null,null,null,null,null,null,null,null,null,null,"BCEAO (Banque Centrale des Etats de l'Afrique de l'Ouest)"]
[null,null,null,null,null,null,null,null,null,null,null,null,null,null,null,null,null,null,null,null,null,null,null,null,null,null,null,null,null,null,null,null,null,null,null,null,null,null,null,null,null,null,null,null,null,null,null,null,null,null,null,null,"CASDB (Central African States Development Bank)"]
[null,null,null,null,null,null,null,null,null,null,null,null,null,null,null,null,null,null,null,null,null,null,null,null,null,null,null,null,null,null,null,null,null,null,null,null,null,null,null,null,null,null,null,null,null,null,null,null,null,null,null,null,"African Development Fund"]
[null,null,null,null,null,null,null,null,null,null,null,null,null,null,null,null,null,null,null,null,null,null,null,null,null,null,null,null,null,null,null,null,null,null,null,null,null,null,null,null,null,null,null,null,null,null,null,null,null,null,null,null,"Asian Development Fund"]
[null,null,null,null,null,null,null,null,null,null,null,null,null,null,null,null,null,null,null,null,null,null,null,null,null,null,null,null,null,null,null,null,null,null,null,null,null,null,null,null,null,null,null,null,null,null,null,null,null,null,null,null,"Fonds spécial unifié de développement"]
[null,null,null,null,null,null,null,null,null,null,null,null,null,null,null,null,null,null,null,null,null,null,null,null,null,null,null,null,null,null,null,null,null,null,null,null,null,null,null,null,null,null,null,null,null,null,null,null,null,null,null,null,"CABEI (Central American Bank for Economic Integration)"]
[null,null,null,null,null,null,null,null,null,null,null,null,null,null,null,null,null,null,null,null,null,null,null,null,null,null,null,null,null,null,null,null,null,null,null,null,null,null,null,null,null,null,null,null,null,null,null,null,null,null,null,null,"ADC (Andean Development Corporation)"]
[null,null,null,null,null,null,null,null,null,null,null,null,null,null,null,null,null,null,null,null,null,null,null,null,null,null,null,null,null,null,null,null,null,null,null,null,null,null,null,null,null,null,null,null,null,null,null,null,null,null,null,null,"Other International Organisations (financial institutions)"]
[null,null,null,null,null,null,null,null,null,null,null,null,null,null,null,null,null,null,null,null,null,null,null,null,null,null,null,null,null,null,null,null,null,null,null,null,null,null,null,null,null,null,null,null,null,null,null,null,null,null,null,null,"BEAC (Banque des Etats de l'Afrique Centrale)"]
[null,null,null,null,null,null,null,null,null,null,null,null,null,null,null,null,null,null,null,null,null,null,null,null,null,null,null,null,null,null,null,null,null,null,null,null,null,null,null,null,null,null,null,null,null,null,null,null,null,null,null,null,"CEMAC (Communauté Économique et Monétaire de l'Afrique Centrale)"]
[null,null,null,null,null,null,null,null,null,null,null,null,null,null,null,null,null,null,null,null,null,null,null,null,null,null,null,null,null,null,null,null,null,null,null,null,null,null,null,null,null,null,null,null,null,null,null,null,null,null,null,null,"ECCU (Eastern Caribbean Currency Union)"]
[null,null,null,null,null,null,null,null,null,null,null,null,null,null,null,null,null,null,null,null,null,null,null,null,null,null,null,null,null,null,null,null,null,null,null,null,null,null,null,null,null,null,null,null,null,null,null,null,null,null,null,null,"Other International Financial Organisations"]
[null,null,null,null,null,null,null,null,null,null,null,null,null,null,null,null,null,null,null,null,null,null,null,null,null,null,null,null,null,null,null,null,null,null,null,null,null,null,null,null,null,null,null,null,null,null,null,null,null,null,null,null,"Other International Organisations (non-financial institutions)"]
[null,null,null,null,null,null,null,null,null,null,null,null,null,null,null,null,null,null,null,null,null,null,null,null,null,null,null,null,null,null,null,null,null,null,null,null,null,null,null,null,null,null,null,null,null,null,null,null,null,null,null,null,"NATO (North Atlantic Treaty Organisation)"]
[null,null,null,null,null,null,null,null,null,null,null,null,null,null,null,null,null,null,null,null,null,null,null,null,null,null,null,null,null,null,null,null,null,null,null,null,null,null,null,null,null,null,null,null,null,null,null,null,null,null,null,null,"Council of Europe"]
[null,null,null,null,null,null,null,null,null,null,null,null,null,null,null,null,null,null,null,null,null,null,null,null,null,null,null,null,null,null,null,null,null,null,null,null,null,null,null,null,null,null,null,null,null,null,null,null,null,null,null,null,"ICRC (International Committee of the Red Cross)"]
[null,null,null,null,null,null,null,null,null,null,null,null,null,null,null,null,null,null,null,null,null,null,null,null,null,null,null,null,null,null,null,null,null,null,null,null,null,null,null,null,null,null,null,null,null,null,null,null,null,null,null,null,"ESA (European Space Agency)"]
[null,null,null,null,null,null,null,null,null,null,null,null,null,null,null,null,null,null,null,null,null,null,null,null,null,null,null,null,null,null,null,null,null,null,null,null,null,null,null,null,null,null,null,null,null,null,null,null,null,null,null,null,"EPO (European Patent Office)"]
[null,null,null,null,null,null,null,null,null,null,null,null,null,null,null,null,null,null,null,null,null,null,null,null,null,null,null,null,null,null,null,null,null,null,null,null,null,null,null,null,null,null,null,null,null,null,null,null,null,null,null,null,"EUROCONTROL (European Organisation for the Safety of Air Navigation)"]
[null,null,null,null,null,null,null,null,null,null,null,null,null,null,null,null,null,null,null,null,null,null,null,null,null,null,null,null,null,null,null,null,null,null,null,null,null,null,null,null,null,null,null,null,null,null,null,null,null,null,null,null,"EUTELSAT (European Telecommunications Satellite Organisation)"]
[null,null,null,null,null,null,null,null,null,null,null,null,null,null,null,null,null,null,null,null,null,null,null,null,null,null,null,null,null,null,null,null,null,null,null,null,null,null,null,null,null,null,null,null,null,null,null,null,null,null,null,null,"WAEMU (West African Economic and Monetary Union)"]
[null,null,null,null,null,null,null,null,null,null,null,null,null,null,null,null,null,null,null,null,null,null,null,null,null,null,null,null,null,null,null,null,null,null,null,null,null,null,null,null,null,null,null,null,null,null,null,null,null,null,null,null,"INTELSAT (International Telecommunications Satellite Organisation)"]
[null,null,null,null,null,null,null,null,null,null,null,null,null,null,null,null,null,null,null,null,null,null,null,null,null,null,null,null,null,null,null,null,null,null,null,null,null,null,null,null,null,null,null,null,null,null,null,null,null,null,null,null,"EBU/UER (European Broadcasting Union/Union européenne de radio-télévision)"]
[null,null,null,null,null,null,null,null,null,null,null,null,null,null,null,null,null,null,null,null,null,null,null,null,null,null,null,null,null,null,null,null,null,null,null,null,null,null,null,null,null,null,null,null,null,null,null,null,null,null,null,null,"EUMETSAT (European Organisation for the Exploitation of Meteorological Satellites)"]
[null,null,null,null,null,null,null,null,null,null,null,null,null,null,null,null,null,null,null,null,null,null,null,null,null,null,null,null,null,null,null,null,null,null,null,null,null,null,null,null,null,null,null,null,null,null,null,null,null,null,null,null,"ESO (European Southern Observatory)"]
[null,null,null,null,null,null,null,null,null,null,null,null,null,null,null,null,null,null,null,null,null,null,null,null,null,null,null,null,null,null,null,null,null,null,null,null,null,null,null,null,null,null,null,null,null,null,null,null,null,null,null,null,"ECMWF (European Centre for Medium-Range Weather Forecasts)"]
[null,null,null,null,null,null,null,null,null,null,null,null,null,null,null,null,null,null,null,null,null,null,null,null,null,null,null,null,null,null,null,null,null,null,null,null,null,null,null,null,null,null,null,null,null,null,null,null,null,null,null,null,"EMBL (European Molecular Biology Laboratory)"]
[null,null,null,null,null,null,null,null,null,null,null,null,null,null,null,null,null,null,null,null,null,null,null,null,null,null,null,null,null,null,null,null,null,null,null,null,null,null,null,null,null,null,null,null,null,null,null,null,null,null,null,null,"CERN (European Organisation for Nuclear Research)"]
[null,null,null,null,null,null,null,null,null,null,null,null,null,null,null,null,null,null,null,null,null,null,null,null,null,null,null,null,null,null,null,null,null,null,null,null,null,null,null,null,null,null,null,null,null,null,null,null,null,null,null,null,"IOM (International Organisation for Migration)"]
[null,null,null,null,null,null,null,null,null,null,null,null,null,null,null,null,null,null,null,null,null,null,null,null,null,null,null,null,null,null,null,null,null,null,null,null,null,null,null,null,null,null,null,null,null,null,null,null,null,null,null,null,"IDB (Islamic Development Bank)"]
[null,null,null,null,null,null,null,null,null,null,null,null,null,null,null,null,null,null,null,null,null,null,null,null,null,null,null,null,null,null,null,null,null,null,null,null,null,null,null,null,null,null,null,null,null,null,null,null,null,null,null,null,"EDB (Eurasian Development Bank)"]
[null,null,null,null,null,null,null,null,null,null,null,null,null,null,null,null,null,null,null,null,null,null,null,null,null,null,null,null,null,null,null,null,null,null,null,null,null,null,null,null,null,null,null,null,null,null,null,null,null,null,null,null,"Paris Club Creditor Institutions"]
[null,null,null,null,null,null,null,null,null,null,null,null,null,null,null,null,null,null,null,null,null,null,null,null,null,null,null,null,null,null,null,null,null,null,null,null,null,null,null,null,null,null,null,null,null,null,null,null,null,null,null,null,"CEB (Council of Europe Development Bank)"]
[null,null,null,null,null,null,null,null,null,null,null,null,null,null,null,null,null,null,null,null,null,null,null,null,null,null,null,null,null,null,null,null,null,null,null,null,null,null,null,null,null,null,null,null,null,null,null,null,null,null,null,null,"Other International Non-Financial Organisations"]
[null,null,null,null,null,null,null,null,null,null,null,null,null,null,null,null,null,null,null,null,null,null,null,null,null,null,null,null,null,null,null,null,null,null,null,null,null,null,null,null,null,null,null,null,null,null,null,null,null,null,null,null,"International Organisations excluding European Union Institutions"]
[null,null,null,null,null,null,null,null,null,null,null,null,null,null,null,null,null,null,null,null,null,null,null,null,null,null,null,null,null,null,null,null,null,null,null,null,null,null,null,null,null,null,null,null,null,null,null,null,null,null,null,null,"International Union of Credit and Investment Insurers"]
[null,null,null,null,null,null,null,null,null,null,null,null,null,null,null,null,null,null,null,null,null,null,null,null,null,null,null,null,null,null,null,null,null,null,null,null,null,null,null,null,null,null,null,null,null,null,null,null,null,null,null,null,"European Financial Stability Facility (EFSF)"]
[null,null,null,null,null,null,null,null,null,null,null,null,null,null,null,null,null,null,null,null,null,null,null,null,null,null,null,null,null,null,null,null,null,null,null,null,null,null,null,null,null,null,null,null,null,null,null,null,null,null,null,null,"Multilateral Lending Agencies"]
[null,null,null,null,null,null,null,null,null,null,null,null,null,null,null,null,null,null,null,null,null,null,null,null,null,null,null,null,null,null,null,null,null,null,null,null,null,null,null,null,null,null,null,null,null,null,null,null,null,null,null,null,"ICSID (International Centre for Settlement of Investment Disputes)"]
[null,null,null,null,null,null,null,null,null,null,null,null,null,null,null,null,null,null,null,null,null,null,null,null,null,null,null,null,null,null,null,null,null,null,null,null,null,null,null,null,null,null,null,null,null,null,null,null,null,null,null,null,"World Bank Group Bank Group"]
[null,null,null,null,null,null,null,null,null,null,null,null,null,null,null,null,null,null,null,null,null,null,null,null,null,null,null,null,null,null,null,null,null,null,null,null,null,null,null,null,null,null,null,null,null,null,null,null,null,null,null,null,"EURATOM"]
[null,null,null,null,null,null,null,null,null,null,null,null,null,null,null,null,null,null,null,null,null,null,null,null,null,null,null,null,null,null,null,null,null,null,null,null,null,null,null,null,null,null,null,null,null,null,null,null,null,null,null,null,"Black Sea Trade and Development Banks"]
[null,null,null,null,null,null,null,null,null,null,null,null,null,null,null,null,null,null,null,null,null,null,null,null,null,null,null,null,null,null,null,null,null,null,null,null,null,null,null,null,null,null,null,null,null,null,null,null,null,null,null,null,"AFREXIMBANK (African Export-Import Bank)"]
[null,null,null,null,null,null,null,null,null,null,null,null,null,null,null,null,null,null,null,null,null,null,null,null,null,null,null,null,null,null,null,null,null,null,null,null,null,null,null,null,null,null,null,null,null,null,null,null,null,null,null,null,"BLADEX (Banco Latino Americano De Comercio Exterior)"]
[null,null,null,null,null,null,null,null,null,null,null,null,null,null,null,null,null,null,null,null,null,null,null,null,null,null,null,null,null,null,null,null,null,null,null,null,null,null,null,null,null,null,null,null,null,null,null,null,null,null,null,null,"FLAR (Fondo Latino Americano de Reservas)"]
[null,null,null,null,null,null,null,null,null,null,null,null,null,null,null,null,null,null,null,null,null,null,null,null,null,null,null,null,null,null,null,null,null,null,null,null,null,null,null,null,null,null,null,null,null,null,null,null,null,null,null,null,"Fonds Belgo-Congolais d'Amortissement et de Gestion"]
[null,null,null,null,null,null,null,null,null,null,null,null,null,null,null,null,null,null,null,null,null,null,null,null,null,null,null,null,null,null,null,null,null,null,null,null,null,null,null,null,null,null,null,null,null,null,null,null,null,null,null,null,"IFFIm (International Finance Facility for Immunisation)"]
[null,null,null,null,null,null,null,null,null,null,null,null,null,null,null,null,null,null,null,null,null,null,null,null,null,null,null,null,null,null,null,null,null,null,null,null,null,null,null,null,null,null,null,null,null,null,null,null,null,null,null,null,"EUROFIMA (European Company for the Financing of Railroad Rolling Stock)"]
[null,null,null,null,null,null,null,null,null,null,null,null,null,null,null,null,null,null,null,null,null,null,null,null,null,null,null,null,null,null,null,null,null,null,null,null,null,null,null,null,null,null,null,null,null,null,null,null,null,null,null,null,"International organization excluding the BIS and the IMF"]

{"sheet":"C_00.01","index":5,"n_rows":16,"n_cols":10,"rows_kept":16,"cut":false,"hidden":true,"merged":[[1,1,1,14],[4,1,4,11],[8,3,9,3]]}
["Back to Index"]
[null,"Nature of Report - COREP"]
[]
[]
[null,"C 00.01"]
[]
[]
[]
[null,null,null,"Columns"]
[]
[null,null,null,"Nature of Report"]
[null,null,null,"0010",null,null,null,null,{"$f":"Show!$B$2&\"C 00.01 Rows {\"&COLUMN($C$1)&\"}\"&Index!$E$6","v":"/C 00.01 Rows {3}"},{"$f":"Show!$B$2&\"C 00.01 Columns {\"&COLUMN($D$1)&\"}\"","v":"/C 00.01 Columns {4}"}]
[null,"Rows",""]
[null,"Accounting framework","0010"]
[null,"Reporting Level","0020"]
[null,null,null,null,null,null,null,null,{"$f":"Show!$B$2&Show!$B$2&\"C 00.01 Rows {\"&COLUMN($C$1)&\"}\"","v":"//C 00.01 Rows {3}"},{"$f":"Show!$B$2&Show!$B$2&\"C 00.01 Columns {\"&COLUMN($D$1)&\"}\"","v":"//C 00.01 Columns {4}"}]

{"sheet":"R_13.00","index":6,"n_rows":49,"n_cols":10,"rows_kept":49,"cut":false,"hidden":true,"merged":[[1,1,1,14],[4,1,4,11],[8,3,9,3],[27,1,27,11],[31,3,32,3]]}
["Back to Index"]
[null,"Corporate information"]
[]
[]
[null,"R 13.00.a"]
[]
[]
[]
[null,null,null,"Columns"]
[]
[null,null,null,"Entity information"]
[null,null,null,"0010",null,null,null,null,{"$f":"Show!$B$3&\"R 13.00.a Rows {\"&COLUMN($C$1)&\"}\"&Index!$E$7","v":"!R 13.00.a Rows {3}"},{"$f":"Show!$B$3&\"R 13.00.a Columns {\"&COLUMN($D$1)&\"}\"","v":"!R 13.00.a Columns {4}"}]
[null,"Rows",""]
[null,"Corporate name","0010"]
[null,"LEI","0020"]
[null,"Member State","0030"]
[null,"Number of executive directors (including the CEO)","0040"]
[null,"Number of non-executive directors (including the chairperson, excluding employee representatives)","0050"]
[null,"Employee representatives that are members of the management body","0060"]
[null,"Total on balance sheet assets in Euro (individual basis)","0070"]
[null,"Total own funds in Euro (individual basis)","0080"]
[null,"Profit or (-) loss before tax from continuing operations in EUR (individual basis)","0090"]
[null,"1-Tier/2-Tier structure (please select)","0100"]
[null,"Category of the institution/investment firm (please select)","0110"]
[null,"Is the institution significant (yes/no )?","0120"]
[null,null,null,null,null,null,null,null,{"$f":"Show!$B$3&Show!$B$3&\"R 13.00.a Rows {\"&COLUMN($C$1)&\"}\"","v":"!!R 13.00.a Rows {3}"},{"$f":"Show!$B$3&Show!$B$3&\"R 13.00.a Columns {\"&COLUMN($D$1)&\"}\"","v":"!!R 13.00.a Columns {4}"}]
[]
[null,"R 13.00.b"]
[]
[]
[]
[null,null,null,"Columns"]
[]
[null,null,null,"Amount"]
[null,null,null,"0020",null,null,null,null,{"$f":"Show!$B$3&\"R 13.00.b Rows {\"&COLUMN($C$1)&\"}\"&Index!$E$7","v":"!R 13.00.b Rows {3}"},{"$f":"Show!$B$3&\"R 13.00.b Columns {\"&COLUMN($D$1)&\"}\"","v":"!R 13.00.b Columns {4}"}]
[null,"Rows",""]
[null,"Corporate name","0010"]
[null,"LEI","0020"]
[null,"Member State","0030"]
[null,"Number of executive directors (including the CEO)","0040"]
[null,"Number of non-executive directors (including the chairperson, excluding employee representatives)","0050"]
[null,"Employee representatives that are members of the management body","0060"]
[null,"Total on balance sheet assets in Euro (individual basis)","0070"]
[null,"Total own funds in Euro (individual basis)","0080"]
[null,"Profit or (-) loss before tax from continuing operations in EUR (individual basis)","0090"]
[null,"1-Tier/2-Tier structure (please select)","0100"]
[null,"Category of the institution/investment firm (please select)","0110"]
[null,"Is the institution significant (yes/no )?","0120"]
[null,null,null,null,null,null,null,null,{"$f":"Show!$B$3&Show!$B$3&\"R 13.00.b Rows {\"&COLUMN($C$1)&\"}\"","v":"!!R 13.00.b Rows {3}"},{"$f":"Show!$B$3&Show!$B$3&\"R 13.00.b Columns {\"&COLUMN($D$1)&\"}\"","v":"!!R 13.00.b Columns {4}"}]

{"sheet":"M_05.00","index":7,"n_rows":17,"n_cols":26,"rows_kept":17,"cut":false,"hidden":true,"merged":[[1,1,1,14],[4,1,4,11],[8,1,13,1],[8,2,13,2],[8,3,9,12],[10,3,13,3],[10,4,10,5],[11,4,13,4],[10,6,10,12],[11,6,13,6],[11,5,13,5],[11,7,11,12],[12,7,13,7],[12,8,12,11],[12,12,13,12]]}
["Back to Index"]
[null,"Creditor ranking (entity that is not a resolution entity) (TLAC2)"]
[]
[]
[null,"M 05.00"]
[]
[]
[]
[null,"Insolvency rank","Type of creditor","Columns"]
[]
[null,null,null,"Description of insolvency rank","Liabilities and own funds",null,"Liabilities and own funds less excluded liabilities"]
[null,null,null,null,null,"Of which: excluded liabilities",null,"Of which: own funds and eligible liabilities for the purpose of internal MREL"]
[null,null,null,null,null,null,null,null,"Of which: with a residual maturity of",null,null,null,"Of which: perpetual securities"]
[null,null,null,null,null,null,null,null,"≥ 1 year < 2 years","≥ 2 years < 5 years","≥ 5 years < 10 years","≥ 10 years"]
[null,"0010","0020","0030","0040","0050","0060","0070","0080","0090","0100","0110","0120",null,null,null,null,null,null,null,null,null,null,null,{"$f":"Show!$B$4&\"M 05.00 Rows {\"&COLUMN($B$1)&\"}\"&Index!$E$8","v":"!M 05.00 Rows {2}"},{"$f":"Show!$B$4&\"M 05.00 Columns {\"&COLUMN($B$1)&\"}\"","v":"!M 05.00 Columns {2}"}]
[]
[null,null,null,null,null,null,null,null,null,null,null,null,null,null,null,null,null,null,null,null,null,null,null,null,{"$f":"Show!$B$4&Show!$B$4&\"M 05.00 Rows {\"&COLUMN($B$1)&\"}\"","v":"!!M 05.00 Rows {2}"},{"$f":"Show!$B$4&Show!$B$4&\"M 05.00 Columns {\"&COLUMN($M$1)&\"}\"","v":"!!M 05.00 Columns {13}"}]

{"sheet":"B_01.01","index":8,"n_rows":14,"n_cols":16,"rows_kept":14,"cut":false,"hidden":true,"merged":[[1,1,1,14],[4,1,4,11],[8,1,10,1],[8,2,9,6]]}
["Back to Index"]
[null,"RT.01.01: Entity maintaining the register of information"]
[]
[]
[null,"B 01.01"]
[]
[]
[]
[null,"LEI of the entity maintaining the register of information","Columns"]
[]
[null,null,"Name of the entity","Country of the entity ","Type of entity","Competent Authority","Date of the reporting"]
[null,"0010","0020","0030","0040","0050","0060",null,null,null,null,null,null,null,{"$f":"Show!$B$5&\"B 01.01 Rows {\"&COLUMN($B$1)&\"}\"&Index!$E$9","v":"!B 01.01 Rows {2}"},{"$f":"Show!$B$5&\"B 01.01 Columns {\"&COLUMN($B$1)&\"}\"","v":"!B 01.01 Columns {2}"}]
[]
[null,null,null,null,null,null,null,null,null,null,null,null,null,null,{"$f":"Show!$B$5&Show!$B$5&\"B 01.01 Rows {\"&COLUMN($B$1)&\"}\"","v":"!!B 01.01 Rows {2}"},{"$f":"Show!$B$5&Show!$B$5&\"B 01.01 Columns {\"&COLUMN($G$1)&\"}\"","v":"!!B 01.01 Columns {7}"}]

{"sheet":"L_00.02","index":9,"n_rows":19,"n_cols":10,"rows_kept":19,"cut":false,"hidden":true,"merged":[[1,1,1,14],[4,1,4,11],[8,3,9,3]]}
["Back to Index"]
[null,"Summary template"]
[]
[]
[null,"L 00.02"]
[]
[]
[]
[null,null,null,"Columns"]
[]
[null,null,null,"Thresholds for significant IGTs / Quantitative limit (Art. 7.3)"]
[null,null,null,"0010",null,null,null,null,{"$f":"Show!$B$6&\"L 00.02 Rows {\"&COLUMN($C$1)&\"}\"&Index!$E$10","v":"!L 00.02 Rows {3}"},{"$f":"Show!$B$6&\"L 00.02 Columns {\"&COLUMN($D$1)&\"}\"","v":"!L 00.02 Columns {4}"}]
[null,"Rows",""]
[null,"First threshold for significant IGT","0010"]
[null,"Second threshold for significant IGT","0020"]
[null,"Third threshold for significant IGT","0030"]
[null,"Quantitative limit (Art. 7.3)","0040"]
[]
[null,null,null,null,null,null,null,null,{"$f":"Show!$B$6&Show!$B$6&\"L 00.02 Rows {\"&COLUMN($C$1)&\"}\"","v":"!!L 00.02 Rows {3}"},{"$f":"Show!$B$6&Show!$B$6&\"L 00.02 Columns {\"&COLUMN($D$1)&\"}\"","v":"!!L 00.02 Columns {4}"}]

{"sheet":"R_14.00","index":10,"n_rows":24,"n_cols":17,"rows_kept":24,"cut":false,"hidden":true,"merged":[[1,1,1,14],[4,1,4,11],[8,3,9,9],[10,3,10,8],[10,9,11,9]]}
["Back to Index"]
[null,"Executive directors age and gender"]
[]
[]
[null,"R 14.00"]
[]
[]
[]
[null,null,null,"Columns"]
[]
[null,null,null,"Age",null,null,null,null,null,"Total number of executive directors by gender"]
[null,null,null,"<30","30-40","41-50","51-60","61-70",">70"]
[null,null,null,"0010","0020","0030","0040","0050","0060","0070",null,null,null,null,null,{"$f":"Show!$B$7&\"R 14.00 Rows {\"&COLUMN($C$1)&\"}\"&Index!$E$11","v":"!R 14.00 Rows {3}"},{"$f":"Show!$B$7&\"R 14.00 Columns {\"&COLUMN($D$1)&\"}\"","v":"!R 14.00 Columns {4}"}]
[null,"Rows",""]
[null,"Gender","0009"]
[null,"CEO, male","0010"]
[null,"CEO, female","0020"]
[null,"CEO, non-binary","0030"]
[null,"Executive directors (excluding CEO), male","0040"]
[null,"Executive directors (excluding CEO), female","0050"]
[null,"Executive directors (excluding CEO), non-binary","0060"]
[null,"Total number of executive directors per age category","0070"]
[]
[null,null,null,null,null,null,null,null,null,null,null,null,null,null,null,{"$f":"Show!$B$7&Show!$B$7&\"R 14.00 Rows {\"&COLUMN($C$1)&\"}\"","v":"!!R 14.00 Rows {3}"},{"$f":"Show!$B$7&Show!$B$7&\"R 14.00 Columns {\"&COLUMN($J$1)&\"}\"","v":"!!R 14.00 Columns {10}"}]

{"sheet":"M_06.00","index":11,"n_rows":17,"n_cols":23,"rows_kept":17,"cut":false,"hidden":true,"merged":[[11,6,11,11],[12,6,13,6],[12,7,12,10],[12,11,13,11],[1,1,1,14],[4,1,4,11],[8,1,13,1],[8,2,9,11],[10,2,13,2],[10,3,10,4],[11,3,13,3],[10,5,10,11],[11,5,13,5],[11,4,13,4]]}
["Back to Index"]
[null,"Creditor ranking (resolution entities) (TLAC3)"]
[]
[]
[null,"M 06.00"]
[]
[]
[]
[null,"Own funds and liabilities broken down by insolvency rank","Columns"]
[]
[null,null,"Description of insolvency rank","Liabilities and own funds",null,"Liabilities and own funds less excluded liabilities"]
[null,null,null,null,"Of which: excluded liabilities",null,"Of which: own funds and eligible liabilities potentially eligible for meeting MREL"]
[null,null,null,null,null,null,null,"Of which: with a residual maturity of",null,null,null,"Of which: perpetual securities"]
[null,null,null,null,null,null,null,"≥ 1 year < 2 years","≥ 2 year < 5 years","≥ 5 years < 10 years","≥ 10 years"]
[null,"0010","0020","0030","0040","0050","0060","0070","0080","0090","0100","0110",null,null,null,null,null,null,null,null,null,{"$f":"Show!$B$8&\"M 06.00 Rows {\"&COLUMN($B$1)&\"}\"&Index!$E$12","v":"!M 06.00 Rows {2}"},{"$f":"Show!$B$8&\"M 06.00 Columns {\"&COLUMN($B$1)&\"}\"","v":"!M 06.00 Columns {2}"}]
[]
[null,null,null,null,null,null,null,null,null,null,null,null,null,null,null,null,null,null,null,null,null,{"$f":"Show!$B$8&Show!$B$8&\"M 06.00 Rows {\"&COLUMN($B$1)&\"}\"","v":"!!M 06.00 Rows {2}"},{"$f":"Show!$B$8&Show!$B$8&\"M 06.00 Columns {\"&COLUMN($L$1)&\"}\"","v":"!!M 06.00 Columns {12}"}]

{"sheet":"B_01.02","index":12,"n_rows":14,"n_cols":21,"rows_kept":14,"cut":false,"hidden":true,"merged":[[1,1,1,14],[4,1,4,11],[8,1,10,1],[8,2,9,11]]}
["Back to Index"]
[null,"RT.01.02: List of entities within the scope of the register of information"]
[]
[]
[null,"B 01.02"]
[]
[]
[]
[null,"LEI of the entity","Columns"]
[]
[null,null,"Name of the entity ","Country of the entity","Type of entity ","Hierarchy of the entity within the group (where applicable)","LEI of the direct parent undertaking of the entity","Date of last update","Date of integration in the Register of information","Date of deletion in the Register of information","Currency","Value of total assets - of the financial entity"]
[null,"0010","0020","0030","0040","0050","0060","0070","0080","0090","0100","0110",null,null,null,null,null,null,null,{"$f":"Show!$B$9&\"B 01.02 Rows {\"&COLUMN($B$1)&\"}\"&Index!$E$13","v":"!B 01.02 Rows {2}"},{"$f":"Show!$B$9&\"B 01.02 Columns {\"&COLUMN($B$1)&\"}\"","v":"!B 01.02 Columns {2}"}]
[]
[null,null,null,null,null,null,null,null,null,null,null,null,null,null,null,null,null,null,null,{"$f":"Show!$B$9&Show!$B$9&\"B 01.02 Rows {\"&COLUMN($B$1)&\"}\"","v":"!!B 01.02 Rows {2}"},{"$f":"Show!$B$9&Show!$B$9&\"B 01.02 Columns {\"&COLUMN($L$1)&\"}\"","v":"!!B 01.02 Columns {12}"}]

{"sheet":"L_00.03","index":13,"n_rows":30,"n_cols":21,"rows_kept":30,"cut":false,"hidden":true,"merged":[[1,1,1,14],[4,1,4,11],[8,3,9,11],[10,3,10,5],[10,6,10,8],[10,9,10,11]]}
["Back to Index"]
[null,"Summary template"]
[]
[]
[null,"L 00.03"]
[]
[]
[]
[null,null,null,"Columns"]
[]
[null,null,null,"Intragroup transactions from the insurance sector",null,null,"Intragroup transactions from the bank sector",null,null,"Intragroup transactions from other undertakings of the group"]
[null,null,null,"To the banking sector","To the insurance sector","To other undertakings of the group","To the banking sector","To the insurance sector","To other undertakings of the group","To the banking sector","To the insurance sector","To other undertakings of the group"]
[null,null,null,"0010","0020","0030","0040","0050","0060","0070","0080","0090",null,null,null,null,null,null,null,{"$f":"Show!$B$10&\"L 00.03 Rows {\"&COLUMN($C$1)&\"}\"&Index!$E$14","v":"!L 00.03 Rows {3}"},{"$f":"Show!$B$10&\"L 00.03 Columns {\"&COLUMN($D$1)&\"}\"","v":"!L 00.03 Columns {4}"}]
[null,"Rows",""]
[null,"A - Equity-type transactions, debt, asset transfer and derivatives","0009"]
[null,"Debt instruments","0010"]
[null,"Capital instruments","0020"]
[null,"Other asset transfers","0030"]
[null,"Derivatives","0040"]
[null,"B - Off-balance-sheet and contingent liabilities","0049"]
[null,"Guarantees","0050"]
[null,"Other off balance sheet item","0060"]
[null,"C- Insurance/reinsurance transactions","0068"]
[null,"D - P&L transactions","0069"]
[null,"Commissions paid to business providers ","0070"]
[null,"Fees and other charges","0080"]
[null,"Interests","0090"]
[null,"Dividends","0100"]
[]
[null,null,null,null,null,null,null,null,null,null,null,null,null,null,null,null,null,null,null,{"$f":"Show!$B$10&Show!$B$10&\"L 00.03 Rows {\"&COLUMN($C$1)&\"}\"","v":"!!L 00.03 Rows {3}"},{"$f":"Show!$B$10&Show!$B$10&\"L 00.03 Columns {\"&COLUMN($L$1)&\"}\"","v":"!!L 00.03 Columns {12}"}]

{"sheet":"R_15.00","index":14,"n_rows":28,"n_cols":13,"rows_kept":28,"cut":false,"hidden":true,"merged":[[1,1,1,14],[4,1,4,11],[8,3,9,5],[10,3,10,5]]}
["Back to Index"]
[null,"Composition of specific  committees of the management body in its supervisory function"]
[]
[]
[null,"R 15.00"]
[]
[]
[]
[null,null,null,"Columns"]
[]
[null,null,null,"Gender"]
[null,null,null,"Male","Female","Non-binary"]
[null,null,null,"0010","0020","0030",null,null,null,null,null,{"$f":"Show!$B$11&\"R 15.00 Rows {\"&COLUMN($C$1)&\"}\"&Index!$E$15","v":"!R 15.00 Rows {3}"},{"$f":"Show!$B$11&\"R 15.00 Columns {\"&COLUMN($D$1)&\"}\"","v":"!R 15.00 Columns {4}"}]
[null,"Rows",""]
[null,"Chair of risk committee","0010"]
[null,"Other members of the risk committee","0020"]
[null,"Chair of audit committee","0030"]
[null,"Other members of audit committee","0040"]
[null,"Chair of combined audit and risk committee","0050"]
[null,"Other members of combined audit and risk committee","0060"]
[null,"Chair of nomination committee","0070"]
[null,"Other members of the nomination committee","0080"]
[null,"Chair of remuneration committee","0090"]
[null,"Other members of remuneration committee","0100"]
[null,"Chair of the combined nomination and remuneration committee","0110"]
[null,"Other members of the combined nomination and remuneration committee ","0120"]
[]
[null,null,null,null,null,null,null,null,null,null,null,{"$f":"Show!$B$11&Show!$B$11&\"R 15.00 Rows {\"&COLUMN($C$1)&\"}\"","v":"!!R 15.00 Rows {3}"},{"$f":"Show!$B$11&Show!$B$11&\"R 15.00 Columns {\"&COLUMN($F$1)&\"}\"","v":"!!R 15.00 Columns {6}"}]

{"sheet":"B_01.03","index":15,"n_rows":14,"n_cols":15,"rows_kept":14,"cut":false,"hidden":true,"merged":[[1,1,1,14],[4,1,4,11],[8,1,10,1],[8,2,10,2],[8,3,9,4]]}
["Back to Index"]
[null,"RT.01.03: List of branches"]
[]
[]
[null,"B 01.03"]
[]
[]
[]
[null,"Identification code of the branch","LEI of the financial entity head office of the branch","Columns"]
[]
[null,null,null,"Name of the branch","Country of the branch"]
[null,"0010","0020","0030","0040",null,null,null,null,null,null,null,null,{"$f":"Show!$B$12&\"B 01.03 Rows {\"&COLUMN($B$1)&\"}\"&Index!$E$16","v":"!B 01.03 Rows {2}"},{"$f":"Show!$B$12&\"B 01.03 Columns {\"&COLUMN($B$1)&\"}\"","v":"!B 01.03 Columns {2}"}]
[]
[null,null,null,null,null,null,null,null,null,null,null,null,null,{"$f":"Show!$B$12&Show!$B$12&\"B 01.03 Rows {\"&COLUMN($B$1)&\"}\"","v":"!!B 01.03 Rows {2}"},{"$f":"Show!$B$12&Show!$B$12&\"B 01.03 Columns {\"&COLUMN($E$1)&\"}\"","v":"!!B 01.03 Columns {5}"}]

{"sheet":"L_01.00","index":16,"n_rows":16,"n_cols":42,"rows_kept":16,"cut":false,"hidden":true,"merged":[[11,16,11,17],[11,18,11,21],[1,1,1,14],[4,1,4,11],[8,1,12,1],[8,2,9,24],[10,2,10,11],[10,12,10,15],[10,16,10,23],[10,24,12,24],[11,2,11,9],[11,10,12,10],[11,22,11,23],[11,11,12,11],[11,12,12,12],[11,13,12,13],[11,14,11,15]]}
["Back to Index"]
[null,"Equity-type transactions, debt and asset transfers"]
[]
[]
[null,"L 01.00"]
[]
[]
[]
[null,"Identification of the transaction: ID of the intragroup transaction","Columns"]
[]
[null,null,"Identification of the transaction",null,null,null,null,null,null,null,null,null,"Identification of the instrument",null,null,null,"Characteristics of the transaction",null,null,null,null,null,null,null,"Comments"]
[null,null,"Identification of the parties involved",null,null,null,null,null,null,null,"Indirect transactions","Single economic operation","ID Code of the instrument","ID Code of the Type of the instrument","Description of the instrument",null,"Maturity of the transaction",null,"Amount of the transaction",null,null,null,"Associated P&L"]
[null,null,"Investor/lender name","Identification code for investor / lender","Type of code for investor / lender","Sector of the investor / lender","Issuer / borrower name","Identification code for issuer / borrower","Type of code for issuer / borrower","Sector of the issuer / borrower",null,null,null,null,"Type of instrument","Instrument","Issue date","Maturity date","Currency of the transaction","Amount at transaction date","Amount at reporting date","Value of collateral","Amount of dividends/ interest/coupon and other payments","Coupon/ interest rate"]
[null,"0010","0020","0030","0031","0040","0050","0060","0061","0070","0080","0090","0100","0101","0110","0120","0130","0140","0150","0160","0170","0180","0190","0200","0210",null,null,null,null,null,null,null,null,null,null,null,null,null,null,null,{"$f":"Show!$B$13&\"L 01.00 Rows {\"&COLUMN($B$1)&\"}\"&Index!$E$17","v":"!L 01.00 Rows {2}"},{"$f":"Show!$B$13&\"L 01.00 Columns {\"&COLUMN($B$1)&\"}\"","v":"!L 01.00 Columns {2}"}]
[]
[null,null,null,null,null,null,null,null,null,null,null,null,null,null,null,null,null,null,null,null,null,null,null,null,null,null,null,null,null,null,null,null,null,null,null,null,null,null,null,null,{"$f":"Show!$B$13&Show!$B$13&\"L 01.00 Rows {\"&COLUMN($B$1)&\"}\"","v":"!!L 01.00 Rows {2}"},{"$f":"Show!$B$13&Show!$B$13&\"L 01.00 Columns {\"&COLUMN($Y$1)&\"}\"","v":"!!L 01.00 Columns {25}"}]

{"sheet":"R_16.00","index":17,"n_rows":27,"n_cols":17,"rows_kept":27,"cut":false,"hidden":true,"merged":[[1,1,1,14],[4,1,4,11],[8,3,9,9],[10,3,10,8],[10,9,11,9]]}
["Back to Index"]
[null,"Non executive directors age and gender"]
[]
[]
[null,"R 16.00"]
[]
[]
[]
[null,null,null,"Columns"]
[]
[null,null,null,"Age",null,null,null,null,null,"Total number of non-executive directors by gender"]
[null,null,null,"<30","30-40","41-50","51-60","61-70",">70"]
[null,null,null,"0010","0020","0030","0040","0050","0060","0070",null,null,null,null,null,{"$f":"Show!$B$14&\"R 16.00 Rows {\"&COLUMN($C$1)&\"}\"&Index!$E$18","v":"!R 16.00 Rows {3}"},{"$f":"Show!$B$14&\"R 16.00 Columns {\"&COLUMN($D$1)&\"}\"","v":"!R 16.00 Columns {4}"}]
[null,"Rows",""]
[null,"Gender","0009"]
[null,"Chairperson, male","0010"]
[null,"Chairperson, female","0020"]
[null,"Chairperson, non-binary","0030"]
[null,"Non-executive directors, male","0040"]
[null,"Non-executive directors, female","0050"]
[null,"Non-executive directors, non-binary","0060"]
[null,"Employee representatives, male","0070"]
[null,"Employee representatives, female","0080"]
[null,"Employee representatives, non-binary","0090"]
[null,"Total number of non-executive directors by age category","0100"]
[]
[null,null,null,null,null,null,null,null,null,null,null,null,null,null,null,{"$f":"Show!$B$14&Show!$B$14&\"R 16.00 Rows {\"&COLUMN($C$1)&\"}\"","v":"!!R 16.00 Rows {3}"},{"$f":"Show!$B$14&Show!$B$14&\"R 16.00 Columns {\"&COLUMN($J$1)&\"}\"","v":"!!R 16.00 Columns {10}"}]

{"sheet":"B_05.01","index":18,"n_rows":14,"n_cols":20,"rows_kept":14,"cut":false,"hidden":true,"merged":[[1,1,1,14],[4,1,4,11],[8,1,10,1],[8,2,10,2],[8,3,9,9]]}
["Back to Index"]
[null,"RT.05.01: ICT third-party service providers"]
[]
[]
[null,"B 05.01"]
[]
[]
[]
[null,"Identification code of ICT third-party service provider","Type of code to identify the ICT third-party service provider","Columns"]
[]
[null,null,null,"Name of the ICT third-party service provider","Type of person of the ICT third-party service provider","Country of the ICT third-party service provider’s headquarters","Currency of the amount reported in RT.05.01.0070","Total annual expense or estimated cost of the ICT third-party service  provider","Identification code of the ICT third-party service provider’s ultimate parent undertaking","Type of code to identify the ICT third-party service provider’s ultimate parent undertaking"]
[null,"0010","0020","0030","0040","0050","0060","0070","0080","0090",null,null,null,null,null,null,null,null,{"$f":"Show!$B$15&\"B 05.01 Rows {\"&COLUMN($B$1)&\"}\"&Index!$E$19","v":"!B 05.01 Rows {2}"},{"$f":"Show!$B$15&\"B 05.01 Columns {\"&COLUMN($B$1)&\"}\"","v":"!B 05.01 Columns {2}"}]
[]
[null,null,null,null,null,null,null,null,null,null,null,null,null,null,null,null,null,null,{"$f":"Show!$B$15&Show!$B$15&\"B 05.01 Rows {\"&COLUMN($B$1)&\"}\"","v":"!!B 05.01 Rows {2}"},{"$f":"Show!$B$15&Show!$B$15&\"B 05.01 Columns {\"&COLUMN($J$1)&\"}\"","v":"!!B 05.01 Columns {10}"}]

{"sheet":"L_02.00","index":19,"n_rows":16,"n_cols":50,"rows_kept":16,"cut":false,"hidden":true,"merged":[[11,17,11,18],[11,19,11,22],[1,1,1,14],[4,1,4,11],[8,1,12,1],[8,2,9,31],[10,2,10,11],[10,12,10,16],[10,17,10,30],[10,31,12,31],[11,2,11,9],[11,10,12,10],[11,23,11,29],[11,11,12,11],[11,12,12,12],[11,13,12,13],[11,14,11,16]]}
["Back to Index"]
[null,"Derivatives"]
[]
[]
[null,"L 02.00"]
[]
[]
[]
[null,"Identification of the transaction: ID of the intragroup transaction","Columns"]
[]
[null,null,"Identification of the transaction",null,null,null,null,null,null,null,null,null,"Identification of the instrument",null,null,null,null,"Characteristics of the transaction",null,null,null,null,null,null,null,null,null,null,null,null,null,"Comments"]
[null,null,"Identification of the parties involved",null,null,null,null,null,null,null,"Indirect transactions","Single economic operation","ID Code of the instrument","ID Code of the Type of the instrument","Description of the instrument",null,null,"Maturity of the transaction",null,"Amount of the transaction",null,null,null,"Asset/liability underlying the derivative",null,null,null,null,null,null,"Associated P&L"]
[null,null,"Investor/buyer name","Identification code of the investor / buyer","Type of code of the investor / buyer","Sector of the investor / buyer","Issuer / seller name","Identification code of the issuer / seller","Type of code of the issuer / seller","Financial sector of the issuer / seller",null,null,null,null,"Type of instrument","Type of protection","Purpose of the instrument ","Starting date","Maturity date","Currency of the transaction","Notional amount","Carrying amount","Value of collateral","Identification code of the asset/liability underlying the derivative","Type of code asset/liability underlying the derivative","Counterparty name for which credit protection is purchased","Swap delivered interest rate (for buyer)","Swap received interest rate (for buyer)","Swap delivered currency (for buyer)","Swap received currency (for buyer)","Revenues stemming from derivatives"]
[null,"0010","0020","0030","0031","0040","0050","0060","0061","0070","0080","0090","0100","0101","0110","0120","0130","0140","0150","0160","0170","0180","0190","0200","0201","0210","0220","0230","0240","0250","0260","0270",null,null,null,null,null,null,null,null,null,null,null,null,null,null,null,null,{"$f":"Show!$B$16&\"L 02.00 Rows {\"&COLUMN($B$1)&\"}\"&Index!$E$20","v":"!L 02.00 Rows {2}"},{"$f":"Show!$B$16&\"L 02.00 Columns {\"&COLUMN($B$1)&\"}\"","v":"!L 02.00 Columns {2}"}]
[]
[null,null,null,null,null,null,null,null,null,null,null,null,null,null,null,null,null,null,null,null,null,null,null,null,null,null,null,null,null,null,null,null,null,null,null,null,null,null,null,null,null,null,null,null,null,null,null,null,{"$f":"Show!$B$16&Show!$B$16&\"L 02.00 Rows {\"&COLUMN($B$1)&\"}\"","v":"!!L 02.00 Rows {2}"},{"$f":"Show!$B$16&Show!$B$16&\"L 02.00 Columns {\"&COLUMN($AF$1)&\"}\"","v":"!!L 02.00 Columns {32}"}]

{"sheet":"R_17.00","index":20,"n_rows":21,"n_cols":10,"rows_kept":21,"cut":false,"hidden":true,"merged":[[1,1,1,14],[4,1,4,11],[8,3,9,3],[10,3,11,3]]}
["Back to Index"]
[null,"Newly appointed executive directors (including CEO)"]
[]
[]
[null,"R 17.00"]
[]
[]
[]
[null,null,null,"Columns"]
[]
[null,null,null,"Number of executive directors ([REFERENCE PERIOD])"]
[]
[null,null,null,"0010",null,null,null,null,{"$f":"Show!$B$17&\"R 17.00 Rows {\"&COLUMN($C$1)&\"}\"&Index!$E$21","v":"!R 17.00 Rows {3}"},{"$f":"Show!$B$17&\"R 17.00 Columns {\"&COLUMN($D$1)&\"}\"","v":"!R 17.00 Columns {4}"}]
[null,"Rows",""]
[null,"Gender","0009"]
[null,"Male","0010"]
[null,"Female","0020"]
[null,"Non-binary","0030"]
[null,"Total","0040"]
[]
[null,null,null,null,null,null,null,null,{"$f":"Show!$B$17&Show!$B$17&\"R 17.00 Rows {\"&COLUMN($C$1)&\"}\"","v":"!!R 17.00 Rows {3}"},{"$f":"Show!$B$17&Show!$B$17&\"R 17.00 Columns {\"&COLUMN($D$1)&\"}\"","v":"!!R 17.00 Columns {4}"}]

{"sheet":"L_03.00","index":21,"n_rows":16,"n_cols":38,"rows_kept":16,"cut":false,"hidden":true,"merged":[[11,12,12,12],[11,13,11,14],[11,15,11,20],[1,1,1,14],[4,1,4,11],[8,1,12,1],[8,2,9,22],[10,2,10,11],[10,12,10,21],[10,22,12,22],[11,2,11,9],[11,10,12,10],[11,11,12,11]]}
["Back to Index"]
[null,"Off-balance sheet and contingent liabilities"]
[]
[]
[null,"L 03.00"]
[]
[]
[]
[null,"Identification of the transaction: ID of intragroup transaction","Columns"]
[]
[null,null,"Identification of the transaction",null,null,null,null,null,null,null,null,null,"Characteristics of the transaction",null,null,null,null,null,null,null,null,null,"Comments"]
[null,null,"Identification of the parties involved",null,null,null,null,null,null,null,"Indirect transactions","Single economic operation","Transaction type","Maturity of the transaction",null,"Value of the transaction",null,null,null,null,null,"Associated P&L"]
[null,null,"Provider name","Identification code of the provider","Type of code of the provider","Financial sector of the provider","Beneficiary name","Identification code of the beneficiary","Type of code of the beneficiary","Financial sector of the beneficiary",null,null,null,"Transaction issue date","Expiry date of agreement / contract underlying transaction","Currency of the transaction","Trigger event","Value of transaction at starting date","Value of transaction at reporting date","Maximum possible value of contingent liabilities","Value of guaranteed assets","Revenues stemming from the off balance sheet items"]
[null,"0010","0020","0030","0031","0040","0050","0060","0061","0070","0080","0090","0100","0110","0120","0130","0140","0150","0160","0170","0180","0190","0200",null,null,null,null,null,null,null,null,null,null,null,null,null,{"$f":"Show!$B$18&\"L 03.00 Rows {\"&COLUMN($B$1)&\"}\"&Index!$E$22","v":"!L 03.00 Rows {2}"},{"$f":"Show!$B$18&\"L 03.00 Columns {\"&COLUMN($B$1)&\"}\"","v":"!L 03.00 Columns {2}"}]
[]
[null,null,null,null,null,null,null,null,null,null,null,null,null,null,null,null,null,null,null,null,null,null,null,null,null,null,null,null,null,null,null,null,null,null,null,null,{"$f":"Show!$B$18&Show!$B$18&\"L 03.00 Rows {\"&COLUMN($B$1)&\"}\"","v":"!!L 03.00 Rows {2}"},{"$f":"Show!$B$18&Show!$B$18&\"L 03.00 Columns {\"&COLUMN($W$1)&\"}\"","v":"!!L 03.00 Columns {23}"}]

{"sheet":"R_18.00","index":22,"n_rows":22,"n_cols":10,"rows_kept":22,"cut":false,"hidden":true,"merged":[[1,1,1,14],[4,1,4,11],[8,3,9,3]]}
["Back to Index"]
[null,"Newly appointed non-executive directors (including Chairperson)"]
[]
[]
[null,"R 18.00"]
[]
[]
[]
[null,null,null,"Columns"]
[]
[null,null,null,"Number of non-executive directors ([REFERENCE PERIOD])"]
[null,null,null,"0010",null,null,null,null,{"$f":"Show!$B$19&\"R 18.00 Rows {\"&COLUMN($C$1)&\"}\"&Index!$E$23","v":"!R 18.00 Rows {3}"},{"$f":"Show!$B$19&\"R 18.00 Columns {\"&COLUMN($D$1)&\"}\"","v":"!R 18.00 Columns {4}"}]
[null,"Rows",""]
[null,"Male (excluding employee representatives)","0010"]
[null,"Female (excluding employee representatives)","0020"]
[null,"Non-binary (excluding employee representatives)","0030"]
[null,"Male employee representatives","0040"]
[null,"Female employee representatives","0050"]
[null,"Non-binary employee representatives","0060"]
[null,"Total","0070"]
[]
[null,null,null,null,null,null,null,null,{"$f":"Show!$B$19&Show!$B$19&\"R 18.00 Rows {\"&COLUMN($C$1)&\"}\"","v":"!!R 18.00 Rows {3}"},{"$f":"Show!$B$19&Show!$B$19&\"R 18.00 Columns {\"&COLUMN($D$1)&\"}\"","v":"!!R 18.00 Columns {4}"}]

{"sheet":"L_04.00","index":23,"n_rows":16,"n_cols":41,"rows_kept":16,"cut":false,"hidden":true,"merged":[[1,1,1,14],[4,1,4,11],[8,1,12,1],[8,2,9,24],[10,2,10,13],[10,14,10,23],[10,24,12,24],[11,2,11,9],[11,10,12,10],[11,11,12,11],[11,12,11,13],[11,14,11,15],[11,16,11,19],[11,20,11,22],[11,23,12,23]]}
["Back to Index"]
[null,"Insurance-reinsurance"]
[]
[]
[null,"L 04.00"]
[]
[]
[]
[null,"Identification of the transaction: ID of the intragroup transaction","Columns"]
[]
[null,null,"Identification of the transaction",null,null,null,null,null,null,null,null,null,null,null,"Characteristics of the transaction",null,null,null,null,null,null,null,null,null,"Comments"]
[null,null,"Identification of the parties involved",null,null,null,null,null,null,null,"Indirect transactions","Single economic operation","Description of the transaction",null,"Validity period of the transaction",null,"Amount of the transaction",null,null,null,"Associated P&L",null,null,"Line of business"]
[null,null,"Insured party/cedent name","Identification code for insured party/cedent","Type of code for insured party/cedent","Sector of the insured party/cedent","Insurer/Reinsurer name","Identification code of the insurer/reinsurer","Type of code of insurer/reinsurer","Sector of the insurer/ reinsurer",null,null,"Type of transaction","Transaction","Starting date","Expiry date","Currency of transaction","Maximum cover by transaction","Net receivables","Total reinsurance recoverables ","Reinsurance technical result (for reinsurance)","Premium (for insurance)","Claims (for insurance)"]
[null,"0010","0020","0030","0031","0040","0050","0060","0061","0070","0080","0090","0100","0110","0120","0130","0140","0150","0160","0170","0180","0190","0200","0210","0220",null,null,null,null,null,null,null,null,null,null,null,null,null,null,{"$f":"Show!$B$20&\"L 04.00 Rows {\"&COLUMN($B$1)&\"}\"&Index!$E$24","v":"!L 04.00 Rows {2}"},{"$f":"Show!$B$20&\"L 04.00 Columns {\"&COLUMN($B$1)&\"}\"","v":"!L 04.00 Columns {2}"}]
[]
[null,null,null,null,null,null,null,null,null,null,null,null,null,null,null,null,null,null,null,null,null,null,null,null,null,null,null,null,null,null,null,null,null,null,null,null,null,null,null,{"$f":"Show!$B$20&Show!$B$20&\"L 04.00 Rows {\"&COLUMN($B$1)&\"}\"","v":"!!L 04.00 Rows {2}"},{"$f":"Show!$B$20&Show!$B$20&\"L 04.00 Columns {\"&COLUMN($Y$1)&\"}\"","v":"!!L 04.00 Columns {25}"}]

{"sheet":"R_19.00","index":24,"n_rows":19,"n_cols":16,"rows_kept":19,"cut":false,"hidden":true,"merged":[[1,1,1,14],[4,1,4,11],[8,3,9,9]]}
["Back to Index"]
[null,"Business regions/Geographical provenance"]
[]
[]
[null,"R 19.00"]
[]
[]
[]
[null,null,null,"Columns"]
[]
[null,null,null,"EU/EEA (including the Member State where the institution has its seat)","Europe (non EU/EEA)","Africa","North America","South America","Asia","Australia"]
[null,null,null,"0010","0020","0030","0040","0050","0060","0070",null,null,null,null,{"$f":"Show!$B$21&\"R 19.00 Rows {\"&COLUMN($C$1)&\"}\"&Index!$E$25","v":"!R 19.00 Rows {3}"},{"$f":"Show!$B$21&\"R 19.00 Columns {\"&COLUMN($D$1)&\"}\"","v":"!R 19.00 Columns {4}"}]
[null,"Rows",""]
[null,"Institution/Investment firm active in","0010"]
[null,"Executive directors with background in","0020"]
[null,"Non-executive directors (excluding employee representatives) with background in","0030"]
[null,"Non-executive directors (including employee representatives) with background in","0040"]
[]
[null,null,null,null,null,null,null,null,null,null,null,null,null,null,{"$f":"Show!$B$21&Show!$B$21&\"R 19.00 Rows {\"&COLUMN($C$1)&\"}\"","v":"!!R 19.00 Rows {3}"},{"$f":"Show!$B$21&Show!$B$21&\"R 19.00 Columns {\"&COLUMN($J$1)&\"}\"","v":"!!R 19.00 Columns {10}"}]

{"sheet":"L_05.00","index":25,"n_rows":15,"n_cols":30,"rows_kept":15,"cut":false,"hidden":true,"merged":[[1,1,1,14],[4,1,4,11],[8,1,11,1],[8,2,9,17],[10,2,10,9],[10,10,11,10],[10,11,11,11],[10,12,10,13],[10,14,10,16],[10,17,11,17]]}
["Back to Index"]
[null,"P&L"]
[]
[]
[null,"L 05.00"]
[]
[]
[]
[null,"ID of intra-group transaction","Columns"]
[]
[null,null,"Identification of the parties involved",null,null,null,null,null,null,null,"Indirect transactions","Single economic operation","Identification of the transaction",null,"Characteristics of the transaction",null,null,"Comments"]
[null,null,"Revenue side name","Identification code for revenue side","Type of code for revenue side","Sector of the revenue side","Expense side name","Identification code for expense side","Type of code for expense side","Sector of the expense side",null,null,"Type of transaction","Transaction","Currency of transaction","Transaction date","Amount"]
[null,"0010","0020","0030","0031","0040","0050","0060","0061","0070","0080","0090","0100","0110","0120","0130","0140","0150",null,null,null,null,null,null,null,null,null,null,{"$f":"Show!$B$22&\"L 05.00 Rows {\"&COLUMN($B$1)&\"}\"&Index!$E$26","v":"!L 05.00 Rows {2}"},{"$f":"Show!$B$22&\"L 05.00 Columns {\"&COLUMN($B$1)&\"}\"","v":"!L 05.00 Columns {2}"}]
[]
[null,null,null,null,null,null,null,null,null,null,null,null,null,null,null,null,null,null,null,null,null,null,null,null,null,null,null,null,{"$f":"Show!$B$22&Show!$B$22&\"L 05.00 Rows {\"&COLUMN($B$1)&\"}\"","v":"!!L 05.00 Rows {2}"},{"$f":"Show!$B$22&Show!$B$22&\"L 05.00 Columns {\"&COLUMN($R$1)&\"}\"","v":"!!L 05.00 Columns {18}"}]

{"sheet":"R_20.00","index":26,"n_rows":25,"n_cols":12,"rows_kept":25,"cut":false,"hidden":true,"merged":[[1,1,1,14],[4,1,4,11],[8,3,9,5],[10,3,11,3],[10,4,11,4],[10,5,11,5]]}
["Back to Index"]
[null,"Educational background of members of the management body"]
[]
[]
[null,"R 20.00"]
[]
[]
[]
[null,null,null,"Columns"]
[]
[null,null,null,"Executive directors","Non-executive directors (excluding employee representatives)","Employee representatives"]
[]
[null,null,null,"0010","0020","0030",null,null,null,null,{"$f":"Show!$B$23&\"R 20.00 Rows {\"&COLUMN($C$1)&\"}\"&Index!$E$27","v":"!R 20.00 Rows {3}"},{"$f":"Show!$B$23&\"R 20.00 Columns {\"&COLUMN($D$1)&\"}\"","v":"!R 20.00 Columns {4}"}]
[null,"Rows",""]
[null," Subjects of tertiary education","0009"]
[null,"Law","0010"]
[null,"Business administration or Economics","0020"]
[null,"Mathematics, Physics, Engineering, other natural science","0030"]
[null,"Information technology","0040"]
[null,"University degrees in other than the above subjects","0050"]
[null,"Tertiary education  in banking or finance","0060"]
[null,"Other tertiary education","0070"]
[null,"None of the above tertiary educations","0080"]
[]
[null,null,null,null,null,null,null,null,null,null,{"$f":"Show!$B$23&Show!$B$23&\"R 20.00 Rows {\"&COLUMN($C$1)&\"}\"","v":"!!R 20.00 Rows {3}"},{"$f":"Show!$B$23&Show!$B$23&\"R 20.00 Columns {\"&COLUMN($F$1)&\"}\"","v":"!!R 20.00 Columns {6}"}]

{"sheet":"R_21.00","index":27,"n_rows":34,"n_cols":12,"rows_kept":34,"cut":false,"hidden":true,"merged":[[1,1,1,14],[4,1,4,11],[8,3,9,5],[10,3,11,3],[10,4,11,4],[10,5,11,5]]}
["Back to Index"]
[null,"Professional background of members of the management body"]
[]
[]
[null,"R 21.00"]
[]
[]
[]
[null,null,null,"Columns"]
[]
[null,null,null,"Executive directors","Non-executive directors (excluding employee representatives)","Employee representatives"]
[]
[null,null,null,"0010","0020","0030",null,null,null,null,{"$f":"Show!$B$24&\"R 21.00 Rows {\"&COLUMN($C$1)&\"}\"&Index!$E$28","v":"!R 21.00 Rows {3}"},{"$f":"Show!$B$24&\"R 21.00 Columns {\"&COLUMN($D$1)&\"}\"","v":"!R 21.00 Columns {4}"}]
[null,"Rows",""]
[null,"Sector","0009"]
[null,"Banking","0010"]
[null,"Investment firms, UCITS, AIFs","0020"]
[null,"Payment institutions","0030"]
[null,"Insurance, occupational pension schemes","0040"]
[null,"Information and communication technology","0050"]
[null,"Energy","0060"]
[null,"Environement","0070"]
[null,"HR, Sociology, Psychology","0080"]
[null,"Legal services","0090"]
[null,"Consulting, Auditing, Tax advice","0100"]
[null,"Marketing","0110"]
[null,"Public service (financial supervisor)","0120"]
[null,"Public service (other)","0130"]
[null,"Industrial production","0140"]
[null,"Agriculture","0150"]
[null,"Medical services","0160"]
[null,"Other","0170"]
[]
[null,null,null,null,null,null,null,null,null,null,{"$f":"Show!$B$24&Show!$B$24&\"R 21.00 Rows {\"&COLUMN($C$1)&\"}\"","v":"!!R 21.00 Rows {3}"},{"$f":"Show!$B$24&Show!$B$24&\"R 21.00 Columns {\"&COLUMN($F$1)&\"}\"","v":"!!R 21.00 Columns {6}"}]

{"sheet":"R_22.01","index":28,"n_rows":33,"n_cols":10,"rows_kept":33,"cut":false,"hidden":true,"merged":[[1,1,1,14],[4,1,4,11],[8,3,9,3],[10,3,11,3]]}
["Back to Index"]
[null,"Diversity policy. Nomination and gender diversity"]
[]
[]
[null,"R 22.01"]
[]
[]
[]
[null,null,null,"Columns"]
[]
[null,null,null,"Answer"]
[]
[null,null,null,"0010",null,null,null,null,{"$f":"Show!$B$25&\"R 22.01 Rows {\"&COLUMN($C$1)&\"}\"&Index!$E$29","v":"!R 22.01 Rows {3}"},{"$f":"Show!$B$25&\"R 22.01 Columns {\"&COLUMN($D$1)&\"}\"","v":"!R 22.01 Columns {4}"}]
[null,"Rows",""]
[null,"a) Nomination Committee and diversity policy","0009"]
[null,"Does the institution/investment firm have a nomination committee?","0010"]
[null,"Does the institution/investment firm have a diversity policy?","0020"]
[null,"Does the diversity policy include a target for the representation of the underrepresented male or female gender ?","0030"]
[null,"Quantitative target set as percentage: (yes/no)","0040"]
[null,"Quantitative target set as headcount: (yes/no)","0050"]
[null,"Qualitative target (e.g. aiming at an appropriate gender balance): (yes/no)","0060"]
[null,"Does the diverisity policy explicitly consider non-binary directors (please select the option that best describes your policy)? ","0070"]
[null,"b) Diversity in the recruitment process of the members of the management body: Are the following aspects considered in the recruitment process under Article 91 (10) Directive 2013/36/EU and the Joint EBA and ESMA guidelines on the assessment of the suitability of members of the management body ? ","0079"]
[null,"Gender diversity","0080"]
[null,"Age","0090"]
[null,"Educational background","0100"]
[null,"Professional background","0110"]
[null,"Geographical provenance","0120"]
[null,"c) Gender diversity: please provide the indicated details regarding the diversity policy and its implementation","0129"]
[null,"SCOPE: For which scope of members of the management body are gender diversity targets set? (please select from drop down menu)","0130"]
[null,"Are employee representatives included in the target set for the supervisory function?","0140"]
[]
[null,null,null,null,null,null,null,null,{"$f":"Show!$B$25&Show!$B$25&\"R 22.01 Rows {\"&COLUMN($C$1)&\"}\"","v":"!!R 22.01 Rows {3}"},{"$f":"Show!$B$25&Show!$B$25&\"R 22.01 Columns {\"&COLUMN($D$1)&\"}\"","v":"!!R 22.01 Columns {4}"}]

{"sheet":"R_22.02","index":29,"n_rows":18,"n_cols":13,"rows_kept":18,"cut":false,"hidden":true,"merged":[[1,1,1,14],[4,1,4,11],[8,3,9,6]]}
["Back to Index"]
[null,"Diversity policy. Quantitative targets set within the diversity policy"]
[]
[]
[null,"R 22.02"]
[]
[]
[]
[null,null,null,"Columns"]
[]
[null,null,null,"Executive directors","Non-executive directors","Management body (only if a target is set for the management body, as a whole)","Employee representatives (only if a separate target is set)"]
[null,null,null,"0010","0020","0030","0040",null,null,null,null,{"$f":"Show!$B$26&\"R 22.02 Rows {\"&COLUMN($C$1)&\"}\"&Index!$E$30","v":"!R 22.02 Rows {3}"},{"$f":"Show!$B$26&\"R 22.02 Columns {\"&COLUMN($D$1)&\"}\"","v":"!R 22.02 Columns {4}"}]
[null,"Rows",""]
[null,"Target  % set in percentage (two digits e.g. 33.33%) in the diversity policy, including in cases where this is applicable under national law  ","0010"]
[null,"Target expressed as minimum headcount in the diversity policy (number of members)","0020"]
[null,"Compliance with internal policy: Has the target been met at the reference date?","0030"]
[]
[null,null,null,null,null,null,null,null,null,null,null,{"$f":"Show!$B$26&Show!$B$26&\"R 22.02 Rows {\"&COLUMN($C$1)&\"}\"","v":"!!R 22.02 Rows {3}"},{"$f":"Show!$B$26&Show!$B$26&\"R 22.02 Columns {\"&COLUMN($G$1)&\"}\"","v":"!!R 22.02 Columns {7}"}]

{"sheet":"R_22.03","index":30,"n_rows":21,"n_cols":11,"rows_kept":21,"cut":false,"hidden":true,"merged":[[1,1,1,14],[4,1,4,11],[8,3,9,4],[10,3,11,3],[10,4,11,4]]}
["Back to Index"]
[null,"Diversity policy. Other aspects than gender included in the diversity policy"]
[]
[]
[null,"R 22.03"]
[]
[]
[]
[null,null,null,"Columns"]
[]
[null,null,null,"Is this feature considered in the diversity policy?","Has the policy target been met at the reference date?"]
[]
[null,null,null,"0010","0020",null,null,null,null,{"$f":"Show!$B$27&\"R 22.03 Rows {\"&COLUMN($C$1)&\"}\"&Index!$E$31","v":"!R 22.03 Rows {3}"},{"$f":"Show!$B$27&\"R 22.03 Columns {\"&COLUMN($D$1)&\"}\"","v":"!R 22.03 Columns {4}"}]
[null,"Rows",""]
[null,"Features considered in diversity policy","0009"]
[null,"Age","0010"]
[null,"Educational background","0020"]
[null,"Professional background","0030"]
[null,"Geographical provenance","0040"]
[]
[null,null,null,null,null,null,null,null,null,{"$f":"Show!$B$27&Show!$B$27&\"R 22.03 Rows {\"&COLUMN($C$1)&\"}\"","v":"!!R 22.03 Rows {3}"},{"$f":"Show!$B$27&Show!$B$27&\"R 22.03 Columns {\"&COLUMN($E$1)&\"}\"","v":"!!R 22.03 Columns {5}"}]

{"sheet":"R_23.00","index":31,"n_rows":22,"n_cols":15,"rows_kept":22,"cut":false,"hidden":true,"merged":[[1,1,1,14],[4,1,4,11],[8,3,9,6],[10,3,10,4],[10,5,10,6]]}
["Back to Index"]
[null,"Gender Pay Gap Benchmarking"]
[]
[]
[null,"R 23.00"]
[]
[]
[]
[null,null,null,"Columns"]
[]
[null,null,null,"Gender pay gap between the remuneration of men and woman in percentage of the remuneration of men",null,"Gender pay gap between the remuneration of men and non-binary members in percentage of the remuneration of men"]
[null,null,null,"Gender pay gap based on the median remuneration of members","Gender pay gap based on the mean remuneration of members","Gender pay gap  based on the median remuneration of members","Gender pay gap  based on the mean remuneration of members"]
[null,null,null,"0010","0020","0030","0040",null,null,null,null,null,null,{"$f":"Show!$B$28&\"R 23.00 Rows {\"&COLUMN($C$1)&\"}\"&Index!$E$32","v":"!R 23.00 Rows {3}"},{"$f":"Show!$B$28&\"R 23.00 Columns {\"&COLUMN($D$1)&\"}\"","v":"!R 23.00 Columns {4}"}]
[null,"Rows",""]
[null,"Category","0009"]
[null,"Executive directors  (including CEO)","0010"]
[null,"Executive directors (excluding CEO)","0020"]
[null,"Non-executive directors (including Chairperson, without employee representatives)","0030"]
[null,"Non-executive directors (excluding Chairperson and employee representatives)","0040"]
[null,"Non-executive directors (employee representatives only) ","0050"]
[]
[null,null,null,null,null,null,null,null,null,null,null,null,null,{"$f":"Show!$B$28&Show!$B$28&\"R 23.00 Rows {\"&COLUMN($C$1)&\"}\"","v":"!!R 23.00 Rows {3}"},{"$f":"Show!$B$28&Show!$B$28&\"R 23.00 Columns {\"&COLUMN($G$1)&\"}\"","v":"!!R 23.00 Columns {7}"}]

{"sheet":"C_91.01","index":32,"n_rows":37,"n_cols":45,"rows_kept":37,"cut":false,"hidden":true,"merged":[[12,3,12,24],[12,25,16,25],[12,26,16,26],[12,27,16,27],[13,3,13,20],[13,21,13,22],[13,24,16,24],[14,3,14,5],[14,6,14,17],[14,18,14,20],[14,21,14,22],[14,23,16,23],[15,3,16,3],[15,4,16,4],[15,5,16,5],[15,21,16,21],[1,1,1,14],[4,1,4,11],[6,1,6,2],[7,1,7,2],[10,3,11,27],[15,22,16,22],[15,6,15,9],[15,10,15,13],[15,14,15,17],[15,18,16,18],[15,19,16,19],[15,20,16,20]]}
["Back to Index"]
[null,"Alternative Standardised Approach: Summary (MKR ASA SUM)"]
[]
[]
[null,"C 91.01"]
[]
[null,"Scope of positions and nature of own funds requirement",null,null,null,null,null,null,null,null,null,null,null,null,null,null,null,null,null,null,null,null,null,null,null,null,null,null,null,null,null,null,null,null,null,null,null,null,null,null,null,null,null,{"$f":"Show!$B$29&\"C 91.01 Table {\"&COLUMN($B$1)&\"}\"","v":"!C 91.01 Table {2}"}]
[null,"Offsetting group that the data refers to",null,null,null,null,null,null,null,null,null,null,null,null,null,null,null,null,null,null,null,null,null,null,null,null,null,null,null,null,null,null,null,null,null,null,null,null,null,null,null,null,null,{"$f":"Show!$B$29&Show!$B$29&\"C 91.01 Table {\"&COLUMN($D$1)&\"}\"","v":"!!C 91.01 Table {4}"}]
[]
[]
[null,null,null,"Columns"]
[]
[null,null,null,"Main ASA portfolio",null,null,null,null,null,null,null,null,null,null,null,null,null,null,null,null,null,null,null,null,null,"Own funds requirements  or CIUs calculated on the basis of the mandate-based approach","Own funds requirements for the internal risk transfer (IRT) portfolio","Total risk exposure amount"]
[null,null,null,"Positions subject to sensitivities-based method",null,null,null,null,null,null,null,null,null,null,null,null,null,null,null,null,null,"Positions subject to default risk",null,"Positions subject to residual risk","Own funds requirements for the main ASA portfolio"]
[null,null,null,"Unweighted delta sensitivities",null,null,"Own funds requirements in the different scenarios",null,null,null,null,null,null,null,null,null,null,null,"Own funds requirements in the selected scenario",null,null,"Gross jump-to-default (JTD) amounts",null,"Gross notional value"]
[null,null,null,"Positive","Negative","Net sensitivities per risk class","Low correlation scenario",null,null,null,"Medium correlation scenario",null,null,null,"High correlation scenario",null,null,null,"Delta Risk","Vega Risk","Curvature Risk","Long","Short"]
[null,null,null,null,null,null,"Delta Risk","Vega Risk","Curvature Risk","Total","Delta Risk","Vega Risk","Curvature Risk","Total","Delta Risk","Vega Risk","Curvature Risk","Total"]
[null,null,null,"0010","0020","0030","0040","0050","0060","0070","0080","0090","0100","0110","0120","0130","0140","0150","0155","0156","0157","0160","0170","0180","0190","0194","0197","0200",null,null,null,null,null,null,null,null,null,null,null,null,null,null,null,{"$f":"Show!$B$29&\"C 91.01 Rows {\"&COLUMN($C$1)&\"}\"&Index!$E$33","v":"!C 91.01 Rows {3}"},{"$f":"Show!$B$29&\"C 91.01 Columns {\"&COLUMN($D$1)&\"}\"","v":"!C 91.01 Columns {4}"}]
[null,"Rows",""]
[null,"Total (Alternative standardised approach)","0010"]
[null,"Sensitivity-based method","0019"]
[null,"General interest rate risk (GIRR)","0020"]
[null,"Credit spread risk for non-securitisations (CSR)","0030"]
[null,"Credit spread risk for securitisation not included in the alternative correlation trading portfolio (non-ACTP CSR)","0040"]
[null,"Credit spread risk for securitisation included in the alternative correlation trading portfolio (ACTP CSR)","0050"]
[null,"Equity risk (EQU)","0060"]
[null,"Commodity risk (COM)","0070"]
[null,"Foreign exchange risk (FX)","0080"]
[null,"Default risk","0089"]
[null,"Non-securitisations","0090"]
[null,"Securitisation not included in the alternative correlation trading portfolio (non-ACTP)","0100"]
[null,"Securitisation included in the alternative correlation trading portfolio (ACTP)","0110"]
[null,"Residual risk","0119"]
[null,"Exotic underlyings","0120"]
[null,"Other residual risks","0130"]
[]
[null,null,null,null,null,null,null,null,null,null,null,null,null,null,null,null,null,null,null,null,null,null,null,null,null,null,null,null,null,null,null,null,null,null,null,null,null,null,null,null,null,null,null,{"$f":"Show!$B$29&Show!$B$29&\"C 91.01 Rows {\"&COLUMN($C$1)&\"}\"","v":"!!C 91.01 Rows {3}"},{"$f":"Show!$B$29&Show!$B$29&\"C 91.01 Columns {\"&COLUMN($AB$1)&\"}\"","v":"!!C 91.01 Columns {28}"}]

{"sheet":"M_07.00","index":33,"n_rows":15,"n_cols":32,"rows_kept":15,"cut":false,"hidden":true,"merged":[[10,10,10,14],[1,1,1,14],[4,1,4,11],[8,1,11,1],[8,2,11,2],[8,3,11,3],[8,4,11,4],[8,5,9,14],[10,6,11,6],[10,7,11,7],[10,9,11,9]]}
["Back to Index"]
[null,"Instruments governed by third-country law (MTCI)"]
[]
[]
[null,"M 07.00"]
[]
[]
[]
[null,"Issuing entity: Code","Issuing entity: Type of code","Contract identifier","Regulatory treatment: Type of own funds or eligible liabilities","Columns"]
[]
[null,null,null,null,null,"Issuing entity","Governing law (third country)","Contractual recognition of write down and conversion powers","Regulatory treatment","Amount","Rank in normal insolvency proceedings"]
[null,null,null,null,null,"Name",null,null,"Instrument type",null,"Governing law","Insolvency rank","Maturity","(First) Call date","Regulatory call (Y/N)"]
[null,"0020","0030","0040","0070","0010","0050","0060","0080","0090","0100","0110","0120","0130","0140",null,null,null,null,null,null,null,null,null,null,null,null,null,null,null,{"$f":"Show!$B$30&\"M 07.00 Rows {\"&COLUMN($B$1)&\"}\"&Index!$E$34","v":"!M 07.00 Rows {2}"},{"$f":"Show!$B$30&\"M 07.00 Columns {\"&COLUMN($B$1)&\"}\"","v":"!M 07.00 Columns {2}"}]
[]
[null,null,null,null,null,null,null,null,null,null,null,null,null,null,null,null,null,null,null,null,null,null,null,null,null,null,null,null,null,null,{"$f":"Show!$B$30&Show!$B$30&\"M 07.00 Rows {\"&COLUMN($B$1)&\"}\"","v":"!!M 07.00 Rows {2}"},{"$f":"Show!$B$30&Show!$B$30&\"M 07.00 Columns {\"&COLUMN($O$1)&\"}\"","v":"!!M 07.00 Columns {15}"}]

{"sheet":"B_02.01","index":34,"n_rows":14,"n_cols":15,"rows_kept":14,"cut":false,"hidden":true,"merged":[[1,1,1,14],[4,1,4,11],[8,1,10,1],[8,2,9,5]]}
["Back to Index"]
[null,"RT.02.01: Contractual arrangements – General Information"]
[]
[]
[null,"B 02.01"]
[]
[]
[]
[null,"Contractual arrangement reference number","Columns"]
[]
[null,null,"Type of contractual arrangement","Overarching contractual arrangement reference number","Currency of the amount reported in RT.02.01.0050","Annual expense or estimated cost of the contractual arrangement for the past year"]
[null,"0010","0020","0030","0040","0050",null,null,null,null,null,null,null,{"$f":"Show!$B$31&\"B 02.01 Rows {\"&COLUMN($B$1)&\"}\"&Index!$E$35","v":"!B 02.01 Rows {2}"},{"$f":"Show!$B$31&\"B 02.01 Columns {\"&COLUMN($B$1)&\"}\"","v":"!B 02.01 Columns {2}"}]
[]
[null,null,null,null,null,null,null,null,null,null,null,null,null,{"$f":"Show!$B$31&Show!$B$31&\"B 02.01 Rows {\"&COLUMN($B$1)&\"}\"","v":"!!B 02.01 Rows {2}"},{"$f":"Show!$B$31&Show!$B$31&\"B 02.01 Columns {\"&COLUMN($F$1)&\"}\"","v":"!!B 02.01 Columns {6}"}]

{"sheet":"L_06.00","index":35,"n_rows":14,"n_cols":39,"rows_kept":14,"cut":false,"hidden":true,"merged":[[1,1,1,14],[4,1,4,11],[8,1,10,1],[8,2,9,29]]}
["Back to Index"]
[null,"Risk Concentration - Exposure by counterparties"]
[]
[]
[null,"L 06.00"]
[]
[]
[]
[null,"Identification code of the external counterparty","Columns"]
[]
[null,null,"Name of the external counterparty","ID code type of the external counterparty","Name of the group (in case of group of counterparties)","Rating","Nominated ECAI","Sector","Country","Entity of the financial conglomerate","ID code of the entity of the financial conglomerate","ID code Type of the entity of the financial conglomerate","Equity","Bonds","Assets whose risks are mainly borne by the policyholders","Derivatives","Other investments","Loans and mortgages","Guarantees and commitments","Insurance policies","External reinsurance","Others direct exposures","Description of others ","Indirect exposures ","Transactions where there is an exposure to underlying assets","Currency","Total amount of the exposure","Credit or insurance risk mitigation technique","Exemptions","Amount of the exposures after Credit or insurance risk mitigation technique and exemptions"]
[null,"0020","0010","0030","0040","0050","0051","0060","0070","0080","0090","0100","0110","0120","0130","0140","0150","0160","0170","0180","0190","0200","0210","0220","0230","0240","0250","0260","0270","0280",null,null,null,null,null,null,null,{"$f":"Show!$B$32&\"L 06.00 Rows {\"&COLUMN($B$1)&\"}\"&Index!$E$36","v":"!L 06.00 Rows {2}"},{"$f":"Show!$B$32&\"L 06.00 Columns {\"&COLUMN($B$1)&\"}\"","v":"!L 06.00 Columns {2}"}]
[]
[null,null,null,null,null,null,null,null,null,null,null,null,null,null,null,null,null,null,null,null,null,null,null,null,null,null,null,null,null,null,null,null,null,null,null,null,null,{"$f":"Show!$B$32&Show!$B$32&\"L 06.00 Rows {\"&COLUMN($B$1)&\"}\"","v":"!!L 06.00 Rows {2}"},{"$f":"Show!$B$32&Show!$B$32&\"L 06.00 Columns {\"&COLUMN($AD$1)&\"}\"","v":"!!L 06.00 Columns {30}"}]

{"sheet":"C_92.01","index":36,"n_rows":19,"n_cols":80,"rows_kept":19,"cut":false,"hidden":true,"merged":[[1,1,1,14],[4,1,4,11],[6,1,6,2],[7,1,7,2],[10,1,15,1],[10,2,11,56],[12,2,12,42],[12,43,12,44],[12,45,12,46],[12,48,12,56],[13,48,13,50],[13,51,13,53],[13,54,13,56],[14,40,15,40],[14,41,15,41],[13,2,13,14],[13,15,13,42],[13,43,13,44],[14,2,14,11],[14,12,15,12],[14,13,15,13],[14,14,15,14],[14,15,14,39],[14,42,15,42],[14,43,15,43],[14,44,15,44],[13,45,15,45],[13,46,15,46],[13,47,15,47],[14,54,15,54],[14,55,15,55],[14,56,15,56],[14,48,15,48],[14,49,15,49],[14,50,15,50],[14,51,15,51],[14,52,15,52],[14,53,15,53]]}
["Back to Index"]
[null,"Alternative standardised approach: SBM - GENERAL INTEREST RATE RISK (GIRR) (MKR SBM GIRR)"]
[]
[]
[null,"C 92.01"]
[]
[null,"Scope of positions and nature of own funds requirement",null,null,null,null,null,null,null,null,null,null,null,null,null,null,null,null,null,null,null,null,null,null,null,null,null,null,null,null,null,null,null,null,null,null,null,null,null,null,null,null,null,null,null,null,null,null,null,null,null,null,null,null,null,null,null,null,null,null,null,null,null,null,null,null,null,null,null,null,null,null,null,null,null,null,null,null,{"$f":"Show!$B$33&\"C 92.01 Table {\"&COLUMN($B$1)&\"}\"","v":"!C 92.01 Table {2}"}]
[null,"Offsetting group that the data refers to",null,null,null,null,null,null,null,null,null,null,null,null,null,null,null,null,null,null,null,null,null,null,null,null,null,null,null,null,null,null,null,null,null,null,null,null,null,null,null,null,null,null,null,null,null,null,null,null,null,null,null,null,null,null,null,null,null,null,null,null,null,null,null,null,null,null,null,null,null,null,null,null,null,null,null,null,{"$f":"Show!$B$33&Show!$B$33&\"C 92.01 Table {\"&COLUMN($D$1)&\"}\"","v":"!!C 92.01 Table {4}"}]
[]
[]
[null,"Bucket","Columns"]
[]
[null,null,"Unweighted sensitivities (s_k)",null,null,null,null,null,null,null,null,null,null,null,null,null,null,null,null,null,null,null,null,null,null,null,null,null,null,null,null,null,null,null,null,null,null,null,null,null,null,null,null,"Curvature risk positions (CVR_k)",null,"Sum of weighted sensitivities (∑ WS_k)",null,"Sum of curvature risk positions (S_b)","Bucket-specific sensitivities (K_b)"]
[null,null,"Delta risk factors",null,null,null,null,null,null,null,null,null,null,null,null,"Vega risk factors",null,null,null,null,null,null,null,null,null,null,null,null,null,null,null,null,null,null,null,null,null,null,null,null,null,null,null,"Curvature Risk",null,"Delta Risk","Vega Risk","Curvature Risk","Low correlation scenario",null,null,"Medium correlation scenario",null,null,"High correlation scenario"]
[null,null,"Maturities",null,null,null,null,null,null,null,null,null,"Inflation","Cross-currency basis (over EUR)","Cross-currency basis (over USD)","Maturities  (maturity of the option - residual maturity of the underlying)",null,null,null,null,null,null,null,null,null,null,null,null,null,null,null,null,null,null,null,null,null,null,null,null,"All maturities of the option - inflation","All maturities of the option - Cross-currency basis (over EUR)","All maturities of the option - Cross-currency basis (over USD)","Upward net curvature risk position","Downward net curvature risk  position",null,null,null,"Delta Risk","Vega Risk","Curvature Risk","Delta Risk","Vega Risk","Curvature Risk","Delta Risk","Vega Risk","Curvature Risk"]
[null,null,"0.25 years","0.5 years","1 year","2 years","3 years","5 years","10 years","15 years","20 years","30 years",null,null,null,"0.5 years - 0.5 years","0.5 years - 1 year","0.5 years - 3 years","0.5 years - 5 years","0.5 years - 10 years","1 year - 0.5 years","1 year - 1 year","1 year - 3 years","1 year - 5 years","1 year - 10 years","3 years - 0.5 years","3 years - 1 year","3 years - 3 years","3 years - 5 years","3 years - 10 years","5 years - 0.5 years","5 years - 1 year","5 years - 3 years","5 years - 5 years","5 years - 10 years","10 years - 0.5 years","10 years - 1 year","10 years - 3 years","10 years - 5 years","10 years - 10 years"]
[null,"0010","0100","0110","0120","0130","0140","0150","0160","0170","0180","0190","0200","0210","0220","0250","0260","0270","0280","0290","0300","0310","0320","0330","0340","0350","0360","0370","0380","0390","0400","0410","0420","0430","0440","0450","0460","0470","0480","0490","0500","0510","0520","0600","0610","0700","0710","0800","1000","1010","1020","1030","1040","1050","1060","1070","1080",null,null,null,null,null,null,null,null,null,null,null,null,null,null,null,null,null,null,null,null,null,{"$f":"Show!$B$33&\"C 92.01 Rows {\"&COLUMN($B$1)&\"}\"&Index!$E$37","v":"!C 92.01 Rows {2}"},{"$f":"Show!$B$33&\"C 92.01 Columns {\"&COLUMN($B$1)&\"}\"","v":"!C 92.01 Columns {2}"}]
[]
[null,null,null,null,null,null,null,null,null,null,null,null,null,null,null,null,null,null,null,null,null,null,null,null,null,null,null,null,null,null,null,null,null,null,null,null,null,null,null,null,null,null,null,null,null,null,null,null,null,null,null,null,null,null,null,null,null,null,null,null,null,null,null,null,null,null,null,null,null,null,null,null,null,null,null,null,null,null,{"$f":"Show!$B$33&Show!$B$33&\"C 92.01 Rows {\"&COLUMN($B$1)&\"}\"","v":"!!C 92.01 Rows {2}"},{"$f":"Show!$B$33&Show!$B$33&\"C 92.01 Columns {\"&COLUMN($BE$1)&\"}\"","v":"!!C 92.01 Columns {57}"}]

{"sheet":"B_02.02","index":37,"n_rows":14,"n_cols":34,"rows_kept":14,"cut":false,"hidden":true,"merged":[[1,1,1,14],[4,1,4,11],[8,1,10,1],[8,2,10,2],[8,3,10,3],[8,4,10,4],[8,5,10,5],[8,6,10,6],[8,7,9,18]]}
["Back to Index"]
[null,"RT.02.02: Contractual arrangements – Specific information"]
[]
[]
[null,"B 02.02"]
[]
[]
[]
[null,"Type of ICT services","Contractual arrangement reference number","Identification code of the ICT third-party service provider","Type of code to identify the ICT third-party service provider","LEI of the entity making use of the ICT service(s)","Function identifier","Columns"]
[]
[null,null,null,null,null,null,null,"Start date of the contractual arrangement","End date of the contractual arrangement","Reason of the termination or ending of the contractual arrangement","Notice period for the financial entity making use of the ICT service(s)","Notice period for the ICT third-party service provider","Country of the governing law of the contractual arrangement","Country of provision of the ICT services","Storage of data","Location of the data at rest (storage)","Location of management of the data (processing)","Sensitiveness of the data stored by the ICT third-party service provider","Level of reliance on the ICT service supporting the critical or important function."]
[null,"0060","0010","0030","0040","0020","0050","0070","0080","0090","0100","0110","0120","0130","0140","0150","0160","0170","0180",null,null,null,null,null,null,null,null,null,null,null,null,null,{"$f":"Show!$B$34&\"B 02.02 Rows {\"&COLUMN($B$1)&\"}\"&Index!$E$38","v":"!B 02.02 Rows {2}"},{"$f":"Show!$B$34&\"B 02.02 Columns {\"&COLUMN($B$1)&\"}\"","v":"!B 02.02 Columns {2}"}]
[]
[null,null,null,null,null,null,null,null,null,null,null,null,null,null,null,null,null,null,null,null,null,null,null,null,null,null,null,null,null,null,null,null,{"$f":"Show!$B$34&Show!$B$34&\"B 02.02 Rows {\"&COLUMN($B$1)&\"}\"","v":"!!B 02.02 Rows {2}"},{"$f":"Show!$B$34&Show!$B$34&\"B 02.02 Columns {\"&COLUMN($S$1)&\"}\"","v":"!!B 02.02 Columns {19}"}]

{"sheet":"L_07.01","index":38,"n_rows":14,"n_cols":14,"rows_kept":14,"cut":false,"hidden":true,"merged":[[1,1,1,14],[4,1,4,11],[8,1,10,1],[8,2,9,3]]}
["Back to Index"]
[null,"Risk Concentration – Exposure by currency"]
[]
[]
[null,"L 07.01"]
[]
[]
[]
[null,"Currency area","Columns"]
[]
[null,null,"Exposure","%"]
[null,"0010","0020","0030",null,null,null,null,null,null,null,null,{"$f":"Show!$B$35&\"L 07.01 Rows {\"&COLUMN($B$1)&\"}\"&Index!$E$39","v":"!L 07.01 Rows {2}"},{"$f":"Show!$B$35&\"L 07.01 Columns {\"&COLUMN($B$1)&\"}\"","v":"!L 07.01 Columns {2}"}]
[]
[null,null,null,null,null,null,null,null,null,null,null,null,{"$f":"Show!$B$35&Show!$B$35&\"L 07.01 Rows {\"&COLUMN($B$1)&\"}\"","v":"!!L 07.01 Rows {2}"},{"$f":"Show!$B$35&Show!$B$35&\"L 07.01 Columns {\"&COLUMN($D$1)&\"}\"","v":"!!L 07.01 Columns {4}"}]

{"sheet":"C_92.02","index":39,"n_rows":41,"n_cols":46,"rows_kept":41,"cut":false,"hidden":true,"merged":[[13,24,13,26],[14,3,14,7],[14,8,14,12],[14,18,15,18],[14,19,15,19],[14,20,15,20],[13,17,15,17],[1,1,1,14],[4,1,4,11],[6,1,6,2],[7,1,7,2],[10,3,11,26],[12,3,12,12],[12,13,12,14],[12,15,12,16],[12,18,12,26],[14,26,15,26],[13,18,13,20],[13,21,13,23],[13,3,13,7],[13,8,13,12],[13,13,13,14],[13,15,15,15],[13,16,15,16],[14,13,15,13],[14,14,15,14],[14,21,15,21],[14,22,15,22],[14,23,15,23],[14,24,15,24],[14,25,15,25]]}
["Back to Index"]
[null,"Alternative standardised approach: SBM - CREDIT SPREAD RISK FOR NON-SECURITISATIONS (MKR SBM CSR)"]
[]
[]
[null,"C 92.02"]
[]
[null,"Scope of positions and nature of own funds requirement",null,null,null,null,null,null,null,null,null,null,null,null,null,null,null,null,null,null,null,null,null,null,null,null,null,null,null,null,null,null,null,null,null,null,null,null,null,null,null,null,null,null,{"$f":"Show!$B$36&\"C 92.02 Table {\"&COLUMN($B$1)&\"}\"","v":"!C 92.02 Table {2}"}]
[null,"Offsetting group that the data refers to",null,null,null,null,null,null,null,null,null,null,null,null,null,null,null,null,null,null,null,null,null,null,null,null,null,null,null,null,null,null,null,null,null,null,null,null,null,null,null,null,null,null,{"$f":"Show!$B$36&Show!$B$36&\"C 92.02 Table {\"&COLUMN($D$1)&\"}\"","v":"!!C 92.02 Table {4}"}]
[]
[]
[null,null,null,"Columns"]
[]
[null,null,null,"Unweighted sensitivities (s_k)",null,null,null,null,null,null,null,null,null,"Curvature risk positions (CVR_k)",null,"Sum of weighted sensitivities (∑ WS_k)",null,"Sum of curvature risk positions (S_b)","Bucket-specific sensitivities (K_b)"]
[null,null,null,"Delta risk factors",null,null,null,null,"Vega risk factors",null,null,null,null,"Curvature Risk",null,"Delta Risk","Vega Risk","Curvature Risk","Low correlation scenario",null,null,"Medium correlation scenario",null,null,"High correlation scenario"]
[null,null,null,"Maturities",null,null,null,null,"Maturities",null,null,null,null,"Upward net curvature risk position","Downward net curvature risk  position",null,null,null,"Delta Risk","Vega Risk","Curvature Risk","Delta Risk","Vega Risk","Curvature Risk","Delta Risk","Vega Risk","Curvature Risk"]
[null,null,null,"0.5 years","1 year","3 years","5 years","10 years","0.5 years","1 year","3 years","5 years","10 years"]
[null,null,null,"0100","0110","0120","0130","0140","0250","0260","0270","0280","0290","0600","0610","0700","0710","0800","1000","1010","1020","1030","1040","1050","1060","1070","1080",null,null,null,null,null,null,null,null,null,null,null,null,null,null,null,null,null,{"$f":"Show!$B$36&\"C 92.02 Rows {\"&COLUMN($C$1)&\"}\"&Index!$E$40","v":"!C 92.02 Rows {3}"},{"$f":"Show!$B$36&\"C 92.02 Columns {\"&COLUMN($D$1)&\"}\"","v":"!C 92.02 Columns {4}"}]
[null,"Rows",""]
[null,"Bucket 1: All credit quality steps - Central government, including central banks, of Member States","0010"]
[null,"Bucket 2: Credit quality step 1 to 3 - Central government, including central banks, of a third country, multilateral development banks and international organisations referred to in Article 117(2) or Article 118 of Regulation (EU) No 575/2013","0020"]
[null,"Bucket 3: Credit quality step 1 to 3 - Regional or local authority and public sector entities","0030"]
[null,"Bucket 4: Credit quality step 1 to 3 - Financial sector entities including credit institutions incorporated or established by a central government, a regional government or a local authority and promotional lenders","0040"]
[null,"Bucket 5: Credit quality step 1 to 3 - Basic materials, energy, industrials, agriculture, manufacturing, mining and quarrying","0050"]
[null,"Bucket 6: Credit quality step 1 to 3 - Consumer goods and services, transportation and storage, administrative and support service activities","0060"]
[null,"Bucket 7: Credit quality step 1 to 3 - Technology, telecommunications","0070"]
[null,"Bucket 8: Credit quality step 1 to 3 - Health care, utilities, professional and technical activities","0080"]
[null,"Bucket 9: Credit quality step 1 to 3 - Covered bonds issued by credit institutions established in Member States","0090"]
[null,"Bucket 10: Credit quality step 1 to 3 - Covered bonds issued by credit institutions in third countries","0100"]
[null,"of which: Credit quality steps 2 and 3","0110"]
[null,"Bucket 11: Credit quality step 4 to 6 and unrated - Central government, including central banks, of a third country, multilateral development banks and international organisations referred to in Article 117(2) or Article 118 of Regulation (EU) No 575/2013","0120"]
[null,"Bucket 12: Credit quality step 4 to 6 and unrated - Regional or local authority and public sector entities","0130"]
[null,"Bucket 13: Credit quality step 4 to 6 and unrated - Financial sector entities including credit institutions incorporated or established by a central government, a regional government or a local authority, promotional lenders and covered bonds","0140"]
[null,"Bucket 14: Credit quality step 4 to 6 and unrated - Basic materials, energy, industrials, agriculture, manufacturing, mining and quarrying","0150"]
[null,"Bucket 15: Credit quality step 4 to 6 and unrated - Consumer goods and services, transportation and storage, administrative and support service activities","0160"]
[null,"Bucket 16: Credit quality step 4 to 6 and unrated - Technology, telecommunications","0170"]
[null,"Bucket 17: Credit quality step 4 to 6 and unrated - Health care, utilities, professional and technical activities","0180"]
[null,"Bucket 18: Other sector","0190"]
[null,"Bucket 19: Listed credit indices with a majority of its individual constituents being investment grade","0200"]
[null,"Bucket 20: Listed credit indices with a majority of its individual constituents being non-investment grade or unrated","0210"]
[]
[null,null,null,null,null,null,null,null,null,null,null,null,null,null,null,null,null,null,null,null,null,null,null,null,null,null,null,null,null,null,null,null,null,null,null,null,null,null,null,null,null,null,null,null,{"$f":"Show!$B$36&Show!$B$36&\"C 92.02 Rows {\"&COLUMN($C$1)&\"}\"","v":"!!C 92.02 Rows {3}"},{"$f":"Show!$B$36&Show!$B$36&\"C 92.02 Columns {\"&COLUMN($AA$1)&\"}\"","v":"!!C 92.02 Columns {27}"}]

{"sheet":"L_07.02","index":40,"n_rows":14,"n_cols":14,"rows_kept":14,"cut":false,"hidden":true,"merged":[[1,1,1,14],[4,1,4,11],[8,1,10,1],[8,2,9,3]]}
["Back to Index"]
[null,"Risk Concentration – Exposure by sector"]
[]
[]
[null,"L 07.02"]
[]
[]
[]
[null,"Sector","Columns"]
[]
[null,null,"Exposure","%"]
[null,"0010","0020","0030",null,null,null,null,null,null,null,null,{"$f":"Show!$B$37&\"L 07.02 Rows {\"&COLUMN($B$1)&\"}\"&Index!$E$41","v":"!L 07.02 Rows {2}"},{"$f":"Show!$B$37&\"L 07.02 Columns {\"&COLUMN($B$1)&\"}\"","v":"!L 07.02 Columns {2}"}]
[]
[null,null,null,null,null,null,null,null,null,null,null,null,{"$f":"Show!$B$37&Show!$B$37&\"L 07.02 Rows {\"&COLUMN($B$1)&\"}\"","v":"!!L 07.02 Rows {2}"},{"$f":"Show!$B$37&Show!$B$37&\"L 07.02 Columns {\"&COLUMN($D$1)&\"}\"","v":"!!L 07.02 Columns {4}"}]

{"sheet":"C_92.03","index":41,"n_rows":45,"n_cols":46,"rows_kept":45,"cut":false,"hidden":true,"merged":[[13,24,13,26],[14,3,14,7],[14,8,14,12],[14,18,15,18],[14,19,15,19],[14,20,15,20],[13,17,15,17],[1,1,1,14],[4,1,4,11],[6,1,6,2],[7,1,7,2],[10,3,11,26],[12,3,12,12],[12,13,12,14],[12,15,12,16],[12,18,12,26],[14,26,15,26],[13,18,13,20],[13,21,13,23],[13,3,13,7],[13,8,13,12],[13,13,13,14],[13,15,15,15],[13,16,15,16],[14,13,15,13],[14,14,15,14],[14,21,15,21],[14,22,15,22],[14,23,15,23],[14,24,15,24],[14,25,15,25]]}
["Back to Index"]
[null,"ALTERNATIVE STANDARDISED APPROACH: SBM - CREDIT SPREAD RISK FOR SECURITISATION NOT INCLUDED IN THE ALTERNATIVE CORRELATION TRADING PORTFOLIO (NON-ACTP CSR) (MKR SBM non-ACTP CSR)"]
[]
[]
[null,"C 92.03"]
[]
[null,"Scope of positions and nature of own funds requirement",null,null,null,null,null,null,null,null,null,null,null,null,null,null,null,null,null,null,null,null,null,null,null,null,null,null,null,null,null,null,null,null,null,null,null,null,null,null,null,null,null,null,{"$f":"Show!$B$38&\"C 92.03 Table {\"&COLUMN($B$1)&\"}\"","v":"!C 92.03 Table {2}"}]
[null,"Offsetting group that the data refers to",null,null,null,null,null,null,null,null,null,null,null,null,null,null,null,null,null,null,null,null,null,null,null,null,null,null,null,null,null,null,null,null,null,null,null,null,null,null,null,null,null,null,{"$f":"Show!$B$38&Show!$B$38&\"C 92.03 Table {\"&COLUMN($D$1)&\"}\"","v":"!!C 92.03 Table {4}"}]
[]
[]
[null,null,null,"Columns"]
[]
[null,null,null,"Unweighted sensitivities (s_k)",null,null,null,null,null,null,null,null,null,"Curvature risk positions (CVR_k)",null,"Sum of weighted sensitivities (∑ WS_k)",null,"Sum of curvature risk positions (S_b)","Bucket-specific sensitivities (K_b)"]
[null,null,null,"Delta risk factors",null,null,null,null,"Vega risk factors",null,null,null,null,"Curvature Risk",null,"Delta Risk","Vega Risk","Curvature Risk","Low correlation scenario",null,null,"Medium correlation scenario",null,null,"High correlation scenario"]
[null,null,null,"Maturities",null,null,null,null,"Maturities  (maturity of the option - residual maturity of the underlying)",null,null,null,null,"Upward net curvature risk position","Downward net curvature risk  position",null,null,null,"Delta Risk","Vega Risk","Curvature Risk","Delta Risk","Vega Risk","Curvature Risk","Delta Risk","Vega Risk","Curvature Risk"]
[null,null,null,"0.5 years","1 year","3 years","5 years","10 years","0.5 years","1 year","3 years","5 years","10 years"]
[null,null,null,"0100","0110","0120","0130","0140","0250","0260","0270","0280","0290","0600","0610","0700","0710","0800","1000","1010","1020","1030","1040","1050","1060","1070","1080",null,null,null,null,null,null,null,null,null,null,null,null,null,null,null,null,null,{"$f":"Show!$B$38&\"C 92.03 Rows {\"&COLUMN($C$1)&\"}\"&Index!$E$42","v":"!C 92.03 Rows {3}"},{"$f":"Show!$B$38&\"C 92.03 Columns {\"&COLUMN($D$1)&\"}\"","v":"!C 92.03 Columns {4}"}]
[null,"Rows",""]
[null,"Bucket 1: Senior and Credit quality step 1 to 10 - RMBS - Prime","0010"]
[null,"Bucket 2: Senior and Credit quality step 1 to 10 - RMBS - Mid-Prime","0020"]
[null,"Bucket 3: Senior and Credit quality step 1 to 10 - RMBS - Sub-Prime","0030"]
[null,"Bucket 4: Senior and Credit quality step 1 to 10 - CMBS","0040"]
[null,"Bucket 5: Senior and Credit quality step 1 to 10 - Asset backed securities (ABS) - Student loans","0050"]
[null,"Bucket 6: Senior and Credit quality step 1 to 10 - ABS - Credit cards","0060"]
[null,"Bucket 7: Senior and Credit quality step 1 to 10 - ABS - Auto","0070"]
[null,"Bucket 8: Senior and Credit quality step 1 to 10 - Collateralised loan obligations (CLO) non-ACTP","0080"]
[null,"Bucket 9: Non-senior and credit quality step 1 to 10 - RMBS - Prime","0090"]
[null,"Bucket 10: Non-senior and credit quality step 1 to 10 - RMBS - Mid-Prime","0100"]
[null,"Bucket 11: Non-senior and credit quality step 1 to 10 – RMBS - Sub-Prime","0110"]
[null,"Bucket 12: Non-senior and credit quality step 1 to 10 - CMBS","0120"]
[null,"Bucket 13: Non-senior and credit quality step 1 to 10 - ABS - Student loans","0130"]
[null,"Bucket 14: Non-senior and credit quality step 1 to 10 - ABS - Credit cards","0140"]
[null,"Bucket 15: Non-senior and credit quality step 1 to 10 - ABS - Auto","0150"]
[null,"Bucket 16: Non-senior and credit quality step 1 to 10 - CLO non-ACTP","0160"]
[null,"Bucket 17: Credit quality step 11 to 17 and unrated - RMBS - Prime","0170"]
[null,"Bucket 18: Credit quality step 11 to 17 and unrated - RMBS - Mid-Prime","0180"]
[null,"Bucket 19: Credit quality step 11 to 17 and unrated - RMBS - Sub-Prime","0190"]
[null,"Bucket 20: Credit quality step 11 to 17 and unrated - CMBS","0200"]
[null,"Bucket 21: Credit quality step 11 to 17 and unrated - ABS - Student loans","0210"]
[null,"Bucket 22: Credit quality step 11 to 17 and unrated - ABS - Credit cards","0220"]
[null,"Bucket 23: Credit quality step 11 to 17 and unrated - ABS - Auto","0230"]
[null,"Bucket 24: Credit quality step 11 to 17 and unrated - CLO non-ACTP","0240"]
[null,"Bucket 25: Other sector","0250"]
[]
[null,null,null,null,null,null,null,null,null,null,null,null,null,null,null,null,null,null,null,null,null,null,null,null,null,null,null,null,null,null,null,null,null,null,null,null,null,null,null,null,null,null,null,null,{"$f":"Show!$B$38&Show!$B$38&\"C 92.03 Rows {\"&COLUMN($C$1)&\"}\"","v":"!!C 92.03 Rows {3}"},{"$f":"Show!$B$38&Show!$B$38&\"C 92.03 Columns {\"&COLUMN($AA$1)&\"}\"","v":"!!C 92.03 Columns {27}"}]

{"sheet":"L_07.03","index":42,"n_rows":14,"n_cols":14,"rows_kept":14,"cut":false,"hidden":true,"merged":[[1,1,1,14],[4,1,4,11],[8,1,10,1],[8,2,9,3]]}
["Back to Index"]
[null,"Risk Concentration – Exposure by country"]
[]
[]
[null,"L 07.03"]
[]
[]
[]
[null,"Country","Columns"]
[]
[null,null,"Exposure","%"]
[null,"0010","0020","0030",null,null,null,null,null,null,null,null,{"$f":"Show!$B$39&\"L 07.03 Rows {\"&COLUMN($B$1)&\"}\"&Index!$E$43","v":"!L 07.03 Rows {2}"},{"$f":"Show!$B$39&\"L 07.03 Columns {\"&COLUMN($B$1)&\"}\"","v":"!L 07.03 Columns {2}"}]
[]
[null,null,null,null,null,null,null,null,null,null,null,null,{"$f":"Show!$B$39&Show!$B$39&\"L 07.03 Rows {\"&COLUMN($B$1)&\"}\"","v":"!!L 07.03 Rows {2}"},{"$f":"Show!$B$39&Show!$B$39&\"L 07.03 Columns {\"&COLUMN($D$1)&\"}\"","v":"!!L 07.03 Columns {4}"}]

{"sheet":"C_92.04","index":43,"n_rows":38,"n_cols":46,"rows_kept":38,"cut":false,"hidden":true,"merged":[[13,24,13,26],[14,3,14,7],[14,8,14,12],[14,18,15,18],[14,19,15,19],[14,20,15,20],[13,17,15,17],[1,1,1,14],[4,1,4,11],[6,1,6,2],[7,1,7,2],[10,3,11,26],[12,3,12,12],[12,13,12,14],[12,15,12,16],[12,18,12,26],[14,26,15,26],[13,18,13,20],[13,21,13,23],[13,3,13,7],[13,8,13,12],[13,13,13,14],[13,15,15,15],[13,16,15,16],[14,13,15,13],[14,14,15,14],[14,21,15,21],[14,22,15,22],[14,23,15,23],[14,24,15,24],[14,25,15,25]]}
["Back to Index"]
[null,"ALTERNATIVE STANDARDISED APPROACH: SBM CREDIT SPREAD RISK FOR SECURITISATION INCLUDED IN THE ALTERNATIVE CORRELATION TRADING"]
[]
[]
[null,"C 92.04"]
[]
[null,"Scope of positions and nature of own funds requirement",null,null,null,null,null,null,null,null,null,null,null,null,null,null,null,null,null,null,null,null,null,null,null,null,null,null,null,null,null,null,null,null,null,null,null,null,null,null,null,null,null,null,{"$f":"Show!$B$40&\"C 92.04 Table {\"&COLUMN($B$1)&\"}\"","v":"!C 92.04 Table {2}"}]
[null,"Offsetting group that the data refers to",null,null,null,null,null,null,null,null,null,null,null,null,null,null,null,null,null,null,null,null,null,null,null,null,null,null,null,null,null,null,null,null,null,null,null,null,null,null,null,null,null,null,{"$f":"Show!$B$40&Show!$B$40&\"C 92.04 Table {\"&COLUMN($D$1)&\"}\"","v":"!!C 92.04 Table {4}"}]
[]
[]
[null,null,null,"Columns"]
[]
[null,null,null,"Unweighted sensitivities (s_k)",null,null,null,null,null,null,null,null,null,"Curvature risk positions (CVR_k)",null,"Sum of weighted sensitivities (∑ WS_k)",null,"Sum of curvature risk positions (S_b)","Bucket-specific sensitivities (K_b)"]
[null,null,null,"Delta risk factors",null,null,null,null,"Vega risk factors",null,null,null,null,"Curvature Risk",null,"Delta Risk","Vega Risk","Curvature Risk","Low correlation scenario",null,null,"Medium correlation scenario",null,null,"High correlation scenario"]
[null,null,null,"Maturities",null,null,null,null,"Maturities",null,null,null,null,"Upward net curvature risk position","Downward net curvature risk  position",null,null,null,"Delta Risk","Vega Risk","Curvature Risk","Delta Risk","Vega Risk","Curvature Risk","Delta Risk","Vega Risk","Curvature Risk"]
[null,null,null,"0.5 years","1 year","3 years","5 years","10 years","0.5 years","1 year","3 years","5 years","10 years"]
[null,null,null,"0100","0110","0120","0130","0140","0250","0260","0270","0280","0290","0600","0610","0700","0710","0800","1000","1010","1020","1030","1040","1050","1060","1070","1080",null,null,null,null,null,null,null,null,null,null,null,null,null,null,null,null,null,{"$f":"Show!$B$40&\"C 92.04 Rows {\"&COLUMN($C$1)&\"}\"&Index!$E$44","v":"!C 92.04 Rows {3}"},{"$f":"Show!$B$40&\"C 92.04 Columns {\"&COLUMN($D$1)&\"}\"","v":"!C 92.04 Columns {4}"}]
[null,"Rows",""]
[null,"Bucket 1: All credit quality steps - Central government, including central banks, of Member States","0010"]
[null,"Bucket 2: Credit quality step 1 to 3 - Central government, including central banks, of a third country, multilateral development banks and international organisations referred to in Article 117(2) or Article 118 of Regulation (EU) No 575/2013","0020"]
[null,"Bucket 3: Credit quality step 1 to 3 - Regional or local authority and public sector entities","0030"]
[null,"Bucket 4: Credit quality step 1 to 3 - Financial sector entities including credit institutions incorporated or established by a central government, a regional government or a local authority and promotional lenders","0040"]
[null,"Bucket 5: Credit quality step 1 to 3 - Basic materials, energy, industrials, agriculture, manufacturing, mining and quarrying","0050"]
[null,"Bucket 6: Credit quality step 1 to 3 - Consumer goods and services, transportation and storage, administrative and support service activities","0060"]
[null,"Bucket 7: Credit quality step 1 to 3 - Technology, telecommunications","0070"]
[null,"Bucket 8: Credit quality step 1 to 3 - Health care, utilities, professional and technical activities","0080"]
[null,"Bucket 9: Credit quality step 1 to 3 - Covered bonds issued by credit institutions established in Member States","0090"]
[null,"Bucket 10: Credit quality step 1 to 3 - Covered bonds issued by credit institutions in third countries","0100"]
[null,"Bucket 11: Credit quality step 4 to 6 and unrated - Central government, including central banks, of a third country, multilateral development banks and international organisations referred to in Article 117(2) or Article 118 of Regulation (EU) No 575/2013","0110"]
[null,"Bucket 12: Credit quality step 4 to 6 and unrated - Regional or local authority and public sector entities","0120"]
[null,"Bucket 13: Credit quality step 4 to 6 and unrated - Financial sector entities including credit institutions incorporated or established by a central government, a regional government or a local authority, promotional lenders and covered bonds","0130"]
[null,"Bucket 14: Credit quality step 4 to 6 and unrated - Basic materials, energy, industrials, agriculture, manufacturing, mining and quarrying","0140"]
[null,"Bucket 15: Credit quality step 4 to 6 and unrated - Consumer goods and services, transportation and storage, administrative and support service activities","0150"]
[null,"Bucket 16: Credit quality step 4 to 6 and unrated - Technology, telecommunications","0160"]
[null,"Bucket 17: Credit quality step 4 to 6 and unrated - Health care, utilities, professional and technical activities","0170"]
[null,"Bucket 18: Other sector","0180"]
[]
[null,null,null,null,null,null,null,null,null,null,null,null,null,null,null,null,null,null,null,null,null,null,null,null,null,null,null,null,null,null,null,null,null,null,null,null,null,null,null,null,null,null,null,null,{"$f":"Show!$B$40&Show!$B$40&\"C 92.04 Rows {\"&COLUMN($C$1)&\"}\"","v":"!!C 92.04 Rows {3}"},{"$f":"Show!$B$40&Show!$B$40&\"C 92.04 Columns {\"&COLUMN($AA$1)&\"}\"","v":"!!C 92.04 Columns {27}"}]

{"sheet":"L_08.01","index":44,"n_rows":16,"n_cols":11,"rows_kept":16,"cut":false,"hidden":true,"merged":[[1,1,1,14],[4,1,4,11],[8,3,9,4]]}
["Back to Index"]
[null,"Risk Concentration – Exposure by asset class and rating"]
[]
[]
[null,"L 08.01"]
[]
[]
[]
[null,null,null,"Columns"]
[]
[null,null,null,"Exposure","Share of total assets"]
[null,null,null,"0010","0020",null,null,null,null,{"$f":"Show!$B$41&\"L 08.01 Rows {\"&COLUMN($C$1)&\"}\"&Index!$E$45","v":"!L 08.01 Rows {3}"},{"$f":"Show!$B$41&\"L 08.01 Columns {\"&COLUMN($D$1)&\"}\"","v":"!L 08.01 Columns {4}"}]
[null,"Rows",""]
[null,"Total","0010"]
[]
[null,null,null,null,null,null,null,null,null,{"$f":"Show!$B$41&Show!$B$41&\"L 08.01 Rows {\"&COLUMN($C$1)&\"}\"","v":"!!L 08.01 Rows {3}"},{"$f":"Show!$B$41&Show!$B$41&\"L 08.01 Columns {\"&COLUMN($E$1)&\"}\"","v":"!!L 08.01 Columns {5}"}]

{"sheet":"C_92.05","index":45,"n_rows":33,"n_cols":42,"rows_kept":33,"cut":false,"hidden":true,"merged":[[12,3,12,9],[12,10,12,11],[12,12,12,13],[12,15,12,23],[1,1,1,14],[4,1,4,11],[6,1,6,2],[7,1,7,2],[10,3,11,23],[13,15,13,17],[13,18,13,20],[13,21,13,23],[14,3,15,3],[14,4,15,4],[14,5,14,9],[14,10,15,10],[14,11,15,11],[14,15,15,15],[14,16,15,16],[13,3,13,4],[13,5,13,9],[13,10,13,11],[13,12,15,12],[13,13,15,13],[13,14,15,14],[14,23,15,23],[14,17,15,17],[14,18,15,18],[14,19,15,19],[14,20,15,20],[14,21,15,21],[14,22,15,22]]}
["Back to Index"]
[null,"ALTERNATIVE STANDARDISED APPROACH: SBM - EQUITY RISK (EQU) (MKR SBM EQU)"]
[]
[]
[null,"C 92.05"]
[]
[null,"Scope of positions and nature of own funds requirement",null,null,null,null,null,null,null,null,null,null,null,null,null,null,null,null,null,null,null,null,null,null,null,null,null,null,null,null,null,null,null,null,null,null,null,null,null,null,{"$f":"Show!$B$42&\"C 92.05 Table {\"&COLUMN($B$1)&\"}\"","v":"!C 92.05 Table {2}"}]
[null,"Offsetting group that the data refers to",null,null,null,null,null,null,null,null,null,null,null,null,null,null,null,null,null,null,null,null,null,null,null,null,null,null,null,null,null,null,null,null,null,null,null,null,null,null,{"$f":"Show!$B$42&Show!$B$42&\"C 92.05 Table {\"&COLUMN($D$1)&\"}\"","v":"!!C 92.05 Table {4}"}]
[]
[]
[null,null,null,"Columns"]
[]
[null,null,null,"Unweighted sensitivities (s_k)",null,null,null,null,null,null,"Curvature risk positions (CVR_k)",null,"Sum of weighted sensitivities (∑ WS_k)",null,"Sum of curvature risk positions (S_b)","Bucket-specific sensitivities (K_b)"]
[null,null,null,"Delta risk factors",null,"Vega risk factors",null,null,null,null,"Curvature Risk",null,"Delta Risk","Vega Risk","Curvature Risk","Low correlation scenario",null,null,"Medium correlation scenario",null,null,"High correlation scenario"]
[null,null,null,"Spot prices","Repo rates","Maturities  (maturity of the option - residual maturity of the underlying)",null,null,null,null,"Upward net curvature risk position","Downward net curvature risk  position",null,null,null,"Delta Risk","Vega Risk","Curvature Risk","Delta Risk","Vega Risk","Curvature Risk","Delta Risk","Vega Risk","Curvature Risk"]
[null,null,null,null,null,"0.5 year","1 year","3 years","5 years","10 years"]
[null,null,null,"0100","0110","0250","0260","0270","0280","0290","0600","0610","0700","0710","0800","1000","1010","1020","1030","1040","1050","1060","1070","1080",null,null,null,null,null,null,null,null,null,null,null,null,null,null,null,null,{"$f":"Show!$B$42&\"C 92.05 Rows {\"&COLUMN($C$1)&\"}\"&Index!$E$46","v":"!C 92.05 Rows {3}"},{"$f":"Show!$B$42&\"C 92.05 Columns {\"&COLUMN($D$1)&\"}\"","v":"!C 92.05 Columns {4}"}]
[null,"Rows",""]
[null,"Bucket 1: Large market capitalisation, Emerging market economy - Consumer goods and services, transportation and storage, administrative and support service activities, healthcare, utilities","0010"]
[null,"Bucket 2: Large market capitalisation, Emerging market economy - Telecommunications, industrials","0020"]
[null,"Bucket 3: Large market capitalisation, Emerging market economy - Basic materials, energy, agriculture, manufacturing, mining and quarrying","0030"]
[null,"Bucket 4: Large market capitalisation, Emerging market economy - Financials including government-backed financials, real estate activities, technology","0040"]
[null,"Bucket 5: Large market capitalisation, Advanced economy - Consumer goods and services, transportation and storage, administrative and support service activities, healthcare, utilities","0050"]
[null,"Bucket 6: Large market capitalisation, Advanced economy - Telecommunications, industrials","0060"]
[null,"Bucket 7: Large market capitalisation, Advanced economy - Basic materials, energy, agriculture, manufacturing, mining and quarrying","0070"]
[null,"Bucket 8: Large market capitalisation, Advanced economy - Financials including government-backed financials, real estate activities, technology","0080"]
[null,"Bucket 9: Small market capitalisation, Emerging market economy - All sectors described under bucket numbers 1, 2, 3 and 4","0090"]
[null,"Bucket 10: Small market capitalisation, Advanced economy -  All sectors described under bucket numbers 5, 6, 7 and 8","0100"]
[null,"Bucket 11: Other sector","0110"]
[null,"Bucket 12: Large market capitalisation, advanced economy indices\t\t","0120"]
[null,"Bucket 13: Other indices","0130"]
[]
[null,null,null,null,null,null,null,null,null,null,null,null,null,null,null,null,null,null,null,null,null,null,null,null,null,null,null,null,null,null,null,null,null,null,null,null,null,null,null,null,{"$f":"Show!$B$42&Show!$B$42&\"C 92.05 Rows {\"&COLUMN($C$1)&\"}\"","v":"!!C 92.05 Rows {3}"},{"$f":"Show!$B$42&Show!$B$42&\"C 92.05 Columns {\"&COLUMN($X$1)&\"}\"","v":"!!C 92.05 Columns {24}"}]

{"sheet":"L_08.02","index":46,"n_rows":26,"n_cols":11,"rows_kept":26,"cut":false,"hidden":true,"merged":[[1,1,1,14],[4,1,4,11],[12,3,13,4],[14,3,15,3],[14,4,15,4]]}
["Back to Index"]
[null,"Risk Concentration – Exposure by asset class and rating"]
[]
[]
[null,"L 08.02"]
[]
[null,"Sheets",null,null,null,null,null,null,null,{"$f":"Show!$B$43&\"L 08.02 Table label {\"&COLUMN($C$1)&\"}\"","v":"!L 08.02 Table label {3}"},{"$f":"Show!$B$43&\"L 08.02 Table value {\"&COLUMN($D$1)&\"}\"","v":"!L 08.02 Table value {4}"}]
[null,"National government, international financial organisation and central banks bonds","0001"]
[null,"Regional governments, local authorities and public sector entities bonds","0002"]
[null,"Corporate bonds","0003"]
[null,null,null,null,null,null,null,null,null,{"$f":"Show!$B$43&Show!$B$43&\"L 08.02 Table label {\"&COLUMN($C$1)&\"}\"","v":"!!L 08.02 Table label {3}"},{"$f":"Show!$B$43&Show!$B$43&\"L 08.02 Table value {\"&COLUMN($D$1)&\"}\"","v":"!!L 08.02 Table value {4}"}]
[]
[null,null,null,"Columns"]
[]
[null,null,null,"Exposure","%"]
[]
[null,null,null,"0010","0020",null,null,null,null,{"$f":"Show!$B$43&\"L 08.02 Rows {\"&COLUMN($C$1)&\"}\"&Index!$E$47","v":"!L 08.02 Rows {3}"},{"$f":"Show!$B$43&\"L 08.02 Columns {\"&COLUMN($D$1)&\"}\"","v":"!L 08.02 Columns {4}"}]
[null,"Rows",""]
[null,"Total","0060"]
[null,"AAA","0010"]
[null,"AA","0020"]
[null,"A","0030"]
[null,"BBB","0040"]
[null,"Non investment grade","0050"]
[]
[null,null,null,null,null,null,null,null,null,{"$f":"Show!$B$43&Show!$B$43&\"L 08.02 Rows {\"&COLUMN($C$1)&\"}\"","v":"!!L 08.02 Rows {3}"},{"$f":"Show!$B$43&Show!$B$43&\"L 08.02 Columns {\"&COLUMN($E$1)&\"}\"","v":"!!L 08.02 Columns {5}"}]

{"sheet":"C_92.06","index":47,"n_rows":33,"n_cols":52,"rows_kept":33,"cut":false,"hidden":true,"merged":[[13,30,13,32],[14,3,14,13],[14,14,14,18],[14,24,15,24],[14,25,15,25],[14,26,15,26],[13,23,15,23],[1,1,1,14],[4,1,4,11],[6,1,6,2],[7,1,7,2],[10,3,11,32],[12,3,12,18],[12,19,12,20],[12,21,12,22],[12,24,12,32],[14,32,15,32],[13,24,13,26],[13,27,13,29],[13,3,13,13],[13,14,13,18],[13,19,13,20],[13,21,15,21],[13,22,15,22],[14,19,15,19],[14,20,15,20],[14,27,15,27],[14,28,15,28],[14,29,15,29],[14,30,15,30],[14,31,15,31]]}
["Back to Index"]
[null,"C 92.06 ALTERNATIVE STANDARDISED APPROACH: SBM - COMMODITY RISK (COM) (MKR SBM COM)"]
[]
[]
[null,"C 92.06"]
[]
[null,"Scope of positions and nature of own funds requirement",null,null,null,null,null,null,null,null,null,null,null,null,null,null,null,null,null,null,null,null,null,null,null,null,null,null,null,null,null,null,null,null,null,null,null,null,null,null,null,null,null,null,null,null,null,null,null,null,{"$f":"Show!$B$44&\"C 92.06 Table {\"&COLUMN($B$1)&\"}\"","v":"!C 92.06 Table {2}"}]
[null,"Offsetting group that the data refers to",null,null,null,null,null,null,null,null,null,null,null,null,null,null,null,null,null,null,null,null,null,null,null,null,null,null,null,null,null,null,null,null,null,null,null,null,null,null,null,null,null,null,null,null,null,null,null,null,{"$f":"Show!$B$44&Show!$B$44&\"C 92.06 Table {\"&COLUMN($D$1)&\"}\"","v":"!!C 92.06 Table {4}"}]
[]
[]
[null,null,null,"Columns"]
[]
[null,null,null,"Unweighted sensitivities (sk)",null,null,null,null,null,null,null,null,null,null,null,null,null,null,null,"Curvature risk positions (CVR_k)",null,"Sum of weighted sensitivities (∑ WS_k)",null,"Sum of curvature risk positions (S_b)","Bucket-specific sensitivities (K_b)"]
[null,null,null,"Delta risk factors",null,null,null,null,null,null,null,null,null,null,"Vega risk factors",null,null,null,null,"Curvature Risk",null,"Delta Risk","Vega Risk","Curvature Risk","Low correlation scenario",null,null,"Medium correlation scenario",null,null,"High correlation scenario"]
[null,null,null,"Maturities",null,null,null,null,null,null,null,null,null,null,"Maturities",null,null,null,null,"Upward net curvature risk position","Downward net curvature risk  position",null,null,null,"Delta Risk","Vega Risk","Curvature Risk","Delta Risk","Vega Risk","Curvature Risk","Delta Risk","Vega Risk","Curvature Risk"]
[null,null,null,"0 years","0.25 years","0.5 years","1 year","2 years","3 years","5 years","10 years","15 years","20 years","30 years","0.5 years","1 year","3 years","5 years","10 years"]
[null,null,null,"0100","0110","0120","0130","0140","0150","0160","0170","0180","0190","0200","0250","0260","0270","0280","0290","0600","0610","0700","0710","0800","1000","1010","1020","1030","1040","1050","1060","1070","1080",null,null,null,null,null,null,null,null,null,null,null,null,null,null,null,null,null,{"$f":"Show!$B$44&\"C 92.06 Rows {\"&COLUMN($C$1)&\"}\"&Index!$E$48","v":"!C 92.06 Rows {3}"},{"$f":"Show!$B$44&\"C 92.06 Columns {\"&COLUMN($D$1)&\"}\"","v":"!C 92.06 Columns {4}"}]
[null,"Rows",""]
[null,"Bucket 1: Energy - solid combustibles","0010"]
[null,"Bucket 2: Energy - liquid combustibles","0020"]
[null,"Bucket 3: Energy - electricity","0030"]
[null,"Bucket 3a: Energy - EU ETS carbon trading","0040"]
[null,"Bucket 3b: Energy - non-EU ETS carbon trading","0050"]
[null,"Bucket 4: Freight","0060"]
[null,"Bucket 5: Metals - non-precious","0070"]
[null,"Bucket 6: Gaseous combustibles","0080"]
[null,"Bucket 7: Precious metals (including gold)","0090"]
[null,"Bucket 8: Grains and oilseed","0100"]
[null,"Bucket 9: Livestock and dairy","0110"]
[null,"Bucket 10: Softs and other agricultural commodities","0120"]
[null,"Bucket 11: Other commodities","0130"]
[]
[null,null,null,null,null,null,null,null,null,null,null,null,null,null,null,null,null,null,null,null,null,null,null,null,null,null,null,null,null,null,null,null,null,null,null,null,null,null,null,null,null,null,null,null,null,null,null,null,null,null,{"$f":"Show!$B$44&Show!$B$44&\"C 92.06 Rows {\"&COLUMN($C$1)&\"}\"","v":"!!C 92.06 Rows {3}"},{"$f":"Show!$B$44&Show!$B$44&\"C 92.06 Columns {\"&COLUMN($AG$1)&\"}\"","v":"!!C 92.06 Columns {33}"}]

{"sheet":"C_92.07.1","index":48,"n_rows":18,"n_cols":36,"rows_kept":18,"cut":false,"hidden":true,"merged":[[1,1,1,14],[4,1,4,11],[6,1,6,2],[7,1,7,2],[10,1,14,1],[10,2,14,2],[10,3,11,13],[12,4,12,5],[12,8,12,13],[13,4,13,5],[13,6,14,6],[13,7,14,7],[13,8,13,9],[13,10,13,11],[13,12,13,13]]}
["Back to Index"]
[null,"ALTERNATIVE STANDARDISED APPROACH: SBM - FOREIGN EXCHANGE RISK (FX) - DELTA AND CURVATURE RISK (MKR SBM FX1)"]
[]
[]
[null,"C 92.07.1"]
[]
[null,"Scope of positions and nature of own funds requirement",null,null,null,null,null,null,null,null,null,null,null,null,null,null,null,null,null,null,null,null,null,null,null,null,null,null,null,null,null,null,null,null,{"$f":"Show!$B$45&\"C 92.07.1 Table {\"&COLUMN($B$1)&\"}\"","v":"!C 92.07.1 Table {2}"}]
[null,"Offsetting group that the data refers to",null,null,null,null,null,null,null,null,null,null,null,null,null,null,null,null,null,null,null,null,null,null,null,null,null,null,null,null,null,null,null,null,{"$f":"Show!$B$45&Show!$B$45&\"C 92.07.1 Table {\"&COLUMN($D$1)&\"}\"","v":"!!C 92.07.1 Table {4}"}]
[]
[]
[null,"Bucket: Currency pair: Reporting currency or base currency","Bucket: Currency pair: Currency of denomination","Columns"]
[]
[null,null,null,"Unweighted sensitivities (s_k)","Curvature risk positions (CVR_k)",null,"Sum of weighted sensitivities (∑ WS_k)","Sum of curvature risk positions (S_b)","Bucket-specific sensitivities (K_b)"]
[null,null,null,"Delta risk factors","Curvature Risk",null,"Delta Risk","Curvature Risk","Low correlation scenario",null,"Medium correlation scenario",null,"High correlation scenario"]
[null,null,null,"Spot exchange rate","Upward net curvature risk position","Downward net curvature risk  position",null,null,"Delta Risk","Curvature Risk","Delta Risk","Curvature Risk","Delta Risk","Curvature Risk"]
[null,"0020","0010","0100","0600","0610","0700","0800","1000","1020","1030","1050","1060","1080",null,null,null,null,null,null,null,null,null,null,null,null,null,null,null,null,null,null,null,null,{"$f":"Show!$B$45&\"C 92.07.1 Rows {\"&COLUMN($B$1)&\"}\"&Index!$E$49","v":"!C 92.07.1 Rows {2}"},{"$f":"Show!$B$45&\"C 92.07.1 Columns {\"&COLUMN($B$1)&\"}\"","v":"!C 92.07.1 Columns {2}"}]
[]
[null,null,null,null,null,null,null,null,null,null,null,null,null,null,null,null,null,null,null,null,null,null,null,null,null,null,null,null,null,null,null,null,null,null,{"$f":"Show!$B$45&Show!$B$45&\"C 92.07.1 Rows {\"&COLUMN($B$1)&\"}\"","v":"!!C 92.07.1 Rows {2}"},{"$f":"Show!$B$45&Show!$B$45&\"C 92.07.1 Columns {\"&COLUMN($N$1)&\"}\"","v":"!!C 92.07.1 Columns {14}"}]

{"sheet":"C_92.07.2","index":49,"n_rows":18,"n_cols":31,"rows_kept":18,"cut":false,"hidden":true,"merged":[[13,8,14,8],[1,1,1,14],[4,1,4,11],[6,1,6,2],[7,1,7,2],[10,1,14,1],[10,2,14,2],[10,3,11,11],[12,3,12,7],[12,9,12,11],[13,3,13,7]]}
["Back to Index"]
[null,"ALTERNATIVE STANDARDISED APPROACH: SBM - FOREIGN EXCHANGE RISK (FX) - VEGA RISK (MKR SBM FX2)"]
[]
[]
[null,"C 92.07.2"]
[]
[null,"Scope of positions and nature of own funds requirement",null,null,null,null,null,null,null,null,null,null,null,null,null,null,null,null,null,null,null,null,null,null,null,null,null,null,null,{"$f":"Show!$B$46&\"C 92.07.2 Table {\"&COLUMN($B$1)&\"}\"","v":"!C 92.07.2 Table {2}"}]
[null,"Offsetting group that the data refers to",null,null,null,null,null,null,null,null,null,null,null,null,null,null,null,null,null,null,null,null,null,null,null,null,null,null,null,{"$f":"Show!$B$46&Show!$B$46&\"C 92.07.2 Table {\"&COLUMN($D$1)&\"}\"","v":"!!C 92.07.2 Table {4}"}]
[]
[]
[null,"Bucket: Currency pair: Second currency","Bucket: Currency pair: First currency","Columns"]
[]
[null,null,null,"Unweighted sensitivities (sk)",null,null,null,null,"Sum of weighted sensitivities (∑ WS_k)","Bucket-specific sensitivities (K_b)"]
[null,null,null,"Vega risk: Maturities  (maturity of the option)",null,null,null,null,"Vega Risk","Low correlation scenario","Medium correlation scenario","High correlation scenario"]
[null,null,null,"0.5 years","1 year","3 years","5 years","10 years",null,"Vega Risk","Vega Risk","Vega Risk"]
[null,"0020","0010","0250","0260","0270","0280","0290","0710","1010","1040","1070",null,null,null,null,null,null,null,null,null,null,null,null,null,null,null,null,null,{"$f":"Show!$B$46&\"C 92.07.2 Rows {\"&COLUMN($B$1)&\"}\"&Index!$E$50","v":"!C 92.07.2 Rows {2}"},{"$f":"Show!$B$46&\"C 92.07.2 Columns {\"&COLUMN($B$1)&\"}\"","v":"!C 92.07.2 Columns {2}"}]
[]
[null,null,null,null,null,null,null,null,null,null,null,null,null,null,null,null,null,null,null,null,null,null,null,null,null,null,null,null,null,{"$f":"Show!$B$46&Show!$B$46&\"C 92.07.2 Rows {\"&COLUMN($B$1)&\"}\"","v":"!!C 92.07.2 Rows {2}"},{"$f":"Show!$B$46&Show!$B$46&\"C 92.07.2 Columns {\"&COLUMN($L$1)&\"}\"","v":"!!C 92.07.2 Columns {12}"}]

{"sheet":"C_93.00","index":50,"n_rows":75,"n_cols":17,"rows_kept":75,"cut":false,"hidden":true,"merged":[[13,5,14,5],[13,6,14,6],[1,1,1,14],[4,1,4,11],[6,1,6,2],[7,1,7,2],[10,3,11,7],[49,6,50,6],[49,7,50,7],[49,8,50,8],[13,7,14,7],[40,1,40,11],[42,1,42,2],[43,1,43,2],[46,3,47,9],[48,3,50,3],[48,4,48,8],[48,9,50,9],[49,4,50,4],[49,5,50,5],[12,3,14,3],[12,4,12,7],[13,4,14,4]]}
["Back to Index"]
[null,"Alternative Standardised Approach: Residual Risk Add-On (MKR ASA RRAO)"]
[]
[]
[null,"C 93.00.a"]
[]
[null,"Scope of positions and nature of own funds requirement",null,null,null,null,null,null,null,null,null,null,null,null,null,{"$f":"Show!$B$47&\"C 93.00.a Table {\"&COLUMN($B$1)&\"}\"","v":"!C 93.00.a Table {2}"}]
[null,"Offsetting group that the data refers to",null,null,null,null,null,null,null,null,null,null,null,null,null,{"$f":"Show!$B$47&Show!$B$47&\"C 93.00.a Table {\"&COLUMN($D$1)&\"}\"","v":"!!C 93.00.a Table {4}"}]
[]
[]
[null,null,null,"Columns"]
[]
[null,null,null,"Gross notional amounts before application of Article 325u(4) of Regulation (EU) No 575/2013","Gross notional amounts of instruments exempted in accordance with Article 325u(4) of Regulation (EU) No 575/2013"]
[null,null,null,null,"Listed on a recognised exchange","Eligible for central clearing ","Perfectly offsets  market risk of another trading book position","Hedging positions"]
[]
[null,null,null,"0010","0020","0030","0040","0050",null,null,null,null,null,null,null,{"$f":"Show!$B$47&\"C 93.00.a Rows {\"&COLUMN($C$1)&\"}\"&Index!$E$51","v":"!C 93.00.a Rows {3}"},{"$f":"Show!$B$47&\"C 93.00.a Columns {\"&COLUMN($D$1)&\"}\"","v":"!C 93.00.a Columns {4}"}]
[null,"Rows",""]
[null,"ALL INSTRUMENTS SUBJECT TO RESIDUAL RISK","0010"]
[null,"Instruments referencing an exotic underlying","0020"]
[null,"Future realised volatility","0030"]
[null,"Natural disasters","0040"]
[null,"Weather","0050"]
[null,"Longevity risk","0060"]
[null,"Other exotic underlyings which are not in the scope of the delta, vega or curvature risk","0070"]
[null,"Instruments bearing other residual risks","0080"]
[null,"of which: Options where the pay-offs depend on the path followed by the price of the underlying asset and not just its final price on the exercise date","0090"]
[null,"of which: Options that start at a predefined date in the future and whose strike price is not yet determined at the time at which the option is in the trading book of the institution","0100"]
[null,"of which: Options whose underlying is another option","0110"]
[null,"of which: Options with discontinuous pay-offs","0120"]
[null,"of which: Options allowing the holder to modify the strike price or other terms of the contract before the maturity of the option","0130"]
[null,"of which: Options that can be exercised on a finite set of predetermined dates","0140"]
[null,"of which: Options whose underlying is denominated in one currency but whose pay-offs are settled in a different currency, with a predetermined exchange rate between the two currencies","0150"]
[null,"of which: Multi-underlying options","0160"]
[null,"of which: Options subject to behavioural risk","0170"]
[null,"of which: Options that do not have a maturity","0180"]
[null,"of which: Options that do not have a strike or barrier and options that have multiple strikes or barriers","0190"]
[null,"of which: Other instruments exposed to residual risk","0200"]
[]
[null,null,null,null,null,null,null,null,null,null,null,null,null,null,null,{"$f":"Show!$B$47&Show!$B$47&\"C 93.00.a Rows {\"&COLUMN($C$1)&\"}\"","v":"!!C 93.00.a Rows {3}"},{"$f":"Show!$B$47&Show!$B$47&\"C 93.00.a Columns {\"&COLUMN($H$1)&\"}\"","v":"!!C 93.00.a Columns {8}"}]
[]
[null,"C 93.00.b"]
[]
[null,"Scope of positions and nature of own funds requirement",null,null,null,null,null,null,null,null,null,null,null,null,null,{"$f":"Show!$B$47&\"C 93.00.b Table {\"&COLUMN($B$1)&\"}\"","v":"!C 93.00.b Table {2}"}]
[null,"Offsetting group that the data refers to",null,null,null,null,null,null,null,null,null,null,null,null,null,{"$f":"Show!$B$47&Show!$B$47&\"C 93.00.b Table {\"&COLUMN($D$1)&\"}\"","v":"!!C 93.00.b Table {4}"}]
[]
[]
[null,null,null,"Columns"]
[]
[null,null,null,"Gross notional amounts after application of Article 325u(4) of Regulation (EU) No 575/2013","Gross notional amount by asset class",null,null,null,null,"Own funds requirements"]
[null,null,null,null,"Interest Rates","Foreign Exchange","Credit","Equities","Commodities"]
[]
[null,null,null,"0060","0070","0080","0090","0100","0110","0120",null,null,null,null,null,{"$f":"Show!$B$47&\"C 93.00.b Rows {\"&COLUMN($C$1)&\"}\"&Index!$E$51","v":"!C 93.00.b Rows {3}"},{"$f":"Show!$B$47&\"C 93.00.b Columns {\"&COLUMN($D$1)&\"}\"","v":"!C 93.00.b Columns {4}"}]
[null,"Rows",""]
[null,"ALL INSTRUMENTS SUBJECT TO RESIDUAL RISK","0010"]
[null,"Instruments referencing an exotic underlying","0020"]
[null,"Future realised volatility","0030"]
[null,"Natural disasters","0040"]
[null,"Weather","0050"]
[null,"Longevity risk","0060"]
[null,"Other exotic underlyings which are not in the scope of the delta, vega or curvature risk","0070"]
[null,"Instruments bearing other residual risks","0080"]
[null,"of which: Options where the pay-offs depend on the path followed by the price of the underlying asset and not just its final price on the exercise date","0090"]
[null,"of which: Options that start at a predefined date in the future and whose strike price is not yet determined at the time at which the option is in the trading book of the institution","0100"]
[null,"of which: Options whose underlying is another option","0110"]
[null,"of which: Options with discontinuous pay-offs","0120"]
[null,"of which: Options allowing the holder to modify the strike price or other terms of the contract before the maturity of the option","0130"]
[null,"of which: Options that can be exercised on a finite set of predetermined dates","0140"]
[null,"of which: Options whose underlying is denominated in one currency but whose pay-offs are settled in a different currency, with a predetermined exchange rate between the two currencies","0150"]
[null,"of which: Multi-underlying options","0160"]
[null,"of which: Options subject to behavioural risk","0170"]
[null,"of which: Options that do not have a maturity","0180"]
[null,"of which: Options that do not have a strike or barrier and options that have multiple strikes or barriers","0190"]
[null,"Other instruments exposed to residual risk","0200"]
[]
[null,null,null,null,null,null,null,null,null,null,null,null,null,null,null,{"$f":"Show!$B$47&Show!$B$47&\"C 93.00.b Rows {\"&COLUMN($C$1)&\"}\"","v":"!!C 93.00.b Rows {3}"},{"$f":"Show!$B$47&Show!$B$47&\"C 93.00.b Columns {\"&COLUMN($J$1)&\"}\"","v":"!!C 93.00.b Columns {10}"}]

{"sheet":"C_94.01","index":51,"n_rows":49,"n_cols":35,"rows_kept":49,"cut":false,"hidden":true,"merged":[[12,3,12,26],[1,1,1,14],[4,1,4,11],[6,1,6,2],[7,1,7,2],[10,3,11,26],[13,3,13,4],[13,5,13,14],[13,15,13,24],[13,25,14,25],[13,26,14,26]]}
["Back to Index"]
[null,"Alternative Standardised Approach: Default risk charge - Instruments other than securitisations, not included in the alternative correlation trading portfolio (MKR ASA DRC1)"]
[]
[]
[null,"C 94.01"]
[]
[null,"Scope of positions and nature of own funds requirement",null,null,null,null,null,null,null,null,null,null,null,null,null,null,null,null,null,null,null,null,null,null,null,null,null,null,null,null,null,null,null,{"$f":"Show!$B$48&\"C 94.01 Table {\"&COLUMN($B$1)&\"}\"","v":"!C 94.01 Table {2}"}]
[null,"Offsetting group that the data refers to",null,null,null,null,null,null,null,null,null,null,null,null,null,null,null,null,null,null,null,null,null,null,null,null,null,null,null,null,null,null,null,{"$f":"Show!$B$48&Show!$B$48&\"C 94.01 Table {\"&COLUMN($D$1)&\"}\"","v":"!!C 94.01 Table {4}"}]
[]
[]
[null,null,null,"Columns"]
[]
[null,null,null,"Instruments other than securitisations, not included in the alternative correlation trading portfolio"]
[null,null,null,"Gross JTD amounts",null,"Net long JTD amounts (not risk-weighted)",null,null,null,null,null,null,null,null,null,"Net short JTD amounts (not risk-weighted)",null,null,null,null,null,null,null,null,null,"Weighted to short ratio (WtS)","Own funds requirement"]
[null,null,null,"Long","Short",null,"0% risk weight","CQS1","CQS2","CQS3","CQS4","CQS5","CQS6","Unrated","Defaulted",null,"0% risk weight","CQS1","CQS2","CQS3","CQS4","CQS5","CQS6","Unrated","Defaulted"]
[null,null,null,"0010","0020","0030","0040","0050","0060","0070","0080","0090","0100","0110","0120","0130","0140","0150","0160","0170","0180","0190","0200","0210","0220","0230","0240",null,null,null,null,null,null,{"$f":"Show!$B$48&\"C 94.01 Rows {\"&COLUMN($C$1)&\"}\"&Index!$E$52","v":"!C 94.01 Rows {3}"},{"$f":"Show!$B$48&\"C 94.01 Columns {\"&COLUMN($D$1)&\"}\"","v":"!C 94.01 Columns {4}"}]
[null,"Rows",""]
[null,"Corporates","0010"]
[null,"Debt instruments - Non-Senior","0020"]
[null,"Debt instruments - Senior","0030"]
[null,"Debt instruments - Covered Bonds","0040"]
[null,"Derivatives having debt instruments as underlyings - Non-Senior","0050"]
[null,"Derivatives having debt instruments as underlyings - Senior","0060"]
[null,"Derivatives having debt instruments as underlyings - Covered Bonds","0070"]
[null,"Equity instruments","0080"]
[null,"Derivatives having equity instruments as underlyings","0090"]
[null,"Derivative instruments treated in accordance with Article 325w(7) of Regulation (EU) No 575/2013\t","0100"]
[null,"Sovereigns","0110"]
[null,"Debt instruments - Non-Senior","0120"]
[null,"Debt instruments - Senior","0130"]
[null,"Debt instruments - Covered Bonds","0140"]
[null,"Derivatives having debt instruments as underlyings - Non-Senior","0150"]
[null,"Derivatives having debt instruments as underlyings - Senior","0160"]
[null,"Derivatives having debt instruments as underlyings - Covered Bonds","0170"]
[null,"Equity instruments","0180"]
[null,"Derivatives having equity instruments as underlyings","0190"]
[null,"Derivative instruments treated in accordance with Article 325w(7) of Regulation (EU) No 575/2013\t","0200"]
[null,"Local governments / municipalitites","0210"]
[null,"Debt instruments - Non-Senior","0220"]
[null,"Debt instruments - Senior","0230"]
[null,"Debt instruments - Covered Bonds","0240"]
[null,"Derivatives having debt instruments as underlyings - Non-Senior","0250"]
[null,"Derivatives having debt instruments as underlyings - Senior","0260"]
[null,"Derivatives having debt instruments as underlyings - Covered Bonds","0270"]
[null,"Equity instruments","0280"]
[null,"Derivatives having equity instruments as underlyings","0290"]
[null,"Derivative instruments treated in accordance with Article 325w(7) of Regulation (EU) No 575/2013\t","0300"]
[]
[null,null,null,null,null,null,null,null,null,null,null,null,null,null,null,null,null,null,null,null,null,null,null,null,null,null,null,null,null,null,null,null,null,{"$f":"Show!$B$48&Show!$B$48&\"C 94.01 Rows {\"&COLUMN($C$1)&\"}\"","v":"!!C 94.01 Rows {3}"},{"$f":"Show!$B$48&Show!$B$48&\"C 94.01 Columns {\"&COLUMN($AA$1)&\"}\"","v":"!!C 94.01 Columns {27}"}]

{"sheet":"C_94.02","index":52,"n_rows":69,"n_cols":53,"rows_kept":69,"cut":false,"hidden":true,"merged":[[12,3,12,44],[1,1,1,14],[4,1,4,11],[6,1,6,2],[7,1,7,2],[10,3,11,44],[13,3,13,4],[13,5,13,23],[13,24,13,42],[13,43,14,43],[13,44,14,44]]}
["Back to Index"]
[null,"Alternative Standardised Approach: Default risk charge - Securitisations, not included in the alternative correlation trading portfolio (non-ACTP) (MKR ASA DRC2)"]
[]
[]
[null,"C 94.02"]
[]
[null,"Scope of positions and nature of own funds requirement",null,null,null,null,null,null,null,null,null,null,null,null,null,null,null,null,null,null,null,null,null,null,null,null,null,null,null,null,null,null,null,null,null,null,null,null,null,null,null,null,null,null,null,null,null,null,null,null,null,{"$f":"Show!$B$49&\"C 94.02 Table {\"&COLUMN($B$1)&\"}\"","v":"!C 94.02 Table {2}"}]
[null,"Offsetting group that the data refers to",null,null,null,null,null,null,null,null,null,null,null,null,null,null,null,null,null,null,null,null,null,null,null,null,null,null,null,null,null,null,null,null,null,null,null,null,null,null,null,null,null,null,null,null,null,null,null,null,null,{"$f":"Show!$B$49&Show!$B$49&\"C 94.02 Table {\"&COLUMN($D$1)&\"}\"","v":"!!C 94.02 Table {4}"}]
[]
[]
[null,null,null,"Columns"]
[]
[null,null,null,"Securitisations, not included in the alternative correlation trading portfolio"]
[null,null,null,"Gross JTD amounts",null,"Net long JTD amounts (not risk-weighted)",null,null,null,null,null,null,null,null,null,null,null,null,null,null,null,null,null,null,"Net short JTD amounts (not risk-weighted)\t\t\t\t\t\t\t\t\t\t\t\t\t\t\t",null,null,null,null,null,null,null,null,null,null,null,null,null,null,null,null,null,null,"Weighted-to-Short ratio (WtS)","Own funds requirement"]
[null,null,null,"Long","Short",null,"[0% - 10%[","[10% - 12%[","[12% - 20%[","[20% - 40%[","[40% - 100%[","[100% - 150%[","[150% - 200%[","[200% - 225%[","[225% - 250%[","[250% - 300%[","[300% - 350%[","[350% - 425%[","[425% - 500%[","[500% - 650%[","[650% - 750%[","[750% - 850%[","[850% - 1250%[","1 250%",null,"[0% - 10%[","[10% - 12%[","[12% - 20%[","[20% - 40%[","[40% - 100%[","[100% - 150%[","[150% - 200%[","[200% - 225%[","[225% - 250%[","[250% - 300%[","[300% - 350%[","[350% - 425%[","[425% - 500%[","[500% - 650%[","[650% - 750%[","[750% - 850%[","[850% - 1250%[","1 250%"]
[null,null,null,"0010","0020","0030","0040","0050","0060","0070","0080","0090","0100","0110","0120","0130","0140","0150","0160","0170","0180","0190","0200","0210","0220","0230","0240","0250","0260","0270","0280","0290","0300","0310","0320","0330","0340","0350","0360","0370","0380","0390","0400","0410","0420",null,null,null,null,null,null,{"$f":"Show!$B$49&\"C 94.02 Rows {\"&COLUMN($C$1)&\"}\"&Index!$E$53","v":"!C 94.02 Rows {3}"},{"$f":"Show!$B$49&\"C 94.02 Columns {\"&COLUMN($D$1)&\"}\"","v":"!C 94.02 Columns {4}"}]
[null,"Rows",""]
[null,"All regions","0009"]
[null,"Corporates","0010"]
[null,"Asia","0019"]
[null,"ABCP","0020"]
[null,"Auto Loans/Leases","0030"]
[null,"Residential mortgage-backed securities (RMBS)","0040"]
[null,"Credit cards","0050"]
[null,"Commercial mortgage-backed securities (CMBS)","0060"]
[null,"Collateralised loan obligations (CLOs)","0070"]
[null,"Collateralised debt obligations squared (CDO-squared)","0080"]
[null,"Small and medium-sized enterprises (SMEs)","0090"]
[null,"Student Loans","0100"]
[null,"Other retail","0110"]
[null,"Other Wholesale","0120"]
[null,"Europe","0129"]
[null,"ABCP","0130"]
[null,"Auto Loans/Leases","0140"]
[null,"Residential mortgage-backed securities (RMBS)","0150"]
[null,"Credit cards","0160"]
[null,"Commercial mortgage-backed securities (CMBS)","0170"]
[null,"Collateralised loan obligations (CLOs)","0180"]
[null,"Collateralised debt obligations squared (CDO-squared)","0190"]
[null,"Small and medium-sized enterprises (SMEs)","0200"]
[null,"Student Loans","0210"]
[null,"Other retail","0220"]
[null,"Other Wholesale","0230"]
[null,"North America","0239"]
[null,"ABCP","0240"]
[null,"Auto Loans/Leases","0250"]
[null,"Residential mortgage-backed securities (RMBS)","0260"]
[null,"Credit cards","0270"]
[null,"Commercial mortgage-backed securities (CMBS)","0280"]
[null,"Collateralised loan obligations (CLOs)","0290"]
[null,"Collateralised debt obligations squared (CDO-squared)","0300"]
[null,"Small and medium-sized enterprises (SMEs)","0310"]
[null,"Student Loans","0320"]
[null,"Other retail","0330"]
[null,"Other Wholesale","0340"]
[null,"Rest of the World","0349"]
[null,"ABCP","0350"]
[null,"Auto Loans/Leases","0360"]
[null,"Residential mortgage-backed securities (RMBS)","0370"]
[null,"Credit cards","0380"]
[null,"Commercial mortgage-backed securities (CMBS)","0390"]
[null,"Collateralised loan obligations (CLOs)","0400"]
[null,"Collateralised debt obligations squared (CDO-squared)","0410"]
[null,"Small and medium-sized enterprises (SMEs)","0420"]
[null,"Student Loans","0430"]
[null,"Other retail","0440"]
[null,"Other Wholesale","0450"]
[]
[null,null,null,null,null,null,null,null,null,null,null,null,null,null,null,null,null,null,null,null,null,null,null,null,null,null,null,null,null,null,null,null,null,null,null,null,null,null,null,null,null,null,null,null,null,null,null,null,null,null,null,{"$f":"Show!$B$49&Show!$B$49&\"C 94.02 Rows {\"&COLUMN($C$1)&\"}\"","v":"!!C 94.02 Rows {3}"},{"$f":"Show!$B$49&Show!$B$49&\"C 94.02 Columns {\"&COLUMN($AS$1)&\"}\"","v":"!!C 94.02 Columns {45}"}]

{"sheet":"C_94.03","index":53,"n_rows":19,"n_cols":67,"rows_kept":19,"cut":false,"hidden":true,"merged":[[14,15,14,24],[14,25,14,26],[14,27,14,38],[14,39,14,50],[1,1,1,14],[4,1,4,11],[6,1,6,2],[7,1,7,2],[10,1,15,1],[10,2,11,52],[12,2,12,52],[13,2,15,2],[13,3,13,24],[13,25,13,50],[13,51,15,51],[13,52,15,52],[14,3,14,4],[14,5,14,14]]}
["Back to Index"]
[null,"Alternative Standardised Approach: Default risk charge - Instruments included in the alternative correlation trading portfolio (MKR ASA DRC3)"]
[]
[]
[null,"C 94.03"]
[]
[null,"Scope of positions and nature of own funds requirement",null,null,null,null,null,null,null,null,null,null,null,null,null,null,null,null,null,null,null,null,null,null,null,null,null,null,null,null,null,null,null,null,null,null,null,null,null,null,null,null,null,null,null,null,null,null,null,null,null,null,null,null,null,null,null,null,null,null,null,null,null,null,null,{"$f":"Show!$B$50&\"C 94.03 Table {\"&COLUMN($B$1)&\"}\"","v":"!C 94.03 Table {2}"}]
[null,"Offsetting group that the data refers to",null,null,null,null,null,null,null,null,null,null,null,null,null,null,null,null,null,null,null,null,null,null,null,null,null,null,null,null,null,null,null,null,null,null,null,null,null,null,null,null,null,null,null,null,null,null,null,null,null,null,null,null,null,null,null,null,null,null,null,null,null,null,null,{"$f":"Show!$B$50&Show!$B$50&\"C 94.03 Table {\"&COLUMN($D$1)&\"}\"","v":"!!C 94.03 Table {4}"}]
[]
[]
[null,"Instruments included in the alternative correlation trading portfolio: Bucket (Index)","Columns"]
[]
[null,null,"Instruments included in the alternative correlation trading portfolio"]
[null,null,"Bucket (index) description","Non-tranched products",null,null,null,null,null,null,null,null,null,null,null,null,null,null,null,null,null,null,null,null,null,"Tranched products",null,null,null,null,null,null,null,null,null,null,null,null,null,null,null,null,null,null,null,null,null,null,null,null,null,"Weighted to short ACTP ratio","Own funds requirement"]
[null,null,null,"Gross JTD amounts",null,"Net long JTD amounts (not risk-weighted)",null,null,null,null,null,null,null,null,null,"Net short JTD amounts (not risk-weighted)",null,null,null,null,null,null,null,null,null,"Gross JTD amounts",null,"Net long JTD amounts (not risk-weighted)",null,null,null,null,null,null,null,null,null,null,null,"Net short JTD amounts (not risk-weighted)"]
[null,null,null,"Long","Short",null,"0% risk weight","CQS1","CQS2","CQS3","CQS4","CQS5","CQS6","Unrated","Defaulted",null,"0% risk weight","CQS1","CQS2","CQS3","CQS4","CQS5","CQS6","Unrated","Defaulted","Long","Short",null,"[0 - 10%[","[10 - 12%[","[12 - 20%[","[20 - 40%[","[40 - 100%[","[100 - 250%[","[250 - 350%[","[350 - 425%[","[425 - 650%[","[650 - 1 250%[","1 250%",null,"[0 - 10%[","[10 - 12%[","[12 - 20%[","[20 - 40%[","[40 - 100%[","[100 - 250%[","[250 - 350%[","[350 - 425%[","[425 - 650%[","[650 - 1 250%[","1 250%"]
[null,"0010","0020","0030","0040","0050","0060","0070","0080","0090","0100","0110","0120","0130","0140","0150","0160","0170","0180","0190","0200","0210","0220","0230","0240","0250","0260","0270","0280","0290","0300","0310","0320","0330","0340","0350","0360","0370","0380","0390","0400","0410","0420","0430","0440","0450","0460","0470","0480","0490","0500","0510","0520",null,null,null,null,null,null,null,null,null,null,null,null,{"$f":"Show!$B$50&\"C 94.03 Rows {\"&COLUMN($B$1)&\"}\"&Index!$E$54","v":"!C 94.03 Rows {2}"},{"$f":"Show!$B$50&\"C 94.03 Columns {\"&COLUMN($B$1)&\"}\"","v":"!C 94.03 Columns {2}"}]
[]
[null,null,null,null,null,null,null,null,null,null,null,null,null,null,null,null,null,null,null,null,null,null,null,null,null,null,null,null,null,null,null,null,null,null,null,null,null,null,null,null,null,null,null,null,null,null,null,null,null,null,null,null,null,null,null,null,null,null,null,null,null,null,null,null,null,{"$f":"Show!$B$50&Show!$B$50&\"C 94.03 Rows {\"&COLUMN($B$1)&\"}\"","v":"!!C 94.03 Rows {2}"},{"$f":"Show!$B$50&Show!$B$50&\"C 94.03 Columns {\"&COLUMN($BA$1)&\"}\"","v":"!!C 94.03 Columns {53}"}]

{"sheet":"C_95.00","index":54,"n_rows":37,"n_cols":43,"rows_kept":37,"cut":false,"hidden":true,"merged":[[1,1,1,14],[4,1,4,11],[6,1,6,2],[9,3,10,23],[11,3,11,9],[11,10,11,11],[11,12,11,13],[11,16,11,19],[11,23,14,23],[12,3,14,3],[12,4,14,4],[12,5,12,9],[13,5,14,5],[12,10,14,10],[12,11,14,11],[12,22,14,22],[12,20,14,20],[12,21,14,21],[12,12,14,12],[21,1,21,11],[23,1,23,2],[13,18,14,18],[12,13,14,13],[12,14,14,14],[12,15,14,15],[12,19,14,19],[13,6,14,6],[13,7,14,7],[13,8,13,9],[13,16,14,16],[13,17,14,17],[26,3,27,23],[28,3,28,9],[28,10,28,11],[28,12,28,13],[28,16,28,19],[28,23,31,23],[29,3,31,3],[29,4,31,4],[29,22,31,22],[30,16,31,16],[30,17,31,17],[30,18,31,18],[29,5,29,9],[30,5,31,5],[29,10,31,10],[29,11,31,11],[29,12,31,12],[29,13,31,13],[30,6,31,6],[30,7,31,7],[30,8,30,9],[29,14,31,14],[29,15,31,15],[29,19,31,19],[29,20,31,20],[29,21,31,21]]}
["Back to Index"]
[null,"Alternative internal model approach: Summary of own funds requirements (MKR AIMA SUM)"]
[]
[]
[null,"C 95.00.a"]
[]
[null,"Offsetting group that the data refers to",null,null,null,null,null,null,null,null,null,null,null,null,null,null,null,null,null,null,null,null,null,null,null,null,null,null,null,null,null,null,null,null,null,null,null,null,null,null,null,{"$f":"Show!$B$51&\"C 95.00.a Table {\"&COLUMN($B$1)&\"}\"","v":"!C 95.00.a Table {2}"}]
[null,null,null,null,null,null,null,null,null,null,null,null,null,null,null,null,null,null,null,null,null,null,null,null,null,null,null,null,null,null,null,null,null,null,null,null,null,null,null,null,null,{"$f":"Show!$B$51&Show!$B$51&\"C 95.00.a Table {\"&COLUMN($D$1)&\"}\"","v":"!!C 95.00.a Table {4}"}]
[]
[null,null,null,"Columns"]
[]
[null,null,null,"Modellable risk factors: Expected shortfall measure",null,null,null,null,null,null,"Non-modellable risk factors: Stress scenario risk measure",null,"Default risk",null,"AIMA own funds requirements for AIMA desks","ASA own funds requirements for  AIMA desks","Calculation of PLA add on",null,null,null,"ASA own funds requirements for ASA desks","ASA own funds requirements for all desks","Own funds requirements for the on- and off-balance sheet business subject to market risk","Total risk exposure amount"]
[null,null,null,"Previous day's risk measure (ES_t-1)","Average of daily risk measure over the preceding 60 business days (ES^avg ∙ m_c)","Multiplier m_c",null,null,null,null,"Previous day's risk measure (SS_t-1)","Average of daily risk measure over the preceding 60 business days (SS^avg)","Most recent own funds requirements for default risk","Average own funds requirement for default risk over the preceding 12 weeks","AIMA","ASA_aima","ASA own funds requirements for yellow AIMA desks","ASA own funds requirements for all AIMA desks (desk by desk)","k-coefficient","PLA_add on","ASA_non-aima","ASA_all portfolio","AIMA_total"]
[null,null,null,null,null,null,"of which: quantitative add-on (back-testing)","of which: qualitative add-on","Memorandum items",null,null,null,null,null,null,null,"∑_(i in y) ASA_i","∑_(i in aima) ASA_i","k"]
[null,null,null,null,null,null,null,null,"Number of overshootings","Recognition of extraordinary circumstances"]
[null,null,null,"0010","0020","0030","0040","0050","0060","0065","0070","0080","0090","0100","0110","0120","0130","0140","0150","0160","0170","0180","0190","0200",null,null,null,null,null,null,null,null,null,null,null,null,null,null,null,null,null,{"$f":"Show!$B$51&\"C 95.00.a Rows {\"&COLUMN($C$1)&\"}\"&Index!$E$55","v":"!C 95.00.a Rows {3}"},{"$f":"Show!$B$51&\"C 95.00.a Columns {\"&COLUMN($D$1)&\"}\"","v":"!C 95.00.a Columns {4}"}]
[null,"Rows",""]
[null,"Non-IRT desks / ASA non-IRT portfolio","0010"]
[]
[null,null,null,null,null,null,null,null,null,null,null,null,null,null,null,null,null,null,null,null,null,null,null,null,null,null,null,null,null,null,null,null,null,null,null,null,null,null,null,null,null,{"$f":"Show!$B$51&Show!$B$51&\"C 95.00.a Rows {\"&COLUMN($C$1)&\"}\"","v":"!!C 95.00.a Rows {3}"},{"$f":"Show!$B$51&Show!$B$51&\"C 95.00.a Columns {\"&COLUMN($X$1)&\"}\"","v":"!!C 95.00.a Columns {24}"}]
[]
[null,"C 95.00.b"]
[]
[null,"Offsetting group that the data refers to",null,null,null,null,null,null,null,null,null,null,null,null,null,null,null,null,null,null,null,null,null,null,null,null,null,null,null,null,null,null,null,null,null,null,null,null,null,null,null,{"$f":"Show!$B$51&\"C 95.00.b Table {\"&COLUMN($B$1)&\"}\"","v":"!C 95.00.b Table {2}"}]
[null,null,null,null,null,null,null,null,null,null,null,null,null,null,null,null,null,null,null,null,null,null,null,null,null,null,null,null,null,null,null,null,null,null,null,null,null,null,null,null,null,{"$f":"Show!$B$51&Show!$B$51&\"C 95.00.b Table {\"&COLUMN($D$1)&\"}\"","v":"!!C 95.00.b Table {4}"}]
[]
[null,null,null,"Columns"]
[]
[null,null,null,"Modellable risk factors: Expected shortfall measure",null,null,null,null,null,null,"Non-modellable risk factors: Stress scenario risk measure",null,"Default risk",null,"AIMA own funds requirements for AIMA desks","ASA own funds requirements for  AIMA desks","Calculation of PLA add on",null,null,null,"ASA own funds requirements for ASA desks","ASA own funds requirements for all desks","Own funds requirements for the on- and off-balance sheet business subject to market risk","Total risk exposure amount"]
[null,null,null,"Previous day's risk measure (ES_t-1)","Average of daily risk measure over the preceding 60 business days (ES^avg ∙ m_c)","Multiplier m_c",null,null,null,null,"Previous day's risk measure (SS_t-1)","Average of daily risk measure over the preceding 60 business days (SS^avg)","Most recent own funds requirements for default risk","Average own funds requirement for default risk over the preceding 12 weeks","AIMA","ASA_aima","ASA own funds requirements for yellow AIMA desks","ASA own funds requirements for all AIMA desks (desk by desk)","k-coefficient","PLA_add on","ASA_non-aima","ASA_all portfolio","AIMA_total"]
[null,null,null,null,null,null,"of which: quantitative add-on (back-testing)","of which: qualitative add-on","Memorandum items",null,null,null,null,null,null,null,"∑_(i in y) ASA_i","∑_(i in aima) ASA_i","k"]
[null,null,null,null,null,null,null,null,"Number of overshootings","Recognition of extraordinary circumstances"]
[null,null,null,"0010","0020","0030","0040","0050","0060","0065","0070","0080","0090","0100","0110","0120","0130","0140","0150","0160","0170","0180","0190","0200",null,null,null,null,null,null,null,null,null,null,null,null,null,null,null,null,null,{"$f":"Show!$B$51&\"C 95.00.b Rows {\"&COLUMN($C$1)&\"}\"&Index!$E$55","v":"!C 95.00.b Rows {3}"},{"$f":"Show!$B$51&\"C 95.00.b Columns {\"&COLUMN($D$1)&\"}\"","v":"!C 95.00.b Columns {4}"}]
[null,"Rows",""]
[null,"IRT desk / IRT portfolio","0020"]
[]
[null,null,null,null,null,null,null,null,null,null,null,null,null,null,null,null,null,null,null,null,null,null,null,null,null,null,null,null,null,null,null,null,null,null,null,null,null,null,null,null,null,{"$f":"Show!$B$51&Show!$B$51&\"C 95.00.b Rows {\"&COLUMN($C$1)&\"}\"","v":"!!C 95.00.b Rows {3}"},{"$f":"Show!$B$51&Show!$B$51&\"C 95.00.b Columns {\"&COLUMN($X$1)&\"}\"","v":"!!C 95.00.b Columns {24}"}]

{"sheet":"M_01.00","index":55,"n_rows":41,"n_cols":11,"rows_kept":41,"cut":false,"hidden":true,"merged":[[1,1,1,14],[4,1,4,11],[8,3,9,4],[10,3,13,3],[10,4,13,4]]}
["Back to Index"]
[null,"MREL and TLAC key metrics (resolution groups / entities) (KM2)"]
[]
[]
[null,"M 01.00"]
[]
[]
[]
[null,null,null,"Columns"]
[]
[null,null,null,"Minimum requirement for own funds and eligible liabilities (MREL)","Requirement for own funds and eligible liabilities for G-SIIs (TLAC)"]
[]
[]
[]
[null,null,null,"0010","0020",null,null,null,null,{"$f":"Show!$B$52&\"M 01.00 Rows {\"&COLUMN($C$1)&\"}\"&Index!$E$56","v":"!M 01.00 Rows {3}"},{"$f":"Show!$B$52&\"M 01.00 Columns {\"&COLUMN($D$1)&\"}\"","v":"!M 01.00 Columns {4}"}]
[null,"Rows",""]
[null,"Total risk exposure amount and total exposure measure","0099"]
[null,"Total risk exposure amount (TREA)","0100"]
[null,"Total exposure measure (TEM)","0110"]
[null,"Own funds and eligibile liabilities","0199"]
[null,"Own funds and eligibile liabilities","0200"]
[null,"Of which: own funds and subordinated liabilities","0210"]
[null,"Of which governed by third country law","0220"]
[null,"Of which containing a write down and conversion clause as referred to in Article 55 of Directive 2014/59/EU","0230"]
[null,"Other bailinable liabilities","0249"]
[null,"Other bailinable liabilities","0250"]
[null,"Of which governed by third country law","0260"]
[null,"Of which containing a write down and conversion clause as referred to in Article 55 of Directive 2014/59/EU","0270"]
[null,"Residual maturity of < 1 year","0280"]
[null,"Residual maturity of >= 1 year and < 2 years","0285"]
[null,"Residual maturity of >= 2 years","0290"]
[null,"Ratios and subordination exemptions","0299"]
[null,"Own funds and eligible liabilities as a percentage of the total risk exposure amount","0300"]
[null,"Of which: own funds and subordinated liabilities","0310"]
[null,"Own funds and eligible liabilities as a percentage of the total exposure measure","0320"]
[null,"Of which own funds and subordinated liabilities","0330"]
[null,"Does the subordination exemption in Article 72b(4) of Regulation (EU) No 575/2013 apply? (5% exemption)","0340"]
[null,"Aggregate amount of permitted non-subordinated eligible liabilities instruments if the subordination discretion as per Article 72b(3) of Regulation (EU) No 575/2013 is applied (max 3.5% exemption)","0350"]
[null,"Share of the total non-subordinated liabilities that is included in own funds and eligible liabilities","0360"]
[]
[null,null,null,null,null,null,null,null,null,{"$f":"Show!$B$52&Show!$B$52&\"M 01.00 Rows {\"&COLUMN($C$1)&\"}\"","v":"!!M 01.00 Rows {3}"},{"$f":"Show!$B$52&Show!$B$52&\"M 01.00 Columns {\"&COLUMN($E$1)&\"}\"","v":"!!M 01.00 Columns {5}"}]

{"sheet":"B_02.03","index":56,"n_rows":14,"n_cols":14,"rows_kept":14,"cut":false,"hidden":true,"merged":[[1,1,1,14],[4,1,4,11],[8,1,10,1],[8,2,10,2],[8,3,9,3]]}
["Back to Index"]
[null,"RT.02.03: List of intra-group contractual arrangements"]
[]
[]
[null,"B 02.03"]
[]
[]
[]
[null,"Contractual arrangement reference number","Contractual arrangement linked to the contractual arrangement referred in RT.02.03.0010","Columns"]
[]
[null,null,null,"Link"]
[null,"0010","0020","0030",null,null,null,null,null,null,null,null,{"$f":"Show!$B$53&\"B 02.03 Rows {\"&COLUMN($B$1)&\"}\"&Index!$E$57","v":"!B 02.03 Rows {2}"},{"$f":"Show!$B$53&\"B 02.03 Columns {\"&COLUMN($B$1)&\"}\"","v":"!B 02.03 Columns {2}"}]
[]
[null,null,null,null,null,null,null,null,null,null,null,null,{"$f":"Show!$B$53&Show!$B$53&\"B 02.03 Rows {\"&COLUMN($B$1)&\"}\"","v":"!!B 02.03 Rows {2}"},{"$f":"Show!$B$53&Show!$B$53&\"B 02.03 Columns {\"&COLUMN($D$1)&\"}\"","v":"!!B 02.03 Columns {4}"}]

{"sheet":"C_96.01.1","index":57,"n_rows":53,"n_cols":32,"rows_kept":53,"cut":false,"hidden":true,"merged":[[12,3,12,6],[12,7,12,15],[1,1,1,14],[4,1,4,11],[6,1,6,2],[9,3,10,15],[11,3,11,15],[13,15,15,15],[14,3,14,4],[14,5,15,5],[14,7,14,8],[14,9,15,9],[14,11,15,11],[14,12,15,12],[14,13,15,13],[14,14,15,14],[13,3,13,4],[13,6,15,6],[13,7,13,8],[13,10,15,10],[13,11,13,14]]}
["Back to Index"]
[null,"Alternative internal model approach: Risk factor eligibility test (MKR AIMA RFET)"]
[]
[]
[null,"C 96.01.1"]
[]
[null,"Offsetting group that the data refers to",null,null,null,null,null,null,null,null,null,null,null,null,null,null,null,null,null,null,null,null,null,null,null,null,null,null,null,null,{"$f":"Show!$B$54&\"C 96.01.1 Table {\"&COLUMN($B$1)&\"}\"","v":"!C 96.01.1 Table {2}"}]
[null,null,null,null,null,null,null,null,null,null,null,null,null,null,null,null,null,null,null,null,null,null,null,null,null,null,null,null,null,null,{"$f":"Show!$B$54&Show!$B$54&\"C 96.01.1 Table {\"&COLUMN($D$1)&\"}\"","v":"!!C 96.01.1 Table {4}"}]
[]
[null,null,null,"Columns"]
[]
[null,null,null,"Results of the risk factor eligibility test (RFET) considered in the calculation of AIMA as of the reference date (non-IRT and IRT desks)\t\t\t\t\t\t\t\t\t\t\t\t"]
[null,null,null,"Modellable risk factors (MRF)\t\t\t",null,null,null,"Non-Modellable risk factors (NMRF)\t\t\t"]
[null,null,null,"RFET at risk factor level",null,"RFET at bucket level","Total number of modellable risk factors","RFET at risk factor level",null,"RFET at bucket level","Total number of non-modellable risk factors","Number of real price observations (RPOs) for risk factors in the risk class",null,null,null,"Average longest period between two RPOs for the risk factors in the risk class (in days)"]
[null,null,null,"Number of risk factors",null,"Number of buckets",null,"Number of risk factors",null,"Number of buckets",null,"First quartile","Median","Average","Third quartile"]
[null,null,null,"Parameter for curve, surface or cube","Not parameter for curve, surface or cube",null,null,"Parameter for curve, surface or cube","Not parameter for curve, surface or cube"]
[null,null,null,"0010","0020","0030","0040","0050","0060","0070","0080","0090","0100","0110","0120","0130",null,null,null,null,null,null,null,null,null,null,null,null,null,null,{"$f":"Show!$B$54&\"C 96.01.1 Rows {\"&COLUMN($C$1)&\"}\"&Index!$E$58","v":"!C 96.01.1 Rows {3}"},{"$f":"Show!$B$54&\"C 96.01.1 Columns {\"&COLUMN($D$1)&\"}\"","v":"!C 96.01.1 Columns {4}"}]
[null,"Rows",""]
[null,"Interest rate risk","0010"]
[null,"Most liquid currencies and domestic currency","0020"]
[null,"Other currencies","0030"]
[null,"Volatility","0040"]
[null,"Other types","0050"]
[null,"Credit spread risk","0060"]
[null,"Central government, including central banks,  of Member States","0070"]
[null,"Covered bonds issued by credit institutions in Member States (Investment Grade)","0080"]
[null,"Sovereign (Investment grade)","0090"]
[null,"Sovereign (High yield)","0100"]
[null,"Corporate (Investment grade)","0110"]
[null,"Corporate (High yield)","0120"]
[null,"Volatility","0130"]
[null,"Other types","0140"]
[null,"Equity risk","0150"]
[null,"Equity price (Large market capitalisation)","0160"]
[null,"Equity price (Small market capitalisation)","0170"]
[null,"Volatility (Large market capitalisation)","0180"]
[null,"Volatility (Small market capitalisation)","0190"]
[null,"Other types","0200"]
[null,"Foreign exchange risk","0210"]
[null,"Most liquid currency pairs","0220"]
[null,"Other currency pairs","0230"]
[null,"Volatility","0240"]
[null,"Other types","0250"]
[null,"Commodity risk","0260"]
[null,"Energy price and carbon emissions price","0270"]
[null,"Precious metal price and non-ferrous metal price","0280"]
[null,"Other commodity prices","0290"]
[null,"Energy volatility and carbon emissions volatility","0300"]
[null,"Precious metal volatility and non-ferrous metal volatility","0310"]
[null,"Other commodity volatilities","0320"]
[null,"Other types","0330"]
[]
[null,null,null,null,null,null,null,null,null,null,null,null,null,null,null,null,null,null,null,null,null,null,null,null,null,null,null,null,null,null,{"$f":"Show!$B$54&Show!$B$54&\"C 96.01.1 Rows {\"&COLUMN($C$1)&\"}\"","v":"!!C 96.01.1 Rows {3}"},{"$f":"Show!$B$54&Show!$B$54&\"C 96.01.1 Columns {\"&COLUMN($P$1)&\"}\"","v":"!!C 96.01.1 Columns {16}"}]

{"sheet":"M_02.00","index":58,"n_rows":117,"n_cols":11,"rows_kept":117,"cut":false,"hidden":true,"merged":[[87,3,92,3],[1,1,1,14],[4,1,4,11],[8,3,9,4],[10,3,15,3],[10,4,15,4],[59,1,59,11],[63,3,64,4],[65,3,69,3],[65,4,69,4],[81,1,81,11],[85,3,86,3]]}
["Back to Index"]
[null,"MREL and TLAC capacity and composition (resolution groups / entities) (TLAC1)"]
[]
[]
[null,"M 02.00.a"]
[]
[]
[]
[null,null,null,"Columns"]
[]
[null,null,null,"Minimum requirement for own funds and eligible liabilities (MREL)","Requirement for own funds and eligible liabilities for G-SIIs (TLAC)"]
[]
[]
[]
[]
[]
[null,null,null,"0010","0020",null,null,null,null,{"$f":"Show!$B$55&\"M 02.00.a Rows {\"&COLUMN($C$1)&\"}\"&Index!$E$59","v":"!M 02.00.a Rows {3}"},{"$f":"Show!$B$55&\"M 02.00.a Columns {\"&COLUMN($D$1)&\"}\"","v":"!M 02.00.a Columns {4}"}]
[null,"Rows",""]
[null,"Own funds and eligible liabilities","0010"]
[null,"(Eligible) Own funds","0020"]
[null,"Common Equity Tier 1 capital","0030"]
[null,"(Eligible) Additional Tier 1 capital","0040"]
[null,"(Eligible) T2 capital","0050"]
[null,"Eligible liabilities","0060"]
[null,"Eligible liabilities items before adjustments","0070"]
[null,"Of which: eligible liabilities considered as structurally subordinated","0080"]
[null,"Eligible liabilities subordinated to excluded liabilities","0090"]
[null,"Eligible liabilities instruments issued directly by the resolution entity (not grandfathered)","0100"]
[null,"Eligible liabilities instruments issued by other entities within the resolution group (not grandfathered)","0110"]
[null,"Eligible liabilities instruments issued prior to 27 June 2019","0120"]
[null,"Tier 2 instruments with a residual maturity of at least one year to the extent they do not qualify as Tier 2 items","0130"]
[null,"(-) Own eligible liabilities instruments subordinated to excluded liabilities","0132"]
[null,"(-) Of which: unused prior permission amounts","0135"]
[null,"Eligible liabilities not subordinated to excluded liabilities","0140"]
[null,"(-) Own eligible liabilities instruments not subordinated to excluded liabilities","0162"]
[null,"(-) Of which: unused prior permission amounts","0165"]
[null,"Amounts eligible after application of the cap of Article 72b(3) of Regulation (EU) No 575/2013 (not grandfathered)","0170"]
[null,"Amounts eligible after application of the cap of Article 72b(3) of Regulation (EU) No 575/2013, consisting of items issued prior to 27 June 2019","0180"]
[null,"(-) Deductions","0190"]
[null,"(-) Exposures between MPE resolution groups","0200"]
[null,"(-) Investments in other eligible liabilities instruments","0211"]
[null,"Excess of deductions from eligible liabilities over eligible liabilities (deducted from Tier 2)","0220"]
[null,"Memorandum items","0399"]
[null,"CET1 (%) available after meeting the entity’s requirements","0400"]
[null,"Combined buffer requirement (%)","0410"]
[null,"Of which: capital conservation buffer requirement","0420"]
[null,"Of which: countercyclical buffer requirement","0430"]
[null,"Of which: systemic risk buffer requirement","0440"]
[null,"Of which: Global Systemically Important Institution (G-SII) or Other Systemically Important Institution (O-SII) buffer","0450"]
[null,"Investments in subordinated eligible liabilities of other institutions","0460"]
[null,"Investments in subordinated eligible liabilities of G-SIIs","0470"]
[null,"Investments in subordinated eligible liabilities of O-SIIs","0480"]
[null,"Investments in subordinated eligible liabilities of other institutions","0490"]
[null,"Excluded liabilities","0500"]
[null,"Ad hoc permissions for eligible liabilities items: Predetermined amount","0600"]
[null,"General prior permissions  for eligible liabilities items: Predetermined amount","0610"]
[]
[null,null,null,null,null,null,null,null,null,{"$f":"Show!$B$55&Show!$B$55&\"M 02.00.a Rows {\"&COLUMN($C$1)&\"}\"","v":"!!M 02.00.a Rows {3}"},{"$f":"Show!$B$55&Show!$B$55&\"M 02.00.a Columns {\"&COLUMN($E$1)&\"}\"","v":"!!M 02.00.a Columns {5}"}]
[]
[null,"M 02.00.b"]
[]
[]
[]
[null,null,null,"Columns"]
[]
[null,null,null,"Minimum requirement for own funds and eligible liabilities (MREL)","Requirement for own funds and eligible liabilities for G-SIIs (TLAC)"]
[]
[]
[]
[]
[null,null,null,"0010","0020",null,null,null,null,{"$f":"Show!$B$55&\"M 02.00.b Rows {\"&COLUMN($C$1)&\"}\"&Index!$E$59","v":"!M 02.00.b Rows {3}"},{"$f":"Show!$B$55&\"M 02.00.b Columns {\"&COLUMN($D$1)&\"}\"","v":"!M 02.00.b Columns {4}"}]
[null,"Rows",""]
[null,"Own funds and eligible liabilities","0010"]
[null,"Eligible liabilities","0060"]
[null,"Eligible liabilities items before adjustments","0070"]
[null,"Eligible liabilities not subordinated to excluded liabilities","0140"]
[null,"Eligible liabilities that are not subordinated to excluded liabilities (not grandfathered, pre cap)","0150"]
[null,"Eligible liabilities that are not subordinated to excluded liabilities issued prior to 27 June 2019 (pre cap)","0160"]
[]
[null,null,null,null,null,null,null,null,null,{"$f":"Show!$B$55&Show!$B$55&\"M 02.00.b Rows {\"&COLUMN($C$1)&\"}\"","v":"!!M 02.00.b Rows {3}"},{"$f":"Show!$B$55&Show!$B$55&\"M 02.00.b Columns {\"&COLUMN($E$1)&\"}\"","v":"!!M 02.00.b Columns {5}"}]
[]
[null,"M 02.00.c"]
[]
[]
[]
[null,null,null,"Columns"]
[]
[null,null,null,"Memo item: Amounts eligible for the purposes of MREL, but not TLAC"]
[]
[]
[]
[]
[]
[null,null,null,"0030",null,null,null,null,null,{"$f":"Show!$B$55&\"M 02.00.c Rows {\"&COLUMN($C$1)&\"}\"&Index!$E$59","v":"!M 02.00.c Rows {3}"},{"$f":"Show!$B$55&\"M 02.00.c Columns {\"&COLUMN($D$1)&\"}\"","v":"!M 02.00.c Columns {4}"}]
[null,"Rows",""]
[null,"Own funds and eligible liabilities","0010"]
[null,"(Eligible) Own funds","0020"]
[null,"Common Equity Tier 1 capital","0030"]
[null,"(Eligible) Additional Tier 1 capital","0040"]
[null,"(Eligible) T2 capital","0050"]
[null,"Eligible liabilities","0060"]
[null,"Eligible liabilities items before adjustments","0070"]
[null,"Of which: eligible liabilities considered as structurally subordinated","0080"]
[null,"Eligible liabilities subordinated to excluded liabilities","0090"]
[null,"Eligible liabilities instruments issued directly by the resolution entity (not grandfathered)","0100"]
[null,"Eligible liabilities instruments issued by other entities within the resolution group (not grandfathered)","0110"]
[null,"Eligible liabilities instruments issued prior to 27 June 2019","0120"]
[null,"Tier 2 instruments with a residual maturity of at least one year to the extent they do not qualify as Tier 2 items","0130"]
[null,"(-) Own eligible liabilities instruments subordinated to excluded liabilities","0132"]
[null,"(-) Of which: unused prior permission amounts","0135"]
[null,"Eligible liabilities not subordinated to excluded liabilities","0140"]
[null,"Eligible liabilities that are not subordinated to excluded liabilities (not grandfathered, pre cap)","0150"]
[null,"Eligible liabilities that are not subordinated to excluded liabilities issued prior to 27 June 2019 (pre cap)","0160"]
[null,"(-) Own eligible liabilities instruments not subordinated to excluded liabilities","0162"]
[null,"(-) Of which: unused prior permission amounts","0165"]
[]
[null,null,null,null,null,null,null,null,null,{"$f":"Show!$B$55&Show!$B$55&\"M 02.00.c Rows {\"&COLUMN($C$1)&\"}\"","v":"!!M 02.00.c Rows {3}"},{"$f":"Show!$B$55&Show!$B$55&\"M 02.00.c Columns {\"&COLUMN($D$1)&\"}\"","v":"!!M 02.00.c Columns {4}"}]

{"sheet":"B_03.01","index":59,"n_rows":14,"n_cols":14,"rows_kept":14,"cut":false,"hidden":true,"merged":[[1,1,1,14],[4,1,4,11],[8,1,10,1],[8,2,10,2],[8,3,9,3]]}
["Back to Index"]
[null,"RT.03.01: Entities signing the Contractual arrangements for receiving ICT service(s) or on behalf of the entities making use of the ICT service(s)"]
[]
[]
[null,"B 03.01"]
[]
[]
[]
[null,"Contractual arrangement reference number","LEI of the entity signing the contractual arrangement","Columns"]
[]
[null,null,null,"Link"]
[null,"0010","0020","0030",null,null,null,null,null,null,null,null,{"$f":"Show!$B$56&\"B 03.01 Rows {\"&COLUMN($B$1)&\"}\"&Index!$E$60","v":"!B 03.01 Rows {2}"},{"$f":"Show!$B$56&\"B 03.01 Columns {\"&COLUMN($B$1)&\"}\"","v":"!B 03.01 Columns {2}"}]
[]
[null,null,null,null,null,null,null,null,null,null,null,null,{"$f":"Show!$B$56&Show!$B$56&\"B 03.01 Rows {\"&COLUMN($B$1)&\"}\"","v":"!!B 03.01 Rows {2}"},{"$f":"Show!$B$56&Show!$B$56&\"B 03.01 Columns {\"&COLUMN($D$1)&\"}\"","v":"!!B 03.01 Columns {4}"}]

{"sheet":"C_96.01.2","index":60,"n_rows":32,"n_cols":17,"rows_kept":32,"cut":false,"hidden":true,"merged":[[12,3,12,6],[12,7,13,7],[12,8,13,8],[1,1,1,14],[4,1,4,11],[6,1,6,2],[9,3,10,8],[11,3,11,8]]}
["Back to Index"]
[null,"Alternative internal model approach: Stress periods for the calculation of the risk measures (MKR AIMA SP)"]
[]
[]
[null,"C 96.01.2"]
[]
[null,"Offsetting group that the data refers to",null,null,null,null,null,null,null,null,null,null,null,null,null,{"$f":"Show!$B$57&\"C 96.01.2 Table {\"&COLUMN($B$1)&\"}\"","v":"!C 96.01.2 Table {2}"}]
[null,null,null,null,null,null,null,null,null,null,null,null,null,null,null,{"$f":"Show!$B$57&Show!$B$57&\"C 96.01.2 Table {\"&COLUMN($D$1)&\"}\"","v":"!!C 96.01.2 Table {4}"}]
[]
[null,null,null,"Columns"]
[]
[null,null,null,"Stress period considered in the calculation of AIMA (non-IRT desks and IRT desk)"]
[null,null,null,"Stress period considered for calculations as of the reference date",null,null,null,"Number of reviews of the stress period during the reference period","Comments"]
[null,null,null,"Start date","End date","Number of business days","First date as of which the stress period was used in the calculation of the risk measures"]
[null,null,null,"0010","0020","0030","0040","0050","0060",null,null,null,null,null,null,{"$f":"Show!$B$57&\"C 96.01.2 Rows {\"&COLUMN($C$1)&\"}\"&Index!$E$61","v":"!C 96.01.2 Rows {3}"},{"$f":"Show!$B$57&\"C 96.01.2 Columns {\"&COLUMN($D$1)&\"}\"","v":"!C 96.01.2 Columns {4}"}]
[null,"Rows",""]
[null,"Positions assigned to non-IRT deks\t\t\t\t\t\t","0008"]
[null,"Expected shortfall measure\t\t\t\t\t\t","0009"]
[null,"All modellable risk factors","0010"]
[null,"Stress scenario risk measure","0019"]
[null,"Interest rate","0020"]
[null,"Credit Spread","0030"]
[null,"Equity","0040"]
[null,"Foreign exchange","0050"]
[null,"Commodity","0060"]
[null,"Positions assigned to IRT desk","0108"]
[null,"Expected shortfall measure","0109"]
[null,"All modellable risk factors","0110"]
[null,"Stress scenario risk measure","0119"]
[null,"Interest rate","0120"]
[]
[null,null,null,null,null,null,null,null,null,null,null,null,null,null,null,{"$f":"Show!$B$57&Show!$B$57&\"C 96.01.2 Rows {\"&COLUMN($C$1)&\"}\"","v":"!!C 96.01.2 Rows {3}"},{"$f":"Show!$B$57&Show!$B$57&\"C 96.01.2 Columns {\"&COLUMN($I$1)&\"}\"","v":"!!C 96.01.2 Columns {9}"}]

{"sheet":"M_03.00","index":61,"n_rows":58,"n_cols":11,"rows_kept":58,"cut":false,"hidden":true,"merged":[[1,1,1,14],[4,1,4,11],[8,3,9,4],[10,3,14,3],[10,4,14,4]]}
["Back to Index"]
[null,"Internal MREL and internal TLAC (ILAC)"]
[]
[]
[null,"M 03.00"]
[]
[]
[]
[null,null,null,"Columns"]
[]
[null,null,null,"Internal MREL","Internal TLAC"]
[]
[]
[]
[]
[null,null,null,"0010","0020",null,null,null,null,{"$f":"Show!$B$58&\"M 03.00 Rows {\"&COLUMN($C$1)&\"}\"&Index!$E$62","v":"!M 03.00 Rows {3}"},{"$f":"Show!$B$58&\"M 03.00 Columns {\"&COLUMN($D$1)&\"}\"","v":"!M 03.00 Columns {4}"}]
[null,"Rows",""]
[null,"Level of application","0010"]
[null,"Total risk exposure amount and total exposure measure","0099"]
[null,"Total risk exposure amount","0100"]
[null,"Total exposure measure","0110"]
[null,"Eligible own funds and eligible liabilities","0199"]
[null,"Eligible own funds and eligible liabilities","0200"]
[null,"Eligible Own funds","0210"]
[null,"Common Equity Tier 1 capital (CET1)","0220"]
[null,"Eligible Additional Tier 1","0230"]
[null,"Eligible T2","0240"]
[null,"Eligible liabilities and guarantees","0250"]
[null,"Eligible liabilities (excluding guarantees)","0260"]
[null,"(-) Own eligible liabilities instruments: Unused prior permission amounts","0265"]
[null,"Guarantees provided by the resolution entity and permitted by the resolution authority","0270"]
[null,"Memorandum item: Collateralised part of the guarantee","0280"]
[null,"(-) Own funds instruments and eligible liabilities instruments issued by non-resolution entities of the same resolution group","0290"]
[null,"(-) of which: Own funds instruments issued by liquidation entities","0293"]
[null,"Excess of deductions from eligible liabilities over eligible liabilities","0295"]
[null,"Ratios of eligible own funds and eligible liabilities","0399"]
[null,"Own funds and eligible liabilities as a percentage of the total risk exposure amount","0400"]
[null,"Of which permitted guarantees","0410"]
[null,"Own funds and eligible liabilities as a percentage of the total exposure measure","0420"]
[null,"Of which permitted guarantees","0430"]
[null,"CET1 (%) available after meeting the entity’s requirements","0440"]
[null,"Memorandum items","0499"]
[null,"Combined buffer requirement (%)","0500"]
[null,"Of which: capital conservation buffer requirement","0510"]
[null,"Of which: countercyclical buffer requirement","0520"]
[null,"Of which: systemic risk buffer requirement","0530"]
[null,"Of which: Global Systemically Important Institution (G-SII) or Other Systemically Important Institution (O-SII) buffer","0540"]
[null,"Other bailinable liabilities","0550"]
[null,"Of which governed by third country law","0560"]
[null,"Of which containing a write down and conversion clause as referred to in Article 55 of Directive 2014/59/EU","0570"]
[null,"Residual maturity of < 1 year","0580"]
[null,"Residual maturity of >= 1 year and < 2 years","0590"]
[null,"Residual maturity of >= 2 years","0600"]
[null,"Excluded liabilities","0610"]
[null,"Own funds instruments issued by liquidation entities of the same resolution group","0620"]
[null,"Ratio of holdings of own funds instruments issued by liquidation entities over eligible own funds and eligible liabilities","0630"]
[]
[null,null,null,null,null,null,null,null,null,{"$f":"Show!$B$58&Show!$B$58&\"M 03.00 Rows {\"&COLUMN($C$1)&\"}\"","v":"!!M 03.00 Rows {3}"},{"$f":"Show!$B$58&Show!$B$58&\"M 03.00 Columns {\"&COLUMN($E$1)&\"}\"","v":"!!M 03.00 Columns {5}"}]

{"sheet":"B_03.02","index":62,"n_rows":14,"n_cols":16,"rows_kept":14,"cut":false,"hidden":true,"merged":[[1,1,1,14],[4,1,4,11],[8,1,10,1],[8,2,10,2],[8,3,10,3],[8,4,9,4]]}
["Back to Index"]
[null,"RT.03.02: ICT third-party service providers signing the Contractual arrangements for providing ICT service(s)"]
[]
[]
[null,"B 03.02"]
[]
[]
[]
[null,"Contractual arrangement reference number","Identification code of ICT third-party service provider","Type of code to identify the ICT third-party service provider","Columns"]
[]
[null,null,null,null,"Link"]
[null,"0010","0020","0030","0045",null,null,null,null,null,null,null,null,null,{"$f":"Show!$B$59&\"B 03.02 Rows {\"&COLUMN($B$1)&\"}\"&Index!$E$63","v":"!B 03.02 Rows {2}"},{"$f":"Show!$B$59&\"B 03.02 Columns {\"&COLUMN($B$1)&\"}\"","v":"!B 03.02 Columns {2}"}]
[]
[null,null,null,null,null,null,null,null,null,null,null,null,null,null,{"$f":"Show!$B$59&Show!$B$59&\"B 03.02 Rows {\"&COLUMN($B$1)&\"}\"","v":"!!B 03.02 Rows {2}"},{"$f":"Show!$B$59&Show!$B$59&\"B 03.02 Columns {\"&COLUMN($E$1)&\"}\"","v":"!!B 03.02 Columns {5}"}]

{"sheet":"C_96.02","index":63,"n_rows":17,"n_cols":20,"rows_kept":17,"cut":false,"hidden":true,"merged":[[1,1,1,14],[4,1,4,11],[6,1,6,2],[9,1,13,1],[9,2,10,7],[11,2,11,7],[12,2,12,4],[12,5,12,7]]}
["Back to Index"]
[null,"Alternative internal model approach: Daily risk measures (MKR AIMA DRM)"]
[]
[]
[null,"C 96.02"]
[]
[null,"Offsetting group that the data refers to",null,null,null,null,null,null,null,null,null,null,null,null,null,null,null,null,{"$f":"Show!$B$60&\"C 96.02 Table {\"&COLUMN($B$1)&\"}\"","v":"!C 96.02 Table {2}"}]
[null,null,null,null,null,null,null,null,null,null,null,null,null,null,null,null,null,null,{"$f":"Show!$B$60&Show!$B$60&\"C 96.02 Table {\"&COLUMN($D$1)&\"}\"","v":"!!C 96.02 Table {4}"}]
[]
[null,"Date (t)","Columns"]
[]
[null,null,"Positions considered in the calculation of AIMA"]
[null,null,"Non-IRT desks",null,null,"IRT desk"]
[null,null,"Expected shortfall risk measure (ES_t)","Stress scenario risk measure (SS_t)","Default risk charge (DRC_t)","Expected shortfall risk measure (ES_t)","Stress scenario risk measure (SS_t)","Default risk charge (DRC_t)"]
[null,"0010","0020","0030","0040","0120","0130","0140",null,null,null,null,null,null,null,null,null,null,{"$f":"Show!$B$60&\"C 96.02 Rows {\"&COLUMN($B$1)&\"}\"&Index!$E$64","v":"!C 96.02 Rows {2}"},{"$f":"Show!$B$60&\"C 96.02 Columns {\"&COLUMN($B$1)&\"}\"","v":"!C 96.02 Columns {2}"}]
[]
[null,null,null,null,null,null,null,null,null,null,null,null,null,null,null,null,null,null,{"$f":"Show!$B$60&Show!$B$60&\"C 96.02 Rows {\"&COLUMN($B$1)&\"}\"","v":"!!C 96.02 Rows {2}"},{"$f":"Show!$B$60&Show!$B$60&\"C 96.02 Columns {\"&COLUMN($H$1)&\"}\"","v":"!!C 96.02 Columns {8}"}]

{"sheet":"M_04.00","index":64,"n_rows":46,"n_cols":10,"rows_kept":46,"cut":false,"hidden":true,"merged":[[1,1,1,14],[4,1,4,11],[8,3,9,3],[10,3,12,3]]}
["Back to Index"]
[null,"Funding structure of eligible liabilities (LIAB MREL)"]
[]
[]
[null,"M 04.00"]
[]
[]
[]
[null,null,null,"Columns"]
[]
[null,null,null,"Amount eligible for MREL / internal MREL"]
[]
[]
[null,null,null,"0010",null,null,null,null,{"$f":"Show!$B$61&\"M 04.00 Rows {\"&COLUMN($C$1)&\"}\"&Index!$E$65","v":"!M 04.00 Rows {3}"},{"$f":"Show!$B$61&\"M 04.00 Columns {\"&COLUMN($D$1)&\"}\"","v":"!M 04.00 Columns {4}"}]
[null,"Rows",""]
[null,"Eligible liabilities","0100"]
[null,"Deposits, not covered and not preferential >= 1 year","0200"]
[null,"Of which: residual maturity >= 1 year and < 2 years","0210"]
[null,"Of which: residual maturity >= 2 years","0220"]
[null,"Of which: issued by subsidiaries","0230"]
[null,"Uncollateralized secured liabilities >= 1 year","0300"]
[null,"Of which: residual maturity >= 1 year and < 2 years","0310"]
[null,"Of which: residual maturity >= 2 years","0320"]
[null,"Of which: issued by subsidiaries","0330"]
[null,"Structured notes >= 1 year","0400"]
[null,"Of which: residual maturity >= 1 year and < 2 years","0410"]
[null,"Of which: residual maturity >= 2 years","0420"]
[null,"Of which: issued by subsidiaries","0430"]
[null,"Senior unsecured liabilities >= 1 year","0500"]
[null,"Of which: residual maturity >= 1 year and < 2 years","0510"]
[null,"Of which: residual maturity >= 2 years","0520"]
[null,"Of which: issued by subsidiaries","0530"]
[null,"Senior non-preferred liabilities >= 1 year","0600"]
[null,"Of which: residual maturity >= 1 year and < 2 years","0610"]
[null,"Of which: residual maturity >= 2 years","0620"]
[null,"Of which: issued by subsidiaries","0630"]
[null,"Subordinated liabilities (not recognised as own funds) >= 1 year","0700"]
[null,"Of which: residual maturity >= 1 year and < 2 years","0710"]
[null,"Of which: residual maturity >= 2 years","0720"]
[null,"Of which: issued by subsidiaries","0730"]
[null,"Other MREL eligible liabilities >= 1 year","0800"]
[null,"Of which: residual maturity >= 1 year and < 2 years","0810"]
[null,"Of which: residual maturity >= 2 years","0820"]
[null,"Of which: issued by subsidiaries","0830"]
[]
[null,null,null,null,null,null,null,null,{"$f":"Show!$B$61&Show!$B$61&\"M 04.00 Rows {\"&COLUMN($C$1)&\"}\"","v":"!!M 04.00 Rows {3}"},{"$f":"Show!$B$61&Show!$B$61&\"M 04.00 Columns {\"&COLUMN($D$1)&\"}\"","v":"!!M 04.00 Columns {4}"}]

{"sheet":"B_03.03","index":65,"n_rows":14,"n_cols":14,"rows_kept":14,"cut":false,"hidden":true,"merged":[[1,1,1,14],[4,1,4,11],[8,1,10,1],[8,2,10,2],[8,3,9,3]]}
["Back to Index"]
[null,"RT.03.03: Entities signing the Contractual arrangements for providing ICT service(s) to other entity within the scope of consolidation"]
[]
[]
[null,"B 03.03"]
[]
[]
[]
[null,"Contractual arrangement reference number","LEI of the entity providing ICT services","Columns"]
[]
[null,null,null,"Link"]
[null,"0010","0020","0031",null,null,null,null,null,null,null,null,{"$f":"Show!$B$62&\"B 03.03 Rows {\"&COLUMN($B$1)&\"}\"&Index!$E$66","v":"!B 03.03 Rows {2}"},{"$f":"Show!$B$62&\"B 03.03 Columns {\"&COLUMN($B$1)&\"}\"","v":"!B 03.03 Columns {2}"}]
[]
[null,null,null,null,null,null,null,null,null,null,null,null,{"$f":"Show!$B$62&Show!$B$62&\"B 03.03 Rows {\"&COLUMN($B$1)&\"}\"","v":"!!B 03.03 Rows {2}"},{"$f":"Show!$B$62&Show!$B$62&\"B 03.03 Columns {\"&COLUMN($D$1)&\"}\"","v":"!!B 03.03 Columns {4}"}]

{"sheet":"C_96.03","index":66,"n_rows":18,"n_cols":28,"rows_kept":18,"cut":false,"hidden":true,"merged":[[13,5,13,6],[13,7,13,8],[13,10,14,10],[1,1,1,14],[4,1,4,11],[6,1,6,2],[9,1,14,1],[9,2,14,2],[9,3,10,10],[11,3,11,10],[12,3,12,8],[12,9,14,9],[13,3,13,4]]}
["Back to Index"]
[null,"Alternative internal model approach: Partial expected shortfalls (MKR AIMA PES)"]
[]
[]
[null,"C 96.03"]
[]
[null,"Offsetting group that the data refers to",null,null,null,null,null,null,null,null,null,null,null,null,null,null,null,null,null,null,null,null,null,null,null,null,{"$f":"Show!$B$63&\"C 96.03 Table {\"&COLUMN($B$1)&\"}\"","v":"!C 96.03 Table {2}"}]
[null,null,null,null,null,null,null,null,null,null,null,null,null,null,null,null,null,null,null,null,null,null,null,null,null,null,{"$f":"Show!$B$63&Show!$B$63&\"C 96.03 Table {\"&COLUMN($D$1)&\"}\"","v":"!!C 96.03 Table {4}"}]
[]
[null,"Date (t)","Category of risk factors included in calculation","Columns"]
[]
[null,null,null,"Positions considered in the calculation of AIMA (non-IRT desks):  Inputs to the calculation of the expected shortfall measure"]
[null,null,null,"Partial expected shortfall measures",null,null,null,null,null,"PES_t^FC/PES_t^RC","Unconstrained expected shortfall"]
[null,null,null,"Reduced set of risk factors - Current scenario (RC)",null,"Full set of risk factors - Current scenario (FC)",null,"Reduced set of risk factors - stressed scenario (RS)\t",null,null,"UES_t"]
[null,null,null,"PES_t(T)","PES_t","PES_t(T)","PES_t","PES_t(T)","PES_t"]
[null,"0010","0020","0030","0040","0130","0140","0230","0240","0300","0400",null,null,null,null,null,null,null,null,null,null,null,null,null,null,null,{"$f":"Show!$B$63&\"C 96.03 Rows {\"&COLUMN($B$1)&\"}\"&Index!$E$67","v":"!C 96.03 Rows {2}"},{"$f":"Show!$B$63&\"C 96.03 Columns {\"&COLUMN($B$1)&\"}\"","v":"!C 96.03 Columns {2}"}]
[]
[null,null,null,null,null,null,null,null,null,null,null,null,null,null,null,null,null,null,null,null,null,null,null,null,null,null,{"$f":"Show!$B$63&Show!$B$63&\"C 96.03 Rows {\"&COLUMN($B$1)&\"}\"","v":"!!C 96.03 Rows {2}"},{"$f":"Show!$B$63&Show!$B$63&\"C 96.03 Columns {\"&COLUMN($K$1)&\"}\"","v":"!!C 96.03 Columns {11}"}]

{"sheet":"B_04.01","index":67,"n_rows":14,"n_cols":16,"rows_kept":14,"cut":false,"hidden":true,"merged":[[1,1,1,14],[4,1,4,11],[8,1,10,1],[8,2,10,2],[8,3,10,3],[8,4,9,4]]}
["Back to Index"]
[null,"RT.04.01: Entities making use of the ICT services"]
[]
[]
[null,"B 04.01"]
[]
[]
[]
[null,"Contractual arrangement reference number","LEI of the entity making use of the ICT service(s)","Identification code of the branch","Columns"]
[]
[null,null,null,null,"Nature of the entity making use of the ICT service(s)"]
[null,"0010","0020","0040","0030",null,null,null,null,null,null,null,null,null,{"$f":"Show!$B$64&\"B 04.01 Rows {\"&COLUMN($B$1)&\"}\"&Index!$E$68","v":"!B 04.01 Rows {2}"},{"$f":"Show!$B$64&\"B 04.01 Columns {\"&COLUMN($B$1)&\"}\"","v":"!B 04.01 Columns {2}"}]
[]
[null,null,null,null,null,null,null,null,null,null,null,null,null,null,{"$f":"Show!$B$64&Show!$B$64&\"B 04.01 Rows {\"&COLUMN($B$1)&\"}\"","v":"!!B 04.01 Rows {2}"},{"$f":"Show!$B$64&Show!$B$64&\"B 04.01 Columns {\"&COLUMN($E$1)&\"}\"","v":"!!B 04.01 Columns {5}"}]

{"sheet":"C_96.04.1","index":68,"n_rows":17,"n_cols":26,"rows_kept":17,"cut":false,"hidden":true,"merged":[[1,1,1,14],[4,1,4,11],[6,1,6,2],[9,1,13,1],[9,2,10,11],[11,2,11,11],[12,4,12,5],[12,6,12,7],[12,8,12,9],[12,10,12,11]]}
["Back to Index"]
[null,"Alternative internal model approach: Back-testing at institution level (MKR AIMA BTI)"]
[]
[]
[null,"C 96.04.1"]
[]
[null,"Offsetting group that the data refers to",null,null,null,null,null,null,null,null,null,null,null,null,null,null,null,null,null,null,null,null,null,null,{"$f":"Show!$B$65&\"C 96.04.1 Table {\"&COLUMN($B$1)&\"}\"","v":"!C 96.04.1 Table {2}"}]
[null,null,null,null,null,null,null,null,null,null,null,null,null,null,null,null,null,null,null,null,null,null,null,null,{"$f":"Show!$B$65&Show!$B$65&\"C 96.04.1 Table {\"&COLUMN($D$1)&\"}\"","v":"!!C 96.04.1 Table {4}"}]
[]
[null,"Date (t)","Columns"]
[]
[null,null,"Positions considered in the calculation of AIMA (non-IRT desks)"]
[null,null,"Value at risk  (1 day holding period, 99% confidence interval)","Expected shortfall (1 day holding period, 99% confidence interval)","Actual profit (+) or loss (-) (APL)",null,"Hypothetical profit (+) or loss (-) (HPL)",null,"Overshooting",null,"Excluded overshootings"]
[null,null,"VaR_t^(99%,1d)","ES_t^(99%,1d)",null,"p-Value",null,"p-Value","APL","HPL","APL","HPL"]
[null,"0010","0020","0030","0040","0050","0060","0070","0080","0090","0100","0110",null,null,null,null,null,null,null,null,null,null,null,null,{"$f":"Show!$B$65&\"C 96.04.1 Rows {\"&COLUMN($B$1)&\"}\"&Index!$E$69","v":"!C 96.04.1 Rows {2}"},{"$f":"Show!$B$65&\"C 96.04.1 Columns {\"&COLUMN($B$1)&\"}\"","v":"!C 96.04.1 Columns {2}"}]
[]
[null,null,null,null,null,null,null,null,null,null,null,null,null,null,null,null,null,null,null,null,null,null,null,null,{"$f":"Show!$B$65&Show!$B$65&\"C 96.04.1 Rows {\"&COLUMN($B$1)&\"}\"","v":"!!C 96.04.1 Rows {2}"},{"$f":"Show!$B$65&Show!$B$65&\"C 96.04.1 Columns {\"&COLUMN($L$1)&\"}\"","v":"!!C 96.04.1 Columns {12}"}]

{"sheet":"C_96.04.2","index":69,"n_rows":16,"n_cols":41,"rows_kept":16,"cut":false,"hidden":true,"merged":[[1,1,1,14],[4,1,4,11],[8,1,12,1],[8,2,12,2],[8,3,9,20],[10,7,10,8],[11,7,12,7],[10,9,10,10],[11,9,12,9],[10,11,10,12],[10,13,10,16],[10,17,10,20],[11,3,12,3],[11,4,12,4],[11,5,12,5],[11,6,12,6],[11,17,11,18],[11,19,11,20],[11,11,12,11],[11,8,12,8],[11,10,12,10],[11,12,12,12],[11,13,11,14],[11,15,11,16]]}
["Back to Index"]
[null,"Alternative internal model approach: Back-testing at trading desk level and profit and loss attribution test (PLAT) (MKR AIMA BTTD)"]
[]
[]
[null,"C 96.04.2"]
[]
[]
[]
[null,"Non-IRT desks (incl. notional desks) and IRT desk:  Trading desk ID","Date (t)","Columns"]
[]
[null,null,null,"Value at risk  (1 day holding period, 99% confidence interval)","Value at risk  (1 day holding period, 97.5% confidence interval)","Expected shortfall (1 day holding period, 99% confidence interval)","Expected shortfall (1 day holding period, 97.5% confidence interval)","Actual profit (+) or loss (-) (APL)",null,"Hypothetical profit (+) or loss (-) (HPL)",null,"Risk-theoretical profit (+) or loss (-) (RTPL)",null,"Overshooting",null,null,null,"Excluded overshootings"]
[null,null,null,"VaR_t^(99%,1d)","VaR_t^(97.5%,1d)","ES_t^(99%,1d)","ES_t^(97.5%,1d)",null,"p-Value",null,"p-Value",null,"p-Value","APL",null,"HPL",null,"APL",null,"HPL"]
[null,null,null,null,null,null,null,null,null,null,null,null,null,"VaR_t^(99%,1d)","VaR_t^(97.5%,1d)","VaR_t^(99%,1d)","VaR_t^(97.5%,1d)","VaR_t^(99%,1d)","VaR_t^(97.5%,1d)","VaR_t^(99%,1d)","VaR_t^(97.5%,1d)"]
[null,"0010","0020","0030","0040","0050","0060","0070","0080","0090","0100","0110","0120","0130","0140","0150","0160","0170","0180","0190","0200",null,null,null,null,null,null,null,null,null,null,null,null,null,null,null,null,null,null,{"$f":"Show!$B$66&\"C 96.04.2 Rows {\"&COLUMN($B$1)&\"}\"&Index!$E$70","v":"!C 96.04.2 Rows {2}"},{"$f":"Show!$B$66&\"C 96.04.2 Columns {\"&COLUMN($B$1)&\"}\"","v":"!C 96.04.2 Columns {2}"}]
[]
[null,null,null,null,null,null,null,null,null,null,null,null,null,null,null,null,null,null,null,null,null,null,null,null,null,null,null,null,null,null,null,null,null,null,null,null,null,null,null,{"$f":"Show!$B$66&Show!$B$66&\"C 96.04.2 Rows {\"&COLUMN($B$1)&\"}\"","v":"!!C 96.04.2 Rows {2}"},{"$f":"Show!$B$66&Show!$B$66&\"C 96.04.2 Columns {\"&COLUMN($U$1)&\"}\"","v":"!!C 96.04.2 Columns {21}"}]

{"sheet":"C_96.05.1","index":70,"n_rows":68,"n_cols":23,"rows_kept":68,"cut":false,"hidden":true,"merged":[[13,6,14,6],[13,7,13,8],[13,9,14,9],[13,10,14,10],[1,1,1,14],[4,1,4,11],[6,1,6,2],[9,3,10,11],[11,3,11,11],[12,3,12,6],[12,7,12,10],[12,11,14,11],[13,3,13,4],[13,5,14,5]]}
["Back to Index"]
[null,"Alternative internal model approach: Stress scenario risk measure (SSRM) - Own funds requirements (MKR AIMA SSRM1)"]
[]
[]
[null,"C 96.05.1"]
[]
[null,"Offsetting group that the data refers to",null,null,null,null,null,null,null,null,null,null,null,null,null,null,null,null,null,null,null,{"$f":"Show!$B$67&\"C 96.05.1 Table {\"&COLUMN($B$1)&\"}\"","v":"!C 96.05.1 Table {2}"}]
[null,null,null,null,null,null,null,null,null,null,null,null,null,null,null,null,null,null,null,null,null,{"$f":"Show!$B$67&Show!$B$67&\"C 96.05.1 Table {\"&COLUMN($D$1)&\"}\"","v":"!!C 96.05.1 Table {4}"}]
[]
[null,null,null,"Columns"]
[]
[null,null,null,"Positions considered in the calculation of AIMA as of the reference date (non-IRT desks)"]
[null,null,null,"Sum of rescaled stress scenario risk measures (∑RSS)",null,null,null,"Sum of squared rescaled stress scenario risk measures (∑RSS^2)",null,null,null,"Aggregate stress scenario risk measure"]
[null,null,null,"SSRM determined at the level of a risk factor",null,"SSRM  determined at the level of a standardised bucket","Total","SSRM determined at the level of a risk factor",null,"SSRM  determined at the level of a standardised bucket","Total"]
[null,null,null,"Risk factor is parameter for curve, surface or cube","Risk factor is not parameter for curve, surface or cube",null,null,"Risk factor is parameter for curve, surface or cube","Risk factor is not parameter for curve, surface or cube"]
[null,null,null,"0010","0020","0030","0040","0110","0120","0130","0140","0200",null,null,null,null,null,null,null,null,null,{"$f":"Show!$B$67&\"C 96.05.1 Rows {\"&COLUMN($C$1)&\"}\"&Index!$E$71","v":"!C 96.05.1 Rows {3}"},{"$f":"Show!$B$67&\"C 96.05.1 Columns {\"&COLUMN($D$1)&\"}\"","v":"!C 96.05.1 Columns {4}"}]
[null,"Rows",""]
[null,"Total","0010"]
[null,"Interest rate risk","0020"]
[null,"Most liquid currencies and domestic currency","0030"]
[null,"Other currencies","0040"]
[null,"Volatility","0050"]
[null,"Other types","0060"]
[null,"Credit spread risk, idiosyncratic","0070"]
[null,"Central government, including central banks, of Member States","0080"]
[null,"Covered bonds issued by credit institutions in Member States (Investment Grade)","0090"]
[null,"Sovereign (Investment grade)","0100"]
[null,"Sovereign (High yield)","0110"]
[null,"Corporate (Investment grade)","0120"]
[null,"Corporate (High yield)","0130"]
[null,"Volatility","0140"]
[null,"Other types","0150"]
[null,"Credit spread risk, non-idiosyncratic","0160"]
[null,"Central government, including central banks, of Member States","0170"]
[null,"Covered bonds issued by credit institutions in Member States (Investment Grade)","0180"]
[null,"Sovereign (Investment grade)","0190"]
[null,"Sovereign (High yield)","0200"]
[null,"Corporate (Investment grade)","0210"]
[null,"Corporate (High yield)","0220"]
[null,"Volatility","0230"]
[null,"Other types","0240"]
[null,"Equity risk, idiosyncratic","0250"]
[null,"Equity price (Large market capitalisation)","0260"]
[null,"Equity price (Small market capitalisation)","0270"]
[null,"Volatility (Large market capitalisation)","0280"]
[null,"Volatility (Small market capitalisation)","0290"]
[null,"Other types","0300"]
[null,"Equity risk, non-idiosyncratic","0310"]
[null,"Equity price (Large market capitalisation)","0320"]
[null,"Equity price (Small market capitalisation)","0330"]
[null,"Volatility (Large market capitalisation)","0340"]
[null,"Volatility (Small market capitalisation)","0350"]
[null,"Other types","0360"]
[null,"Foreign exchange risk","0370"]
[null,"Most liquid currency pairs","0380"]
[null,"Other currency pairs","0390"]
[null,"Volatility","0400"]
[null,"Other types","0410"]
[null,"Commodity risk","0420"]
[null,"Energy price and carbon emissions price","0430"]
[null,"Precious metal price and non-ferrous metal price","0440"]
[null,"Other commodity prices","0450"]
[null,"Energy volatility and carbon emissions volatility","0460"]
[null,"Precious metal volatility and non-ferrous metal volatility","0470"]
[null,"Other commodity volatilities","0480"]
[null,"Other types","0490"]
[]
[null,null,null,null,null,null,null,null,null,null,null,null,null,null,null,null,null,null,null,null,null,{"$f":"Show!$B$67&Show!$B$67&\"C 96.05.1 Rows {\"&COLUMN($C$1)&\"}\"","v":"!!C 96.05.1 Rows {3}"},{"$f":"Show!$B$67&Show!$B$67&\"C 96.05.1 Columns {\"&COLUMN($L$1)&\"}\"","v":"!!C 96.05.1 Columns {12}"}]

{"sheet":"C_96.05.2","index":71,"n_rows":24,"n_cols":15,"rows_kept":24,"cut":false,"hidden":true,"merged":[[12,3,12,4],[12,5,13,5],[12,6,13,6],[1,1,1,14],[4,1,4,11],[6,1,6,2],[9,3,10,6],[11,3,11,6]]}
["Back to Index"]
[null,"Alternative internal model approach: Stress scenario risk measure (SSRM) -  Number of risk measures by SSRM method (MKR AIMA SSRM2)"]
[]
[]
[null,"C 96.05.2"]
[]
[null,"Offsetting group that the data refers to",null,null,null,null,null,null,null,null,null,null,null,{"$f":"Show!$B$68&\"C 96.05.2 Table {\"&COLUMN($B$1)&\"}\"","v":"!C 96.05.2 Table {2}"}]
[null,null,null,null,null,null,null,null,null,null,null,null,null,{"$f":"Show!$B$68&Show!$B$68&\"C 96.05.2 Table {\"&COLUMN($D$1)&\"}\"","v":"!!C 96.05.2 Table {4}"}]
[]
[null,null,null,"Columns"]
[]
[null,null,null,"Positions considered in the calculation of AIMA as of the reference date (non-IRT desks): Capitalisation of non-modellable risk factors (NMRF)"]
[null,null,null,"Number of rescaled stress scenario risk measures calculated at the level of a risk factor",null,"Number of rescaled stress scenario risk measures calculated at the level of a standardised bucket","Total number of rescaled stress scenario risk measures"]
[null,null,null,"Risk factor is parameter for curve, surface or cube","Risk factor is not a parameter for curve, surface or cube"]
[null,null,null,"0010","0020","0030","0040",null,null,null,null,null,null,{"$f":"Show!$B$68&\"C 96.05.2 Rows {\"&COLUMN($C$1)&\"}\"&Index!$E$72","v":"!C 96.05.2 Rows {3}"},{"$f":"Show!$B$68&\"C 96.05.2 Columns {\"&COLUMN($D$1)&\"}\"","v":"!C 96.05.2 Columns {4}"}]
[null,"Rows",""]
[null,"All methods","0010"]
[null,"Direct method","0020"]
[null,"Step-wise method: Historical method","0030"]
[null,"Step-wise method: Asymmetrical sigma method","0040"]
[null,"Step-wise method: Fallback method","0050"]
[null,"Maximum loss approach","0060"]
[]
[null,null,null,null,null,null,null,null,null,null,null,null,null,{"$f":"Show!$B$68&Show!$B$68&\"C 96.05.2 Rows {\"&COLUMN($C$1)&\"}\"","v":"!!C 96.05.2 Rows {3}"},{"$f":"Show!$B$68&Show!$B$68&\"C 96.05.2 Columns {\"&COLUMN($G$1)&\"}\"","v":"!!C 96.05.2 Columns {7}"}]

{"sheet":"C_97.00","index":72,"n_rows":15,"n_cols":43,"rows_kept":15,"cut":false,"hidden":true,"merged":[[10,11,10,17],[10,18,10,29],[10,30,11,30],[1,1,1,14],[4,1,4,11],[8,1,11,1],[8,2,9,30],[10,2,11,2],[10,3,11,3],[10,4,11,4],[10,5,10,8],[10,9,11,9],[10,10,11,10]]}
["Back to Index"]
[null,"Alternative internal model approach: Trading desk structure (MKR AIMA TDS)"]
[]
[]
[null,"C 97.00"]
[]
[]
[]
[null,"Non-IRT desks (incl. notional desks) and IRT desk: Trading desk ID","Columns"]
[]
[null,null,"Offsetting group","Trading desk name","Approach for calculating own funds requirements for market risk applied as of the reference date","Results of the backtesting and the PLAT taken into consideration in the calculation of own funds requirements as of the reference date\t\t\t",null,null,null,"Own funds requirements under the alternative standardised approach","Desk trades in instruments subject to the default risk charge","Main risk types for each trading desk (category)\t\t\t\t\t\t",null,null,null,null,null,null,"Main types of instruments traded by this desk (category)",null,null,null,null,null,null,null,null,null,null,null,"Description of trading desk activity"]
[null,null,null,null,null,"Classification of the desk (profit and loss attribution test)","Kolmogorov-Smirnov-Coefficient","Spearman correlation  coefficient","Compliance with trading desk back-testing requirements",null,null,"General interest rate","Equity","Commodities","Foreign exchange (FX)","Credit spread","Other risk types","Other risk types - details","Cash","Forwards","Futures","Plain vanilla options","Complex options","Asset-backed instruments","Mortgage-backed securities","Interest rate swaps","FX swaps","Credit default swaps","Other types of instruments","Other types of instruments -  Details"]
[null,"0020","0010","0030","0040","0050","0060","0070","0080","0090","0100","0210","0220","0230","0240","0250","0260","0270","0310","0320","0330","0340","0350","0360","0370","0380","0390","0400","0410","0420","500",null,null,null,null,null,null,null,null,null,null,{"$f":"Show!$B$69&\"C 97.00 Rows {\"&COLUMN($B$1)&\"}\"&Index!$E$73","v":"!C 97.00 Rows {2}"},{"$f":"Show!$B$69&\"C 97.00 Columns {\"&COLUMN($B$1)&\"}\"","v":"!C 97.00 Columns {2}"}]
[]
[null,null,null,null,null,null,null,null,null,null,null,null,null,null,null,null,null,null,null,null,null,null,null,null,null,null,null,null,null,null,null,null,null,null,null,null,null,null,null,null,null,{"$f":"Show!$B$69&Show!$B$69&\"C 97.00 Rows {\"&COLUMN($B$1)&\"}\"","v":"!!C 97.00 Rows {2}"},{"$f":"Show!$B$69&Show!$B$69&\"C 97.00 Columns {\"&COLUMN($AE$1)&\"}\"","v":"!!C 97.00 Columns {31}"}]

{"sheet":"C_98.01.1","index":73,"n_rows":53,"n_cols":30,"rows_kept":53,"cut":false,"hidden":true,"merged":[[12,12,13,12],[12,13,13,13],[1,1,1,14],[4,1,4,11],[6,1,6,2],[9,3,10,13],[11,3,11,13]]}
["Back to Index"]
[null,"Alternative internal model approach: Default risk charge - Breakdown by probability of default (MKR AIMA DRC1)"]
[]
[]
[null,"C 98.01.1"]
[]
[null,"Offsetting group that the data refers to",null,null,null,null,null,null,null,null,null,null,null,null,null,null,null,null,null,null,null,null,null,null,null,null,null,null,{"$f":"Show!$B$70&\"C 98.01.1 Table {\"&COLUMN($B$1)&\"}\"","v":"!C 98.01.1 Table {2}"},{"$f":"Show!$B$70&Show!$B$70&\"C 98.01.1 Table {\"&COLUMN($D$1)&\"}\"","v":"!!C 98.01.1 Table {4}"}]
[]
[]
[null,null,null,"Columns"]
[]
[null,null,null,"Positions considered in the calculation of AIMA as of the reference date (non-IRT desks): Gains (+) / losses (-), as calculated using the DRC model, assuming the default of the issuer (JTD DRC) by default probability of the issuer"]
[null,null,null,"Higher than or equal to 1 bp and lower than 3 bp","Higher than or equal to 3 bp and lower than 5 bp","Higher than or equal to 5 bp and lower than 10 bp","Higher than or equal to 10 bp and lower than 20 bp","Higher than or equal to 20 bp and lower than 40 bp","Higher than or equal to 40 bp and lower than 1%","Higher than or equal to 1% and lower than 4%","Higher than or equal to 4% and lower than 20%","Higher than or equal to 20% and lower than 100%","Defaulted","Average PD, weighted by JTD DRC"]
[null,null,null,"[1bp, 3bp)","[3bp, 5bp)","[5bp, 10bp)","[10bp, 20bp)","[20bp, 40bp)","[40bp, 1%)","[1%, 4%)","[4%, 20%)","[20%-100%)"]
[null,null,null,"0010","0020","0030","0040","0050","0060","0070","0080","0090","0100","0110",null,null,null,null,null,null,null,null,null,null,null,null,null,null,{"$f":"Show!$B$70&\"C 98.01.1 Rows {\"&COLUMN($C$1)&\"}\"&Index!$E$74","v":"!C 98.01.1 Rows {3}"},{"$f":"Show!$B$70&\"C 98.01.1 Columns {\"&COLUMN($D$1)&\"}\"","v":"!C 98.01.1 Columns {4}"}]
[null,"Rows",""]
[null,"ALL ISSUERS","0009"]
[null,"All positions","0010"]
[null,"Central government, including central banks, of Member States","0019"]
[null,"Long","0020"]
[null,"Short","0030"]
[null,"Covered bonds issued by credit institutions in Member States (Investment Grade)","0039"]
[null,"Long","0040"]
[null,"Short","0050"]
[null,"Other sovereign (Investment grade)","0059"]
[null,"Long","0060"]
[null,"Short","0070"]
[null,"Corporate (High yield)","0079"]
[null,"Long","0080"]
[null,"Short","0090"]
[null,"Other sovereign (Unrated)","0099"]
[null,"Long","0100"]
[null,"Short","0110"]
[null,"Corporate (Investment grade)","0119"]
[null,"Long","0120"]
[null,"Short","0130"]
[null,"Corporate (High yield)","0139"]
[null,"Long","0140"]
[null,"Short","0150"]
[null,"Corporate (Unrated)","0159"]
[null,"Long","0160"]
[null,"Short","0170"]
[null,"Other types (investment grade or high yield)","0179"]
[null,"Long","0180"]
[null,"Short","0190"]
[null,"Other types (unrated)","0199"]
[null,"Long","0200"]
[null,"Short","0210"]
[null,"Equity","0219"]
[null,"Long","0220"]
[null,"Short","0230"]
[]
[null,null,null,null,null,null,null,null,null,null,null,null,null,null,null,null,null,null,null,null,null,null,null,null,null,null,null,null,{"$f":"Show!$B$70&Show!$B$70&\"C 98.01.1 Rows {\"&COLUMN($C$1)&\"}\"","v":"!!C 98.01.1 Rows {3}"},{"$f":"Show!$B$70&Show!$B$70&\"C 98.01.1 Columns {\"&COLUMN($N$1)&\"}\"","v":"!!C 98.01.1 Columns {14}"}]

{"sheet":"C_98.01.2","index":74,"n_rows":50,"n_cols":31,"rows_kept":50,"cut":false,"hidden":true,"merged":[[1,1,1,14],[4,1,4,11],[6,1,6,2],[9,3,10,13],[11,3,11,12],[11,13,13,13]]}
["Back to Index"]
[null,"Alternative internal model approach: Default risk charge - Breakdown by LGD (MKR AIMA DRC2)"]
[]
[]
[null,"C 98.01.2"]
[]
[null,"Offsetting group that the data refers to",null,null,null,null,null,null,null,null,null,null,null,null,null,null,null,null,null,null,null,null,null,null,null,null,null,null,null,{"$f":"Show!$B$71&\"C 98.01.2 Table {\"&COLUMN($B$1)&\"}\"","v":"!C 98.01.2 Table {2}"},{"$f":"Show!$B$71&Show!$B$71&\"C 98.01.2 Table {\"&COLUMN($D$1)&\"}\"","v":"!!C 98.01.2 Table {4}"}]
[]
[]
[null,null,null,"Columns"]
[]
[null,null,null,"Positions considered in the calculation of AIMA as of the reference date (non-IRT desks):  Gains (+) / losses (-), as calculated using the DRC model, assuming the default of the issuer (JTD DRC) by LGD of the position",null,null,null,null,null,null,null,null,null,"Average LGD, weighted by JTD DRC"]
[null,null,null,"Lower than or equal to 10%","Higher than 10% and lower than or equal to 20%","Higher than 20% and lower than or equal to 30%","Higher than 30% and lower than or equal to 40%","Higher than 40% and lower than or equal to 50%","Higher than 50% and lower than or equal to 60%","Higher than 60% and lower than or equal to 70%","Higher than 70% and lower than or equal to 80%","Higher than 80% and lower than or equal to 90%","Higher than 90%"]
[null,null,null,"[0-0.1]","(0.1, 0.2]","(0.2, 0.3]","(0.3, 0.4]","(0.4, 0.5]","(0.5, 0.6]","(0.6, 0.7]","(0.7, 0.8]","(0.8, 0.9]","(0.9, ∞)"]
[null,null,null,"0010","0020","0030","0040","0050","0060","0070","0080","0090","0100","0110",null,null,null,null,null,null,null,null,null,null,null,null,null,null,null,{"$f":"Show!$B$71&\"C 98.01.2 Rows {\"&COLUMN($C$1)&\"}\"&Index!$E$75","v":"!C 98.01.2 Rows {3}"},{"$f":"Show!$B$71&\"C 98.01.2 Columns {\"&COLUMN($D$1)&\"}\"","v":"!C 98.01.2 Columns {4}"}]
[null,"Rows",""]
[null,"ALL ISSUERS","0009"]
[null,"All positions","0010"]
[null,"Central government, including central banks, of Member States","0019"]
[null,"Long","0020"]
[null,"Short","0030"]
[null,"Covered bonds issued by credit institutions in Member States (Investment Grade)","0039"]
[null,"Long","0040"]
[null,"Short","0050"]
[null,"Other sovereign (Investment grade)","0059"]
[null,"Long","0060"]
[null,"Short","0070"]
[null,"Other sovereign (Unrated)","0099"]
[null,"Long","0100"]
[null,"Short","0110"]
[null,"Corporate (Investment grade)","0119"]
[null,"Long","0120"]
[null,"Short","0130"]
[null,"Corporate (High yield)","0139"]
[null,"Long","0140"]
[null,"Short","0150"]
[null,"Corporate (Unrated)","0159"]
[null,"Long","0160"]
[null,"Short","0170"]
[null,"Other types (investment grade or high yield)","0179"]
[null,"Long","0180"]
[null,"Short","0190"]
[null,"Other types (unrated)","0199"]
[null,"Long","0200"]
[null,"Short","0210"]
[null,"Equity","0219"]
[null,"Long","0220"]
[null,"Short","0230"]
[]
[null,null,null,null,null,null,null,null,null,null,null,null,null,null,null,null,null,null,null,null,null,null,null,null,null,null,null,null,null,{"$f":"Show!$B$71&Show!$B$71&\"C 98.01.2 Rows {\"&COLUMN($C$1)&\"}\"","v":"!!C 98.01.2 Rows {3}"},{"$f":"Show!$B$71&Show!$B$71&\"C 98.01.2 Columns {\"&COLUMN($N$1)&\"}\"","v":"!!C 98.01.2 Columns {14}"}]

{"sheet":"C_98.02.1","index":75,"n_rows":43,"n_cols":18,"rows_kept":43,"cut":false,"hidden":true,"merged":[[12,3,12,5],[12,6,12,7],[12,8,13,8],[1,1,1,14],[4,1,4,11],[6,1,6,2],[9,3,10,8],[11,3,11,8]]}
["Back to Index"]
[null,"Alternative internal model approach: Default risk charge - 25 most significant issuers (MKR AIMA CORR1)"]
[]
[]
[null,"C 98.02.1"]
[]
[null,"Offsetting group that the data refers to",null,null,null,null,null,null,null,null,null,null,null,null,null,null,{"$f":"Show!$B$72&\"C 98.02.1 Table {\"&COLUMN($B$1)&\"}\"","v":"!C 98.02.1 Table {2}"},{"$f":"Show!$B$72&Show!$B$72&\"C 98.02.1 Table {\"&COLUMN($D$1)&\"}\"","v":"!!C 98.02.1 Table {4}"}]
[]
[]
[null,null,null,"Columns"]
[]
[null,null,null,"Positions considered in the calculation of AIMA as of the reference date (non-IRT desks): 25 most significant issuers"]
[null,null,null,"Issuer",null,null,"Systematic risk factors used for modelling",null,"JTD DRC (net per issuer)"]
[null,null,null,"Name","Code","Type of code","Systematic risk factor type 1 and attribute(s)","Systematic risk factor type 2 and attribute(s)"]
[null,null,null,"0010","0020","0030","0040","0050","0060",null,null,null,null,null,null,null,{"$f":"Show!$B$72&\"C 98.02.1 Rows {\"&COLUMN($C$1)&\"}\"&Index!$E$76","v":"!C 98.02.1 Rows {3}"},{"$f":"Show!$B$72&\"C 98.02.1 Columns {\"&COLUMN($D$1)&\"}\"","v":"!C 98.02.1 Columns {4}"}]
[null,"Rows",""]
[null,"Issuer 1","0010"]
[null,"Issuer 2","0020"]
[null,"Issuer 3","0030"]
[null,"Issuer 4","0040"]
[null,"Issuer 5","0050"]
[null,"Issuer 6","0060"]
[null,"Issuer 7","0070"]
[null,"Issuer 8","0080"]
[null,"Issuer 9","0090"]
[null,"Issuer 10","0100"]
[null,"Issuer 11","0110"]
[null,"Issuer 12","0120"]
[null,"Issuer 13","0130"]
[null,"Issuer 14","0140"]
[null,"Issuer 15","0150"]
[null,"Issuer 16","0160"]
[null,"Issuer 17","0170"]
[null,"Issuer 18","0180"]
[null,"Issuer 19","0190"]
[null,"Issuer 20","0200"]
[null,"Issuer 21","0210"]
[null,"Issuer 22","0220"]
[null,"Issuer 23","0230"]
[null,"Issuer 24","0240"]
[null,"Issuer 25","0250"]
[]
[null,null,null,null,null,null,null,null,null,null,null,null,null,null,null,null,{"$f":"Show!$B$72&Show!$B$72&\"C 98.02.1 Rows {\"&COLUMN($C$1)&\"}\"","v":"!!C 98.02.1 Rows {3}"},{"$f":"Show!$B$72&Show!$B$72&\"C 98.02.1 Columns {\"&COLUMN($I$1)&\"}\"","v":"!!C 98.02.1 Columns {9}"}]

{"sheet":"C_98.02.2","index":76,"n_rows":44,"n_cols":37,"rows_kept":44,"cut":false,"hidden":true,"merged":[[12,3,12,27],[12,28,13,28],[1,1,1,14],[4,1,4,11],[6,1,6,2],[9,3,10,28],[11,3,11,28]]}
["Back to Index"]
[null,"Alternative internal model approach: Default risk charge - 25 most significant issuers - Correlations (MKR AIMA CORR1)"]
[]
[]
[null,"C 98.02.2"]
[]
[null,"Offsetting group that the data refers to",null,null,null,null,null,null,null,null,null,null,null,null,null,null,null,null,null,null,null,null,null,null,null,null,null,null,null,null,null,null,null,null,null,{"$f":"Show!$B$73&\"C 98.02.2 Table {\"&COLUMN($B$1)&\"}\"","v":"!C 98.02.2 Table {2}"},{"$f":"Show!$B$73&Show!$B$73&\"C 98.02.2 Table {\"&COLUMN($D$1)&\"}\"","v":"!!C 98.02.2 Table {4}"}]
[]
[]
[null,null,null,"Columns"]
[]
[null,null,null,"Positions considered in the calculation of AIMA as of the reference date (non-IRT desks): 25 most significant issuers\t\t\t\t\t\t\t\t\t\t\t\t\t\t\t\t\t\t\t\t\t\t\t\t\tPositions considered in the calculation of AIMA as of the reference date (non-IRT desks): 25 most significant issuers\t\t\t\t\tPositions considered in the calculation of AIMA as of the reference date (non-IRT desks): 25 most significant issuers\t\t\t\t\t\t\t\t\t\t\t\t\t\t\t\t\t\t\t\t\t\t\t\t\t\t\t\t\t\t\t\t\t\t\t\t\t\t\t\t\t\t\t\t\t"]
[null,null,null,"Correlations between the 25 most significant issuers\t\t\t\t\t\t\t\t\t\t\t\t\t\t\t\t\t\t\t\t\t\t\t\t",null,null,null,null,null,null,null,null,null,null,null,null,null,null,null,null,null,null,null,null,null,null,null,null,"Weighted average correlation"]
[null,null,null,"Issuer 1","Issuer 2","Issuer 3","Issuer 4","Issuer 5","Issuer 6","Issuer 7","Issuer 8","Issuer 9","Issuer 10","Issuer 11","Issuer 12","Issuer 13","Issuer 14","Issuer 15","Issuer 16","Issuer 17","Issuer 18","Issuer 19","Issuer 20","Issuer 21","Issuer 22","Issuer 23","Issuer 24","Issuer 25"]
[null,null,null,"0010","0020","0030","0040","0050","0060","0070","0080","0090","0100","0110","0120","0130","0140","0150","0160","0170","0180","0190","0200","0210","0220","0230","0240","0250","0260",null,null,null,null,null,null,{"$f":"Show!$B$73&\"C 98.02.2 Rows {\"&COLUMN($C$1)&\"}\"&Index!$E$77","v":"!C 98.02.2 Rows {3}"},{"$f":"Show!$B$73&\"C 98.02.2 Columns {\"&COLUMN($D$1)&\"}\"","v":"!C 98.02.2 Columns {4}"}]
[null,"Rows",""]
[null,"25 most significant issuers","0010"]
[null,"Issuer 1","0020"]
[null,"Issuer 2","0030"]
[null,"Issuer 3","0040"]
[null,"Issuer 4","0050"]
[null,"Issuer 5","0060"]
[null,"Issuer 6","0070"]
[null,"Issuer 7","0080"]
[null,"Issuer 8","0090"]
[null,"Issuer 9","0100"]
[null,"Issuer 10","0110"]
[null,"Issuer 11","0120"]
[null,"Issuer 12","0130"]
[null,"Issuer 13","0140"]
[null,"Issuer 14","0150"]
[null,"Issuer 15","0160"]
[null,"Issuer 16","0170"]
[null,"Issuer 17","0180"]
[null,"Issuer 18","0190"]
[null,"Issuer 19","0200"]
[null,"Issuer 20","0210"]
[null,"Issuer 21","0220"]
[null,"Issuer 22","0230"]
[null,"Issuer 23","0240"]
[null,"Issuer 24","0250"]
[null,"Issuer 25","0260"]
[]
[null,null,null,null,null,null,null,null,null,null,null,null,null,null,null,null,null,null,null,null,null,null,null,null,null,null,null,null,null,null,null,null,null,null,null,{"$f":"Show!$B$73&Show!$B$73&\"C 98.02.2 Rows {\"&COLUMN($C$1)&\"}\"","v":"!!C 98.02.2 Rows {3}"},{"$f":"Show!$B$73&Show!$B$73&\"C 98.02.2 Columns {\"&COLUMN($AC$1)&\"}\"","v":"!!C 98.02.2 Columns {29}"}]

{"sheet":"C_24.01","index":77,"n_rows":15,"n_cols":21,"rows_kept":15,"cut":false,"hidden":true,"merged":[[1,1,1,14],[4,1,4,11],[6,1,6,2],[9,1,11,1],[9,2,10,11]]}
["Back to Index"]
[null,"Trading book-Banking book boundary: Reclassifications between books (MKR MOV)"]
[]
[]
[null,"C 24.01"]
[]
[null,"Offsetting group that the data refers to",null,null,null,null,null,null,null,null,null,null,null,null,null,null,null,null,null,{"$f":"Show!$B$74&\"C 24.01 Table {\"&COLUMN($B$1)&\"}\"","v":"!C 24.01 Table {2}"},{"$f":"Show!$B$74&Show!$B$74&\"C 24.01 Table {\"&COLUMN($D$1)&\"}\"","v":"!!C 24.01 Table {4}"}]
[]
[]
[null,"Reclassification ID","Columns"]
[]
[null,null,"Type of instrument","Regulatory book the instrument was reclassified from","Regulatory book the instrument was reclassified to","Reason for the reclassification","Prior permission (status)","Date of reclassification","Net (+) increase or (-) reduction of own funds requirements resulting from the reclassification","Add-on to the own funds requirements due to the reclassification","Date of maturity or envisaged derecognition of the instrument","Date as of which the competent authority permits the recognition of the reduction in own funds requirements"]
[null,"0010","0020","0030","0040","0050","0060","0070","0080","0090","0100","0110",null,null,null,null,null,null,null,{"$f":"Show!$B$74&\"C 24.01 Rows {\"&COLUMN($B$1)&\"}\"&Index!$E$78","v":"!C 24.01 Rows {2}"},{"$f":"Show!$B$74&\"C 24.01 Columns {\"&COLUMN($B$1)&\"}\"","v":"!C 24.01 Columns {2}"}]
[]
[null,null,null,null,null,null,null,null,null,null,null,null,null,null,null,null,null,null,null,{"$f":"Show!$B$74&Show!$B$74&\"C 24.01 Rows {\"&COLUMN($B$1)&\"}\"","v":"!!C 24.01 Rows {2}"},{"$f":"Show!$B$74&Show!$B$74&\"C 24.01 Columns {\"&COLUMN($L$1)&\"}\"","v":"!!C 24.01 Columns {12}"}]

{"sheet":"B_05.02","index":78,"n_rows":14,"n_cols":21,"rows_kept":14,"cut":false,"hidden":true,"merged":[[1,1,1,14],[4,1,4,11],[8,1,10,1],[8,2,10,2],[8,3,10,3],[8,4,10,4],[8,5,9,7]]}
["Back to Index"]
[null,"RT.05.02: ICT service supply chains"]
[]
[]
[null,"B 05.02"]
[]
[]
[]
[null,"Contractual arrangement reference number","Identification code of the ICT third-party service provider","Type of code to identify the ICT third-party service provider","Type of ICT services","Columns"]
[]
[null,null,null,null,null,"Rank","Identification code of the recipient of sub-contracted ICT services","Type of code to identify the recipient of sub-contracted ICT services"]
[null,"0010","0030","0040","0020","0050","0060","0070",null,null,null,null,null,null,null,null,null,null,null,{"$f":"Show!$B$75&\"B 05.02 Rows {\"&COLUMN($B$1)&\"}\"&Index!$E$79","v":"!B 05.02 Rows {2}"},{"$f":"Show!$B$75&\"B 05.02 Columns {\"&COLUMN($B$1)&\"}\"","v":"!B 05.02 Columns {2}"}]
[]
[null,null,null,null,null,null,null,null,null,null,null,null,null,null,null,null,null,null,null,{"$f":"Show!$B$75&Show!$B$75&\"B 05.02 Rows {\"&COLUMN($B$1)&\"}\"","v":"!!B 05.02 Rows {2}"},{"$f":"Show!$B$75&Show!$B$75&\"B 05.02 Columns {\"&COLUMN($H$1)&\"}\"","v":"!!B 05.02 Columns {8}"}]

{"sheet":"C_90.00","index":79,"n_rows":22,"n_cols":20,"rows_kept":22,"cut":false,"hidden":true,"merged":[[12,7,12,8],[13,5,13,6],[13,7,14,7],[13,8,14,8],[1,1,1,14],[4,1,4,11],[8,3,9,10],[10,3,10,9],[11,3,14,3],[10,10,14,10],[11,4,11,8],[11,9,14,9],[12,4,12,6],[13,4,14,4]]}
["Back to Index"]
[null,"Trading book and market risk thresholds (TBT)"]
[]
[]
[null,"C 90.00"]
[]
[]
[]
[null,null,null,"Columns"]
[]
[null,null,null,"On - and off - balance sheet business subject to market risk",null,null,null,null,null,null,"Total assets"]
[null,null,null,null,"Breakdown by regulatory book",null,null,null,null,"In % of total assets"]
[null,null,null,null,"Trading book",null,null,"Non-trading book"]
[null,null,null,null,null,"Of which: Trading book business for the purposes of Article 94 of Regulation (EU) No 575/2013",null,"Positions subject to foreign exchange risk","Positions subject to Commodities risk"]
[null,null,null,null,null,"Total","In % of total assets"]
[null,null,null,"0010","0020","0030","0040","0050","0060","0070","0080",null,null,null,null,null,null,null,{"$f":"Show!$B$76&\"C 90.00 Rows {\"&COLUMN($C$1)&\"}\"&Index!$E$80","v":"!C 90.00 Rows {3}"},{"$f":"Show!$B$76&\"C 90.00 Columns {\"&COLUMN($D$1)&\"}\"","v":"!C 90.00 Columns {4}"}]
[null,"Rows",""]
[null,"Month 3","0010"]
[null,"Month 2","0020"]
[null,"Month 1","0030"]
[]
[null,null,null,null,null,null,null,null,null,null,null,null,null,null,null,null,null,null,{"$f":"Show!$B$76&Show!$B$76&\"C 90.00 Rows {\"&COLUMN($C$1)&\"}\"","v":"!!C 90.00 Rows {3}"},{"$f":"Show!$B$76&Show!$B$76&\"C 90.00 Columns {\"&COLUMN($K$1)&\"}\"","v":"!!C 90.00 Columns {11}"}]

{"sheet":"B_06.01","index":80,"n_rows":14,"n_cols":21,"rows_kept":14,"cut":false,"hidden":true,"merged":[[1,1,1,14],[4,1,4,11],[8,1,10,1],[8,2,10,2],[8,3,9,10]]}
["Back to Index"]
[null,"RT.06.01: Functions identification"]
[]
[]
[null,"B 06.01"]
[]
[]
[]
[null,"LEI of the financial entity","Function Identifier","Columns"]
[]
[null,null,null,"Licenced activity","Function name","Criticality or importance assessment","Reasons for criticality or importance","Date of the last assessment of criticality or importance","Recovery time objective of the function","Recovery point objective of the function","Impact of discontinuing the function"]
[null,"0040","0010","0020","0030","0050","0060","0070","0080","0090","0100",null,null,null,null,null,null,null,null,{"$f":"Show!$B$77&\"B 06.01 Rows {\"&COLUMN($B$1)&\"}\"&Index!$E$81","v":"!B 06.01 Rows {2}"},{"$f":"Show!$B$77&\"B 06.01 Columns {\"&COLUMN($B$1)&\"}\"","v":"!B 06.01 Columns {2}"}]
[]
[null,null,null,null,null,null,null,null,null,null,null,null,null,null,null,null,null,null,null,{"$f":"Show!$B$77&Show!$B$77&\"B 06.01 Rows {\"&COLUMN($B$1)&\"}\"","v":"!!B 06.01 Rows {2}"},{"$f":"Show!$B$77&Show!$B$77&\"B 06.01 Columns {\"&COLUMN($K$1)&\"}\"","v":"!!B 06.01 Columns {11}"}]

{"sheet":"B_07.01","index":81,"n_rows":14,"n_cols":26,"rows_kept":14,"cut":false,"hidden":true,"merged":[[1,1,1,14],[4,1,4,11],[8,1,10,1],[8,2,10,2],[8,3,10,3],[8,4,10,4],[8,5,9,12]]}
["Back to Index"]
[null,"RT.07.01: Assessment of the ICT services"]
[]
[]
[null,"B 07.01"]
[]
[]
[]
[null,"Contractual arrangement reference number","Identification code of the ICT third-party service provider","Type of code to identify the ICT third-party service provider","Type of ICT services","Columns"]
[]
[null,null,null,null,null,"Substitutability of the ICT third-party service provider ","Reason if the ICT third-party service provider is considered not substitutable or difficult to be substitutable","Date of the last audit on the ICT third-party service provider","Existence of an exit plan","Possibility of reintegration of the contracted ICT service","Impact of discontinuing the ICT services ","Are there alternative ICT third-party service providers identified?","Identification of alternative ICT TPP"]
[null,"0010","0020","0030","0040","0050","0060","0070","0080","0090","0100","0110","0120",null,null,null,null,null,null,null,null,null,null,null,{"$f":"Show!$B$78&\"B 07.01 Rows {\"&COLUMN($B$1)&\"}\"&Index!$E$82","v":"!B 07.01 Rows {2}"},{"$f":"Show!$B$78&\"B 07.01 Columns {\"&COLUMN($B$1)&\"}\"","v":"!B 07.01 Columns {2}"}]
[]
[null,null,null,null,null,null,null,null,null,null,null,null,null,null,null,null,null,null,null,null,null,null,null,null,{"$f":"Show!$B$78&Show!$B$78&\"B 07.01 Rows {\"&COLUMN($B$1)&\"}\"","v":"!!B 07.01 Rows {2}"},{"$f":"Show!$B$78&Show!$B$78&\"B 07.01 Columns {\"&COLUMN($M$1)&\"}\"","v":"!!B 07.01 Columns {13}"}]

{"sheet":"C_99.00","index":82,"n_rows":16,"n_cols":24,"rows_kept":16,"cut":false,"hidden":true,"merged":[[1,1,1,14],[4,1,4,11],[8,1,12,1],[8,2,9,12],[10,2,10,12],[11,2,11,3],[11,4,11,11],[11,12,12,12]]}
["Back to Index"]
[null,"Market risk: P&L information (MKR PL)"]
[]
[]
[null,"C 99.00"]
[]
[]
[]
[null,"Date (t)","Columns"]
[]
[null,null,"Economic profit (+) or loss (-)"]
[null,null,"Total",null,"Of which attributable to:",null,null,null,null,null,null,null,"Memorandum item: Coverage of the data"]
[null,null,null,"Comments and explanations","General interest rate risk (GIRR)","Credit spread risk for non–secu-ritisations (CSR)","Credit spread risk for securitisation not included in the alternative correlation trading portfolio (non–ACTP CSR)","ACTP CSR – Credit spread risk for securitisation included in the alternative correlation trading portfolio (ACTP CSR)","Equity risk (EQU)","Commodity risk (COM)","Foreign exchange risk (FX)","Comments and explanations"]
[null,"0010","0020","0025","0030","0040","0050","0060","0070","0080","0090","0095","0100",null,null,null,null,null,null,null,null,null,{"$f":"Show!$B$79&\"C 99.00 Rows {\"&COLUMN($B$1)&\"}\"&Index!$E$83","v":"!C 99.00 Rows {2}"},{"$f":"Show!$B$79&\"C 99.00 Columns {\"&COLUMN($B$1)&\"}\"","v":"!C 99.00 Columns {2}"}]
[]
[null,null,null,null,null,null,null,null,null,null,null,null,null,null,null,null,null,null,null,null,null,null,{"$f":"Show!$B$79&Show!$B$79&\"C 99.00 Rows {\"&COLUMN($B$1)&\"}\"","v":"!!C 99.00 Rows {2}"},{"$f":"Show!$B$79&Show!$B$79&\"C 99.00 Columns {\"&COLUMN($M$1)&\"}\"","v":"!!C 99.00 Columns {13}"}]

{"sheet":"B_99.01","index":83,"n_rows":17,"n_cols":34,"rows_kept":17,"cut":false,"hidden":true,"merged":[[1,1,1,14],[4,1,4,11],[8,3,9,21],[10,3,10,5],[10,6,10,8],[10,9,10,11],[10,12,10,15],[10,16,10,18],[10,19,10,21]]}
["Back to Index"]
[null,"RT.99.01 Definitions from Entities making use of the ICT Services"]
[]
[]
[null,"B 99.01"]
[]
[]
[]
[null,null,null,"Columns"]
[]
[null,null,null,"Type of contractual arrangement",null,null,"Sensitiveness of the data stored by the ICT third-party service provider",null,null,"Impact of discontinuing the function",null,null,"Substitutability of the ICT third-party service provider ",null,null,null,"Possibility of reintegration of the contracted ICT service",null,null,"Impact of discontinuing the ICT services "]
[null,null,null,"Standalone arrangement","Overarching arrangement","Subsequent or associated arrangement","Low","Medium","High","Low","Medium","High","Not substitutable","Highly complex substitutability","Medium complexity in terms of substitutability"," Easily substitutable","Easy","Difficult","Highly complex","Low","Medium","High"]
[null,null,null,"0010","0020","0030","0040","0050","0060","0070","0080","0090","0100","0110","0120","0130","0140","0150","0160","0170","0180","0190",null,null,null,null,null,null,null,null,null,null,{"$f":"Show!$B$80&\"B 99.01 Rows {\"&COLUMN($C$1)&\"}\"&Index!$E$84","v":"!B 99.01 Rows {3}"},{"$f":"Show!$B$80&\"B 99.01 Columns {\"&COLUMN($D$1)&\"}\"","v":"!B 99.01 Columns {4}"}]
[null,"Rows",""]
[null,"Description/Internal definition of the option","0040"]
[]
[null,null,null,null,null,null,null,null,null,null,null,null,null,null,null,null,null,null,null,null,null,null,null,null,null,null,null,null,null,null,null,null,{"$f":"Show!$B$80&Show!$B$80&\"B 99.01 Rows {\"&COLUMN($C$1)&\"}\"","v":"!!B 99.01 Rows {3}"},{"$f":"Show!$B$80&Show!$B$80&\"B 99.01 Columns {\"&COLUMN($V$1)&\"}\"","v":"!!B 99.01 Columns {22}"}]